Workbook

Sheet DEPARTAMENTAL
A4: POBLACION ESTIMADA POR EDADES SIMPLES Y GRUPOS DE EDAD, SEGÚN DEPARTAMENTO. 2023
A5: * Actualizado con datos INEI
A6: POBLACION 2023 | D6: POBLACION TOTAL, POR EDADS SIMPLES | X6: POBLACIÓN TOTAL, POR GRUPOS QUINQUEN ALES DE EDAD | AL6: EDADES ESPECIALES | AO6: NACIMIENTOS VIVOS | AP6: POBLACION FEMENINA TOTAL | AQ6: POBLACION FEMENINA | AT6: GESTANTES ESPERADAS
A7: UBIGEO | B7: DEPARTAMENTO | C7: Total | D7: 0 | E7: 1 | F7: 2 | G7: 3 | H7: 4 | I7: 5 | J7: 6 | K7: 7 | L7: 8 | M7: 9 | N7: 10 | O7: 11 | P7: 12 | Q7: 13 | R7: 14 | S7: 15 | T7: 16 | U7: 17 | V7: 18 | W7: 19 | X7: 20-24 | Y7: 25-29 | Z7: 30-34 | AA7: 35-39 | AB7: 40-44 | AC7: 45-49 | AD7: 50-54 | AE7: 55-59 | AF7: 60-64 | AG7: 65-69 | AH7: 70-74 | AI7: 75-79 | AJ7: 80-84 | AK7: 85-+ | AL7: 28 DIAS | AM7: 0-5 MESES | AN7: 6-11 MESES | AQ7: 10 - 14 | AR7: 15- 19 | AS7: 20- 49 | AV7: TOTAL | AW7: NIÑO | AX7: Adolescente | AY7: Joven | AZ7: Adulto | BA7: Adulto Mayor
A8: 00 | B8: PERU | C8: 33,833,230 | D8: 474,467 | E8: 484,109 | F8: 518,561 | G8: 544,106 | H8: 557,718 | I8: 562,770 | J8: 592,265 | K8: 608,107 | L8: 605,937 | M8: 592,551 | N8: 587,239 | O8: 590,557 | P8: 603,452 | Q8: 599,440 | R8: 558,532 | S8: 568,115 | T8: 583,829 | U8: 572,115 | V8: 542,767 | W8: 523,513 | X8: 2,667,032 | Y8: 2,886,747 | Z8: 2,697,022 | AA8: 2,496,520 | AB8: 2,292,724 | AC8: 2,070,511 | AD8: 1,771,512 | AE8: 1,526,063 | AF8: 1,242,426 | AG8: 992,073 | AH8: 726,744 | AI8: 526,092 | AJ8: 343,282 | AK8: 324,332 | AL8: 29,817 | AM8: 258,139 | AN8: 265,715 | AO8: 565,627 | AP8: 16,932,068 | AQ8: 1,444,835 | AR8: 1,373,837 | AS8: 7,536,044 | AT8: 863,618 | AV8: =C8 -> 33,833,230 | AW8: =SUM(D8:O8) -> 6,718,387 | AX8: =SUM(P8:U8) -> 3,485,483 | AY8: =SUM(V8:Y8) -> 6,620,059 | AZ8: =SUM(Z8:AE8) -> 12,854,352 | BA8: =SUM(AF8:AK8) -> 4,154,949
A9: 04 | B9: AREQUIPA | C9: 1578244 | D9: 17918 | E9: 17921 | F9: 21206 | G9: 22355 | H9: 23256 | I9: 23870 | J9: 26646 | K9: 27103 | L9: 26790 | M9: 25632 | N9: 24878 | O9: 25299 | P9: 25935 | Q9: 24933 | R9: 23281 | S9: 23329 | T9: 23539 | U9: 23421 | V9: 23014 | W9: 23146 | X9: 119781 | Y9: 136125 | Z9: 135629 | AA9: 125502 | AB9: 116323 | AC9: 105342 | AD9: 88245 | AE9: 74799 | AF9: 60063 | AG9: 48661 | AH9: 35553 | AI9: 25526 | AJ9: 16599 | AK9: 16624 | AL9: 1191 | AM9: 10915 | AN9: 10326 | AO9: 24232 | AP9: 788,396 | AQ9: 60901 | AR9: 57607 | AS9: 366258 | AT9: 39670 | AV9: =C9 -> 1,578,244 | AW9: =SUM(D9:O9) -> 282,874 | AX9: =SUM(P9:U9) -> 144,438 | AY9: =SUM(V9:Y9) -> 302,066 | AZ9: =SUM(Z9:AE9) -> 645,840 | BA9: =SUM(AF9:AK9) -> 203,026
A11: NOTA: LA POBLACION ESTIMADA DE EDADES SIMPLES Y GRUPOS DE EDAD DE DISTRITOS, CORRESPONDEN A CIFRAS REFERENCIALES HASTA OBTENER LAS CIFRAS DE LAS PROYECCIONES DEL INEI
A12: FUENTE: CENSO NACIONAL XI DE POBLACION Y VI DE VIVIENDA 2017/- BOLETIN DEMOGRAFICO Nº 26,37, 39 / RENIEC / Padrón Nominal/ CNV
A13: La población de 0-5 años corresponden a una proyección de la poblacion del Padrón Nominal respecto a lo estimado por INEI en el Boletin 26
A14: OFICINA DE GESTION DE LA INFORMACION - MINISTERIO DE SALUD

Sheet PROVINCIAL
A4: POBLACION ESTIMADA POR EDADES SIMPLES Y GRUPOS DE EDAD, SEGÚN DEPARTAMENTO y PROVINCIA. 2023
A5: * Actualizado con datos INEI
A6: POBLACION 2023 | F6: POBLACION TOTAL, POR EDADS SIMPLES | Z6: POBLACIÓN TOTAL, POR GRUPOS QUINQUEN ALES DE EDAD | AN6: EDADES ESPECIALES | AQ6: NACIMIENTOS VIVOS | AR6: POBLACION FEMENINA TOTAL | AS6: POBLACION FEMENINA | AV6: GESTANTES ESPERADAS
A7: UBIGEO | B7: DIRESA | C7: DEPARTAMENTO | D7: PROVINCIA | E7: Total | F7: 0 | G7: 1 | H7: 2 | I7: 3 | J7: 4 | K7: 5 | L7: 6 | M7: 7 | N7: 8 | O7: 9 | P7: 10 | Q7: 11 | R7: 12 | S7: 13 | T7: 14 | U7: 15 | V7: 16 | W7: 17 | X7: 18 | Y7: 19 | Z7: 20-24 | AA7: 25-29 | AB7: 30-34 | AC7: 35-39 | AD7: 40-44 | AE7: 45-49 | AF7: 50-54 | AG7: 55-59 | AH7: 60-64 | AI7: 65-69 | AJ7: 70-74 | AK7: 75-79 | AL7: 80-84 | AM7: 85-+ | AN7: 28 DIAS | AO7: 0-5 MESES | AP7: 6-11 MESES | AS7: 10 - 14 | AT7: 15- 19 | AU7: 20- 49 | AX7: TOTAL | AY7: NIÑO | AZ7: Adolescente | BA7: Joven | BB7: Adulto | BC7: Adulto Mayor
A8: 0000 | B8: PERU | C8: PERU | D8: PERU | E8: 33,833,230 | F8: 474,467 | G8: 484,109 | H8: 518,561 | I8: 544,106 | J8: 557,718 | K8: 562,770 | L8: 592,265 | M8: 608,107 | N8: 605,937 | O8: 592,551 | P8: 587,239 | Q8: 590,557 | R8: 603,452 | S8: 599,440 | T8: 558,532 | U8: 568,115 | V8: 583,829 | W8: 572,115 | X8: 542,767 | Y8: 523,513 | Z8: 2,667,032 | AA8: 2,886,747 | AB8: 2,697,022 | AC8: 2,496,520 | AD8: 2,292,724 | AE8: 2,070,511 | AF8: 1,771,512 | AG8: 1,526,063 | AH8: 1,242,426 | AI8: 992,073 | AJ8: 726,744 | AK8: 526,092 | AL8: 343,282 | AM8: 324,332 | AN8: 29,817 | AO8: 258,139 | AP8: 265,715 | AQ8: 565,627 | AR8: 16,932,068 | AS8: 1,444,835 | AT8: 1,373,837 | AU8: 7,536,044 | AV8: 863,618 | AX8: =E8 -> 33,833,230 | AY8: =SUM(F8:Q8) -> 6,718,387 | AZ8: =SUM(R8:W8) -> 3,485,483 | BA8: =SUM(X8:AA8) -> 6,620,059 | BB8: =SUM(AB8:AG8) -> 12,854,352 | BC8: =SUM(AH8:AM8) -> 4,154,949
A9: 0401 | B9: AREQUIPA | C9: AREQUIPA | D9: AREQUIPA | E9: 1249085 | F9: 13345 | G9: 13504 | H9: 16288 | I9: 17519 | J9: 18206 | K9: 18648 | L9: 21568 | M9: 21779 | N9: 21633 | O9: 20603 | P9: 19879 | Q9: 19937 | R9: 20550 | S9: 19734 | T9: 18213 | U9: 18194 | V9: 18051 | W9: 18028 | X9: 18069 | Y9: 18473 | Z9: 96401 | AA9: 109549 | AB9: 109375 | AC9: 99762 | AD9: 92771 | AE9: 83360 | AF9: 69298 | AG9: 58035 | AH9: 46657 | AI9: 38082 | AJ9: 27882 | AK9: 19998 | AL9: 12888 | AM9: 12806 | AN9: 913 | AO9: 8308 | AP9: 7641 | AQ9: 18032 | AR9: 627,735 | AS9: 48180 | AT9: 44989 | AU9: 294198 | AV9: 30846 | AX9: =E9 -> 1,249,085 | AY9: =SUM(F9:Q9) -> 222,909 | AZ9: =SUM(R9:W9) -> 112,770 | BA9: =SUM(X9:AA9) -> 242,492 | BB9: =SUM(AB9:AG9) -> 512,601 | BC9: =SUM(AH9:AM9) -> 158,313
A10: 0402 | B10: AREQUIPA | C10: AREQUIPA | D10: CAMANA | E10: 63283 | F10: 924 | G10: 790 | H10: 970 | I10: 1063 | J10: 1190 | K10: 1217 | L10: 1019 | M10: 1069 | N10: 1052 | O10: 952 | P10: 960 | Q10: 1076 | R10: 1039 | S10: 988 | T10: 973 | U10: 965 | V10: 943 | W10: 952 | X10: 895 | Y10: 828 | Z10: 4261 | AA10: 5181 | AB10: 5338 | AC10: 5086 | AD10: 4458 | AE10: 4154 | AF10: 3729 | AG10: 3264 | AH10: 2710 | AI10: 1984 | AJ10: 1315 | AK10: 849 | AL10: 572 | AM10: 517 | AN10: 64 | AO10: 519 | AP10: 507 | AQ10: 1210 | AR10: 31,126 | AS10: 2474 | AT10: 2264 | AU10: 14265 | AV10: 1605 | AX10: 63,283 | AY10: 12,282 | AZ10: 5,860 | BA10: 11,165 | BB10: 26,029 | BC10: 7,947
A11: 0403 | B11: AREQUIPA | C11: AREQUIPA | D11: CARAVELI | E11: 45148 | F11: 701 | G11: 619 | H11: 687 | I11: 581 | J11: 636 | K11: 659 | L11: 754 | M11: 751 | N11: 752 | O11: 762 | P11: 759 | Q11: 820 | R11: 814 | S11: 793 | T11: 762 | U11: 791 | V11: 838 | W11: 746 | X11: 681 | Y11: 635 | Z11: 3001 | AA11: 3478 | AB11: 3646 | AC11: 3691 | AD11: 3213 | AE11: 3047 | AF11: 2617 | AG11: 2234 | AH11: 1758 | AI11: 1346 | AJ11: 951 | AK11: 662 | AL11: 444 | AM11: 519 | AN11: 46 | AO11: 394 | AP11: 362 | AQ11: 900 | AR11: 21,737 | AS11: 1936 | AT11: 1833 | AU11: 9820 | AV11: 1436 | AX11: 45,148 | AY11: 8,481 | AZ11: 4,744 | BA11: 7,795 | BB11: 18,448 | BC11: 5,680
A12: 0404 | B12: AREQUIPA | C12: AREQUIPA | D12: CASTILLA | E12: 33789 | F12: 378 | G12: 376 | H12: 433 | I12: 411 | J12: 451 | K12: 497 | L12: 475 | M12: 496 | N12: 544 | O12: 504 | P12: 552 | Q12: 571 | R12: 600 | S12: 578 | T12: 546 | U12: 625 | V12: 641 | W12: 670 | X12: 509 | Y12: 499 | Z12: 2466 | AA12: 2634 | AB12: 2463 | AC12: 2410 | AD12: 2275 | AE12: 2129 | AF12: 1910 | AG12: 1826 | AH12: 1480 | AI12: 1194 | AJ12: 905 | AK12: 708 | AL12: 480 | AM12: 553 | AN12: 21 | AO12: 213 | AP12: 207 | AQ12: 497 | AR12: 16,332 | AS12: 1400 | AT12: 1499 | AU12: 6835 | AV12: 803 | AX12: 33,789 | AY12: 5,688 | AZ12: 3,660 | BA12: 6,108 | BB12: 13,013 | BC12: 5,320
A13: 0405 | B13: AREQUIPA | C13: AREQUIPA | D13: CAYLLOMA | E13: 103387 | F13: 1498 | G13: 1552 | H13: 1690 | I13: 1629 | J13: 1602 | K13: 1650 | L13: 1658 | M13: 1785 | N13: 1579 | O13: 1593 | P13: 1548 | Q13: 1648 | R13: 1675 | S13: 1629 | T13: 1592 | U13: 1454 | V13: 1698 | W13: 1668 | X13: 1597 | Y13: 1515 | Z13: 7671 | AA13: 8840 | AB13: 8741 | AC13: 8602 | AD13: 7775 | AE13: 7038 | AF13: 5696 | AG13: 4871 | AH13: 3739 | AI13: 2875 | AJ13: 2116 | AK13: 1488 | AL13: 878 | AM13: 797 | AN13: 78 | AO13: 866 | AP13: 918 | AQ13: 2075 | AR13: 51,132 | AS13: 3952 | AT13: 3837 | AU13: 24103 | AV13: 2762 | AX13: 103,387 | AY13: 19,432 | AZ13: 9,716 | BA13: 19,623 | BB13: 42,723 | BC13: 11,893
A14: 0406 | B14: AREQUIPA | C14: AREQUIPA | D14: CONDESUYOS | E14: 15825 | F14: 227 | G14: 200 | H14: 193 | I14: 202 | J14: 231 | K14: 191 | L14: 203 | M14: 203 | N14: 220 | O14: 225 | P14: 226 | Q14: 241 | R14: 230 | S14: 229 | T14: 234 | U14: 279 | V14: 294 | W14: 301 | X14: 240 | Y14: 219 | Z14: 1122 | AA14: 1263 | AB14: 1082 | AC14: 1107 | AD14: 1066 | AE14: 1052 | AF14: 907 | AG14: 881 | AH14: 681 | AI14: 593 | AJ14: 454 | AK14: 346 | AL14: 306 | AM14: 377 | AN14: 18 | AO14: 118 | AP14: 129 | AQ14: 294 | AR14: 7,527 | AS14: 563 | AT14: 640 | AU14: 3064 | AV14: 377 | AX14: 15,825 | AY14: 2,562 | AZ14: 1,567 | BA14: 2,844 | BB14: 6,095 | BC14: 2,757
A15: 0407 | B15: AREQUIPA | C15: AREQUIPA | D15: ISLAY | E15: 55451 | F15: 666 | G15: 665 | H15: 742 | I15: 764 | J15: 764 | K15: 826 | L15: 775 | M15: 819 | N15: 794 | O15: 778 | P15: 735 | Q15: 781 | R15: 794 | S15: 765 | T15: 742 | U15: 781 | V15: 818 | W15: 785 | X15: 775 | Y15: 771 | Z15: 3883 | AA15: 4379 | AB15: 4251 | AC15: 4161 | AD15: 4058 | AE15: 3862 | AF15: 3443 | AG15: 3077 | AH15: 2538 | AI15: 2144 | AJ15: 1589 | AK15: 1169 | AL15: 791 | AM15: 766 | AN15: 40 | AO15: 380 | AP15: 442 | AQ15: 935 | AR15: 26,875 | AS15: 1839 | AT15: 1936 | AU15: 11873 | AV15: 1358 | AX15: 55,451 | AY15: 9,109 | AZ15: 4,685 | BA15: 9,808 | BB15: 22,852 | BC15: 8,997
A16: 0408 | B16: AREQUIPA | C16: AREQUIPA | D16: LA UNION | E16: 12276 | F16: 179 | G16: 215 | H16: 203 | I16: 186 | J16: 176 | K16: 182 | L16: 194 | M16: 201 | N16: 216 | O16: 215 | P16: 219 | Q16: 225 | R16: 233 | S16: 217 | T16: 219 | U16: 240 | V16: 256 | W16: 271 | X16: 248 | Y16: 206 | Z16: 976 | AA16: 801 | AB16: 733 | AC16: 683 | AD16: 707 | AE16: 700 | AF16: 645 | AG16: 611 | AH16: 500 | AI16: 443 | AJ16: 341 | AK16: 306 | AL16: 240 | AM16: 289 | AN16: 11 | AO16: 117 | AP16: 120 | AQ16: 289 | AR16: 5,932 | AS16: 557 | AT16: 609 | AU16: 2100 | AV16: 483 | AX16: 12,276 | AY16: 2,411 | AZ16: 1,436 | BA16: 2,231 | BB16: 4,079 | BC16: 2,119
A18: NOTA: LA POBLACION ESTIMADA DE EDADES SIMPLES Y GRUPOS DE EDAD DE DISTRITOS, CORRESPONDEN A CIFRAS REFERENCIALES HASTA OBTENER LAS CIFRAS DE LAS PROYECCIONES DEL INEI
A19: FUENTE: CENSO NACIONAL XI DE POBLACION Y VI DE VIVIENDA 2017/- BOLETIN DEMOGRAFICO Nº 26,37, 39 / RENIEC / Padrón Nominal/ CNV
A20: La población de 0-5 años corresponden a una proyección de la poblacion del Padrón Nominal respecto a lo estimado por INEI en el Boletin 26
A21: OFICINA DE GESTION DE LA INFORMACION - MINISTERIO DE SALUD

Sheet DISTRITAL
AH1: 5879280
A5: * Actualizado con datos INEI
A6: POBLACION 2023 | J6: POBLACION TOTAL, POR EDADS SIMPLES | AD6: POBLACIÓN TOTAL, POR GRUPOS QUINQUEN ALES DE EDAD | AR6: EDADES ESPECIALES | AU6: NACIMIENTOS VIVOS | AV6: POBLACION FEMENINA TOTAL | AW6: POBLACION FEMENINA | AZ6: GESTANTES ESPERADAS
A7: UBIGEO | B7: DIRESA | C7: DEPARTAMENTO | D7: PROVINCIA | E7: DISTRITO | I7: Total | J7: 0 | K7: 1 | L7: 2 | M7: 3 | N7: 4 | O7: 5 | P7: 6 | Q7: 7 | R7: 8 | S7: 9 | T7: 10 | U7: 11 | V7: 12 | W7: 13 | X7: 14 | Y7: 15 | Z7: 16 | AA7: 17 | AB7: 18 | AC7: 19 | AD7: 20-24 | AE7: 25-29 | AF7: 30-34 | AG7: 35-39 | AH7: 40-44 | AI7: 45-49 | AJ7: 50-54 | AK7: 55-59 | AL7: 60-64 | AM7: 65-69 | AN7: 70-74 | AO7: 75-79 | AP7: 80-84 | AQ7: 85-+ | AR7: 28 DIAS | AS7: 0-5 MESES | AT7: 6-11 MESES | AW7: 10 - 14 | AX7: 15- 19 | AY7: 20- 49 | BA7: TOTAL | BB7: NIÑO | BC7: Adolescente | BD7: Joven | BE7: Adulto | BF7: Adulto Mayor
A8: 000000 | B8: PERU | C8: PERU | D8: PERU | E8: PERU | I8: 33,833,230 | J8: 474,467 | K8: 484,109 | L8: 518,561 | M8: 544,106 | N8: 557,718 | O8: 562,770 | P8: 592,265 | Q8: 608,107 | R8: 605,937 | S8: 592,551 | T8: 587,239 | U8: 590,557 | V8: 603,452 | W8: 599,440 | X8: 558,532 | Y8: 568,115 | Z8: 583,829 | AA8: 572,115 | AB8: 542,767 | AC8: 523,513 | AD8: 2,667,032 | AE8: 2,886,747 | AF8: 2,697,022 | AG8: 2,496,520 | AH8: 2,292,724 | AI8: 2,070,511 | AJ8: 1,771,512 | AK8: 1,526,063 | AL8: 1,242,426 | AM8: 992,073 | AN8: 726,744 | AO8: 526,092 | AP8: 343,282 | AQ8: 324,332 | AR8: 29,817 | AS8: 258,139 | AT8: 265,715 | AU8: 565,627 | AV8: 16,932,068 | AW8: 1,444,835 | AX8: 1,373,837 | AY8: 7,536,044 | AZ8: 863,618 | BA8: 33,833,230 | BB8: 6,718,387 | BC8: 3,485,483 | BD8: 6,620,059 | BE8: 12,854,352 | BF8: 4,154,949
A9: 040101 | B9: AREQUIPA | C9: AREQUIPA | D9: AREQUIPA | E9: AREQUIPA | I9: 56,369 | J9: 481 | K9: 488 | L9: 671 | M9: 745 | N9: 833 | O9: 864 | P9: 638 | Q9: 688 | R9: 689 | S9: 635 | T9: 631 | U9: 642 | V9: 648 | W9: 630 | X9: 613 | Y9: 616 | Z9: 603 | AA9: 596 | AB9: 570 | AC9: 595 | AD9: 3,347 | AE9: 3,683 | AF9: 3,992 | AG9: 3,715 | AH9: 3,802 | AI9: 4,014 | AJ9: 3,954 | AK9: 3,801 | AL9: 3,484 | AM9: 2,987 | AN9: 2,342 | AO9: 1,744 | AP9: 1,260 | AQ9: 1,368 | AR9: 58 | AS9: 363 | AT9: 243 | AU9: 684 | AV9: 28,622 | AW9: 1,502 | AX9: 1,445 | AY9: 11,175 | AZ9: 1,749 | BA9: 56,369 | BB9: 8,005 | BC9: 3,706 | BD9: 8,195 | BE9: 23,278 | BF9: 13,185
F10: 7397 | G10: INSTITUTO REGIONAL DE ENFERMEDADES NEOPLASICAS | H10: 0 | J10: 0 | K10: 0 | L10: 0 | M10: 0 | N10: 0 | O10: 0 | P10: 0 | Q10: 0 | R10: 0 | S10: 0 | T10: 0 | U10: 0 | V10: 0 | W10: 0 | X10: 0 | Y10: 0 | Z10: 0 | AA10: 0 | AB10: 0 | AC10: 0 | AD10: 0 | AE10: 0 | AF10: 0 | AG10: 0 | AH10: 0 | AI10: 0 | AJ10: 0 | AK10: 0 | AL10: 0 | AM10: 0 | AN10: 0 | AO10: 0 | AP10: 0 | AQ10: 0 | AR10: 0 | AS10: 0 | AT10: 0 | AU10: 0 | AV10: 0 | AW10: 0 | AX10: 0 | AY10: 0 | AZ10: 0 | BA10: 0 | BB10: 0 | BC10: 0 | BD10: 0 | BE10: 0 | BF10: 0
F11: 1232 | G11: HOSPITAL GOYENECHE | H11: 0 | J11: 0 | K11: 0 | L11: 0 | M11: 0 | N11: 0 | O11: 0 | P11: 0 | Q11: 0 | R11: 0 | S11: 0 | T11: 0 | U11: 0 | V11: 0 | W11: 0 | X11: 0 | Y11: 0 | Z11: 0 | AA11: 0 | AB11: 0 | AC11: 0 | AD11: 0 | AE11: 0 | AF11: 0 | AG11: 0 | AH11: 0 | AI11: 0 | AJ11: 0 | AK11: 0 | AL11: 0 | AM11: 0 | AN11: 0 | AO11: 0 | AP11: 0 | AQ11: 0 | AR11: 0 | AS11: 0 | AT11: 0 | AU11: 0 | AV11: 0 | AW11: 0 | AX11: 0 | AY11: 0 | AZ11: 0 | BA11: 0 | BB11: 0 | BC11: 0 | BD11: 0 | BE11: 0 | BF11: 0
F12: 1231 | G12: HOSPITAL REGIONAL HONORIO DELGADO ESPINOZA | H12: 0 | J12: 0 | K12: 0 | L12: 0 | M12: 0 | N12: 0 | O12: 0 | P12: 0 | Q12: 0 | R12: 0 | S12: 0 | T12: 0 | U12: 0 | V12: 0 | W12: 0 | X12: 0 | Y12: 0 | Z12: 0 | AA12: 0 | AB12: 0 | AC12: 0 | AD12: 0 | AE12: 0 | AF12: 0 | AG12: 0 | AH12: 0 | AI12: 0 | AJ12: 0 | AK12: 0 | AL12: 0 | AM12: 0 | AN12: 0 | AO12: 0 | AP12: 0 | AQ12: 0 | AR12: 0 | AS12: 0 | AT12: 0 | AU12: 0 | AV12: 0 | AW12: 0 | AX12: 0 | AY12: 0 | AZ12: 0 | BA12: 0 | BB12: 0 | BC12: 0 | BD12: 0 | BE12: 0 | BF12: 0
A13: 040102 | B13: AREQUIPA | C13: AREQUIPA | D13: AREQUIPA | E13: ALTO SELVA ALEGRE | I13: 93,514 | J13: 800 | K13: 1,026 | L13: 1,293 | M13: 1,352 | N13: 1,423 | O13: 1,444 | P13: 1,536 | Q13: 1,591 | R13: 1,580 | S13: 1,500 | T13: 1,468 | U13: 1,489 | V13: 1,491 | W13: 1,477 | X13: 1,396 | Y13: 1,282 | Z13: 1,346 | AA13: 1,316 | AB13: 1,241 | AC13: 1,378 | AD13: 7,418 | AE13: 8,897 | AF13: 8,640 | AG13: 7,426 | AH13: 6,666 | AI13: 5,849 | AJ13: 5,149 | AK13: 4,558 | AL13: 3,839 | AM13: 2,804 | AN13: 1,836 | AO13: 1,236 | AP13: 840 | AQ13: 927 | AR13: 56 | AS13: 618 | AT13: 515 | AU13: 1,242 | AV13: 47,337 | AW13: 3,536 | AX13: 3,214 | AY13: 22,512 | AZ13: 2,436 | BA13: 93,514 | BB13: 16,502 | BC13: 8,308 | BD13: 18,934 | BE13: 38,288 | BF13: 11,482
F14: 1291 | G14: CENTRO DE SALUD ALTO SELVA ALEGRE | H14: 32 | J14: 256 | K14: 328 | L14: 414 | M14: 433 | N14: 455 | O14: 462 | P14: 492 | Q14: 509 | R14: 506 | S14: 480 | T14: 470 | U14: 476 | V14: 477 | W14: 473 | X14: 447 | Y14: 410 | Z14: 431 | AA14: 421 | AB14: 397 | AC14: 441 | AD14: 2,374 | AE14: 2,847 | AF14: 2,765 | AG14: 2,376 | AH14: 2,133 | AI14: 1,872 | AJ14: 1,648 | AK14: 1,459 | AL14: 1,228 | AM14: 897 | AN14: 588 | AO14: 396 | AP14: 269 | AQ14: 297 | AR14: 18 | AS14: 198 | AT14: 165 | AU14: 397 | AV14: 15,148 | AW14: 1,132 | AX14: 1,028 | AY14: 7,204 | AZ14: 780 | BA14: 29,924 | BB14: 5,281 | BC14: 2,659 | BD14: 6,059 | BE14: 12,252 | BF14: 3,674
F15: 1300 | G15: APURIMAC | H15: 11 | J15: 88 | K15: 113 | L15: 142 | M15: 149 | N15: 157 | O15: 159 | P15: 169 | Q15: 175 | R15: 174 | S15: 165 | T15: 161 | U15: 164 | V15: 164 | W15: 162 | X15: 154 | Y15: 141 | Z15: 148 | AA15: 145 | AB15: 137 | AC15: 152 | AD15: 816 | AE15: 979 | AF15: 950 | AG15: 817 | AH15: 733 | AI15: 643 | AJ15: 566 | AK15: 501 | AL15: 422 | AM15: 308 | AN15: 202 | AO15: 136 | AP15: 92 | AQ15: 102 | AR15: 6 | AS15: 68 | AT15: 57 | AU15: 137 | AV15: 5,207 | AW15: 389 | AX15: 354 | AY15: 2,476 | AZ15: 268 | BA15: 10,287 | BB15: 1,815 | BC15: 914 | BD15: 2,083 | BE15: 4,212 | BF15: 1,263
F16: 1302 | G16: INDEPENDENCIA | H16: 29 | J16: 232 | K16: 298 | L16: 375 | M16: 392 | N16: 413 | O16: 419 | P16: 445 | Q16: 461 | R16: 458 | S16: 435 | T16: 426 | U16: 432 | V16: 432 | W16: 428 | X16: 405 | Y16: 372 | Z16: 390 | AA16: 382 | AB16: 360 | AC16: 400 | AD16: 2,151 | AE16: 2,580 | AF16: 2,506 | AG16: 2,154 | AH16: 1,933 | AI16: 1,696 | AJ16: 1,493 | AK16: 1,322 | AL16: 1,113 | AM16: 813 | AN16: 532 | AO16: 358 | AP16: 244 | AQ16: 269 | AR16: 16 | AS16: 179 | AT16: 149 | AU16: 360 | AV16: 13,728 | AW16: 1,025 | AX16: 932 | AY16: 6,528 | AZ16: 706 | BA16: 27,119 | BB16: 4,786 | BC16: 2,409 | BD16: 5,491 | BE16: 11,104 | BF16: 3,330
F17: 1301 | G17: LEONES DEL MISTI | H17: 9 | J17: 72 | K17: 92 | L17: 116 | M17: 122 | N17: 128 | O17: 130 | P17: 138 | Q17: 143 | R17: 142 | S17: 135 | T17: 132 | U17: 134 | V17: 134 | W17: 133 | X17: 126 | Y17: 115 | Z17: 121 | AA17: 118 | AB17: 112 | AC17: 124 | AD17: 668 | AE17: 801 | AF17: 778 | AG17: 668 | AH17: 600 | AI17: 526 | AJ17: 463 | AK17: 410 | AL17: 346 | AM17: 252 | AN17: 165 | AO17: 111 | AP17: 76 | AQ17: 83 | AR17: 5 | AS17: 56 | AT17: 46 | AU17: 112 | AV17: 4,260 | AW17: 318 | AX17: 289 | AY17: 2,026 | AZ17: 219 | BA17: 8,416 | BB17: 1,485 | BC17: 748 | BD17: 1,704 | BE17: 3,446 | BF17: 1,033
F18: 1303 | G18: SAN JUAN BAUTISTA | H18: 7 | J18: 56 | K18: 72 | L18: 91 | M18: 95 | N18: 100 | O18: 101 | P18: 108 | Q18: 111 | R18: 111 | S18: 105 | T18: 103 | U18: 104 | V18: 104 | W18: 103 | X18: 98 | Y18: 90 | Z18: 94 | AA18: 92 | AB18: 87 | AC18: 96 | AD18: 519 | AE18: 623 | AF18: 605 | AG18: 520 | AH18: 467 | AI18: 409 | AJ18: 360 | AK18: 319 | AL18: 269 | AM18: 196 | AN18: 129 | AO18: 87 | AP18: 59 | AQ18: 65 | AR18: 4 | AS18: 43 | AT18: 36 | AU18: 87 | AV18: 3,314 | AW18: 248 | AX18: 225 | AY18: 1,576 | AZ18: 171 | BA18: 6,546 | BB18: 1,155 | BC18: 582 | BD18: 1,325 | BE18: 2,680 | BF18: 804
F19: 1304 | G19: HEROES DEL CENEPA | H19: 12 | J19: 96 | K19: 123 | L19: 155 | M19: 162 | N19: 171 | O19: 173 | P19: 184 | Q19: 191 | R19: 190 | S19: 180 | T19: 176 | U19: 179 | V19: 179 | W19: 177 | X19: 168 | Y19: 154 | Z19: 162 | AA19: 158 | AB19: 149 | AC19: 165 | AD19: 890 | AE19: 1,068 | AF19: 1,037 | AG19: 891 | AH19: 800 | AI19: 702 | AJ19: 618 | AK19: 547 | AL19: 461 | AM19: 336 | AN19: 220 | AO19: 148 | AP19: 101 | AQ19: 111 | AR19: 7 | AS19: 74 | AT19: 62 | AU19: 149 | AV19: 5,680 | AW19: 424 | AX19: 386 | AY19: 2,701 | AZ19: 292 | BA19: 11,222 | BB19: 1,980 | BC19: 997 | BD19: 2,272 | BE19: 4,595 | BF19: 1,378
A20: 040103 | B20: AREQUIPA | C20: AREQUIPA | D20: AREQUIPA | E20: CAYMA | I20: 110,463 | J20: 1,278 | K20: 1,226 | L20: 1,433 | M20: 1,614 | N20: 1,638 | O20: 1,770 | P20: 2,011 | Q20: 1,973 | R20: 1,971 | S20: 1,846 | T20: 1,793 | U20: 1,794 | V20: 1,926 | W20: 1,775 | X20: 1,621 | Y20: 1,681 | Z20: 1,512 | AA20: 1,591 | AB20: 1,610 | AC20: 1,574 | AD20: 8,547 | AE20: 9,954 | AF20: 10,442 | AG20: 9,248 | AH20: 7,984 | AI20: 6,966 | AJ20: 5,815 | AK20: 4,917 | AL20: 4,050 | AM20: 3,206 | AN20: 2,251 | AO20: 1,584 | AP20: 905 | AQ20: 957 | AR20: 81 | AS20: 746 | AT20: 726 | AU20: 1,634 | AV20: 55,459 | AW20: 4,320 | AX20: 3,869 | AY20: 26,381 | AZ20: 2,634 | BA20: 110,463 | BB20: 20,347 | BC20: 10,106 | BD20: 21,685 | BE20: 45,372 | BF20: 12,953
F21: 1234 | G21: CENTRO DE SALUD FRANCISCO BOLOGNESI | H21: 33 | J21: 422 | K21: 404 | L21: 473 | M21: 533 | N21: 540 | O21: 584 | P21: 664 | Q21: 651 | R21: 650 | S21: 608 | T21: 593 | U21: 593 | V21: 635 | W21: 585 | X21: 534 | Y21: 555 | Z21: 500 | AA21: 525 | AB21: 531 | AC21: 520 | AD21: 2,819 | AE21: 3,286 | AF21: 3,447 | AG21: 3,051 | AH21: 2,635 | AI21: 2,298 | AJ21: 1,918 | AK21: 1,622 | AL21: 1,336 | AM21: 1,057 | AN21: 743 | AO21: 523 | AP21: 298 | AQ21: 315 | AR21: 27 | AS21: 245 | AT21: 239 | AU21: 540 | AV21: 18,301 | AW21: 1,426 | AX21: 1,276 | AY21: 8,706 | AZ21: 870 | BA21: 36,453 | BB21: 6,713 | BC21: 3,334 | BD21: 7,155 | BE21: 14,973 | BF21: 4,276
F22: 1244 | G22: PUESTO DE SALUD LA TOMILLA | H22: 10 | J22: 128 | K22: 123 | L22: 143 | M22: 161 | N22: 164 | O22: 177 | P22: 201 | Q22: 197 | R22: 197 | S22: 185 | T22: 179 | U22: 179 | V22: 193 | W22: 178 | X22: 162 | Y22: 168 | Z22: 151 | AA22: 159 | AB22: 161 | AC22: 157 | AD22: 855 | AE22: 995 | AF22: 1,044 | AG22: 925 | AH22: 798 | AI22: 697 | AJ22: 582 | AK22: 492 | AL22: 405 | AM22: 321 | AN22: 225 | AO22: 158 | AP22: 91 | AQ22: 96 | AR22: 8 | AS22: 75 | AT22: 73 | AU22: 163 | AV22: 5,546 | AW22: 432 | AX22: 387 | AY22: 2,638 | AZ22: 263 | BA22: 11,046 | BB22: 2,035 | BC22: 1,011 | BD22: 2,169 | BE22: 4,537 | BF22: 1,295
F23: 1235 | G23: BUENOS AIRES DE CAYMA | H23: 27 | J23: 345 | K23: 331 | L23: 387 | M23: 436 | N23: 442 | O23: 478 | P23: 543 | Q23: 533 | R23: 532 | S23: 498 | T23: 484 | U23: 484 | V23: 520 | W23: 479 | X23: 438 | Y23: 454 | Z23: 408 | AA23: 430 | AB23: 435 | AC23: 425 | AD23: 2,308 | AE23: 2,688 | AF23: 2,819 | AG23: 2,497 | AH23: 2,156 | AI23: 1,881 | AJ23: 1,570 | AK23: 1,328 | AL23: 1,094 | AM23: 866 | AN23: 608 | AO23: 428 | AP23: 244 | AQ23: 258 | AR23: 22 | AS23: 201 | AT23: 196 | AU23: 441 | AV23: 14,974 | AW23: 1,166 | AX23: 1,045 | AY23: 7,123 | AZ23: 711 | BA23: 29,825 | BB23: 5,494 | BC23: 2,729 | BD23: 5,855 | BE23: 12,250 | BF23: 3,497
F24: 1245 | G24: SAN JOSE | H24: 10 | J24: 128 | K24: 123 | L24: 143 | M24: 161 | N24: 164 | O24: 177 | P24: 201 | Q24: 197 | R24: 197 | S24: 185 | T24: 179 | U24: 179 | V24: 193 | W24: 178 | X24: 162 | Y24: 168 | Z24: 151 | AA24: 159 | AB24: 161 | AC24: 157 | AD24: 855 | AE24: 995 | AF24: 1,044 | AG24: 925 | AH24: 798 | AI24: 697 | AJ24: 582 | AK24: 492 | AL24: 405 | AM24: 321 | AN24: 225 | AO24: 158 | AP24: 91 | AQ24: 96 | AR24: 8 | AS24: 75 | AT24: 73 | AU24: 163 | AV24: 5,546 | AW24: 432 | AX24: 387 | AY24: 2,638 | AZ24: 263 | BA24: 11,046 | BB24: 2,035 | BC24: 1,011 | BD24: 2,169 | BE24: 4,537 | BF24: 1,295
F25: 1246 | G25: DEAN VALDIVIA | H25: 12 | J25: 153 | K25: 147 | L25: 172 | M25: 194 | N25: 197 | O25: 212 | P25: 241 | Q25: 237 | R25: 237 | S25: 222 | T25: 215 | U25: 215 | V25: 231 | W25: 213 | X25: 195 | Y25: 202 | Z25: 181 | AA25: 191 | AB25: 193 | AC25: 189 | AD25: 1,026 | AE25: 1,194 | AF25: 1,253 | AG25: 1,110 | AH25: 958 | AI25: 836 | AJ25: 698 | AK25: 590 | AL25: 486 | AM25: 385 | AN25: 270 | AO25: 190 | AP25: 109 | AQ25: 115 | AR25: 10 | AS25: 90 | AT25: 87 | AU25: 196 | AV25: 6,655 | AW25: 518 | AX25: 464 | AY25: 3,166 | AZ25: 316 | BA25: 13,256 | BB25: 2,442 | BC25: 1,213 | BD25: 2,602 | BE25: 5,445 | BF25: 1,554
F26: 6890 | G26: PUESTO DE SALUD RAFAEL BELAUNDE | H26: 8 | J26: 102 | K26: 98 | L26: 115 | M26: 129 | N26: 131 | O26: 142 | P26: 161 | Q26: 158 | R26: 158 | S26: 148 | T26: 143 | U26: 144 | V26: 154 | W26: 142 | X26: 130 | Y26: 134 | Z26: 121 | AA26: 127 | AB26: 129 | AC26: 126 | AD26: 684 | AE26: 796 | AF26: 835 | AG26: 740 | AH26: 639 | AI26: 557 | AJ26: 465 | AK26: 393 | AL26: 324 | AM26: 256 | AN26: 180 | AO26: 127 | AP26: 72 | AQ26: 77 | AR26: 6 | AS26: 60 | AT26: 58 | AU26: 131 | AV26: 4,437 | AW26: 346 | AX26: 310 | AY26: 2,110 | AZ26: 211 | BA26: 8,837 | BB26: 1,628 | BC26: 808 | BD26: 1,735 | BE26: 3,630 | BF26: 1,036
A27: 040104 | B27: AREQUIPA | C27: AREQUIPA | D27: AREQUIPA | E27: CERRO COLORADO | I27: 244,103 | J27: 2,752 | K27: 2,672 | L27: 3,189 | M27: 3,387 | N27: 3,321 | O27: 3,446 | P27: 5,088 | Q27: 5,070 | R27: 5,011 | S27: 4,751 | T27: 4,448 | U27: 4,408 | V27: 4,458 | W27: 4,245 | X27: 3,799 | Y27: 3,908 | Z27: 3,754 | AA27: 3,885 | AB27: 3,832 | AC27: 3,968 | AD27: 20,428 | AE27: 22,579 | AF27: 22,321 | AG27: 20,143 | AH27: 18,586 | AI27: 15,711 | AJ27: 12,231 | AK27: 9,654 | AL27: 6,996 | AM27: 5,656 | AN27: 4,213 | AO27: 2,754 | AP27: 1,780 | AQ27: 1,659 | AR27: 182 | AS27: 1,648 | AT27: 1,574 | AU27: 3,684 | AV27: 123,593 | AW27: 10,532 | AX27: 9,609 | AY27: 60,799 | AZ27: 6,622 | BA27: 244,103 | BB27: 47,543 | BC27: 24,049 | BD27: 50,807 | BE27: 98,646 | BF27: 23,058
F28: 1236 | G28: CERRO COLORADO | H28: 9 | J28: 248 | K28: 240 | L28: 287 | M28: 305 | N28: 299 | O28: 310 | P28: 458 | Q28: 456 | R28: 451 | S28: 428 | T28: 400 | U28: 397 | V28: 401 | W28: 382 | X28: 342 | Y28: 352 | Z28: 338 | AA28: 350 | AB28: 345 | AC28: 357 | AD28: 1,839 | AE28: 2,032 | AF28: 2,009 | AG28: 1,813 | AH28: 1,673 | AI28: 1,414 | AJ28: 1,101 | AK28: 869 | AL28: 630 | AM28: 509 | AN28: 379 | AO28: 248 | AP28: 160 | AQ28: 149 | AR28: 16 | AS28: 148 | AT28: 142 | AU28: 332 | AV28: 11,123 | AW28: 948 | AX28: 865 | AY28: 5,472 | AZ28: 596 | BA28: 21,969 | BB28: 4,279 | BC28: 2,164 | BD28: 4,573 | BE28: 8,878 | BF28: 2,075
F29: 1248 | G29: ALTO LIBERTAD | H29: 9 | J29: 248 | K29: 240 | L29: 287 | M29: 305 | N29: 299 | O29: 310 | P29: 458 | Q29: 456 | R29: 451 | S29: 428 | T29: 400 | U29: 397 | V29: 401 | W29: 382 | X29: 342 | Y29: 352 | Z29: 338 | AA29: 350 | AB29: 345 | AC29: 357 | AD29: 1,839 | AE29: 2,032 | AF29: 2,009 | AG29: 1,813 | AH29: 1,673 | AI29: 1,414 | AJ29: 1,101 | AK29: 869 | AL29: 630 | AM29: 509 | AN29: 379 | AO29: 248 | AP29: 160 | AQ29: 149 | AR29: 16 | AS29: 148 | AT29: 142 | AU29: 332 | AV29: 11,123 | AW29: 948 | AX29: 865 | AY29: 5,472 | AZ29: 596 | BA29: 21,969 | BB29: 4,279 | BC29: 2,164 | BD29: 4,573 | BE29: 8,878 | BF29: 2,075
F30: 1238 | G30: CENTRO DE SALUD MARISCAL CASTILLA | H30: 10 | J30: 275 | K30: 267 | L30: 319 | M30: 339 | N30: 332 | O30: 345 | P30: 509 | Q30: 507 | R30: 501 | S30: 475 | T30: 445 | U30: 441 | V30: 446 | W30: 425 | X30: 380 | Y30: 391 | Z30: 375 | AA30: 389 | AB30: 383 | AC30: 397 | AD30: 2,043 | AE30: 2,258 | AF30: 2,232 | AG30: 2,014 | AH30: 1,859 | AI30: 1,571 | AJ30: 1,223 | AK30: 965 | AL30: 700 | AM30: 566 | AN30: 421 | AO30: 275 | AP30: 178 | AQ30: 166 | AR30: 18 | AS30: 165 | AT30: 157 | AU30: 368 | AV30: 12,359 | AW30: 1,053 | AX30: 961 | AY30: 6,080 | AZ30: 662 | BA30: 24,410 | BB30: 4,754 | BC30: 2,405 | BD30: 5,081 | BE30: 9,865 | BF30: 2,306
F31: 1249 | G31: CENTRO DE SALUD SEMI RURAL PACHACUTEC | H31: 9 | J31: 248 | K31: 240 | L31: 287 | M31: 305 | N31: 299 | O31: 310 | P31: 458 | Q31: 456 | R31: 451 | S31: 428 | T31: 400 | U31: 397 | V31: 401 | W31: 382 | X31: 342 | Y31: 352 | Z31: 338 | AA31: 350 | AB31: 345 | AC31: 357 | AD31: 1,839 | AE31: 2,032 | AF31: 2,009 | AG31: 1,813 | AH31: 1,673 | AI31: 1,414 | AJ31: 1,101 | AK31: 869 | AL31: 630 | AM31: 509 | AN31: 379 | AO31: 248 | AP31: 160 | AQ31: 149 | AR31: 16 | AS31: 148 | AT31: 142 | AU31: 332 | AV31: 11,123 | AW31: 948 | AX31: 865 | AY31: 5,472 | AZ31: 596 | BA31: 21,969 | BB31: 4,279 | BC31: 2,164 | BD31: 4,573 | BE31: 8,878 | BF31: 2,075
F32: 1250 | G32: PUESTO DE SALUD JOSE SANTOS ATAHUALPA | H32: 3 | J32: 83 | K32: 80 | L32: 96 | M32: 102 | N32: 100 | O32: 103 | P32: 153 | Q32: 152 | R32: 150 | S32: 143 | T32: 133 | U32: 132 | V32: 134 | W32: 127 | X32: 114 | Y32: 117 | Z32: 113 | AA32: 117 | AB32: 115 | AC32: 119 | AD32: 613 | AE32: 677 | AF32: 670 | AG32: 604 | AH32: 558 | AI32: 471 | AJ32: 367 | AK32: 290 | AL32: 210 | AM32: 170 | AN32: 126 | AO32: 83 | AP32: 53 | AQ32: 50 | AR32: 5 | AS32: 49 | AT32: 47 | AU32: 111 | AV32: 3,708 | AW32: 316 | AX32: 288 | AY32: 1,824 | AZ32: 199 | BA32: 7,323 | BB32: 1,426 | BC32: 721 | BD32: 1,524 | BE32: 2,959 | BF32: 692
F33: 1252 | G33: PUESTO DE SALUD EL CURAL | H33: 1 | J33: 28 | K33: 27 | L33: 32 | M33: 34 | N33: 33 | O33: 34 | P33: 51 | Q33: 51 | R33: 50 | S33: 48 | T33: 44 | U33: 44 | V33: 45 | W33: 42 | X33: 38 | Y33: 39 | Z33: 38 | AA33: 39 | AB33: 38 | AC33: 40 | AD33: 204 | AE33: 226 | AF33: 223 | AG33: 201 | AH33: 186 | AI33: 157 | AJ33: 122 | AK33: 97 | AL33: 70 | AM33: 57 | AN33: 42 | AO33: 28 | AP33: 18 | AQ33: 17 | AR33: 2 | AS33: 16 | AT33: 16 | AU33: 37 | AV33: 1,236 | AW33: 105 | AX33: 96 | AY33: 608 | AZ33: 66 | BA33: 2,441 | BB33: 475 | BC33: 240 | BD33: 508 | BE33: 986 | BF33: 231
F34: 1237 | G34: MARITZA CAMPOS DIAZ - ZAMACOLA | H34: 17 | J34: 468 | K34: 454 | L34: 542 | M34: 576 | N34: 565 | O34: 586 | P34: 865 | Q34: 862 | R34: 852 | S34: 808 | T34: 756 | U34: 749 | V34: 758 | W34: 722 | X34: 646 | Y34: 664 | Z34: 638 | AA34: 660 | AB34: 651 | AC34: 675 | AD34: 3,473 | AE34: 3,838 | AF34: 3,795 | AG34: 3,424 | AH34: 3,160 | AI34: 2,671 | AJ34: 2,079 | AK34: 1,641 | AL34: 1,189 | AM34: 962 | AN34: 716 | AO34: 468 | AP34: 303 | AQ34: 282 | AR34: 31 | AS34: 280 | AT34: 268 | AU34: 626 | AV34: 21,011 | AW34: 1,790 | AX34: 1,634 | AY34: 10,336 | AZ34: 1,126 | BA34: 41,498 | BB34: 8,082 | BC34: 4,088 | BD34: 8,637 | BE34: 16,770 | BF34: 3,920
F35: 1251 | G35: PUESTO DE SALUD NAZARENO | H35: 18 | J35: 494 | K35: 482 | L35: 574 | M35: 608 | N35: 597 | O35: 621 | P35: 915 | Q35: 913 | R35: 902 | S35: 853 | T35: 802 | U35: 793 | V35: 802 | W35: 764 | X35: 683 | Y35: 703 | Z35: 675 | AA35: 697 | AB35: 690 | AC35: 714 | AD35: 3,676 | AE35: 4,065 | AF35: 4,017 | AG35: 3,627 | AH35: 3,343 | AI35: 2,828 | AJ35: 2,202 | AK35: 1,737 | AL35: 1,258 | AM35: 1,017 | AN35: 760 | AO35: 495 | AP35: 321 | AQ35: 299 | AR35: 34 | AS35: 298 | AT35: 282 | AU35: 662 | AV35: 22,248 | AW35: 1,896 | AX35: 1,729 | AY35: 10,943 | AZ35: 1,191 | BA35: 43,940 | BB35: 8,559 | BC35: 4,331 | BD35: 9,144 | BE35: 17,757 | BF35: 4,150
F36: 1247 | G36: PUESTO DE SALUD CIUDAD MUNICIPAL | H36: 16 | J36: 440 | K36: 428 | L36: 510 | M36: 542 | N36: 531 | O36: 551 | P36: 814 | Q36: 811 | R36: 802 | S36: 760 | T36: 712 | U36: 705 | V36: 713 | W36: 679 | X36: 608 | Y36: 625 | Z36: 601 | AA36: 622 | AB36: 613 | AC36: 635 | AD36: 3,268 | AE36: 3,613 | AF36: 3,571 | AG36: 3,223 | AH36: 2,974 | AI36: 2,514 | AJ36: 1,957 | AK36: 1,545 | AL36: 1,119 | AM36: 905 | AN36: 674 | AO36: 441 | AP36: 285 | AQ36: 265 | AR36: 29 | AS36: 264 | AT36: 252 | AU36: 589 | AV36: 19,775 | AW36: 1,685 | AX36: 1,537 | AY36: 9,728 | AZ36: 1,060 | BA36: 39,056 | BB36: 7,607 | BC36: 3,848 | BD36: 8,129 | BE36: 15,783 | BF36: 3,689
F37: 11023 | G37: PUESTO DE SALUD PERUARBO | H37: 8 | J37: 220 | K37: 214 | L37: 255 | M37: 271 | N37: 266 | O37: 276 | P37: 407 | Q37: 406 | R37: 401 | S37: 380 | T37: 356 | U37: 353 | V37: 357 | W37: 340 | X37: 304 | Y37: 313 | Z37: 300 | AA37: 311 | AB37: 307 | AC37: 317 | AD37: 1,634 | AE37: 1,806 | AF37: 1,786 | AG37: 1,611 | AH37: 1,487 | AI37: 1,257 | AJ37: 978 | AK37: 772 | AL37: 560 | AM37: 452 | AN37: 337 | AO37: 220 | AP37: 142 | AQ37: 133 | AR37: 15 | AS37: 132 | AT37: 126 | AU37: 295 | AV37: 9,887 | AW37: 843 | AX37: 769 | AY37: 4,864 | AZ37: 530 | BA37: 19,528 | BB37: 3,803 | BC37: 1,924 | BD37: 4,065 | BE37: 7,892 | BF37: 1,845
A38: 040105 | B38: AREQUIPA | C38: AREQUIPA | D38: AREQUIPA | E38: CHARACATO | I38: 17,816 | J38: 196 | K38: 160 | L38: 203 | M38: 218 | N38: 195 | O38: 168 | P38: 365 | Q38: 324 | R38: 276 | S38: 281 | T38: 292 | U38: 286 | V38: 317 | W38: 301 | X38: 260 | Y38: 261 | Z38: 264 | AA38: 236 | AB38: 263 | AC38: 323 | AD38: 1,402 | AE38: 1,457 | AF38: 1,474 | AG38: 1,481 | AH38: 1,459 | AI38: 1,287 | AJ38: 1,001 | AK38: 835 | AL38: 636 | AM38: 551 | AN38: 394 | AO38: 299 | AP38: 193 | AQ38: 158 | AR38: 14 | AS38: 101 | AT38: 98 | AU38: 227 | AV38: 9,021 | AW38: 712 | AX38: 667 | AY38: 4,324 | AZ38: 366 | BA38: 17,816 | BB38: 2,964 | BC38: 1,639 | BD38: 3,445 | BE38: 7,537 | BF38: 2,231
F39: 1261 | G39: CENTRO DE SALUD DE CHARACATO | H39: 100 | J39: 196 | K39: 160 | L39: 203 | M39: 218 | N39: 195 | O39: 168 | P39: 365 | Q39: 324 | R39: 276 | S39: 281 | T39: 292 | U39: 286 | V39: 317 | W39: 301 | X39: 260 | Y39: 261 | Z39: 264 | AA39: 236 | AB39: 263 | AC39: 323 | AD39: 1,402 | AE39: 1,457 | AF39: 1,474 | AG39: 1,481 | AH39: 1,459 | AI39: 1,287 | AJ39: 1,001 | AK39: 835 | AL39: 636 | AM39: 551 | AN39: 394 | AO39: 299 | AP39: 193 | AQ39: 158 | AR39: 14 | AS39: 101 | AT39: 98 | AU39: 227 | AV39: 9,021 | AW39: 712 | AX39: 667 | AY39: 4,324 | AZ39: 366 | BA39: 17,816 | BB39: 2,964 | BC39: 1,639 | BD39: 3,445 | BE39: 7,537 | BF39: 2,231
A40: 040106 | B40: AREQUIPA | C40: AREQUIPA | D40: AREQUIPA | E40: CHIGUATA | I40: 3,351 | J40: 58 | K40: 60 | L40: 64 | M40: 61 | N40: 43 | O40: 71 | P40: 47 | Q40: 57 | R40: 51 | S40: 48 | T40: 41 | U40: 55 | V40: 40 | W40: 35 | X40: 45 | Y40: 47 | Z40: 26 | AA40: 40 | AB40: 41 | AC40: 39 | AD40: 230 | AE40: 263 | AF40: 299 | AG40: 267 | AH40: 232 | AI40: 210 | AJ40: 192 | AK40: 166 | AL40: 126 | AM40: 131 | AN40: 104 | AO40: 64 | AP40: 47 | AQ40: 51 | AR40: 4 | AS40: 32 | AT40: 32 | AU40: 75 | AV40: 1,576 | AW40: 96 | AX40: 87 | AY40: 724 | AZ40: 154 | BA40: 3,351 | BB40: 656 | BC40: 233 | BD40: 573 | BE40: 1,366 | BF40: 523
F41: 1299 | G41: CENTRO DE SALUD CHIGUATA | H41: 80 | J41: 46 | K41: 48 | L41: 51 | M41: 49 | N41: 34 | O41: 57 | P41: 38 | Q41: 46 | R41: 41 | S41: 38 | T41: 33 | U41: 44 | V41: 32 | W41: 28 | X41: 36 | Y41: 38 | Z41: 21 | AA41: 32 | AB41: 33 | AC41: 31 | AD41: 184 | AE41: 210 | AF41: 239 | AG41: 214 | AH41: 186 | AI41: 168 | AJ41: 154 | AK41: 133 | AL41: 101 | AM41: 105 | AN41: 83 | AO41: 51 | AP41: 38 | AQ41: 41 | AR41: 3 | AS41: 26 | AT41: 26 | AU41: 60 | AV41: 1,261 | AW41: 77 | AX41: 70 | AY41: 579 | AZ41: 123 | BA41: 2,681 | BB41: 525 | BC41: 186 | BD41: 458 | BE41: 1,093 | BF41: 418
F42: 1320 | G42: PUESTO DE SALUD ARENALES | H42: 20 | J42: 12 | K42: 12 | L42: 13 | M42: 12 | N42: 9 | O42: 14 | P42: 9 | Q42: 11 | R42: 10 | S42: 10 | T42: 8 | U42: 11 | V42: 8 | W42: 7 | X42: 9 | Y42: 9 | Z42: 5 | AA42: 8 | AB42: 8 | AC42: 8 | AD42: 46 | AE42: 53 | AF42: 60 | AG42: 53 | AH42: 46 | AI42: 42 | AJ42: 38 | AK42: 33 | AL42: 25 | AM42: 26 | AN42: 21 | AO42: 13 | AP42: 9 | AQ42: 10 | AR42: 1 | AS42: 6 | AT42: 6 | AU42: 15 | AV42: 315 | AW42: 19 | AX42: 17 | AY42: 145 | AZ42: 31 | BA42: 670 | BB42: 131 | BC42: 47 | BD42: 115 | BE42: 273 | BF42: 105
A43: 040107 | B43: AREQUIPA | C43: AREQUIPA | D43: AREQUIPA | E43: JACOBO HUNTER | I43: 54,725 | J43: 588 | K43: 603 | L43: 734 | M43: 750 | N43: 803 | O43: 831 | P43: 987 | Q43: 956 | R43: 937 | S43: 911 | T43: 859 | U43: 842 | V43: 927 | W43: 910 | X43: 764 | Y43: 782 | Z43: 815 | AA43: 822 | AB43: 745 | AC43: 750 | AD43: 4,190 | AE43: 4,752 | AF43: 4,566 | AG43: 4,473 | AH43: 4,189 | AI43: 3,764 | AJ43: 3,115 | AK43: 2,583 | AL43: 2,002 | AM43: 1,669 | AN43: 1,178 | AO43: 873 | AP43: 527 | AQ43: 528 | AR43: 43 | AS43: 377 | AT43: 305 | AU43: 743 | AV43: 27,393 | AW43: 2,103 | AX43: 1,972 | AY43: 12,735 | AZ43: 1,370 | BA43: 54,725 | BB43: 9,801 | BC43: 5,020 | BD43: 10,437 | BE43: 22,690 | BF43: 6,777
F44: 1259 | G44: CENTRO DE SALUD JAVIER LLOSA GARCIA - HUNTER | H44: 32 | J44: 189 | K44: 194 | L44: 235 | M44: 238 | N44: 258 | O44: 266 | P44: 316 | Q44: 305 | R44: 300 | S44: 291 | T44: 275 | U44: 270 | V44: 296 | W44: 291 | X44: 245 | Y44: 251 | Z44: 260 | AA44: 263 | AB44: 238 | AC44: 238 | AD44: 1,340 | AE44: 1,520 | AF44: 1,461 | AG44: 1,432 | AH44: 1,341 | AI44: 1,205 | AJ44: 996 | AK44: 827 | AL44: 642 | AM44: 534 | AN44: 377 | AO44: 280 | AP44: 168 | AQ44: 168 | AR44: 14 | AS44: 120 | AT44: 97 | AU44: 238 | AV44: 8,766 | AW44: 674 | AX44: 632 | AY44: 4,074 | AZ44: 438 | BA44: 17,512 | BB44: 3,137 | BC44: 1,606 | BD44: 3,340 | BE44: 7,260 | BF44: 2,168
F45: 1273 | G45: PUESTO DE SALUD DANIEL ALCIDES CARRION | H45: 14 | J45: 82 | K45: 84 | L45: 103 | M45: 105 | N45: 112 | O45: 116 | P45: 138 | Q45: 134 | R45: 131 | S45: 128 | T45: 120 | U45: 118 | V45: 130 | W45: 127 | X45: 107 | Y45: 109 | Z45: 114 | AA45: 115 | AB45: 104 | AC45: 105 | AD45: 587 | AE45: 665 | AF45: 639 | AG45: 626 | AH45: 586 | AI45: 527 | AJ45: 436 | AK45: 362 | AL45: 280 | AM45: 234 | AN45: 165 | AO45: 122 | AP45: 74 | AQ45: 74 | AR45: 6 | AS45: 53 | AT45: 43 | AU45: 104 | AV45: 3,835 | AW45: 294 | AX45: 276 | AY45: 1,783 | AZ45: 192 | BA45: 7,662 | BB45: 1,372 | BC45: 703 | BD45: 1,461 | BE45: 3,177 | BF45: 949
F46: 1274 | G46: PUESTO DE SALUD PAMPAS DEL CUZCO | H46: 17 | J46: 100 | K46: 103 | L46: 125 | M46: 128 | N46: 137 | O46: 141 | P46: 168 | Q46: 163 | R46: 159 | S46: 155 | T46: 146 | U46: 143 | V46: 158 | W46: 155 | X46: 130 | Y46: 133 | Z46: 139 | AA46: 140 | AB46: 127 | AC46: 128 | AD46: 712 | AE46: 808 | AF46: 776 | AG46: 760 | AH46: 712 | AI46: 640 | AJ46: 530 | AK46: 439 | AL46: 340 | AM46: 284 | AN46: 200 | AO46: 148 | AP46: 90 | AQ46: 90 | AR46: 7 | AS46: 64 | AT46: 52 | AU46: 126 | AV46: 4,657 | AW46: 358 | AX46: 335 | AY46: 2,165 | AZ46: 233 | BA46: 9,303 | BB46: 1,666 | BC46: 853 | BD46: 1,774 | BE46: 3,857 | BF46: 1,152
F47: 1275 | G47: PUESTO DE SALUD CHILPINILLA | H47: 10 | J47: 59 | K47: 60 | L47: 73 | M47: 75 | N47: 80 | O47: 83 | P47: 99 | Q47: 96 | R47: 94 | S47: 91 | T47: 86 | U47: 84 | V47: 93 | W47: 91 | X47: 76 | Y47: 78 | Z47: 82 | AA47: 82 | AB47: 75 | AC47: 75 | AD47: 419 | AE47: 475 | AF47: 457 | AG47: 447 | AH47: 419 | AI47: 376 | AJ47: 312 | AK47: 258 | AL47: 200 | AM47: 167 | AN47: 118 | AO47: 87 | AP47: 53 | AQ47: 53 | AR47: 4 | AS47: 38 | AT47: 31 | AU47: 74 | AV47: 2,739 | AW47: 210 | AX47: 197 | AY47: 1,274 | AZ47: 137 | BA47: 5,473 | BB47: 980 | BC47: 502 | BD47: 1,044 | BE47: 2,269 | BF47: 678
F48: 1276 | G48: CENTRO DE SALUD CAMINOS DEL INCA | H48: 9 | J48: 53 | K48: 54 | L48: 66 | M48: 68 | N48: 72 | O48: 75 | P48: 89 | Q48: 86 | R48: 84 | S48: 82 | T48: 77 | U48: 76 | V48: 83 | W48: 82 | X48: 69 | Y48: 70 | Z48: 73 | AA48: 74 | AB48: 67 | AC48: 68 | AD48: 377 | AE48: 428 | AF48: 411 | AG48: 403 | AH48: 377 | AI48: 339 | AJ48: 280 | AK48: 232 | AL48: 180 | AM48: 150 | AN48: 106 | AO48: 79 | AP48: 47 | AQ48: 48 | AR48: 4 | AS48: 34 | AT48: 27 | AU48: 67 | AV48: 2,465 | AW48: 189 | AX48: 177 | AY48: 1,146 | AZ48: 123 | BA48: 4,925 | BB48: 882 | BC48: 452 | BD48: 939 | BE48: 2,042 | BF48: 610
F49: 1277 | G49: ALTO ALIANZA | H49: 13 | J49: 76 | K49: 78 | L49: 95 | M49: 98 | N49: 104 | O49: 108 | P49: 128 | Q49: 124 | R49: 122 | S49: 118 | T49: 112 | U49: 109 | V49: 121 | W49: 118 | X49: 99 | Y49: 102 | Z49: 106 | AA49: 107 | AB49: 97 | AC49: 98 | AD49: 545 | AE49: 618 | AF49: 594 | AG49: 581 | AH49: 545 | AI49: 489 | AJ49: 405 | AK49: 336 | AL49: 260 | AM49: 217 | AN49: 153 | AO49: 113 | AP49: 69 | AQ49: 69 | AR49: 6 | AS49: 49 | AT49: 40 | AU49: 97 | AV49: 3,561 | AW49: 273 | AX49: 256 | AY49: 1,656 | AZ49: 178 | BA49: 7,114 | BB49: 1,274 | BC49: 653 | BD49: 1,357 | BE49: 2,950 | BF49: 881
F50: 1279 | G50: PUESTO DE SALUD UPIS PAISAJISTA | H50: 5 | J50: 29 | K50: 30 | L50: 37 | M50: 38 | N50: 40 | O50: 42 | P50: 49 | Q50: 48 | R50: 47 | S50: 46 | T50: 43 | U50: 42 | V50: 46 | W50: 46 | X50: 38 | Y50: 39 | Z50: 41 | AA50: 41 | AB50: 37 | AC50: 38 | AD50: 210 | AE50: 238 | AF50: 228 | AG50: 224 | AH50: 209 | AI50: 188 | AJ50: 156 | AK50: 129 | AL50: 100 | AM50: 83 | AN50: 59 | AO50: 44 | AP50: 26 | AQ50: 26 | AR50: 2 | AS50: 19 | AT50: 15 | AU50: 37 | AV50: 1,370 | AW50: 105 | AX50: 99 | AY50: 637 | AZ50: 69 | BA50: 2,736 | BB50: 490 | BC50: 251 | BD50: 522 | BE50: 1,135 | BF50: 339
A51: 040108 | B51: AREQUIPA | C51: AREQUIPA | D51: AREQUIPA | E51: LA JOYA | I51: 41,717 | J51: 558 | K51: 605 | L51: 610 | M51: 606 | N51: 642 | O51: 626 | P51: 810 | Q51: 740 | R51: 789 | S51: 803 | T51: 765 | U51: 716 | V51: 756 | W51: 714 | X51: 726 | Y51: 706 | Z51: 734 | AA51: 722 | AB51: 748 | AC51: 727 | AD51: 3,527 | AE51: 3,952 | AF51: 3,527 | AG51: 3,365 | AH51: 2,802 | AI51: 2,615 | AJ51: 1,980 | AK51: 1,672 | AL51: 1,299 | AM51: 1,081 | AN51: 672 | AO51: 509 | AP51: 323 | AQ51: 290 | AR51: 31 | AS51: 329 | AT51: 355 | AU51: 773 | AV51: 20,714 | AW51: 1,865 | AX51: 1,826 | AY51: 9,855 | AZ51: 1,094 | BA51: 41,717 | BB51: 8,270 | BC51: 4,358 | BD51: 8,954 | BE51: 15,961 | BF51: 4,174
F52: 1322 | G52: LA JOYA | H52: 27 | J52: 151 | K52: 163 | L52: 165 | M52: 164 | N52: 173 | O52: 169 | P52: 219 | Q52: 200 | R52: 213 | S52: 217 | T52: 207 | U52: 193 | V52: 204 | W52: 193 | X52: 196 | Y52: 191 | Z52: 198 | AA52: 195 | AB52: 202 | AC52: 196 | AD52: 952 | AE52: 1,067 | AF52: 952 | AG52: 909 | AH52: 757 | AI52: 706 | AJ52: 535 | AK52: 451 | AL52: 351 | AM52: 292 | AN52: 181 | AO52: 137 | AP52: 87 | AQ52: 78 | AR52: 8 | AS52: 89 | AT52: 96 | AU52: 209 | AV52: 5,593 | AW52: 504 | AX52: 493 | AY52: 2,661 | AZ52: 295 | BA52: 11,264 | BB52: 2,233 | BC52: 1,177 | BD52: 2,418 | BE52: 4,309 | BF52: 1,127
F53: 1327 | G53: PUESTO DE SALUD CERRITO BUENA VISTA | H53: 14 | J53: 78 | K53: 85 | L53: 85 | M53: 85 | N53: 90 | O53: 88 | P53: 113 | Q53: 104 | R53: 110 | S53: 112 | T53: 107 | U53: 100 | V53: 106 | W53: 100 | X53: 102 | Y53: 99 | Z53: 103 | AA53: 101 | AB53: 105 | AC53: 102 | AD53: 494 | AE53: 553 | AF53: 494 | AG53: 471 | AH53: 392 | AI53: 366 | AJ53: 277 | AK53: 234 | AL53: 182 | AM53: 151 | AN53: 94 | AO53: 71 | AP53: 45 | AQ53: 41 | AR53: 4 | AS53: 46 | AT53: 50 | AU53: 108 | AV53: 2,900 | AW53: 261 | AX53: 256 | AY53: 1,380 | AZ53: 153 | BA53: 5,840 | BB53: 1,158 | BC53: 610 | BD53: 1,254 | BE53: 2,235 | BF53: 584
F54: 1330 | G54: EL CRUCE - TRIUNFO | H54: 20 | J54: 112 | K54: 121 | L54: 122 | M54: 121 | N54: 128 | O54: 125 | P54: 162 | Q54: 148 | R54: 158 | S54: 161 | T54: 153 | U54: 143 | V54: 151 | W54: 143 | X54: 145 | Y54: 141 | Z54: 147 | AA54: 144 | AB54: 150 | AC54: 145 | AD54: 705 | AE54: 790 | AF54: 705 | AG54: 673 | AH54: 560 | AI54: 523 | AJ54: 396 | AK54: 334 | AL54: 260 | AM54: 216 | AN54: 134 | AO54: 102 | AP54: 65 | AQ54: 58 | AR54: 6 | AS54: 66 | AT54: 71 | AU54: 155 | AV54: 4,143 | AW54: 373 | AX54: 365 | AY54: 1,971 | AZ54: 219 | BA54: 8,343 | BB54: 1,654 | BC54: 872 | BD54: 1,791 | BE54: 3,192 | BF54: 835
F55: 1328 | G55: LOS MEDANOS | H55: 5 | J55: 28 | K55: 30 | L55: 31 | M55: 30 | N55: 32 | O55: 31 | P55: 41 | Q55: 37 | R55: 39 | S55: 40 | T55: 38 | U55: 36 | V55: 38 | W55: 36 | X55: 36 | Y55: 35 | Z55: 37 | AA55: 36 | AB55: 37 | AC55: 36 | AD55: 176 | AE55: 198 | AF55: 176 | AG55: 168 | AH55: 140 | AI55: 131 | AJ55: 99 | AK55: 84 | AL55: 65 | AM55: 54 | AN55: 34 | AO55: 25 | AP55: 16 | AQ55: 15 | AR55: 2 | AS55: 16 | AT55: 18 | AU55: 39 | AV55: 1,036 | AW55: 93 | AX55: 91 | AY55: 493 | AZ55: 55 | BA55: 2,086 | BB55: 414 | BC55: 218 | BD55: 448 | BE55: 798 | BF55: 209
F56: 1329 | G56: BENITO LAZO | H56: 5 | J56: 28 | K56: 30 | L56: 31 | M56: 30 | N56: 32 | O56: 31 | P56: 41 | Q56: 37 | R56: 39 | S56: 40 | T56: 38 | U56: 36 | V56: 38 | W56: 36 | X56: 36 | Y56: 35 | Z56: 37 | AA56: 36 | AB56: 37 | AC56: 36 | AD56: 176 | AE56: 198 | AF56: 176 | AG56: 168 | AH56: 140 | AI56: 131 | AJ56: 99 | AK56: 84 | AL56: 65 | AM56: 54 | AN56: 34 | AO56: 25 | AP56: 16 | AQ56: 15 | AR56: 2 | AS56: 16 | AT56: 18 | AU56: 39 | AV56: 1,036 | AW56: 93 | AX56: 91 | AY56: 493 | AZ56: 55 | BA56: 2,086 | BB56: 414 | BC56: 218 | BD56: 448 | BE56: 798 | BF56: 209
F57: 1323 | G57: SAN ISIDRO | H57: 13 | J57: 73 | K57: 79 | L57: 79 | M57: 79 | N57: 83 | O57: 81 | P57: 105 | Q57: 96 | R57: 103 | S57: 104 | T57: 99 | U57: 93 | V57: 98 | W57: 93 | X57: 94 | Y57: 92 | Z57: 95 | AA57: 94 | AB57: 97 | AC57: 95 | AD57: 459 | AE57: 514 | AF57: 459 | AG57: 437 | AH57: 364 | AI57: 340 | AJ57: 257 | AK57: 217 | AL57: 169 | AM57: 141 | AN57: 87 | AO57: 66 | AP57: 42 | AQ57: 38 | AR57: 4 | AS57: 43 | AT57: 46 | AU57: 100 | AV57: 2,693 | AW57: 242 | AX57: 237 | AY57: 1,281 | AZ57: 142 | BA57: 5,423 | BB57: 1,075 | BC57: 567 | BD57: 1,164 | BE57: 2,075 | BF57: 543
F58: 1333 | G58: SAN JOSE | H58: 3 | J58: 17 | K58: 18 | L58: 18 | M58: 18 | N58: 19 | O58: 19 | P58: 24 | Q58: 22 | R58: 24 | S58: 24 | T58: 23 | U58: 21 | V58: 23 | W58: 21 | X58: 22 | Y58: 21 | Z58: 22 | AA58: 22 | AB58: 22 | AC58: 22 | AD58: 106 | AE58: 119 | AF58: 106 | AG58: 101 | AH58: 84 | AI58: 78 | AJ58: 59 | AK58: 50 | AL58: 39 | AM58: 32 | AN58: 20 | AO58: 15 | AP58: 10 | AQ58: 9 | AR58: 1 | AS58: 10 | AT58: 11 | AU58: 23 | AV58: 621 | AW58: 56 | AX58: 55 | AY58: 296 | AZ58: 33 | BA58: 1,252 | BB58: 248 | BC58: 131 | BD58: 269 | BE58: 479 | BF58: 125
F59: 1332 | G59: PUESTO DE SALUD SAN CAMILO 6 | H59: 6 | J59: 33 | K59: 36 | L59: 37 | M59: 36 | N59: 39 | O59: 38 | P59: 49 | Q59: 44 | R59: 47 | S59: 48 | T59: 46 | U59: 43 | V59: 45 | W59: 43 | X59: 44 | Y59: 42 | Z59: 44 | AA59: 43 | AB59: 45 | AC59: 44 | AD59: 212 | AE59: 237 | AF59: 212 | AG59: 202 | AH59: 168 | AI59: 157 | AJ59: 119 | AK59: 100 | AL59: 78 | AM59: 65 | AN59: 40 | AO59: 31 | AP59: 19 | AQ59: 17 | AR59: 2 | AS59: 20 | AT59: 21 | AU59: 46 | AV59: 1,243 | AW59: 112 | AX59: 110 | AY59: 591 | AZ59: 66 | BA59: 2,503 | BB59: 496 | BC59: 261 | BD59: 537 | BE59: 958 | BF59: 250
F60: 1331 | G60: LA CANO | H60: 7 | J60: 39 | K60: 42 | L60: 43 | M60: 42 | N60: 45 | O60: 44 | P60: 57 | Q60: 52 | R60: 55 | S60: 56 | T60: 54 | U60: 50 | V60: 53 | W60: 50 | X60: 51 | Y60: 49 | Z60: 51 | AA60: 51 | AB60: 52 | AC60: 51 | AD60: 247 | AE60: 277 | AF60: 247 | AG60: 236 | AH60: 196 | AI60: 183 | AJ60: 139 | AK60: 117 | AL60: 91 | AM60: 76 | AN60: 47 | AO60: 36 | AP60: 23 | AQ60: 20 | AR60: 2 | AS60: 23 | AT60: 25 | AU60: 54 | AV60: 1,450 | AW60: 131 | AX60: 128 | AY60: 690 | AZ60: 77 | BA60: 2,920 | BB60: 579 | BC60: 305 | BD60: 627 | BE60: 1,117 | BF60: 292
A61: 040109 | B61: AREQUIPA | C61: AREQUIPA | D61: AREQUIPA | E61: MARIANO MELGAR | I61: 68,475 | J61: 780 | K61: 758 | L61: 850 | M61: 907 | N61: 960 | O61: 1,086 | P61: 1,092 | Q61: 1,064 | R61: 1,115 | S61: 1,089 | T61: 1,017 | U61: 1,046 | V61: 1,068 | W61: 1,055 | X61: 1,026 | Y61: 997 | Z61: 1,008 | AA61: 939 | AB61: 956 | AC61: 1,006 | AD61: 5,141 | AE61: 5,906 | AF61: 5,889 | AG61: 5,195 | AH61: 4,979 | AI61: 4,666 | AJ61: 4,045 | AK61: 3,442 | AL61: 2,825 | AM61: 2,251 | AN61: 1,643 | AO61: 1,120 | AP61: 752 | AQ61: 802 | AR61: 50 | AS61: 490 | AT61: 409 | AU61: 1,028 | AV61: 34,438 | AW61: 2,567 | AX61: 2,444 | AY61: 15,747 | AZ61: 1,691 | BA61: 68,475 | BB61: 11,764 | BC61: 6,093 | BD61: 13,009 | BE61: 28,216 | BF61: 9,393
F62: 1294 | G62: CENTRO DE SALUD MARIANO MELGAR | H62: 58 | J62: 452 | K62: 440 | L62: 492 | M62: 527 | N62: 556 | O62: 630 | P62: 633 | Q62: 617 | R62: 647 | S62: 632 | T62: 590 | U62: 607 | V62: 619 | W62: 612 | X62: 594 | Y62: 578 | Z62: 585 | AA62: 545 | AB62: 554 | AC62: 584 | AD62: 2,982 | AE62: 3,426 | AF62: 3,416 | AG62: 3,012 | AH62: 2,887 | AI62: 2,706 | AJ62: 2,346 | AK62: 1,996 | AL62: 1,637 | AM62: 1,305 | AN62: 953 | AO62: 650 | AP62: 435 | AQ62: 465 | AR62: 28 | AS62: 285 | AT62: 237 | AU62: 596 | AV62: 19,974 | AW62: 1,489 | AX62: 1,418 | AY62: 9,134 | AZ62: 981 | BA62: 39,715 | BB62: 6,823 | BC62: 3,533 | BD62: 7,545 | BE62: 16,366 | BF62: 5,447
F63: 1308 | G63: PUESTO DE SALUD ATALAYA | H63: 7 | J63: 55 | K63: 53 | L63: 60 | M63: 63 | N63: 67 | O63: 76 | P63: 76 | Q63: 74 | R63: 78 | S63: 76 | T63: 71 | U63: 73 | V63: 75 | W63: 74 | X63: 72 | Y63: 70 | Z63: 71 | AA63: 66 | AB63: 67 | AC63: 70 | AD63: 360 | AE63: 413 | AF63: 412 | AG63: 364 | AH63: 349 | AI63: 327 | AJ63: 283 | AK63: 241 | AL63: 198 | AM63: 158 | AN63: 115 | AO63: 78 | AP63: 53 | AQ63: 56 | AR63: 4 | AS63: 34 | AT63: 29 | AU63: 72 | AV63: 2,411 | AW63: 180 | AX63: 171 | AY63: 1,102 | AZ63: 118 | BA63: 4,793 | BB63: 823 | BC63: 427 | BD63: 911 | BE63: 1,975 | BF63: 658
F64: 1295 | G64: CENTRO DE SALUD GENERALISIMO SAN MARTIN | H64: 26 | J64: 203 | K64: 197 | L64: 221 | M64: 236 | N64: 250 | O64: 282 | P64: 284 | Q64: 277 | R64: 290 | S64: 283 | T64: 264 | U64: 272 | V64: 278 | W64: 274 | X64: 267 | Y64: 259 | Z64: 262 | AA64: 244 | AB64: 249 | AC64: 262 | AD64: 1,337 | AE64: 1,536 | AF64: 1,531 | AG64: 1,351 | AH64: 1,295 | AI64: 1,213 | AJ64: 1,052 | AK64: 895 | AL64: 735 | AM64: 585 | AN64: 427 | AO64: 291 | AP64: 196 | AQ64: 209 | AR64: 13 | AS64: 127 | AT64: 106 | AU64: 267 | AV64: 8,954 | AW64: 667 | AX64: 635 | AY64: 4,094 | AZ64: 440 | BA64: 17,804 | BB64: 3,059 | BC64: 1,584 | BD64: 3,382 | BE64: 7,336 | BF64: 2,442
F65: 1309 | G65: JERUSALEN | H65: 6 | J65: 47 | K65: 45 | L65: 51 | M65: 54 | N65: 58 | O65: 65 | P65: 66 | Q65: 64 | R65: 67 | S65: 65 | T65: 61 | U65: 63 | V65: 64 | W65: 63 | X65: 62 | Y65: 60 | Z65: 60 | AA65: 56 | AB65: 57 | AC65: 60 | AD65: 308 | AE65: 354 | AF65: 353 | AG65: 312 | AH65: 299 | AI65: 280 | AJ65: 243 | AK65: 207 | AL65: 170 | AM65: 135 | AN65: 99 | AO65: 67 | AP65: 45 | AQ65: 48 | AR65: 3 | AS65: 29 | AT65: 25 | AU65: 62 | AV65: 2,066 | AW65: 154 | AX65: 147 | AY65: 945 | AZ65: 101 | BA65: 4,109 | BB65: 706 | BC65: 366 | BD65: 781 | BE65: 1,693 | BF65: 564
F66: 7743 | G66: PUESTO DE SALUD SANTA ROSA | H66: 0 | J66: 0 | K66: 0 | L66: 0 | M66: 0 | N66: 0 | O66: 0 | P66: 0 | Q66: 0 | R66: 0 | S66: 0 | T66: 0 | U66: 0 | V66: 0 | W66: 0 | X66: 0 | Y66: 0 | Z66: 0 | AA66: 0 | AB66: 0 | AC66: 0 | AD66: 0 | AE66: 0 | AF66: 0 | AG66: 0 | AH66: 0 | AI66: 0 | AJ66: 0 | AK66: 0 | AL66: 0 | AM66: 0 | AN66: 0 | AO66: 0 | AP66: 0 | AQ66: 0 | AR66: 0 | AS66: 0 | AT66: 0 | AU66: 0 | AV66: 0 | AW66: 0 | AX66: 0 | AY66: 0 | AZ66: 0 | BA66: 0 | BB66: 0 | BC66: 0 | BD66: 0 | BE66: 0 | BF66: 0
F67: 7722 | G67: EL MIRADOR | H67: 3 | J67: 23 | K67: 23 | L67: 26 | M67: 27 | N67: 29 | O67: 33 | P67: 33 | Q67: 32 | R67: 33 | S67: 33 | T67: 31 | U67: 31 | V67: 32 | W67: 32 | X67: 31 | Y67: 30 | Z67: 30 | AA67: 28 | AB67: 29 | AC67: 30 | AD67: 154 | AE67: 177 | AF67: 177 | AG67: 156 | AH67: 149 | AI67: 140 | AJ67: 121 | AK67: 103 | AL67: 85 | AM67: 68 | AN67: 49 | AO67: 34 | AP67: 23 | AQ67: 24 | AR67: 2 | AS67: 15 | AT67: 12 | AU67: 31 | AV67: 1,033 | AW67: 77 | AX67: 73 | AY67: 472 | AZ67: 51 | BA67: 2,054 | BB67: 353 | BC67: 183 | BD67: 390 | BE67: 846 | BF67: 282
A68: 040110 | B68: AREQUIPA | C68: AREQUIPA | D68: AREQUIPA | E68: MIRAFLORES | I68: 67,675 | J68: 749 | K68: 657 | L68: 813 | M68: 885 | N68: 1,067 | O68: 1,033 | P68: 1,027 | Q68: 1,062 | R68: 1,128 | S68: 989 | T68: 1,025 | U68: 985 | V68: 982 | W68: 981 | X68: 936 | Y68: 859 | Z68: 925 | AA68: 882 | AB68: 906 | AC68: 974 | AD68: 5,174 | AE68: 5,872 | AF68: 5,799 | AG68: 5,223 | AH68: 5,142 | AI68: 4,785 | AJ68: 4,123 | AK68: 3,400 | AL68: 2,807 | AM68: 2,178 | AN68: 1,584 | AO68: 1,131 | AP68: 756 | AQ68: 836 | AR68: 39 | AS68: 448 | AT68: 402 | AU68: 978 | AV68: 33,650 | AW68: 2,427 | AX68: 2,286 | AY68: 15,647 | AZ68: 1,668 | BA68: 67,675 | BB68: 11,420 | BC68: 5,565 | BD68: 12,926 | BE68: 28,472 | BF68: 9,292
F69: 1293 | G69: CENTRO DE SALUD MIRAFLORES | H69: 34 | J69: 255 | K69: 223 | L69: 276 | M69: 301 | N69: 363 | O69: 351 | P69: 349 | Q69: 361 | R69: 384 | S69: 336 | T69: 349 | U69: 335 | V69: 334 | W69: 334 | X69: 318 | Y69: 292 | Z69: 315 | AA69: 300 | AB69: 308 | AC69: 331 | AD69: 1,759 | AE69: 1,996 | AF69: 1,972 | AG69: 1,776 | AH69: 1,748 | AI69: 1,627 | AJ69: 1,402 | AK69: 1,156 | AL69: 954 | AM69: 741 | AN69: 539 | AO69: 385 | AP69: 257 | AQ69: 284 | AR69: 13 | AS69: 152 | AT69: 137 | AU69: 333 | AV69: 11,441 | AW69: 825 | AX69: 777 | AY69: 5,320 | AZ69: 567 | BA69: 23,010 | BB69: 3,883 | BC69: 1,892 | BD69: 4,395 | BE69: 9,680 | BF69: 3,159
F70: 1292 | G70: CENTRO DE SALUD EDIFICADORES MISTI | H70: 40 | J70: 299 | K70: 262 | L70: 326 | M70: 353 | N70: 427 | O70: 413 | P70: 411 | Q70: 425 | R70: 451 | S70: 396 | T70: 409 | U70: 393 | V70: 392 | W70: 393 | X70: 374 | Y70: 343 | Z70: 369 | AA70: 352 | AB70: 363 | AC70: 390 | AD70: 2,070 | AE70: 2,349 | AF70: 2,319 | AG70: 2,089 | AH70: 2,058 | AI70: 1,913 | AJ70: 1,649 | AK70: 1,360 | AL70: 1,122 | AM70: 871 | AN70: 633 | AO70: 453 | AP70: 303 | AQ70: 334 | AR70: 16 | AS70: 179 | AT70: 161 | AU70: 391 | AV70: 13,460 | AW70: 971 | AX70: 914 | AY70: 6,258 | AZ70: 668 | BA70: 27,069 | BB70: 4,567 | BC70: 2,226 | BD70: 5,170 | BE70: 11,389 | BF70: 3,718
F71: 1306 | G71: CENTRO DE SALUD PORVENIR-MIRAFLORES | H71: 10 | J71: 75 | K71: 66 | L71: 81 | M71: 89 | N71: 107 | O71: 103 | P71: 103 | Q71: 106 | R71: 113 | S71: 99 | T71: 103 | U71: 99 | V71: 98 | W71: 98 | X71: 94 | Y71: 86 | Z71: 93 | AA71: 88 | AB71: 91 | AC71: 97 | AD71: 517 | AE71: 587 | AF71: 580 | AG71: 522 | AH71: 514 | AI71: 479 | AJ71: 412 | AK71: 340 | AL71: 281 | AM71: 218 | AN71: 158 | AO71: 113 | AP71: 76 | AQ71: 84 | AR71: 4 | AS71: 45 | AT71: 40 | AU71: 98 | AV71: 3,365 | AW71: 243 | AX71: 229 | AY71: 1,565 | AZ71: 167 | BA71: 6,768 | BB71: 1,142 | BC71: 557 | BD71: 1,293 | BE71: 2,847 | BF71: 929
F72: 1307 | G72: CENTRO DE SALUD MATEO PUMACAHUA | H72: 8 | J72: 60 | K72: 53 | L72: 65 | M72: 71 | N72: 85 | O72: 83 | P72: 82 | Q72: 85 | R72: 90 | S72: 79 | T72: 82 | U72: 79 | V72: 79 | W72: 78 | X72: 75 | Y72: 69 | Z72: 74 | AA72: 71 | AB72: 72 | AC72: 78 | AD72: 414 | AE72: 470 | AF72: 464 | AG72: 418 | AH72: 411 | AI72: 383 | AJ72: 330 | AK72: 272 | AL72: 225 | AM72: 174 | AN72: 127 | AO72: 90 | AP72: 60 | AQ72: 67 | AR72: 3 | AS72: 36 | AT72: 32 | AU72: 78 | AV72: 2,692 | AW72: 194 | AX72: 183 | AY72: 1,252 | AZ72: 133 | BA72: 5,414 | BB72: 914 | BC72: 445 | BD72: 1,034 | BE72: 2,278 | BF72: 743
F73: 1305 | G73: PUESTO DE SALUD TOMASA T. COMDEMAYTA | H73: 8 | J73: 60 | K73: 53 | L73: 65 | M73: 71 | N73: 85 | O73: 83 | P73: 82 | Q73: 85 | R73: 90 | S73: 79 | T73: 82 | U73: 79 | V73: 79 | W73: 78 | X73: 75 | Y73: 69 | Z73: 74 | AA73: 71 | AB73: 72 | AC73: 78 | AD73: 414 | AE73: 470 | AF73: 464 | AG73: 418 | AH73: 411 | AI73: 383 | AJ73: 330 | AK73: 272 | AL73: 225 | AM73: 174 | AN73: 127 | AO73: 90 | AP73: 60 | AQ73: 67 | AR73: 3 | AS73: 36 | AT73: 32 | AU73: 78 | AV73: 2,692 | AW73: 194 | AX73: 183 | AY73: 1,252 | AZ73: 133 | BA73: 5,414 | BB73: 914 | BC73: 445 | BD73: 1,034 | BE73: 2,278 | BF73: 743
A74: 040111 | B74: AREQUIPA | C74: AREQUIPA | D74: AREQUIPA | E74: MOLLEBAYA | I74: 7,672 | J74: 81 | K74: 60 | L74: 70 | M74: 64 | N74: 69 | O74: 71 | P74: 109 | Q74: 164 | R74: 160 | S74: 128 | T74: 121 | U74: 123 | V74: 98 | W74: 105 | X74: 120 | Y74: 119 | Z74: 114 | AA74: 107 | AB74: 119 | AC74: 80 | AD74: 473 | AE74: 669 | AF74: 844 | AG74: 748 | AH74: 646 | AI74: 596 | AJ74: 349 | AK74: 339 | AL74: 295 | AM74: 223 | AN74: 170 | AO74: 117 | AP74: 60 | AQ74: 61 | AR74: 5 | AS74: 51 | AT74: 38 | AU74: 103 | AV74: 3,877 | AW74: 284 | AX74: 266 | AY74: 2,053 | AZ74: 180 | BA74: 7,672 | BB74: 1,220 | BC74: 663 | BD74: 1,341 | BE74: 3,522 | BF74: 926
F75: 1285 | G75: PUESTO DE SALUD MOLLEBAYA | H75: 30 | J75: 24 | K75: 18 | L75: 21 | M75: 19 | N75: 21 | O75: 21 | P75: 33 | Q75: 49 | R75: 48 | S75: 38 | T75: 36 | U75: 37 | V75: 29 | W75: 32 | X75: 36 | Y75: 36 | Z75: 34 | AA75: 32 | AB75: 36 | AC75: 24 | AD75: 142 | AE75: 201 | AF75: 253 | AG75: 224 | AH75: 194 | AI75: 179 | AJ75: 105 | AK75: 102 | AL75: 89 | AM75: 67 | AN75: 51 | AO75: 35 | AP75: 18 | AQ75: 18 | AR75: 2 | AS75: 15 | AT75: 11 | AU75: 31 | AV75: 1,163 | AW75: 85 | AX75: 80 | AY75: 616 | AZ75: 54 | BA75: 2,302 | BB75: 366 | BC75: 199 | BD75: 402 | BE75: 1,057 | BF75: 278
F76: 11677 | G76: PUESTO DE SALUD MACHAHUAYA | H76: 70 | J76: 57 | K76: 42 | L76: 49 | M76: 45 | N76: 48 | O76: 50 | P76: 76 | Q76: 115 | R76: 112 | S76: 90 | T76: 85 | U76: 86 | V76: 69 | W76: 73 | X76: 84 | Y76: 83 | Z76: 80 | AA76: 75 | AB76: 83 | AC76: 56 | AD76: 331 | AE76: 468 | AF76: 591 | AG76: 524 | AH76: 452 | AI76: 417 | AJ76: 244 | AK76: 237 | AL76: 206 | AM76: 156 | AN76: 119 | AO76: 82 | AP76: 42 | AQ76: 43 | AR76: 3 | AS76: 36 | AT76: 27 | AU76: 72 | AV76: 2,714 | AW76: 199 | AX76: 186 | AY76: 1,437 | AZ76: 126 | BA76: 5,370 | BB76: 854 | BC76: 464 | BD76: 939 | BE76: 2,465 | BF76: 648
A77: 040112 | B77: AREQUIPA | C77: AREQUIPA | D77: AREQUIPA | E77: PAUCARPATA | I77: 140,561 | J77: 1,638 | K77: 1,566 | L77: 1,849 | M77: 2,148 | N77: 2,292 | O77: 2,333 | P77: 2,370 | Q77: 2,444 | R77: 2,374 | S77: 2,306 | T77: 2,278 | U77: 2,294 | V77: 2,362 | W77: 2,322 | X77: 2,140 | Y77: 2,136 | Z77: 2,166 | AA77: 2,066 | AB77: 2,058 | AC77: 2,062 | AD77: 10,621 | AE77: 11,829 | AF77: 11,597 | AG77: 10,863 | AH77: 10,651 | AI77: 9,847 | AJ77: 8,228 | AK77: 6,323 | AL77: 4,782 | AM77: 4,054 | AN77: 3,128 | AO77: 2,463 | AP77: 1,551 | AQ77: 1,420 | AR77: 118 | AS77: 973 | AT77: 922 | AU77: 2,163 | AV77: 69,473 | AW77: 5,487 | AX77: 5,169 | AY77: 31,719 | AZ77: 3,368 | BA77: 140,561 | BB77: 25,892 | BC77: 13,192 | BD77: 26,570 | BE77: 57,509 | BF77: 17,398
F78: 1298 | G78: CENTRO DE SALUD 15 DE AGOSTO | H78: 13.57 | J78: 222 | K78: 213 | L78: 251 | M78: 291 | N78: 311 | O78: 317 | P78: 322 | Q78: 332 | R78: 322 | S78: 313 | T78: 309 | U78: 311 | V78: 321 | W78: 315 | X78: 290 | Y78: 290 | Z78: 294 | AA78: 280 | AB78: 279 | AC78: 280 | AD78: 1,441 | AE78: 1,605 | AF78: 1,574 | AG78: 1,474 | AH78: 1,445 | AI78: 1,336 | AJ78: 1,117 | AK78: 858 | AL78: 649 | AM78: 550 | AN78: 424 | AO78: 334 | AP78: 210 | AQ78: 193 | AR78: 16 | AS78: 132 | AT78: 125 | AU78: 294 | AV78: 9,427 | AW78: 745 | AX78: 701 | AY78: 4,304 | AZ78: 457 | BA78: 19,074 | BB78: 3,514 | BC78: 1,790 | BD78: 3,606 | BE78: 7,804 | BF78: 2,361
F79: 1316 | G79: PUESTO DE SALUD MIGUEL GRAU MODULO A | H79: 6.32 | J79: 104 | K79: 99 | L79: 117 | M79: 136 | N79: 145 | O79: 147 | P79: 150 | Q79: 154 | R79: 150 | S79: 146 | T79: 144 | U79: 145 | V79: 149 | W79: 147 | X79: 135 | Y79: 135 | Z79: 137 | AA79: 131 | AB79: 130 | AC79: 130 | AD79: 671 | AE79: 748 | AF79: 733 | AG79: 687 | AH79: 673 | AI79: 622 | AJ79: 520 | AK79: 400 | AL79: 302 | AM79: 256 | AN79: 198 | AO79: 156 | AP79: 98 | AQ79: 90 | AR79: 7 | AS79: 61 | AT79: 58 | AU79: 137 | AV79: 4,391 | AW79: 347 | AX79: 327 | AY79: 2,005 | AZ79: 213 | BA79: 8,883 | BB79: 1,636 | BC79: 834 | BD79: 1,679 | BE79: 3,635 | BF79: 1,100
F80: 1317 | G80: CENTRO DE SALUD MIGUEL GRAU B | H80: 6.5 | J80: 106 | K80: 102 | L80: 120 | M80: 140 | N80: 149 | O80: 152 | P80: 154 | Q80: 159 | R80: 154 | S80: 150 | T80: 148 | U80: 149 | V80: 154 | W80: 151 | X80: 139 | Y80: 139 | Z80: 141 | AA80: 134 | AB80: 134 | AC80: 134 | AD80: 690 | AE80: 769 | AF80: 754 | AG80: 706 | AH80: 692 | AI80: 640 | AJ80: 535 | AK80: 411 | AL80: 311 | AM80: 264 | AN80: 203 | AO80: 160 | AP80: 101 | AQ80: 92 | AR80: 8 | AS80: 63 | AT80: 60 | AU80: 141 | AV80: 4,516 | AW80: 357 | AX80: 336 | AY80: 2,062 | AZ80: 219 | BA80: 9,136 | BB80: 1,683 | BC80: 857 | BD80: 1,727 | BE80: 3,738 | BF80: 1,131
F81: 1318 | G81: PUESTO DE SALUD MIGUEL GRAU MODULO C-D | H81: 6.41 | J81: 105 | K81: 100 | L81: 119 | M81: 138 | N81: 147 | O81: 150 | P81: 152 | Q81: 157 | R81: 152 | S81: 148 | T81: 146 | U81: 147 | V81: 151 | W81: 149 | X81: 137 | Y81: 137 | Z81: 139 | AA81: 132 | AB81: 132 | AC81: 132 | AD81: 681 | AE81: 758 | AF81: 743 | AG81: 696 | AH81: 683 | AI81: 631 | AJ81: 527 | AK81: 405 | AL81: 307 | AM81: 260 | AN81: 201 | AO81: 158 | AP81: 99 | AQ81: 91 | AR81: 8 | AS81: 62 | AT81: 59 | AU81: 139 | AV81: 4,453 | AW81: 352 | AX81: 331 | AY81: 2,033 | AZ81: 216 | BA81: 9,010 | BB81: 1,660 | BC81: 846 | BD81: 1,703 | BE81: 3,686 | BF81: 1,115
F82: 1296 | G82: CENTRO DE SALUD AMPLIACIÓN PAUCARPATA | H82: 15 | J82: 246 | K82: 235 | L82: 277 | M82: 321 | N82: 343 | O82: 349 | P82: 355 | Q82: 366 | R82: 358 | S82: 345 | T82: 341 | U82: 345 | V82: 354 | W82: 349 | X82: 323 | Y82: 320 | Z82: 324 | AA82: 311 | AB82: 309 | AC82: 310 | AD82: 1,594 | AE82: 1,775 | AF82: 1,738 | AG82: 1,629 | AH82: 1,599 | AI82: 1,477 | AJ82: 1,234 | AK82: 949 | AL82: 717 | AM82: 609 | AN82: 469 | AO82: 369 | AP82: 233 | AQ82: 214 | AR82: 17 | AS82: 148 | AT82: 140 | AU82: 322 | AV82: 10,422 | AW82: 822 | AX82: 776 | AY82: 4,758 | AZ82: 505 | BA82: 21,086 | BB82: 3,882 | BC82: 1,978 | BD82: 3,985 | BE82: 8,626 | BF82: 2,608
F83: 1310 | G83: CENTRO DE SALUD MANUEL PRADO | H83: 12 | J83: 197 | K83: 188 | L83: 222 | M83: 258 | N83: 275 | O83: 280 | P83: 284 | Q83: 293 | R83: 285 | S83: 277 | T83: 273 | U83: 275 | V83: 283 | W83: 279 | X83: 257 | Y83: 256 | Z83: 260 | AA83: 248 | AB83: 247 | AC83: 247 | AD83: 1,275 | AE83: 1,419 | AF83: 1,392 | AG83: 1,304 | AH83: 1,278 | AI83: 1,182 | AJ83: 987 | AK83: 759 | AL83: 574 | AM83: 486 | AN83: 375 | AO83: 296 | AP83: 186 | AQ83: 170 | AR83: 14 | AS83: 117 | AT83: 111 | AU83: 260 | AV83: 8,337 | AW83: 658 | AX83: 620 | AY83: 3,806 | AZ83: 404 | BA83: 16,867 | BB83: 3,107 | BC83: 1,583 | BD83: 3,188 | BE83: 6,901 | BF83: 2,088
F84: 1313 | G84: CENTRO DE SALUD NUEVA ALBORADA | H84: 6 | J84: 98 | K84: 94 | L84: 111 | M84: 129 | N84: 138 | O84: 140 | P84: 142 | Q84: 147 | R84: 142 | S84: 138 | T84: 137 | U84: 138 | V84: 142 | W84: 139 | X84: 128 | Y84: 128 | Z84: 130 | AA84: 124 | AB84: 123 | AC84: 124 | AD84: 637 | AE84: 710 | AF84: 696 | AG84: 652 | AH84: 639 | AI84: 591 | AJ84: 494 | AK84: 379 | AL84: 287 | AM84: 243 | AN84: 188 | AO84: 148 | AP84: 93 | AQ84: 85 | AR84: 7 | AS84: 58 | AT84: 55 | AU84: 130 | AV84: 4,168 | AW84: 329 | AX84: 310 | AY84: 1,903 | AZ84: 202 | BA84: 8,434 | BB84: 1,554 | BC84: 792 | BD84: 1,594 | BE84: 3,451 | BF84: 1,044
F85: 1315 | G85: CENTRO DE SALUD CAMPO MARTE | H85: 5 | J85: 82 | K85: 78 | L85: 92 | M85: 107 | N85: 115 | O85: 117 | P85: 119 | Q85: 122 | R85: 119 | S85: 115 | T85: 114 | U85: 115 | V85: 118 | W85: 116 | X85: 107 | Y85: 107 | Z85: 108 | AA85: 103 | AB85: 103 | AC85: 103 | AD85: 531 | AE85: 591 | AF85: 580 | AG85: 543 | AH85: 533 | AI85: 492 | AJ85: 411 | AK85: 316 | AL85: 239 | AM85: 203 | AN85: 156 | AO85: 123 | AP85: 78 | AQ85: 71 | AR85: 6 | AS85: 49 | AT85: 46 | AU85: 108 | AV85: 3,474 | AW85: 274 | AX85: 258 | AY85: 1,586 | AZ85: 168 | BA85: 7,028 | BB85: 1,295 | BC85: 660 | BD85: 1,329 | BE85: 2,875 | BF85: 870
F86: 1297 | G86: CENTRO DE SALUD CIUDAD BLANCA | H86: 10 | J86: 164 | K86: 157 | L86: 185 | M86: 215 | N86: 229 | O86: 233 | P86: 237 | Q86: 244 | R86: 237 | S86: 231 | T86: 228 | U86: 229 | V86: 236 | W86: 232 | X86: 214 | Y86: 214 | Z86: 217 | AA86: 207 | AB86: 206 | AC86: 206 | AD86: 1,062 | AE86: 1,183 | AF86: 1,160 | AG86: 1,086 | AH86: 1,065 | AI86: 985 | AJ86: 823 | AK86: 632 | AL86: 478 | AM86: 405 | AN86: 313 | AO86: 246 | AP86: 155 | AQ86: 142 | AR86: 12 | AS86: 97 | AT86: 92 | AU86: 216 | AV86: 6,947 | AW86: 549 | AX86: 517 | AY86: 3,172 | AZ86: 337 | BA86: 14,056 | BB86: 2,589 | BC86: 1,319 | BD86: 2,657 | BE86: 5,751 | BF86: 1,740
F87: 1314 | G87: SAN JUAN DE CIUDAD BLANCA | H87: 6 | J87: 98 | K87: 94 | L87: 111 | M87: 129 | N87: 138 | O87: 140 | P87: 142 | Q87: 147 | R87: 142 | S87: 138 | T87: 137 | U87: 138 | V87: 142 | W87: 139 | X87: 128 | Y87: 128 | Z87: 130 | AA87: 124 | AB87: 123 | AC87: 124 | AD87: 637 | AE87: 710 | AF87: 696 | AG87: 652 | AH87: 639 | AI87: 591 | AJ87: 494 | AK87: 379 | AL87: 287 | AM87: 243 | AN87: 188 | AO87: 148 | AP87: 93 | AQ87: 85 | AR87: 7 | AS87: 58 | AT87: 55 | AU87: 130 | AV87: 4,168 | AW87: 329 | AX87: 310 | AY87: 1,903 | AZ87: 202 | BA87: 8,434 | BB87: 1,554 | BC87: 792 | BD87: 1,594 | BE87: 3,451 | BF87: 1,044
F88: 1311 | G88: ALTO JESUS | H88: 2.2 | J88: 36 | K88: 34 | L88: 41 | M88: 47 | N88: 50 | O88: 51 | P88: 52 | Q88: 54 | R88: 52 | S88: 51 | T88: 50 | U88: 50 | V88: 52 | W88: 51 | X88: 47 | Y88: 47 | Z88: 48 | AA88: 45 | AB88: 45 | AC88: 45 | AD88: 234 | AE88: 260 | AF88: 255 | AG88: 239 | AH88: 234 | AI88: 217 | AJ88: 181 | AK88: 139 | AL88: 105 | AM88: 89 | AN88: 69 | AO88: 54 | AP88: 34 | AQ88: 31 | AR88: 3 | AS88: 21 | AT88: 20 | AU88: 48 | AV88: 1,528 | AW88: 121 | AX88: 114 | AY88: 698 | AZ88: 74 | BA88: 3,092 | BB88: 570 | BC88: 290 | BD88: 585 | BE88: 1,265 | BF88: 383
F89: 1312 | G89: ISRAEL | H89: 4.5 | J89: 74 | K89: 70 | L89: 83 | M89: 97 | N89: 103 | O89: 105 | P89: 107 | Q89: 110 | R89: 107 | S89: 104 | T89: 103 | U89: 103 | V89: 106 | W89: 104 | X89: 96 | Y89: 96 | Z89: 97 | AA89: 93 | AB89: 93 | AC89: 93 | AD89: 478 | AE89: 532 | AF89: 522 | AG89: 489 | AH89: 479 | AI89: 443 | AJ89: 370 | AK89: 285 | AL89: 215 | AM89: 182 | AN89: 141 | AO89: 111 | AP89: 70 | AQ89: 64 | AR89: 5 | AS89: 44 | AT89: 41 | AU89: 97 | AV89: 3,126 | AW89: 247 | AX89: 233 | AY89: 1,427 | AZ89: 152 | BA89: 6,325 | BB89: 1,165 | BC89: 594 | BD89: 1,196 | BE89: 2,588 | BF89: 783
F90: 7744 | G90: P.S. VILLA JESUS | H90: 6.5 | J90: 106 | K90: 102 | L90: 120 | M90: 140 | N90: 149 | O90: 152 | P90: 154 | Q90: 159 | R90: 154 | S90: 150 | T90: 148 | U90: 149 | V90: 154 | W90: 151 | X90: 139 | Y90: 139 | Z90: 141 | AA90: 134 | AB90: 134 | AC90: 134 | AD90: 690 | AE90: 769 | AF90: 754 | AG90: 706 | AH90: 692 | AI90: 640 | AJ90: 535 | AK90: 411 | AL90: 311 | AM90: 264 | AN90: 203 | AO90: 160 | AP90: 101 | AQ90: 92 | AR90: 8 | AS90: 63 | AT90: 60 | AU90: 141 | AV90: 4,516 | AW90: 357 | AX90: 336 | AY90: 2,062 | AZ90: 219 | BA90: 9,136 | BB90: 1,683 | BC90: 857 | BD90: 1,727 | BE90: 3,738 | BF90: 1,131
A91: 040113 | B91: AREQUIPA | C91: AREQUIPA | D91: AREQUIPA | E91: POCSI | I91: 459 | J91: 6 | K91: 2 | L91: 9 | M91: 11 | N91: 6 | O91: 8 | P91: 2 | Q91: 2 | R91: 2 | S91: 2 | T91: 3 | U91: 2 | V91: 3 | W91: 5 | X91: 3 | Y91: 3 | Z91: 3 | AA91: 3 | AB91: 5 | AC91: 4 | AD91: 23 | AE91: 39 | AF91: 43 | AG91: 34 | AH91: 36 | AI91: 38 | AJ91: 33 | AK91: 28 | AL91: 28 | AM91: 20 | AN91: 16 | AO91: 13 | AP91: 14 | AQ91: 10 | AR91: 1 | AS91: 2 | AT91: 2 | AU91: 7 | AV91: 217 | AW91: 7 | AX91: 7 | AY91: 96 | AZ91: 9 | BA91: 459 | BB91: 55 | BC91: 20 | BD91: 71 | BE91: 212 | BF91: 101
F92: 1288 | G92: PUESTO DE SALUD POCSI | H92: 56 | J92: 3 | K92: 1 | L92: 5 | M92: 6 | N92: 3 | O92: 4 | P92: 1 | Q92: 1 | R92: 1 | S92: 1 | T92: 2 | U92: 1 | V92: 2 | W92: 3 | X92: 2 | Y92: 2 | Z92: 2 | AA92: 2 | AB92: 3 | AC92: 2 | AD92: 13 | AE92: 22 | AF92: 24 | AG92: 19 | AH92: 20 | AI92: 21 | AJ92: 18 | AK92: 16 | AL92: 16 | AM92: 11 | AN92: 9 | AO92: 7 | AP92: 8 | AQ92: 6 | AR92: 1 | AS92: 1 | AT92: 1 | AU92: 4 | AV92: 122 | AW92: 4 | AX92: 4 | AY92: 54 | AZ92: 5 | BA92: 257 | BB92: 31 | BC92: 11 | BD92: 40 | BE92: 119 | BF92: 57
F93: 1289 | G93: PUESTO DE SALUD PIACA | H93: 44 | J93: 3 | K93: 1 | L93: 4 | M93: 5 | N93: 3 | O93: 4 | P93: 1 | Q93: 1 | R93: 1 | S93: 1 | T93: 1 | U93: 1 | V93: 1 | W93: 2 | X93: 1 | Y93: 1 | Z93: 1 | AA93: 1 | AB93: 2 | AC93: 2 | AD93: 10 | AE93: 17 | AF93: 19 | AG93: 15 | AH93: 16 | AI93: 17 | AJ93: 15 | AK93: 12 | AL93: 12 | AM93: 9 | AN93: 7 | AO93: 6 | AP93: 6 | AQ93: 4 | AR93: 0 | AS93: 1 | AT93: 1 | AU93: 3 | AV93: 95 | AW93: 3 | AX93: 3 | AY93: 42 | AZ93: 4 | BA93: 202 | BB93: 24 | BC93: 9 | BD93: 31 | BE93: 93 | BF93: 44
A94: 040114 | B94: AREQUIPA | C94: AREQUIPA | D94: AREQUIPA | E94: POLOBAYA | I94: 782 | J94: 13 | K94: 13 | L94: 15 | M94: 11 | N94: 9 | O94: 13 | P94: 3 | Q94: 5 | R94: 6 | S94: 9 | T94: 9 | U94: 9 | V94: 8 | W94: 8 | X94: 9 | Y94: 7 | Z94: 8 | AA94: 5 | AB94: 7 | AC94: 15 | AD94: 50 | AE94: 62 | AF94: 63 | AG94: 55 | AH94: 51 | AI94: 46 | AJ94: 46 | AK94: 58 | AL94: 50 | AM94: 44 | AN94: 30 | AO94: 15 | AP94: 15 | AQ94: 15 | AR94: 1 | AS94: 9 | AT94: 5 | AU94: 19 | AV94: 371 | AW94: 20 | AX94: 19 | AY94: 151 | AZ94: 26 | BA94: 782 | BB94: 115 | BC94: 45 | BD94: 134 | BE94: 319 | BF94: 169
F95: 1262 | G95: PUESTO DE SALUD POLOBAYA | H95: 100 | J95: 13 | K95: 13 | L95: 15 | M95: 11 | N95: 9 | O95: 13 | P95: 3 | Q95: 5 | R95: 6 | S95: 9 | T95: 9 | U95: 9 | V95: 8 | W95: 8 | X95: 9 | Y95: 7 | Z95: 8 | AA95: 5 | AB95: 7 | AC95: 15 | AD95: 50 | AE95: 62 | AF95: 63 | AG95: 55 | AH95: 51 | AI95: 46 | AJ95: 46 | AK95: 58 | AL95: 50 | AM95: 44 | AN95: 30 | AO95: 15 | AP95: 15 | AQ95: 15 | AR95: 1 | AS95: 9 | AT95: 5 | AU95: 19 | AV95: 371 | AW95: 20 | AX95: 19 | AY95: 151 | AZ95: 26 | BA95: 782 | BB95: 115 | BC95: 45 | BD95: 134 | BE95: 319 | BF95: 169
A96: 040115 | B96: AREQUIPA | C96: AREQUIPA | D96: AREQUIPA | E96: QUEQUEÑA | I96: 7,640 | J96: 42 | K96: 53 | L96: 39 | M96: 31 | N96: 34 | O96: 21 | P96: 107 | Q96: 103 | R96: 66 | S96: 90 | T96: 106 | U96: 83 | V96: 94 | W96: 72 | X96: 82 | Y96: 92 | Z96: 83 | AA96: 86 | AB96: 106 | AC96: 82 | AD96: 374 | AE96: 558 | AF96: 799 | AG96: 873 | AH96: 661 | AI96: 630 | AJ96: 575 | AK96: 464 | AL96: 399 | AM96: 274 | AN96: 202 | AO96: 166 | AP96: 96 | AQ96: 97 | AR96: 1 | AS96: 42 | AT96: 24 | AU96: 76 | AV96: 3,960 | AW96: 214 | AX96: 233 | AY96: 2,098 | AZ96: 137 | BA96: 7,640 | BB96: 775 | BC96: 509 | BD96: 1,120 | BE96: 4,002 | BF96: 1,234
F97: 1286 | G97: PUESTO DE SALUD QUEQUEÑA | H97: 100 | J97: 42 | K97: 53 | L97: 39 | M97: 31 | N97: 34 | O97: 21 | P97: 107 | Q97: 103 | R97: 66 | S97: 90 | T97: 106 | U97: 83 | V97: 94 | W97: 72 | X97: 82 | Y97: 92 | Z97: 83 | AA97: 86 | AB97: 106 | AC97: 82 | AD97: 374 | AE97: 558 | AF97: 799 | AG97: 873 | AH97: 661 | AI97: 630 | AJ97: 575 | AK97: 464 | AL97: 399 | AM97: 274 | AN97: 202 | AO97: 166 | AP97: 96 | AQ97: 97 | AR97: 1 | AS97: 42 | AT97: 24 | AU97: 76 | AV97: 3,960 | AW97: 214 | AX97: 233 | AY97: 2,098 | AZ97: 137 | BA97: 7,640 | BB97: 775 | BC97: 509 | BD97: 1,120 | BE97: 4,002 | BF97: 1,234
A98: 040116 | B98: AREQUIPA | C98: AREQUIPA | D98: AREQUIPA | E98: SABANDIA | I98: 4,896 | J98: 77 | K98: 108 | L98: 101 | M98: 95 | N98: 85 | O98: 74 | P98: 74 | Q98: 70 | R98: 87 | S98: 64 | T98: 67 | U98: 74 | V98: 80 | W98: 63 | X98: 61 | Y98: 68 | Z98: 63 | AA98: 58 | AB98: 63 | AC98: 58 | AD98: 335 | AE98: 400 | AF98: 365 | AG98: 408 | AH98: 368 | AI98: 338 | AJ98: 274 | AK98: 218 | AL98: 172 | AM98: 155 | AN98: 139 | AO98: 96 | AP98: 78 | AQ98: 60 | AR98: 6 | AS98: 56 | AT98: 50 | AU98: 120 | AV98: 2,451 | AW98: 168 | AX98: 154 | AY98: 1,112 | AZ98: 192 | BA98: 4,896 | BB98: 976 | BC98: 393 | BD98: 856 | BE98: 1,971 | BF98: 700
F99: 1284 | G99: PUESTO DE SALUD LEOPOLDO RONDON - SABANDIA | H99: 100 | J99: 77 | K99: 108 | L99: 101 | M99: 95 | N99: 85 | O99: 74 | P99: 74 | Q99: 70 | R99: 87 | S99: 64 | T99: 67 | U99: 74 | V99: 80 | W99: 63 | X99: 61 | Y99: 68 | Z99: 63 | AA99: 58 | AB99: 63 | AC99: 58 | AD99: 335 | AE99: 400 | AF99: 365 | AG99: 408 | AH99: 368 | AI99: 338 | AJ99: 274 | AK99: 218 | AL99: 172 | AM99: 155 | AN99: 139 | AO99: 96 | AP99: 78 | AQ99: 60 | AR99: 6 | AS99: 56 | AT99: 50 | AU99: 120 | AV99: 2,451 | AW99: 168 | AX99: 154 | AY99: 1,112 | AZ99: 192 | BA99: 4,896 | BB99: 976 | BC99: 393 | BD99: 856 | BE99: 1,971 | BF99: 700
A100: 040117 | B100: AREQUIPA | C100: AREQUIPA | D100: AREQUIPA | E100: SACHACA | I100: 29,875 | J100: 346 | K100: 382 | L100: 457 | M100: 461 | N100: 509 | O100: 501 | P100: 505 | Q100: 522 | R100: 496 | S100: 466 | T100: 432 | U100: 460 | V100: 492 | W100: 460 | X100: 457 | Y100: 442 | Z100: 420 | AA100: 440 | AB100: 425 | AC100: 433 | AD100: 2,268 | AE100: 2,341 | AF100: 2,417 | AG100: 2,240 | AH100: 2,193 | AI100: 1,993 | AJ100: 1,666 | AK100: 1,415 | AL100: 1,172 | AM100: 1,047 | AN100: 767 | AO100: 559 | AP100: 351 | AQ100: 340 | AR100: 24 | AS100: 212 | AT100: 201 | AU100: 465 | AV100: 15,095 | AW100: 1,122 | AX100: 1,099 | AY100: 6,733 | AZ100: 652 | BA100: 29,875 | BB100: 5,537 | BC100: 2,711 | BD100: 5,467 | BE100: 11,924 | BF100: 4,236
F101: 1282 | G101: PUESTO DE SALUD SACHACA | H101: 65 | J101: 225 | K101: 248 | L101: 297 | M101: 300 | N101: 331 | O101: 326 | P101: 328 | Q101: 339 | R101: 322 | S101: 303 | T101: 281 | U101: 299 | V101: 320 | W101: 299 | X101: 297 | Y101: 287 | Z101: 273 | AA101: 286 | AB101: 276 | AC101: 281 | AD101: 1,474 | AE101: 1,522 | AF101: 1,571 | AG101: 1,456 | AH101: 1,425 | AI101: 1,295 | AJ101: 1,083 | AK101: 920 | AL101: 762 | AM101: 681 | AN101: 499 | AO101: 363 | AP101: 228 | AQ101: 221 | AR101: 16 | AS101: 138 | AT101: 131 | AU101: 302 | AV101: 9,812 | AW101: 729 | AX101: 714 | AY101: 4,376 | AZ101: 424 | BA101: 19,419 | BB101: 3,599 | BC101: 1,762 | BD101: 3,554 | BE101: 7,751 | BF101: 2,753
F102: 1283 | G102: PUESTO DE SALUD PAMPA DE CAMARONES | H102: 35 | J102: 121 | K102: 134 | L102: 160 | M102: 161 | N102: 178 | O102: 175 | P102: 177 | Q102: 183 | R102: 174 | S102: 163 | T102: 151 | U102: 161 | V102: 172 | W102: 161 | X102: 160 | Y102: 155 | Z102: 147 | AA102: 154 | AB102: 149 | AC102: 152 | AD102: 794 | AE102: 819 | AF102: 846 | AG102: 784 | AH102: 768 | AI102: 698 | AJ102: 583 | AK102: 495 | AL102: 410 | AM102: 366 | AN102: 268 | AO102: 196 | AP102: 123 | AQ102: 119 | AR102: 8 | AS102: 74 | AT102: 70 | AU102: 163 | AV102: 5,283 | AW102: 393 | AX102: 385 | AY102: 2,357 | AZ102: 228 | BA102: 10,456 | BB102: 1,938 | BC102: 949 | BD102: 1,913 | BE102: 4,173 | BF102: 1,483
A103: 040118 | B103: AREQUIPA | C103: AREQUIPA | D103: AREQUIPA | E103: SAN JUAN DE SIGUAS | I103: 556 | J103: 10 | K103: 10 | L103: 9 | M103: 7 | N103: 15 | O103: 18 | P103: 4 | Q103: 7 | R103: 4 | S103: 6 | T103: 9 | U103: 8 | V103: 10 | W103: 4 | X103: 5 | Y103: 5 | Z103: 11 | AA103: 5 | AB103: 7 | AC103: 4 | AD103: 37 | AE103: 41 | AF103: 43 | AG103: 35 | AH103: 42 | AI103: 29 | AJ103: 41 | AK103: 37 | AL103: 26 | AM103: 27 | AN103: 16 | AO103: 11 | AP103: 5 | AQ103: 8 | AR103: 2 | AS103: 7 | AT103: 5 | AU103: 13 | AV103: 233 | AW103: 18 | AX103: 13 | AY103: 92 | AZ103: 34 | BA103: 556 | BB103: 107 | BC103: 40 | BD103: 89 | BE103: 227 | BF103: 93
F104: 1339 | G104: PUESTO DE SALUD SAN JUAN DE SIGUAS - TAMBILLO | H104: 100 | J104: 10 | K104: 10 | L104: 9 | M104: 7 | N104: 15 | O104: 18 | P104: 4 | Q104: 7 | R104: 4 | S104: 6 | T104: 9 | U104: 8 | V104: 10 | W104: 4 | X104: 5 | Y104: 5 | Z104: 11 | AA104: 5 | AB104: 7 | AC104: 4 | AD104: 37 | AE104: 41 | AF104: 43 | AG104: 35 | AH104: 42 | AI104: 29 | AJ104: 41 | AK104: 37 | AL104: 26 | AM104: 27 | AN104: 16 | AO104: 11 | AP104: 5 | AQ104: 8 | AR104: 2 | AS104: 7 | AT104: 5 | AU104: 13 | AV104: 233 | AW104: 18 | AX104: 13 | AY104: 92 | AZ104: 34 | BA104: 556 | BB104: 107 | BC104: 40 | BD104: 89 | BE104: 227 | BF104: 93
A105: 040119 | B105: AREQUIPA | C105: AREQUIPA | D105: AREQUIPA | E105: SAN JUAN DE TARUCANI | I105: 1,278 | J105: 28 | K105: 20 | L105: 25 | M105: 27 | N105: 29 | O105: 33 | P105: 7 | Q105: 10 | R105: 9 | S105: 11 | T105: 11 | U105: 10 | V105: 7 | W105: 15 | X105: 8 | Y105: 13 | Z105: 8 | AA105: 16 | AB105: 12 | AC105: 11 | AD105: 67 | AE105: 92 | AF105: 96 | AG105: 108 | AH105: 119 | AI105: 97 | AJ105: 83 | AK105: 85 | AL105: 64 | AM105: 50 | AN105: 35 | AO105: 27 | AP105: 24 | AQ105: 21 | AR105: 2 | AS105: 11 | AT105: 14 | AU105: 30 | AV105: 605 | AW105: 23 | AX105: 28 | AY105: 288 | AZ105: 42 | BA105: 1,278 | BB105: 220 | BC105: 67 | BD105: 182 | BE105: 588 | BF105: 221
F106: 1319 | G106: PUESTO DE SALUD SAN JUAN DE TARUCANI | H106: 80 | J106: 22 | K106: 16 | L106: 20 | M106: 22 | N106: 23 | O106: 26 | P106: 6 | Q106: 8 | R106: 7 | S106: 9 | T106: 9 | U106: 8 | V106: 6 | W106: 12 | X106: 6 | Y106: 10 | Z106: 6 | AA106: 13 | AB106: 10 | AC106: 9 | AD106: 54 | AE106: 74 | AF106: 77 | AG106: 86 | AH106: 95 | AI106: 78 | AJ106: 66 | AK106: 68 | AL106: 51 | AM106: 40 | AN106: 28 | AO106: 22 | AP106: 19 | AQ106: 17 | AR106: 2 | AS106: 9 | AT106: 11 | AU106: 24 | AV106: 484 | AW106: 18 | AX106: 22 | AY106: 230 | AZ106: 34 | BA106: 1,022 | BB106: 176 | BC106: 54 | BD106: 146 | BE106: 470 | BF106: 177
F107: 1321 | G107: PUESTO DE SALUD SALINAS HUITO | H107: 20 | J107: 6 | K107: 4 | L107: 5 | M107: 5 | N107: 6 | O107: 7 | P107: 1 | Q107: 2 | R107: 2 | S107: 2 | T107: 2 | U107: 2 | V107: 1 | W107: 3 | X107: 2 | Y107: 3 | Z107: 2 | AA107: 3 | AB107: 2 | AC107: 2 | AD107: 13 | AE107: 18 | AF107: 19 | AG107: 22 | AH107: 24 | AI107: 19 | AJ107: 17 | AK107: 17 | AL107: 13 | AM107: 10 | AN107: 7 | AO107: 5 | AP107: 5 | AQ107: 4 | AR107: 0 | AS107: 2 | AT107: 3 | AU107: 6 | AV107: 121 | AW107: 5 | AX107: 6 | AY107: 58 | AZ107: 8 | BA107: 256 | BB107: 44 | BC107: 13 | BD107: 36 | BE107: 118 | BF107: 44
A108: 040120 | B108: AREQUIPA | C108: AREQUIPA | D108: AREQUIPA | E108: SANTA ISABEL DE SIGUAS | I108: 634 | J108: 6 | K108: 4 | L108: 13 | M108: 8 | N108: 8 | O108: 8 | P108: 8 | Q108: 9 | R108: 7 | S108: 7 | T108: 7 | U108: 9 | V108: 8 | W108: 8 | X108: 6 | Y108: 8 | Z108: 8 | AA108: 14 | AB108: 8 | AC108: 7 | AD108: 52 | AE108: 48 | AF108: 51 | AG108: 35 | AH108: 35 | AI108: 43 | AJ108: 47 | AK108: 37 | AL108: 36 | AM108: 30 | AN108: 19 | AO108: 14 | AP108: 14 | AQ108: 12 | AR108: 0 | AS108: 1 | AT108: 4 | AU108: 7 | AV108: 281 | AW108: 23 | AX108: 18 | AY108: 115 | AZ108: 11 | BA108: 634 | BB108: 94 | BC108: 52 | BD108: 115 | BE108: 248 | BF108: 125
F109: 1336 | G109: SANTA ISABEL DE SIGUAS | H109: 74 | J109: 4 | K109: 2 | L109: 9 | M109: 6 | N109: 6 | O109: 6 | P109: 6 | Q109: 7 | R109: 5 | S109: 5 | T109: 5 | U109: 7 | V109: 6 | W109: 6 | X109: 4 | Y109: 6 | Z109: 6 | AA109: 10 | AB109: 6 | AC109: 5 | AD109: 38 | AE109: 36 | AF109: 37 | AG109: 25 | AH109: 25 | AI109: 31 | AJ109: 35 | AK109: 27 | AL109: 26 | AM109: 22 | AN109: 15 | AO109: 10 | AP109: 10 | AQ109: 8 | AR109: 0 | AS109: 1 | AT109: 2 | AU109: 5 | AV109: 207 | AW109: 17 | AX109: 14 | AY109: 85 | AZ109: 9 | BA109: 470 | BB109: 70 | BC109: 38 | BD109: 85 | BE109: 184 | BF109: 93
F110: 1378 | G110: PUESTO DE SALUD SONDOR | H110: 13 | J110: 1 | K110: 1 | L110: 2 | M110: 1 | N110: 1 | O110: 1 | P110: 1 | Q110: 1 | R110: 1 | S110: 1 | T110: 1 | U110: 1 | V110: 1 | W110: 1 | X110: 1 | Y110: 1 | Z110: 1 | AA110: 2 | AB110: 1 | AC110: 1 | AD110: 7 | AE110: 6 | AF110: 7 | AG110: 5 | AH110: 5 | AI110: 6 | AJ110: 6 | AK110: 5 | AL110: 5 | AM110: 4 | AN110: 2 | AO110: 2 | AP110: 2 | AQ110: 2 | AR110: 0 | AS110: 0 | AT110: 1 | AU110: 1 | AV110: 37 | AW110: 3 | AX110: 2 | AY110: 15 | AZ110: 1 | BA110: 82 | BB110: 12 | BC110: 7 | BD110: 15 | BE110: 32 | BF110: 16
F111: 1337 | G111: PUESTO DE SALUD PITAY | H111: 13 | J111: 1 | K111: 1 | L111: 2 | M111: 1 | N111: 1 | O111: 1 | P111: 1 | Q111: 1 | R111: 1 | S111: 1 | T111: 1 | U111: 1 | V111: 1 | W111: 1 | X111: 1 | Y111: 1 | Z111: 1 | AA111: 2 | AB111: 1 | AC111: 1 | AD111: 7 | AE111: 6 | AF111: 7 | AG111: 5 | AH111: 5 | AI111: 6 | AJ111: 6 | AK111: 5 | AL111: 5 | AM111: 4 | AN111: 2 | AO111: 2 | AP111: 2 | AQ111: 2 | AR111: 0 | AS111: 0 | AT111: 1 | AU111: 1 | AV111: 37 | AW111: 3 | AX111: 2 | AY111: 15 | AZ111: 1 | BA111: 82 | BB111: 12 | BC111: 7 | BD111: 15 | BE111: 32 | BF111: 16
A112: 040121 | B112: AREQUIPA | C112: AREQUIPA | D112: AREQUIPA | E112: SANTA RITA DE SIGUAS | I112: 8,293 | J112: 98 | K112: 111 | L112: 109 | M112: 98 | N112: 104 | O112: 116 | P112: 160 | Q112: 172 | R112: 140 | S112: 135 | T112: 166 | U112: 138 | V112: 149 | W112: 154 | X112: 124 | Y112: 146 | Z112: 118 | AA112: 119 | AB112: 128 | AC112: 149 | AD112: 691 | AE112: 873 | AF112: 892 | AG112: 795 | AH112: 643 | AI112: 465 | AJ112: 348 | AK112: 312 | AL112: 246 | AM112: 141 | AN112: 109 | AO112: 70 | AP112: 41 | AQ112: 33 | AR112: 10 | AS112: 79 | AT112: 51 | AU112: 149 | AV112: 4,088 | AW112: 359 | AX112: 327 | AY112: 2,133 | AZ112: 236 | BA112: 8,293 | BB112: 1,547 | BC112: 810 | BD112: 1,841 | BE112: 3,455 | BF112: 640
F113: 1335 | G113: CENTRO DE SALUD SANTA RITA DE SIGUAS | H113: 100 | J113: 98 | K113: 111 | L113: 109 | M113: 98 | N113: 104 | O113: 116 | P113: 160 | Q113: 172 | R113: 140 | S113: 135 | T113: 166 | U113: 138 | V113: 149 | W113: 154 | X113: 124 | Y113: 146 | Z113: 118 | AA113: 119 | AB113: 128 | AC113: 149 | AD113: 691 | AE113: 873 | AF113: 892 | AG113: 795 | AH113: 643 | AI113: 465 | AJ113: 348 | AK113: 312 | AL113: 246 | AM113: 141 | AN113: 109 | AO113: 70 | AP113: 41 | AQ113: 33 | AR113: 10 | AS113: 79 | AT113: 51 | AU113: 149 | AV113: 4,088 | AW113: 359 | AX113: 327 | AY113: 2,133 | AZ113: 236 | BA113: 8,293 | BB113: 1,547 | BC113: 810 | BD113: 1,841 | BE113: 3,455 | BF113: 640
A114: 040122 | B114: AREQUIPA | C114: AREQUIPA | D114: AREQUIPA | E114: SOCABAYA | I114: 86,724 | J114: 640 | K114: 750 | L114: 952 | M114: 1,104 | N114: 1,156 | O114: 1,278 | P114: 1,386 | Q114: 1,453 | R114: 1,473 | S114: 1,468 | T114: 1,324 | U114: 1,440 | V114: 1,445 | W114: 1,445 | X114: 1,286 | Y114: 1,281 | Z114: 1,378 | AA114: 1,283 | AB114: 1,354 | AC114: 1,361 | AD114: 7,111 | AE114: 7,808 | AF114: 7,408 | AG114: 6,804 | AH114: 6,488 | AI114: 5,910 | AJ114: 4,795 | AK114: 4,100 | AL114: 3,376 | AM114: 2,868 | AN114: 1,909 | AO114: 1,343 | AP114: 794 | AQ114: 753 | AR114: 63 | AS114: 457 | AT114: 430 | AU114: 1,011 | AV114: 43,839 | AW114: 3,511 | AX114: 3,306 | AY114: 20,705 | AZ114: 1,440 | BA114: 86,724 | BB114: 14,424 | BC114: 8,118 | BD114: 17,634 | BE114: 35,505 | BF114: 11,043
F115: 1258 | G115: CENTRO DE SALUD SAN MARTIN DE SOCABAYA | H115: 20.7 | J115: 132 | K115: 155 | L115: 197 | M115: 229 | N115: 239 | O115: 265 | P115: 287 | Q115: 301 | R115: 305 | S115: 304 | T115: 274 | U115: 298 | V115: 299 | W115: 299 | X115: 266 | Y115: 265 | Z115: 285 | AA115: 266 | AB115: 280 | AC115: 282 | AD115: 1,472 | AE115: 1,616 | AF115: 1,533 | AG115: 1,408 | AH115: 1,343 | AI115: 1,223 | AJ115: 993 | AK115: 849 | AL115: 699 | AM115: 594 | AN115: 395 | AO115: 278 | AP115: 164 | AQ115: 156 | AR115: 13 | AS115: 95 | AT115: 89 | AU115: 209 | AV115: 9,075 | AW115: 727 | AX115: 684 | AY115: 4,286 | AZ115: 298 | BA115: 17,952 | BB115: 2,986 | BC115: 1,680 | BD115: 3,650 | BE115: 7,350 | BF115: 2,286
F116: 1269 | G116: PUESTO DE SALUD CIUDAD MI TRABAJO | H116: 20.03 | J116: 128 | K116: 150 | L116: 191 | M116: 221 | N116: 232 | O116: 256 | P116: 278 | Q116: 291 | R116: 295 | S116: 294 | T116: 265 | U116: 288 | V116: 289 | W116: 289 | X116: 258 | Y116: 257 | Z116: 276 | AA116: 257 | AB116: 271 | AC116: 273 | AD116: 1,424 | AE116: 1,564 | AF116: 1,484 | AG116: 1,363 | AH116: 1,300 | AI116: 1,184 | AJ116: 960 | AK116: 821 | AL116: 676 | AM116: 574 | AN116: 382 | AO116: 269 | AP116: 159 | AQ116: 151 | AR116: 13 | AS116: 92 | AT116: 86 | AU116: 203 | AV116: 8,781 | AW116: 703 | AX116: 662 | AY116: 4,147 | AZ116: 288 | BA116: 17,371 | BB116: 2,889 | BC116: 1,626 | BD116: 3,532 | BE116: 7,112 | BF116: 2,212
F117: 1270 | G117: PUESTO DE SALUD LARA | H117: 16 | J117: 102 | K117: 120 | L117: 152 | M117: 177 | N117: 185 | O117: 204 | P117: 222 | Q117: 232 | R117: 236 | S117: 235 | T117: 212 | U117: 230 | V117: 231 | W117: 231 | X117: 206 | Y117: 205 | Z117: 220 | AA117: 205 | AB117: 217 | AC117: 218 | AD117: 1,138 | AE117: 1,249 | AF117: 1,185 | AG117: 1,089 | AH117: 1,038 | AI117: 946 | AJ117: 767 | AK117: 656 | AL117: 540 | AM117: 459 | AN117: 305 | AO117: 215 | AP117: 127 | AQ117: 120 | AR117: 10 | AS117: 73 | AT117: 69 | AU117: 162 | AV117: 7,014 | AW117: 562 | AX117: 529 | AY117: 3,313 | AZ117: 230 | BA117: 13,876 | BB117: 2,308 | BC117: 1,299 | BD117: 2,821 | BE117: 5,681 | BF117: 1,767
F118: 1271 | G118: CENTRO DE SALUD SAN FERNANDO | H118: 6.05 | J118: 39 | K118: 45 | L118: 58 | M118: 67 | N118: 70 | O118: 77 | P118: 84 | Q118: 88 | R118: 89 | S118: 89 | T118: 80 | U118: 87 | V118: 87 | W118: 87 | X118: 78 | Y118: 78 | Z118: 83 | AA118: 78 | AB118: 82 | AC118: 82 | AD118: 430 | AE118: 472 | AF118: 448 | AG118: 412 | AH118: 393 | AI118: 358 | AJ118: 290 | AK118: 248 | AL118: 204 | AM118: 174 | AN118: 115 | AO118: 81 | AP118: 48 | AQ118: 46 | AR118: 4 | AS118: 28 | AT118: 26 | AU118: 61 | AV118: 2,652 | AW118: 212 | AX118: 200 | AY118: 1,253 | AZ118: 87 | BA118: 5,247 | BB118: 873 | BC118: 491 | BD118: 1,067 | BE118: 2,148 | BF118: 668
F119: 1272 | G119: PUESTO DE SALUD SALAVERRY | H119: 11.8 | J119: 76 | K119: 89 | L119: 112 | M119: 130 | N119: 136 | O119: 151 | P119: 164 | Q119: 171 | R119: 174 | S119: 173 | T119: 156 | U119: 170 | V119: 171 | W119: 171 | X119: 152 | Y119: 151 | Z119: 163 | AA119: 151 | AB119: 160 | AC119: 161 | AD119: 839 | AE119: 921 | AF119: 874 | AG119: 803 | AH119: 766 | AI119: 697 | AJ119: 566 | AK119: 484 | AL119: 398 | AM119: 338 | AN119: 225 | AO119: 158 | AP119: 94 | AQ119: 89 | AR119: 7 | AS119: 54 | AT119: 51 | AU119: 119 | AV119: 5,173 | AW119: 414 | AX119: 390 | AY119: 2,443 | AZ119: 170 | BA119: 10,233 | BB119: 1,702 | BC119: 958 | BD119: 2,081 | BE119: 4,190 | BF119: 1,303
F120: 1268 | G120: CENTRO DE SALUD 4 DE OCTUBRE | H120: 20.72 | J120: 133 | K120: 156 | L120: 197 | M120: 228 | N120: 240 | O120: 265 | P120: 286 | Q120: 302 | R120: 305 | S120: 304 | T120: 275 | U120: 299 | V120: 300 | W120: 300 | X120: 266 | Y120: 265 | Z120: 286 | AA120: 266 | AB120: 280 | AC120: 281 | AD120: 1,474 | AE120: 1,619 | AF120: 1,536 | AG120: 1,409 | AH120: 1,343 | AI120: 1,224 | AJ120: 994 | AK120: 849 | AL120: 700 | AM120: 594 | AN120: 397 | AO120: 279 | AP120: 165 | AQ120: 156 | AR120: 13 | AS120: 94 | AT120: 89 | AU120: 209 | AV120: 9,084 | AW120: 728 | AX120: 686 | AY120: 4,290 | AZ120: 299 | BA120: 17,969 | BB120: 2,988 | BC120: 1,682 | BD120: 3,654 | BE120: 7,355 | BF120: 2,288
F121: 23338 | G121: PUESTO DE SALUD HORACIO ZEBALLOS GÁMEZ | H121: 4.7 | J121: 30 | K121: 35 | L121: 45 | M121: 52 | N121: 54 | O121: 60 | P121: 65 | Q121: 68 | R121: 69 | S121: 69 | T121: 62 | U121: 68 | V121: 68 | W121: 68 | X121: 60 | Y121: 60 | Z121: 65 | AA121: 60 | AB121: 64 | AC121: 64 | AD121: 334 | AE121: 367 | AF121: 348 | AG121: 320 | AH121: 305 | AI121: 278 | AJ121: 225 | AK121: 193 | AL121: 159 | AM121: 135 | AN121: 90 | AO121: 63 | AP121: 37 | AQ121: 35 | AR121: 3 | AS121: 21 | AT121: 20 | AU121: 48 | AV121: 2,060 | AW121: 165 | AX121: 155 | AY121: 973 | AZ121: 68 | BA121: 4,076 | BB121: 678 | BC121: 382 | BD121: 829 | BE121: 1,669 | BF121: 519
A122: 040123 | B122: AREQUIPA | C122: AREQUIPA | D122: AREQUIPA | E122: TIABAYA | I122: 18,032 | J122: 249 | K122: 239 | L122: 291 | M122: 281 | N122: 300 | O122: 309 | P122: 290 | Q122: 354 | R122: 283 | S122: 275 | T122: 248 | U122: 276 | V122: 276 | W122: 278 | X122: 269 | Y122: 244 | Z122: 234 | AA122: 269 | AB122: 225 | AC122: 255 | AD122: 1,358 | AE122: 1,630 | AF122: 1,615 | AG122: 1,499 | AH122: 1,370 | AI122: 1,170 | AJ122: 933 | AK122: 817 | AL122: 639 | AM122: 514 | AN122: 381 | AO122: 289 | AP122: 184 | AQ122: 188 | AR122: 19 | AS122: 149 | AT122: 140 | AU122: 331 | AV122: 8,796 | AW122: 649 | AX122: 615 | AY122: 4,037 | AZ122: 659 | BA122: 18,032 | BB122: 3,395 | BC122: 1,570 | BD122: 3,468 | BE122: 7,404 | BF122: 2,195
F123: 1260 | G123: CENTRO DE SALUD TIABAYA | H123: 100 | J123: 249 | K123: 239 | L123: 291 | M123: 281 | N123: 300 | O123: 309 | P123: 290 | Q123: 354 | R123: 283 | S123: 275 | T123: 248 | U123: 276 | V123: 276 | W123: 278 | X123: 269 | Y123: 244 | Z123: 234 | AA123: 269 | AB123: 225 | AC123: 255 | AD123: 1,358 | AE123: 1,630 | AF123: 1,615 | AG123: 1,499 | AH123: 1,370 | AI123: 1,170 | AJ123: 933 | AK123: 817 | AL123: 639 | AM123: 514 | AN123: 381 | AO123: 289 | AP123: 184 | AQ123: 188 | AR123: 19 | AS123: 149 | AT123: 140 | AU123: 331 | AV123: 8,796 | AW123: 649 | AX123: 615 | AY123: 4,037 | AZ123: 659 | BA123: 18,032 | BB123: 3,395 | BC123: 1,570 | BD123: 3,468 | BE123: 7,404 | BF123: 2,195
A124: 040124 | B124: AREQUIPA | C124: AREQUIPA | D124: AREQUIPA | E124: UCHUMAYO | I124: 17,846 | J124: 222 | K124: 200 | L124: 263 | M124: 256 | N124: 276 | O124: 233 | P124: 300 | Q124: 292 | R124: 272 | S124: 258 | T124: 263 | U124: 276 | V124: 281 | W124: 258 | X124: 222 | Y124: 236 | Z124: 238 | AA124: 230 | AB124: 249 | AC124: 242 | AD124: 1,189 | AE124: 1,642 | AF124: 1,669 | AG124: 1,677 | AH124: 1,550 | AI124: 1,268 | AJ124: 980 | AK124: 828 | AL124: 650 | AM124: 531 | AN124: 335 | AO124: 229 | AP124: 138 | AQ124: 93 | AR124: 11 | AS124: 119 | AT124: 113 | AU124: 264 | AV124: 8,403 | AW124: 641 | AX124: 577 | AY124: 4,048 | AZ124: 462 | BA124: 17,846 | BB124: 3,111 | BC124: 1,465 | BD124: 3,322 | BE124: 7,972 | BF124: 1,976
F125: 1280 | G125: CERRO VERDE | H125: 30 | J125: 67 | K125: 60 | L125: 79 | M125: 77 | N125: 83 | O125: 70 | P125: 90 | Q125: 88 | R125: 82 | S125: 77 | T125: 79 | U125: 83 | V125: 84 | W125: 77 | X125: 67 | Y125: 71 | Z125: 71 | AA125: 69 | AB125: 75 | AC125: 73 | AD125: 357 | AE125: 493 | AF125: 501 | AG125: 503 | AH125: 465 | AI125: 380 | AJ125: 294 | AK125: 248 | AL125: 195 | AM125: 159 | AN125: 101 | AO125: 69 | AP125: 41 | AQ125: 28 | AR125: 3 | AS125: 36 | AT125: 34 | AU125: 79 | AV125: 2,521 | AW125: 192 | AX125: 173 | AY125: 1,214 | AZ125: 139 | BA125: 5,354 | BB125: 933 | BC125: 440 | BD125: 997 | BE125: 2,392 | BF125: 593
F126: 1281 | G126: CONGATA | H126: 51 | J126: 113 | K126: 102 | L126: 134 | M126: 130 | N126: 141 | O126: 119 | P126: 153 | Q126: 149 | R126: 138 | S126: 132 | T126: 134 | U126: 141 | V126: 144 | W126: 132 | X126: 113 | Y126: 120 | Z126: 122 | AA126: 117 | AB126: 127 | AC126: 123 | AD126: 606 | AE126: 837 | AF126: 851 | AG126: 855 | AH126: 790 | AI126: 647 | AJ126: 500 | AK126: 423 | AL126: 331 | AM126: 271 | AN126: 170 | AO126: 116 | AP126: 71 | AQ126: 47 | AR126: 6 | AS126: 60 | AT126: 58 | AU126: 135 | AV126: 4,285 | AW126: 327 | AX126: 294 | AY126: 2,065 | AZ126: 235 | BA126: 9,101 | BB126: 1,587 | BC126: 747 | BD126: 1,694 | BE126: 4,065 | BF126: 1,008
F127: 1290 | G127: UCHUMAYO | H127: 19 | J127: 42 | K127: 38 | L127: 50 | M127: 49 | N127: 52 | O127: 44 | P127: 57 | Q127: 55 | R127: 52 | S127: 49 | T127: 50 | U127: 52 | V127: 53 | W127: 49 | X127: 42 | Y127: 45 | Z127: 45 | AA127: 44 | AB127: 47 | AC127: 46 | AD127: 226 | AE127: 312 | AF127: 317 | AG127: 319 | AH127: 295 | AI127: 241 | AJ127: 186 | AK127: 157 | AL127: 124 | AM127: 101 | AN127: 64 | AO127: 44 | AP127: 26 | AQ127: 18 | AR127: 2 | AS127: 23 | AT127: 21 | AU127: 50 | AV127: 1,597 | AW127: 122 | AX127: 110 | AY127: 769 | AZ127: 88 | BA127: 3,391 | BB127: 591 | BC127: 278 | BD127: 631 | BE127: 1,515 | BF127: 375
A128: 040125 | B128: AREQUIPA | C128: AREQUIPA | D128: AREQUIPA | E128: VITOR | I128: 4,989 | J128: 34 | K128: 39 | L128: 36 | M128: 32 | N128: 50 | O128: 49 | P128: 58 | Q128: 86 | R128: 69 | S128: 74 | T128: 56 | U128: 83 | V128: 91 | W128: 82 | X128: 70 | Y128: 86 | Z128: 84 | AA128: 92 | AB128: 89 | AC128: 86 | AD128: 403 | AE128: 454 | AF128: 429 | AG128: 419 | AH128: 361 | AI128: 302 | AJ128: 269 | AK128: 266 | AL128: 227 | AM128: 187 | AN128: 129 | AO128: 77 | AP128: 61 | AQ128: 59 | AR128: 3 | AS128: 27 | AT128: 15 | AU128: 49 | AV128: 2,392 | AW128: 195 | AX128: 217 | AY128: 1,146 | AZ128: 88 | BA128: 4,989 | BB128: 666 | BC128: 505 | BD128: 1,032 | BE128: 2,046 | BF128: 740
F129: 1324 | G129: CENTRO DE SALUD VITOR | H129: 80 | J129: 27 | K129: 31 | L129: 29 | M129: 26 | N129: 40 | O129: 39 | P129: 46 | Q129: 69 | R129: 55 | S129: 59 | T129: 45 | U129: 66 | V129: 73 | W129: 66 | X129: 56 | Y129: 69 | Z129: 67 | AA129: 74 | AB129: 71 | AC129: 69 | AD129: 322 | AE129: 363 | AF129: 343 | AG129: 335 | AH129: 289 | AI129: 242 | AJ129: 215 | AK129: 213 | AL129: 182 | AM129: 150 | AN129: 103 | AO129: 62 | AP129: 49 | AQ129: 47 | AR129: 2 | AS129: 22 | AT129: 12 | AU129: 39 | AV129: 1,914 | AW129: 156 | AX129: 174 | AY129: 917 | AZ129: 70 | BA129: 3,991 | BB129: 533 | BC129: 404 | BD129: 826 | BE129: 1,637 | BF129: 592
F130: 1334 | G130: PUESTO DE SALUD YURAMAYO | H130: 20 | J130: 7 | K130: 8 | L130: 7 | M130: 6 | N130: 10 | O130: 10 | P130: 12 | Q130: 17 | R130: 14 | S130: 15 | T130: 11 | U130: 17 | V130: 18 | W130: 16 | X130: 14 | Y130: 17 | Z130: 17 | AA130: 18 | AB130: 18 | AC130: 17 | AD130: 81 | AE130: 91 | AF130: 86 | AG130: 84 | AH130: 72 | AI130: 60 | AJ130: 54 | AK130: 53 | AL130: 45 | AM130: 37 | AN130: 26 | AO130: 15 | AP130: 12 | AQ130: 12 | AR130: 1 | AS130: 5 | AT130: 3 | AU130: 10 | AV130: 478 | AW130: 39 | AX130: 43 | AY130: 229 | AZ130: 18 | BA130: 998 | BB130: 133 | BC130: 101 | BD130: 206 | BE130: 409 | BF130: 148
A131: 040126 | B131: AREQUIPA | C131: AREQUIPA | D131: AREQUIPA | E131: YANAHUARA | I131: 27,923 | J131: 247 | K131: 308 | L131: 405 | M131: 414 | N131: 366 | O131: 308 | P131: 375 | Q131: 360 | R131: 390 | S131: 403 | T131: 368 | U131: 369 | V131: 353 | W131: 363 | X131: 318 | Y131: 299 | Z131: 330 | AA131: 299 | AB131: 333 | AC131: 347 | AD131: 1,635 | AE131: 1,916 | AF131: 2,051 | AG131: 1,959 | AH131: 1,970 | AI131: 2,041 | AJ131: 1,835 | AK131: 1,648 | AL131: 1,512 | AM131: 1,304 | AN131: 1,053 | AO131: 810 | AP131: 576 | AQ131: 658 | AR131: 15 | AS131: 158 | AT131: 184 | AU131: 373 | AV131: 14,811 | AW131: 845 | AX131: 776 | AY131: 6,175 | AZ131: 574 | BA131: 27,923 | BB131: 4,313 | BC131: 1,962 | BD131: 4,231 | BE131: 11,504 | BF131: 5,913
F132: 1233 | G132: CENTRO DE SALUD YANAHUARA | H132: 7.79 | J132: 19 | K132: 24 | L132: 32 | M132: 32 | N132: 29 | O132: 24 | P132: 29 | Q132: 28 | R132: 30 | S132: 31 | T132: 29 | U132: 29 | V132: 27 | W132: 28 | X132: 25 | Y132: 23 | Z132: 26 | AA132: 23 | AB132: 26 | AC132: 27 | AD132: 127 | AE132: 149 | AF132: 160 | AG132: 153 | AH132: 153 | AI132: 159 | AJ132: 143 | AK132: 128 | AL132: 118 | AM132: 102 | AN132: 82 | AO132: 63 | AP132: 45 | AQ132: 51 | AR132: 1 | AS132: 12 | AT132: 14 | AU132: 29 | AV132: 1,154 | AW132: 66 | AX132: 60 | AY132: 481 | AZ132: 45 | BA132: 2,175 | BB132: 336 | BC132: 153 | BD132: 330 | BE132: 896 | BF132: 461
F133: 1241 | G133: PUESTO DE SALUD SUMBAY - CHASQUIPAMPA | H133: 4 | J133: 10 | K133: 12 | L133: 16 | M133: 17 | N133: 15 | O133: 12 | P133: 15 | Q133: 14 | R133: 16 | S133: 16 | T133: 15 | U133: 15 | V133: 14 | W133: 15 | X133: 13 | Y133: 12 | Z133: 13 | AA133: 12 | AB133: 13 | AC133: 14 | AD133: 65 | AE133: 77 | AF133: 82 | AG133: 78 | AH133: 79 | AI133: 82 | AJ133: 73 | AK133: 66 | AL133: 60 | AM133: 52 | AN133: 42 | AO133: 32 | AP133: 23 | AQ133: 26 | AR133: 1 | AS133: 6 | AT133: 7 | AU133: 15 | AV133: 592 | AW133: 34 | AX133: 31 | AY133: 247 | AZ133: 23 | BA133: 1,117 | BB133: 173 | BC133: 78 | BD133: 169 | BE133: 460 | BF133: 237
F134: 0 | H134: 88.21 | J134: 218 | K134: 272 | L134: 357 | M134: 365 | N134: 322 | O134: 272 | P134: 331 | Q134: 318 | R134: 344 | S134: 356 | T134: 324 | U134: 325 | V134: 312 | W134: 320 | X134: 280 | Y134: 264 | Z134: 291 | AA134: 264 | AB134: 294 | AC134: 306 | AD134: 1,443 | AE134: 1,690 | AF134: 1,809 | AG134: 1,728 | AH134: 1,738 | AI134: 1,800 | AJ134: 1,619 | AK134: 1,454 | AL134: 1,334 | AM134: 1,150 | AN134: 929 | AO134: 715 | AP134: 508 | AQ134: 581 | AR134: 13 | AS134: 140 | AT134: 163 | AU134: 329 | AV134: 13,065 | AW134: 745 | AX134: 685 | AY134: 5,447 | AZ134: 506 | BA134: 24,631 | BB134: 3,804 | BC134: 1,731 | BD134: 3,732 | BE134: 10,148 | BF134: 5,215
A135: 040127 | B135: AREQUIPA | C135: AREQUIPA | D135: AREQUIPA | E135: YARABAMBA | I135: 1,722 | J135: 41 | K135: 33 | L135: 30 | M135: 24 | N135: 23 | O135: 24 | P135: 15 | Q135: 19 | R135: 15 | S135: 13 | T135: 18 | U135: 15 | V135: 15 | W135: 11 | X135: 12 | Y135: 16 | Z135: 15 | AA135: 14 | AB135: 25 | AC135: 19 | AD135: 111 | AE135: 159 | AF135: 185 | AG135: 155 | AH135: 143 | AI135: 147 | AJ135: 104 | AK135: 89 | AL135: 71 | AM135: 52 | AN135: 45 | AO135: 26 | AP135: 17 | AQ135: 21 | AR135: 1 | AS135: 20 | AT135: 23 | AU135: 51 | AV135: 735 | AW135: 33 | AX135: 36 | AY135: 363 | AZ135: 60 | BA135: 1,722 | BB135: 270 | BC135: 83 | BD135: 314 | BE135: 823 | BF135: 232
F136: 1287 | G136: PUESTO DE SALUD YARABAMBA | H136: 100 | J136: 41 | K136: 33 | L136: 30 | M136: 24 | N136: 23 | O136: 24 | P136: 15 | Q136: 19 | R136: 15 | S136: 13 | T136: 18 | U136: 15 | V136: 15 | W136: 11 | X136: 12 | Y136: 16 | Z136: 15 | AA136: 14 | AB136: 25 | AC136: 19 | AD136: 111 | AE136: 159 | AF136: 185 | AG136: 155 | AH136: 143 | AI136: 147 | AJ136: 104 | AK136: 89 | AL136: 71 | AM136: 52 | AN136: 45 | AO136: 26 | AP136: 17 | AQ136: 21 | AR136: 1 | AS136: 20 | AT136: 23 | AU136: 51 | AV136: 735 | AW136: 33 | AX136: 36 | AY136: 363 | AZ136: 60 | BA136: 1,722 | BB136: 270 | BC136: 83 | BD136: 314 | BE136: 823 | BF136: 232
A137: 040128 | B137: AREQUIPA | C137: AREQUIPA | D137: AREQUIPA | E137: YURA | I137: 45,370 | J137: 565 | K137: 615 | L137: 809 | M137: 865 | N137: 941 | O137: 975 | P137: 954 | Q137: 887 | R137: 906 | S137: 777 | T137: 820 | U137: 770 | V137: 842 | W137: 781 | X137: 676 | Y137: 692 | Z137: 624 | AA137: 705 | AB137: 779 | AC137: 713 | AD137: 3,743 | AE137: 4,463 | AF137: 4,499 | AG137: 3,851 | AH137: 3,096 | AI137: 2,586 | AJ137: 2,036 | AK137: 1,674 | AL137: 1,239 | AM137: 1,013 | AN137: 645 | AO137: 410 | AP137: 222 | AQ137: 197 | AR137: 25 | AS137: 325 | AT137: 362 | AU137: 768 | AV137: 23,048 | AW137: 1,933 | AX137: 1,777 | AY137: 11,418 | AZ137: 1,218 | BA137: 45,370 | BB137: 9,884 | BC137: 4,320 | BD137: 9,698 | BE137: 17,742 | BF137: 3,726
F138: 1253 | G138: CENTRO DE SALUD CIUDAD DE DIOS | H138: 85 | J138: 480 | K138: 523 | L138: 688 | M138: 735 | N138: 800 | O138: 829 | P138: 811 | Q138: 754 | R138: 770 | S138: 660 | T138: 697 | U138: 654 | V138: 716 | W138: 664 | X138: 575 | Y138: 588 | Z138: 530 | AA138: 599 | AB138: 662 | AC138: 606 | AD138: 3,182 | AE138: 3,794 | AF138: 3,824 | AG138: 3,273 | AH138: 2,632 | AI138: 2,198 | AJ138: 1,731 | AK138: 1,423 | AL138: 1,053 | AM138: 861 | AN138: 548 | AO138: 348 | AP138: 189 | AQ138: 167 | AR138: 21 | AS138: 276 | AT138: 308 | AU138: 653 | AV138: 19,591 | AW138: 1,643 | AX138: 1,510 | AY138: 9,705 | AZ138: 1,035 | BA138: 38,564 | BB138: 8,401 | BC138: 3,672 | BD138: 8,243 | BE138: 15,081 | BF138: 3,167
F139: 1254 | G139: PUESTO DE SALUD YURA | H139: 15 | J139: 85 | K139: 92 | L139: 121 | M139: 130 | N139: 141 | O139: 146 | P139: 143 | Q139: 133 | R139: 136 | S139: 117 | T139: 123 | U139: 116 | V139: 126 | W139: 117 | X139: 101 | Y139: 104 | Z139: 94 | AA139: 106 | AB139: 117 | AC139: 107 | AD139: 561 | AE139: 669 | AF139: 675 | AG139: 578 | AH139: 464 | AI139: 388 | AJ139: 305 | AK139: 251 | AL139: 186 | AM139: 152 | AN139: 97 | AO139: 62 | AP139: 33 | AQ139: 30 | AR139: 4 | AS139: 49 | AT139: 54 | AU139: 115 | AV139: 3,457 | AW139: 290 | AX139: 267 | AY139: 1,713 | AZ139: 183 | BA139: 6,806 | BB139: 1,483 | BC139: 648 | BD139: 1,455 | BE139: 2,661 | BF139: 559
A140: 040129 | B140: AREQUIPA | C140: AREQUIPA | D140: AREQUIPA | E140: JOSE LUIS BUSTAMANTE Y RIVERO | I140: 85,625 | J140: 762 | K140: 736 | L140: 946 | M140: 1,057 | N140: 1,009 | O140: 937 | P140: 1,240 | Q140: 1,295 | R140: 1,327 | S140: 1,258 | T140: 1,234 | U140: 1,235 | V140: 1,323 | W140: 1,177 | X140: 1,159 | Y140: 1,162 | Z140: 1,159 | AA140: 1,188 | AB140: 1,165 | AC140: 1,211 | AD140: 6,456 | AE140: 7,210 | AF140: 7,360 | AG140: 6,668 | AH140: 6,507 | AI140: 5,947 | AJ140: 5,051 | AK140: 4,269 | AL140: 3,609 | AM140: 3,034 | AN140: 2,537 | AO140: 1,949 | AP140: 1,264 | AQ140: 1,184 | AR140: 48 | AS140: 458 | AT140: 399 | AU140: 965 | AV140: 43,257 | AW140: 2,988 | AX140: 2,933 | AY140: 19,817 | AZ140: 1,674 | BA140: 85,625 | BB140: 13,036 | BC140: 7,168 | BD140: 16,042 | BE140: 35,802 | BF140: 13,577
F141: 1257 | G141: VICTOR RAUL HINOJOSA | H141: 57 | J141: 434 | K141: 419 | L141: 539 | M141: 602 | N141: 575 | O141: 534 | P141: 706 | Q141: 738 | R141: 756 | S141: 717 | T141: 704 | U141: 703 | V141: 755 | W141: 670 | X141: 661 | Y141: 662 | Z141: 661 | AA141: 677 | AB141: 664 | AC141: 690 | AD141: 3,679 | AE141: 4,110 | AF141: 4,196 | AG141: 3,800 | AH141: 3,709 | AI141: 3,389 | AJ141: 2,879 | AK141: 2,433 | AL141: 2,057 | AM141: 1,730 | AN141: 1,446 | AO141: 1,111 | AP141: 721 | AQ141: 675 | AR141: 27 | AS141: 261 | AT141: 227 | AU141: 550 | AV141: 24,656 | AW141: 1,703 | AX141: 1,672 | AY141: 11,296 | AZ141: 955 | BA141: 48,805 | BB141: 7,430 | BC141: 4,085 | BD141: 9,144 | BE141: 20,408 | BF141: 7,738
F142: 1263 | G142: PUESTO DE SALUD 13 DE ENERO | H142: 19 | J142: 145 | K142: 140 | L142: 180 | M142: 201 | N142: 192 | O142: 178 | P142: 236 | Q142: 246 | R142: 252 | S142: 239 | T142: 234 | U142: 235 | V142: 251 | W142: 224 | X142: 220 | Y142: 221 | Z142: 220 | AA142: 226 | AB142: 221 | AC142: 230 | AD142: 1,227 | AE142: 1,370 | AF142: 1,398 | AG142: 1,267 | AH142: 1,236 | AI142: 1,130 | AJ142: 960 | AK142: 811 | AL142: 686 | AM142: 576 | AN142: 482 | AO142: 370 | AP142: 240 | AQ142: 225 | AR142: 9 | AS142: 87 | AT142: 76 | AU142: 183 | AV142: 8,219 | AW142: 568 | AX142: 557 | AY142: 3,765 | AZ142: 318 | BA142: 16,269 | BB142: 2,477 | BC142: 1,362 | BD142: 3,048 | BE142: 6,802 | BF142: 2,580
F143: 1264 | G143: CENTRO DE SALUD LAS ESMERALDAS | H143: 14 | J143: 107 | K143: 103 | L143: 132 | M143: 148 | N143: 141 | O143: 131 | P143: 174 | Q143: 181 | R143: 186 | S143: 176 | T143: 173 | U143: 173 | V143: 185 | W143: 165 | X143: 162 | Y143: 163 | Z143: 162 | AA143: 166 | AB143: 163 | AC143: 170 | AD143: 904 | AE143: 1,009 | AF143: 1,030 | AG143: 934 | AH143: 911 | AI143: 833 | AJ143: 707 | AK143: 598 | AL143: 505 | AM143: 425 | AN143: 355 | AO143: 273 | AP143: 177 | AQ143: 166 | AR143: 7 | AS143: 64 | AT143: 56 | AU143: 135 | AV143: 6,056 | AW143: 418 | AX143: 411 | AY143: 2,774 | AZ143: 234 | BA143: 11,988 | BB143: 1,825 | BC143: 1,004 | BD143: 2,246 | BE143: 5,012 | BF143: 1,901
F144: 1267 | G144: CERRO JULI | H144: 10 | J144: 76 | K144: 74 | L144: 95 | M144: 106 | N144: 101 | O144: 94 | P144: 124 | Q144: 130 | R144: 133 | S144: 126 | T144: 123 | U144: 124 | V144: 132 | W144: 118 | X144: 116 | Y144: 116 | Z144: 116 | AA144: 119 | AB144: 117 | AC144: 121 | AD144: 646 | AE144: 721 | AF144: 736 | AG144: 667 | AH144: 651 | AI144: 595 | AJ144: 505 | AK144: 427 | AL144: 361 | AM144: 303 | AN144: 254 | AO144: 195 | AP144: 126 | AQ144: 118 | AR144: 5 | AS144: 46 | AT144: 40 | AU144: 97 | AV144: 4,326 | AW144: 299 | AX144: 293 | AY144: 1,982 | AZ144: 167 | BA144: 8,563 | BB144: 1,304 | BC144: 717 | BD144: 1,604 | BE144: 3,580 | BF144: 1,358
F145: 1266 | G145: FELIX NAQUIRA VILDOSO | H145: 0 | J145: 0 | K145: 0 | L145: 0 | M145: 0 | N145: 0 | O145: 0 | P145: 0 | Q145: 0 | R145: 0 | S145: 0 | T145: 0 | U145: 0 | V145: 0 | W145: 0 | X145: 0 | Y145: 0 | Z145: 0 | AA145: 0 | AB145: 0 | AC145: 0 | AD145: 0 | AE145: 0 | AF145: 0 | AG145: 0 | AH145: 0 | AI145: 0 | AJ145: 0 | AK145: 0 | AL145: 0 | AM145: 0 | AN145: 0 | AO145: 0 | AP145: 0 | AQ145: 0 | AR145: 0 | AS145: 0 | AT145: 0 | AU145: 0 | AV145: 0 | AW145: 0 | AX145: 0 | AY145: 0 | AZ145: 0 | BA145: 0 | BB145: 0 | BC145: 0 | BD145: 0 | BE145: 0 | BF145: 0
F146: 1265 | G146: HUGO LUMBRERAS CRUZ | H146: 0 | J146: 0 | K146: 0 | L146: 0 | M146: 0 | N146: 0 | O146: 0 | P146: 0 | Q146: 0 | R146: 0 | S146: 0 | T146: 0 | U146: 0 | V146: 0 | W146: 0 | X146: 0 | Y146: 0 | Z146: 0 | AA146: 0 | AB146: 0 | AC146: 0 | AD146: 0 | AE146: 0 | AF146: 0 | AG146: 0 | AH146: 0 | AI146: 0 | AJ146: 0 | AK146: 0 | AL146: 0 | AM146: 0 | AN146: 0 | AO146: 0 | AP146: 0 | AQ146: 0 | AR146: 0 | AS146: 0 | AT146: 0 | AU146: 0 | AV146: 0 | AW146: 0 | AX146: 0 | AY146: 0 | AZ146: 0 | BA146: 0 | BB146: 0 | BC146: 0 | BD146: 0 | BE146: 0 | BF146: 0
A147: 040201 | B147: AREQUIPA | C147: AREQUIPA | D147: CAMANA | E147: CAMANA | I147: 12,636 | J147: 162 | K147: 76 | L147: 70 | M147: 131 | N147: 154 | O147: 149 | P147: 190 | Q147: 214 | R147: 221 | S147: 186 | T147: 206 | U147: 203 | V147: 208 | W147: 223 | X147: 216 | Y147: 235 | Z147: 202 | AA147: 223 | AB147: 199 | AC147: 207 | AD147: 1,051 | AE147: 1,045 | AF147: 1,001 | AG147: 832 | AH147: 777 | AI147: 811 | AJ147: 766 | AK147: 674 | AL147: 623 | AM147: 463 | AN147: 343 | AO147: 243 | AP147: 175 | AQ147: 157 | AR147: 10 | AS147: 87 | AT147: 43 | AU147: 176 | AV147: 6,134 | AW147: 491 | AX147: 527 | AY147: 2,625 | AZ147: 194 | BA147: 12,636 | BB147: 1,962 | BC147: 1,307 | BD147: 2,502 | BE147: 4,861 | BF147: 2,004
F148: 1344 | G148: HOSPITAL DE CAMANA | H148: 100 | J148: 162 | K148: 76 | L148: 70 | M148: 131 | N148: 154 | O148: 149 | P148: 190 | Q148: 214 | R148: 221 | S148: 186 | T148: 206 | U148: 203 | V148: 208 | W148: 223 | X148: 216 | Y148: 235 | Z148: 202 | AA148: 223 | AB148: 199 | AC148: 207 | AD148: 1,051 | AE148: 1,045 | AF148: 1,001 | AG148: 832 | AH148: 777 | AI148: 811 | AJ148: 766 | AK148: 674 | AL148: 623 | AM148: 463 | AN148: 343 | AO148: 243 | AP148: 175 | AQ148: 157 | AR148: 10 | AS148: 87 | AT148: 43 | AU148: 176 | AV148: 6,134 | AW148: 491 | AX148: 527 | AY148: 2,625 | AZ148: 194 | BA148: 12,636 | BB148: 1,962 | BC148: 1,307 | BD148: 2,502 | BE148: 4,861 | BF148: 2,004
A149: 040202 | B149: AREQUIPA | C149: AREQUIPA | D149: CAMANA | E149: JOSE MARIA QUIMPER | I149: 4,867 | J149: 67 | K149: 47 | L149: 79 | M149: 87 | N149: 88 | O149: 102 | P149: 72 | Q149: 104 | R149: 98 | S149: 66 | T149: 63 | U149: 87 | V149: 86 | W149: 71 | X149: 70 | Y149: 72 | Z149: 72 | AA149: 59 | AB149: 65 | AC149: 60 | AD149: 314 | AE149: 418 | AF149: 389 | AG149: 383 | AH149: 328 | AI149: 291 | AJ149: 252 | AK149: 256 | AL149: 239 | AM149: 201 | AN149: 114 | AO149: 74 | AP149: 49 | AQ149: 44 | AR149: 3 | AS149: 34 | AT149: 40 | AU149: 87 | AV149: 2,455 | AW149: 195 | AX149: 174 | AY149: 1,081 | AZ149: 99 | BA149: 4,867 | BB149: 960 | BC149: 430 | BD149: 857 | BE149: 1,899 | BF149: 721
F150: 1355 | G150: EL CARDO | H150: 10 | J150: 7 | K150: 5 | L150: 8 | M150: 9 | N150: 9 | O150: 10 | P150: 7 | Q150: 10 | R150: 10 | S150: 7 | T150: 6 | U150: 9 | V150: 9 | W150: 7 | X150: 7 | Y150: 7 | Z150: 7 | AA150: 6 | AB150: 7 | AC150: 6 | AD150: 31 | AE150: 42 | AF150: 39 | AG150: 38 | AH150: 33 | AI150: 29 | AJ150: 25 | AK150: 26 | AL150: 24 | AM150: 20 | AN150: 11 | AO150: 7 | AP150: 5 | AQ150: 4 | AR150: 0 | AS150: 3 | AT150: 4 | AU150: 9 | AV150: 246 | AW150: 20 | AX150: 17 | AY150: 108 | AZ150: 10 | BA150: 487 | BB150: 96 | BC150: 43 | BD150: 86 | BE150: 190 | BF150: 72
F151: 1354 | G151: PUESTO DE SALUD LUIS FERNANDEZ CORTEGANA - HUACAPUY | H151: 45 | J151: 30 | K151: 21 | L151: 35 | M151: 39 | N151: 39 | O151: 46 | P151: 33 | Q151: 47 | R151: 44 | S151: 29 | T151: 29 | U151: 39 | V151: 38 | W151: 32 | X151: 31 | Y151: 33 | Z151: 33 | AA151: 26 | AB151: 29 | AC151: 27 | AD151: 142 | AE151: 188 | AF151: 175 | AG151: 173 | AH151: 147 | AI151: 131 | AJ151: 114 | AK151: 115 | AL151: 107 | AM151: 91 | AN151: 52 | AO151: 34 | AP151: 22 | AQ151: 20 | AR151: 2 | AS151: 16 | AT151: 18 | AU151: 39 | AV151: 1,104 | AW151: 87 | AX151: 79 | AY151: 487 | AZ151: 44 | BA151: 2,190 | BB151: 432 | BC151: 193 | BD151: 385 | BE151: 854 | BF151: 325
F152: 1356 | G152: PUESTO DE SALUD EL PUENTE | H152: 45 | J152: 30 | K152: 21 | L152: 36 | M152: 39 | N152: 40 | O152: 46 | P152: 32 | Q152: 47 | R152: 44 | S152: 30 | T152: 28 | U152: 39 | V152: 39 | W152: 32 | X152: 32 | Y152: 32 | Z152: 32 | AA152: 27 | AB152: 29 | AC152: 27 | AD152: 141 | AE152: 188 | AF152: 175 | AG152: 172 | AH152: 148 | AI152: 131 | AJ152: 113 | AK152: 115 | AL152: 108 | AM152: 90 | AN152: 51 | AO152: 33 | AP152: 22 | AQ152: 20 | AR152: 1 | AS152: 15 | AT152: 18 | AU152: 39 | AV152: 1,105 | AW152: 88 | AX152: 78 | AY152: 486 | AZ152: 45 | BA152: 2,190 | BB152: 432 | BC152: 194 | BD152: 386 | BE152: 855 | BF152: 324
A153: 040203 | B153: AREQUIPA | C153: AREQUIPA | D153: CAMANA | E153: MARIANO NICOLAS VALCARCEL | I153: 8,660 | J153: 167 | K153: 181 | L153: 179 | M153: 223 | N153: 293 | O153: 310 | P153: 151 | Q153: 117 | R153: 118 | S153: 130 | T153: 118 | U153: 156 | V153: 152 | W153: 122 | X153: 118 | Y153: 90 | Z153: 96 | AA153: 87 | AB153: 67 | AC153: 40 | AD153: 323 | AE153: 601 | AF153: 980 | AG153: 950 | AH153: 727 | AI153: 615 | AJ153: 498 | AK153: 466 | AL153: 266 | AM153: 166 | AN153: 74 | AO153: 34 | AP153: 30 | AQ153: 15 | AR153: 8 | AS153: 74 | AT153: 127 | AU153: 236 | AV153: 4,263 | AW153: 375 | AX153: 195 | AY153: 2,198 | AZ153: 287 | BA153: 8,660 | BB153: 2,143 | BC153: 665 | BD153: 1,031 | BE153: 4,236 | BF153: 585
F154: 1365 | G154: PUESTO DE SALUD URASQUI | H154: 15 | J154: 25 | K154: 27 | L154: 27 | M154: 33 | N154: 44 | O154: 47 | P154: 23 | Q154: 18 | R154: 18 | S154: 20 | T154: 18 | U154: 23 | V154: 23 | W154: 18 | X154: 18 | Y154: 14 | Z154: 14 | AA154: 13 | AB154: 10 | AC154: 6 | AD154: 48 | AE154: 90 | AF154: 147 | AG154: 143 | AH154: 109 | AI154: 92 | AJ154: 75 | AK154: 70 | AL154: 40 | AM154: 25 | AN154: 11 | AO154: 5 | AP154: 5 | AQ154: 2 | AR154: 1 | AS154: 11 | AT154: 19 | AU154: 35 | AV154: 639 | AW154: 56 | AX154: 29 | AY154: 330 | AZ154: 43 | BA154: 1,299 | BB154: 321 | BC154: 100 | BD154: 155 | BE154: 635 | BF154: 88
F155: 18691 | G155: PUESTO DE SALUD SECOCHA | H155: 75 | J155: 125 | K155: 136 | L155: 134 | M155: 168 | N155: 220 | O155: 232 | P155: 113 | Q155: 87 | R155: 88 | S155: 97 | T155: 88 | U155: 117 | V155: 114 | W155: 92 | X155: 88 | Y155: 67 | Z155: 72 | AA155: 65 | AB155: 50 | AC155: 30 | AD155: 243 | AE155: 451 | AF155: 735 | AG155: 712 | AH155: 545 | AI155: 461 | AJ155: 373 | AK155: 349 | AL155: 199 | AM155: 124 | AN155: 56 | AO155: 26 | AP155: 22 | AQ155: 11 | AR155: 6 | AS155: 56 | AT155: 95 | AU155: 177 | AV155: 3,198 | AW155: 281 | AX155: 146 | AY155: 1,648 | AZ155: 215 | BA155: 6,495 | BB155: 1,608 | BC155: 498 | BD155: 773 | BE155: 3,177 | BF155: 438
F156: 1366 | G156: LA EUGENIA | H156: 10 | J156: 17 | K156: 18 | L156: 18 | M156: 22 | N156: 29 | O156: 31 | P156: 15 | Q156: 12 | R156: 12 | S156: 13 | T156: 12 | U156: 16 | V156: 15 | W156: 12 | X156: 12 | Y156: 9 | Z156: 10 | AA156: 9 | AB156: 7 | AC156: 4 | AD156: 32 | AE156: 60 | AF156: 98 | AG156: 95 | AH156: 73 | AI156: 62 | AJ156: 50 | AK156: 47 | AL156: 27 | AM156: 17 | AN156: 7 | AO156: 3 | AP156: 3 | AQ156: 2 | AR156: 1 | AS156: 7 | AT156: 13 | AU156: 24 | AV156: 426 | AW156: 38 | AX156: 20 | AY156: 220 | AZ156: 29 | BA156: 866 | BB156: 214 | BC156: 67 | BD156: 103 | BE156: 424 | BF156: 59
A157: 040204 | B157: AREQUIPA | C157: AREQUIPA | D157: CAMANA | E157: MARISCAL CACERES | I157: 6,669 | J157: 99 | K157: 89 | L157: 124 | M157: 108 | N157: 112 | O157: 121 | P157: 94 | Q157: 94 | R157: 104 | S157: 94 | T157: 91 | U157: 100 | V157: 89 | W157: 90 | X157: 95 | Y157: 95 | Z157: 94 | AA157: 99 | AB157: 101 | AC157: 85 | AD157: 408 | AE157: 600 | AF157: 557 | AG157: 548 | AH157: 499 | AI157: 476 | AJ157: 426 | AK157: 342 | AL157: 282 | AM157: 222 | AN157: 143 | AO157: 80 | AP157: 59 | AQ157: 49 | AR157: 8 | AS157: 57 | AT157: 37 | AU157: 108 | AV157: 3,324 | AW157: 217 | AX157: 240 | AY157: 1,575 | AZ157: 244 | BA157: 6,669 | BB157: 1,230 | BC157: 562 | BD157: 1,194 | BE157: 2,848 | BF157: 835
F158: 1345 | G158: CENTRO DE SALUD SAN JOSE | H158: 20 | J158: 20 | K158: 18 | L158: 25 | M158: 22 | N158: 22 | O158: 24 | P158: 19 | Q158: 19 | R158: 21 | S158: 19 | T158: 18 | U158: 20 | V158: 18 | W158: 18 | X158: 19 | Y158: 19 | Z158: 19 | AA158: 20 | AB158: 20 | AC158: 17 | AD158: 82 | AE158: 120 | AF158: 111 | AG158: 110 | AH158: 100 | AI158: 95 | AJ158: 85 | AK158: 68 | AL158: 56 | AM158: 44 | AN158: 29 | AO158: 16 | AP158: 12 | AQ158: 10 | AR158: 2 | AS158: 11 | AT158: 7 | AU158: 22 | AV158: 665 | AW158: 43 | AX158: 48 | AY158: 315 | AZ158: 49 | BA158: 1,334 | BB158: 246 | BC158: 112 | BD158: 239 | BE158: 570 | BF158: 167
F159: 1353 | G159: CENTRO DE SALUD PUCCHUN | H159: 80 | J159: 79 | K159: 71 | L159: 99 | M159: 86 | N159: 90 | O159: 97 | P159: 75 | Q159: 75 | R159: 83 | S159: 75 | T159: 73 | U159: 80 | V159: 71 | W159: 72 | X159: 76 | Y159: 76 | Z159: 75 | AA159: 79 | AB159: 81 | AC159: 68 | AD159: 326 | AE159: 480 | AF159: 446 | AG159: 438 | AH159: 399 | AI159: 381 | AJ159: 341 | AK159: 274 | AL159: 226 | AM159: 178 | AN159: 114 | AO159: 64 | AP159: 47 | AQ159: 39 | AR159: 6 | AS159: 46 | AT159: 30 | AU159: 86 | AV159: 2,659 | AW159: 174 | AX159: 192 | AY159: 1,260 | AZ159: 195 | BA159: 5,335 | BB159: 984 | BC159: 450 | BD159: 955 | BE159: 2,278 | BF159: 668
A160: 040205 | B160: AREQUIPA | C160: AREQUIPA | D160: CAMANA | E160: NICOLAS DE PIEROLA | I160: 8,030 | J160: 89 | K160: 81 | L160: 127 | M160: 114 | N160: 134 | O160: 127 | P160: 116 | Q160: 150 | R160: 137 | S160: 129 | T160: 138 | U160: 137 | V160: 139 | W160: 143 | X160: 119 | Y160: 121 | Z160: 129 | AA160: 118 | AB160: 125 | AC160: 118 | AD160: 548 | AE160: 628 | AF160: 648 | AG160: 625 | AH160: 564 | AI160: 523 | AJ160: 479 | AK160: 430 | AL160: 361 | AM160: 270 | AN160: 187 | AO160: 131 | AP160: 77 | AQ160: 68 | AR160: 7 | AS160: 53 | AT160: 58 | AU160: 126 | AV160: 3,990 | AW160: 319 | AX160: 292 | AY160: 1,806 | AZ160: 212 | BA160: 8,030 | BB160: 1,479 | BC160: 769 | BD160: 1,419 | BE160: 3,269 | BF160: 1,094
F161: 1347 | G161: CENTRO DE SALUD SAN GREGORIO | H161: 65 | J161: 58 | K161: 52 | L161: 82 | M161: 74 | N161: 87 | O161: 82 | P161: 76 | Q161: 97 | R161: 89 | S161: 83 | T161: 89 | U161: 89 | V161: 90 | W161: 93 | X161: 78 | Y161: 79 | Z161: 83 | AA161: 77 | AB161: 81 | AC161: 77 | AD161: 356 | AE161: 408 | AF161: 421 | AG161: 406 | AH161: 367 | AI161: 340 | AJ161: 311 | AK161: 279 | AL161: 235 | AM161: 176 | AN161: 121 | AO161: 85 | AP161: 50 | AQ161: 45 | AR161: 5 | AS161: 35 | AT161: 38 | AU161: 81 | AV161: 2,593 | AW161: 208 | AX161: 190 | AY161: 1,174 | AZ161: 138 | BA161: 5,219 | BB161: 961 | BC161: 500 | BD161: 923 | BE161: 2,125 | BF161: 711
F162: 1360 | G162: PUESTO DE SALUD HACIENDA DEL MEDIO | H162: 33 | J162: 29 | K162: 27 | L162: 42 | M162: 38 | N162: 44 | O162: 42 | P162: 38 | Q162: 50 | R162: 45 | S162: 43 | T162: 46 | U162: 45 | V162: 46 | W162: 47 | X162: 39 | Y162: 40 | Z162: 43 | AA162: 39 | AB162: 41 | AC162: 39 | AD162: 181 | AE162: 207 | AF162: 214 | AG162: 206 | AH162: 186 | AI162: 173 | AJ162: 158 | AK162: 142 | AL162: 119 | AM162: 89 | AN162: 62 | AO162: 43 | AP162: 25 | AQ162: 22 | AR162: 2 | AS162: 17 | AT162: 19 | AU162: 42 | AV162: 1,317 | AW162: 105 | AX162: 96 | AY162: 596 | AZ162: 70 | BA162: 2,650 | BB162: 488 | BC162: 254 | BD162: 468 | BE162: 1,079 | BF162: 361
F163: 1361 | G163: SONAY | H163: 2 | J163: 2 | K163: 2 | L163: 3 | M163: 2 | N163: 3 | O163: 3 | P163: 2 | Q163: 3 | R163: 3 | S163: 3 | T163: 3 | U163: 3 | V163: 3 | W163: 3 | X163: 2 | Y163: 2 | Z163: 3 | AA163: 2 | AB163: 3 | AC163: 2 | AD163: 11 | AE163: 13 | AF163: 13 | AG163: 13 | AH163: 11 | AI163: 10 | AJ163: 10 | AK163: 9 | AL163: 7 | AM163: 5 | AN163: 4 | AO163: 3 | AP163: 2 | AQ163: 1 | AR163: 0 | AS163: 1 | AT163: 1 | AU163: 3 | AV163: 80 | AW163: 6 | AX163: 6 | AY163: 36 | AZ163: 4 | BA163: 161 | BB163: 30 | BC163: 15 | BD163: 28 | BE163: 65 | BF163: 22
A164: 040206 | B164: AREQUIPA | C164: AREQUIPA | D164: CAMANA | E164: OCOÑA | I164: 4,014 | J164: 43 | K164: 44 | L164: 70 | M164: 54 | N164: 53 | O164: 54 | P164: 61 | Q164: 66 | R164: 56 | S164: 44 | T164: 57 | U164: 54 | V164: 48 | W164: 52 | X164: 58 | Y164: 64 | Z164: 57 | AA164: 78 | AB164: 52 | AC164: 49 | AD164: 244 | AE164: 317 | AF164: 257 | AG164: 287 | AH164: 291 | AI164: 263 | AJ164: 271 | AK164: 248 | AL164: 224 | AM164: 174 | AN164: 137 | AO164: 78 | AP164: 55 | AQ164: 54 | AR164: 5 | AS164: 29 | AT164: 35 | AU164: 74 | AV164: 1,897 | AW164: 130 | AX164: 148 | AY164: 815 | AZ164: 79 | BA164: 4,014 | BB164: 656 | BC164: 357 | BD164: 662 | BE164: 1,617 | BF164: 722
F165: 1348 | G165: CENTRO DE SALUD OCOÑA | H165: 78 | J165: 34 | K165: 34 | L165: 54 | M165: 42 | N165: 41 | O165: 42 | P165: 48 | Q165: 51 | R165: 44 | S165: 34 | T165: 44 | U165: 42 | V165: 38 | W165: 40 | X165: 45 | Y165: 50 | Z165: 44 | AA165: 61 | AB165: 40 | AC165: 39 | AD165: 190 | AE165: 247 | AF165: 200 | AG165: 224 | AH165: 227 | AI165: 206 | AJ165: 211 | AK165: 194 | AL165: 174 | AM165: 136 | AN165: 106 | AO165: 61 | AP165: 43 | AQ165: 42 | AR165: 4 | AS165: 23 | AT165: 28 | AU165: 58 | AV165: 1,479 | AW165: 101 | AX165: 116 | AY165: 636 | AZ165: 61 | BA165: 3,131 | BB165: 512 | BC165: 278 | BD165: 517 | BE165: 1,261 | BF165: 563
F166: 1363 | G166: LA PLANCHADA | H166: 15 | J166: 6 | K166: 7 | L166: 11 | M166: 8 | N166: 8 | O166: 8 | P166: 9 | Q166: 10 | R166: 8 | S166: 7 | T166: 9 | U166: 8 | V166: 7 | W166: 8 | X166: 9 | Y166: 10 | Z166: 9 | AA166: 12 | AB166: 8 | AC166: 7 | AD166: 37 | AE166: 48 | AF166: 39 | AG166: 43 | AH166: 44 | AI166: 39 | AJ166: 41 | AK166: 37 | AL166: 34 | AM166: 26 | AN166: 21 | AO166: 12 | AP166: 8 | AQ166: 8 | AR166: 1 | AS166: 4 | AT166: 5 | AU166: 11 | AV166: 285 | AW166: 20 | AX166: 22 | AY166: 122 | AZ166: 12 | BA166: 602 | BB166: 98 | BC166: 54 | BD166: 99 | BE166: 243 | BF166: 108
F167: 1364 | G167: PESCADORES | H167: 7 | J167: 3 | K167: 3 | L167: 5 | M167: 4 | N167: 4 | O167: 4 | P167: 4 | Q167: 5 | R167: 4 | S167: 3 | T167: 4 | U167: 4 | V167: 3 | W167: 4 | X167: 4 | Y167: 4 | Z167: 4 | AA167: 5 | AB167: 4 | AC167: 3 | AD167: 17 | AE167: 22 | AF167: 18 | AG167: 20 | AH167: 20 | AI167: 18 | AJ167: 19 | AK167: 17 | AL167: 16 | AM167: 12 | AN167: 10 | AO167: 5 | AP167: 4 | AQ167: 4 | AR167: 0 | AS167: 2 | AT167: 2 | AU167: 5 | AV167: 133 | AW167: 9 | AX167: 10 | AY167: 57 | AZ167: 6 | BA167: 281 | BB167: 46 | BC167: 25 | BD167: 46 | BE167: 113 | BF167: 51
A168: 040207 | B168: AREQUIPA | C168: AREQUIPA | D168: CAMANA | E168: QUILCA | I168: 1,135 | J168: 19 | K168: 14 | L168: 12 | M168: 13 | N168: 16 | O168: 28 | P168: 18 | Q168: 14 | R168: 10 | S168: 17 | T168: 14 | U168: 14 | V168: 11 | W168: 16 | X168: 18 | Y168: 14 | Z168: 15 | AA168: 16 | AB168: 9 | AC168: 14 | AD168: 57 | AE168: 81 | AF168: 100 | AG168: 100 | AH168: 85 | AI168: 81 | AJ168: 75 | AK168: 60 | AL168: 71 | AM168: 41 | AN168: 34 | AO168: 23 | AP168: 13 | AQ168: 12 | AR168: 2 | AS168: 19 | AT168: 7 | AU168: 28 | AV168: 505 | AW168: 37 | AX168: 33 | AY168: 231 | AZ168: 30 | BA168: 1,135 | BB168: 189 | BC168: 90 | BD168: 161 | BE168: 501 | BF168: 194
F169: 1362 | G169: PUESTO DE SALUD QUILCA | H169: 100 | J169: 19 | K169: 14 | L169: 12 | M169: 13 | N169: 16 | O169: 28 | P169: 18 | Q169: 14 | R169: 10 | S169: 17 | T169: 14 | U169: 14 | V169: 11 | W169: 16 | X169: 18 | Y169: 14 | Z169: 15 | AA169: 16 | AB169: 9 | AC169: 14 | AD169: 57 | AE169: 81 | AF169: 100 | AG169: 100 | AH169: 85 | AI169: 81 | AJ169: 75 | AK169: 60 | AL169: 71 | AM169: 41 | AN169: 34 | AO169: 23 | AP169: 13 | AQ169: 12 | AR169: 2 | AS169: 19 | AT169: 7 | AU169: 28 | AV169: 505 | AW169: 37 | AX169: 33 | AY169: 231 | AZ169: 30 | BA169: 1,135 | BB169: 189 | BC169: 90 | BD169: 161 | BE169: 501 | BF169: 194
A170: 040208 | B170: AREQUIPA | C170: AREQUIPA | D170: CAMANA | E170: SAMUEL PASTOR | I170: 17,272 | J170: 278 | K170: 258 | L170: 309 | M170: 333 | N170: 340 | O170: 326 | P170: 317 | Q170: 310 | R170: 308 | S170: 286 | T170: 273 | U170: 325 | V170: 306 | W170: 271 | X170: 279 | Y170: 274 | Z170: 278 | AA170: 272 | AB170: 277 | AC170: 255 | AD170: 1,316 | AE170: 1,491 | AF170: 1,406 | AG170: 1,361 | AH170: 1,187 | AI170: 1,094 | AJ170: 962 | AK170: 788 | AL170: 644 | AM170: 447 | AN170: 283 | AO170: 186 | AP170: 114 | AQ170: 118 | AR170: 21 | AS170: 166 | AT170: 160 | AU170: 375 | AV170: 8,558 | AW170: 710 | AX170: 655 | AY170: 3,934 | AZ170: 460 | BA170: 17,272 | BB170: 3,663 | BC170: 1,680 | BD170: 3,339 | BE170: 6,798 | BF170: 1,792
F171: 1346 | G171: LA PAMPA | H171: 33 | J171: 92 | K171: 85 | L171: 102 | M171: 110 | N171: 112 | O171: 108 | P171: 105 | Q171: 102 | R171: 102 | S171: 94 | T171: 90 | U171: 107 | V171: 101 | W171: 89 | X171: 92 | Y171: 90 | Z171: 92 | AA171: 90 | AB171: 91 | AC171: 84 | AD171: 434 | AE171: 492 | AF171: 464 | AG171: 449 | AH171: 392 | AI171: 361 | AJ171: 317 | AK171: 260 | AL171: 213 | AM171: 148 | AN171: 93 | AO171: 61 | AP171: 38 | AQ171: 39 | AR171: 7 | AS171: 55 | AT171: 53 | AU171: 124 | AV171: 2,824 | AW171: 234 | AX171: 216 | AY171: 1,298 | AZ171: 152 | BA171: 5,700 | BB171: 1,209 | BC171: 554 | BD171: 1,102 | BE171: 2,243 | BF171: 591
F172: 1357 | G172: EL CARMEN-CAMANA | H172: 36 | J172: 100 | K172: 92 | L172: 112 | M172: 120 | N172: 123 | O172: 117 | P172: 113 | Q172: 112 | R172: 111 | S172: 103 | T172: 99 | U172: 117 | V172: 110 | W172: 98 | X172: 101 | Y172: 99 | Z172: 100 | AA172: 98 | AB172: 100 | AC172: 92 | AD172: 475 | AE172: 536 | AF172: 506 | AG172: 490 | AH172: 427 | AI172: 394 | AJ172: 347 | AK172: 284 | AL172: 231 | AM172: 161 | AN172: 103 | AO172: 67 | AP172: 41 | AQ172: 42 | AR172: 7 | AS172: 59 | AT172: 57 | AU172: 135 | AV172: 3,080 | AW172: 256 | AX172: 236 | AY172: 1,417 | AZ172: 165 | BA172: 6,218 | BB172: 1,319 | BC172: 606 | BD172: 1,202 | BE172: 2,447 | BF172: 645
F173: 1359 | G173: JUAN PABLO VIZCARDO GUZMAN | H173: 13 | J173: 36 | K173: 34 | L173: 40 | M173: 43 | N173: 44 | O173: 42 | P173: 41 | Q173: 40 | R173: 40 | S173: 37 | T173: 35 | U173: 42 | V173: 40 | W173: 35 | X173: 36 | Y173: 36 | Z173: 36 | AA173: 35 | AB173: 36 | AC173: 33 | AD173: 171 | AE173: 194 | AF173: 183 | AG173: 177 | AH173: 154 | AI173: 142 | AJ173: 125 | AK173: 102 | AL173: 84 | AM173: 58 | AN173: 37 | AO173: 24 | AP173: 15 | AQ173: 15 | AR173: 3 | AS173: 22 | AT173: 21 | AU173: 49 | AV173: 1,113 | AW173: 92 | AX173: 85 | AY173: 511 | AZ173: 60 | BA173: 2,245 | BB173: 476 | BC173: 218 | BD173: 434 | BE173: 884 | BF173: 233
F174: 1358 | G174: PUESTO DE SALUD LA PUNTA | H174: 3 | J174: 8 | K174: 8 | L174: 9 | M174: 10 | N174: 10 | O174: 10 | P174: 10 | Q174: 9 | R174: 9 | S174: 9 | T174: 8 | U174: 10 | V174: 9 | W174: 8 | X174: 8 | Y174: 8 | Z174: 8 | AA174: 8 | AB174: 8 | AC174: 8 | AD174: 39 | AE174: 45 | AF174: 42 | AG174: 41 | AH174: 36 | AI174: 33 | AJ174: 29 | AK174: 24 | AL174: 19 | AM174: 13 | AN174: 8 | AO174: 6 | AP174: 3 | AQ174: 4 | AR174: 1 | AS174: 5 | AT174: 5 | AU174: 11 | AV174: 257 | AW174: 21 | AX174: 20 | AY174: 118 | AZ174: 14 | BA174: 518 | BB174: 110 | BC174: 50 | BD174: 100 | BE174: 204 | BF174: 54
F175: 7723 | G175: PUESTO DE SALUD SOLIDARIDAD | H175: 15 | J175: 42 | K175: 39 | L175: 46 | M175: 50 | N175: 51 | O175: 49 | P175: 48 | Q175: 47 | R175: 46 | S175: 43 | T175: 41 | U175: 49 | V175: 46 | W175: 41 | X175: 42 | Y175: 41 | Z175: 42 | AA175: 41 | AB175: 42 | AC175: 38 | AD175: 197 | AE175: 224 | AF175: 211 | AG175: 204 | AH175: 178 | AI175: 164 | AJ175: 144 | AK175: 118 | AL175: 97 | AM175: 67 | AN175: 42 | AO175: 28 | AP175: 17 | AQ175: 18 | AR175: 3 | AS175: 25 | AT175: 24 | AU175: 56 | AV175: 1,284 | AW175: 107 | AX175: 98 | AY175: 590 | AZ175: 69 | BA175: 2,591 | BB175: 549 | BC175: 252 | BD175: 501 | BE175: 1,020 | BF175: 269
A176: 040301 | B176: AREQUIPA | C176: AREQUIPA | D176: CARAVELI | E176: CARAVELI | I176: 4,397 | J176: 86 | K176: 70 | L176: 61 | M176: 69 | N176: 82 | O176: 81 | P176: 76 | Q176: 72 | R176: 57 | S176: 56 | T176: 66 | U176: 46 | V176: 72 | W176: 64 | X176: 59 | Y176: 70 | Z176: 83 | AA176: 71 | AB176: 88 | AC176: 81 | AD176: 384 | AE176: 417 | AF176: 348 | AG176: 309 | AH176: 253 | AI176: 261 | AJ176: 253 | AK176: 192 | AL176: 159 | AM176: 129 | AN176: 85 | AO176: 68 | AP176: 62 | AQ176: 67 | AR176: 6 | AS176: 51 | AT176: 43 | AU176: 106 | AV176: 2,194 | AW176: 151 | AX176: 196 | AY176: 1,008 | AZ176: 123 | BA176: 4,397 | BB176: 822 | BC176: 419 | BD176: 970 | BE176: 1,616 | BF176: 570
F177: 1351 | G177: CENTRO DE SALUD CARAVELI | H177: 100 | J177: 86 | K177: 70 | L177: 61 | M177: 69 | N177: 82 | O177: 81 | P177: 76 | Q177: 72 | R177: 57 | S177: 56 | T177: 66 | U177: 46 | V177: 72 | W177: 64 | X177: 59 | Y177: 70 | Z177: 83 | AA177: 71 | AB177: 88 | AC177: 81 | AD177: 384 | AE177: 417 | AF177: 348 | AG177: 309 | AH177: 253 | AI177: 261 | AJ177: 253 | AK177: 192 | AL177: 159 | AM177: 129 | AN177: 85 | AO177: 68 | AP177: 62 | AQ177: 67 | AR177: 6 | AS177: 51 | AT177: 43 | AU177: 106 | AV177: 2,194 | AW177: 151 | AX177: 196 | AY177: 1,008 | AZ177: 123 | BA177: 4,397 | BB177: 822 | BC177: 419 | BD177: 970 | BE177: 1,616 | BF177: 570
A178: 040302 | B178: AREQUIPA | C178: AREQUIPA | D178: CARAVELI | E178: ACARI | I178: 5,452 | J178: 72 | K178: 58 | L178: 58 | M178: 45 | N178: 62 | O178: 80 | P178: 73 | Q178: 94 | R178: 71 | S178: 93 | T178: 101 | U178: 102 | V178: 115 | W178: 111 | X178: 92 | Y178: 102 | Z178: 109 | AA178: 106 | AB178: 85 | AC178: 68 | AD178: 367 | AE178: 356 | AF178: 322 | AG178: 374 | AH178: 343 | AI178: 355 | AJ178: 337 | AK178: 296 | AL178: 262 | AM178: 212 | AN178: 184 | AO178: 157 | AP178: 81 | AQ178: 109 | AR178: 3 | AS178: 38 | AT178: 33 | AU178: 83 | AV178: 2,761 | AW178: 263 | AX178: 236 | AY178: 1,112 | AZ178: 160 | BA178: 5,452 | BB178: 909 | BC178: 635 | BD178: 876 | BE178: 2,027 | BF178: 1,005
F179: 1352 | G179: CENTRO DE SALUD ACARI | H179: 100 | J179: 72 | K179: 58 | L179: 58 | M179: 45 | N179: 62 | O179: 80 | P179: 73 | Q179: 94 | R179: 71 | S179: 93 | T179: 101 | U179: 102 | V179: 115 | W179: 111 | X179: 92 | Y179: 102 | Z179: 109 | AA179: 106 | AB179: 85 | AC179: 68 | AD179: 367 | AE179: 356 | AF179: 322 | AG179: 374 | AH179: 343 | AI179: 355 | AJ179: 337 | AK179: 296 | AL179: 262 | AM179: 212 | AN179: 184 | AO179: 157 | AP179: 81 | AQ179: 109 | AR179: 3 | AS179: 38 | AT179: 33 | AU179: 83 | AV179: 2,761 | AW179: 263 | AX179: 236 | AY179: 1,112 | AZ179: 160 | BA179: 5,452 | BB179: 909 | BC179: 635 | BD179: 876 | BE179: 2,027 | BF179: 1,005
A180: 040303 | B180: AREQUIPA | C180: AREQUIPA | D180: CARAVELI | E180: ATICO | I180: 6,301 | J180: 75 | K180: 59 | L180: 70 | M180: 73 | N180: 80 | O180: 88 | P180: 116 | Q180: 91 | R180: 97 | S180: 97 | T180: 111 | U180: 117 | V180: 98 | W180: 103 | X180: 120 | Y180: 106 | Z180: 114 | AA180: 101 | AB180: 104 | AC180: 85 | AD180: 400 | AE180: 496 | AF180: 553 | AG180: 529 | AH180: 467 | AI180: 465 | AJ180: 401 | AK180: 321 | AL180: 233 | AM180: 208 | AN180: 121 | AO180: 99 | AP180: 61 | AQ180: 42 | AR180: 5 | AS180: 42 | AT180: 32 | AU180: 85 | AV180: 3,058 | AW180: 259 | AX180: 244 | AY180: 1,439 | AZ180: 174 | BA180: 6,301 | BB180: 1,074 | BC180: 642 | BD180: 1,085 | BE180: 2,736 | BF180: 764
F181: 1349 | G181: CENTRO DE SALUD ATICO | H181: 100 | J181: 75 | K181: 59 | L181: 70 | M181: 73 | N181: 80 | O181: 88 | P181: 116 | Q181: 91 | R181: 97 | S181: 97 | T181: 111 | U181: 117 | V181: 98 | W181: 103 | X181: 120 | Y181: 106 | Z181: 114 | AA181: 101 | AB181: 104 | AC181: 85 | AD181: 400 | AE181: 496 | AF181: 553 | AG181: 529 | AH181: 467 | AI181: 465 | AJ181: 401 | AK181: 321 | AL181: 233 | AM181: 208 | AN181: 121 | AO181: 99 | AP181: 61 | AQ181: 42 | AR181: 5 | AS181: 42 | AT181: 32 | AU181: 85 | AV181: 3,058 | AW181: 259 | AX181: 244 | AY181: 1,439 | AZ181: 174 | BA181: 6,301 | BB181: 1,074 | BC181: 642 | BD181: 1,085 | BE181: 2,736 | BF181: 764
A182: 040304 | B182: AREQUIPA | C182: AREQUIPA | D182: CARAVELI | E182: ATIQUIPA | I182: 476 | J182: 13 | K182: 7 | L182: 11 | M182: 11 | N182: 14 | O182: 18 | P182: 3 | Q182: 5 | R182: 7 | S182: 8 | T182: 6 | U182: 6 | V182: 8 | W182: 9 | X182: 4 | Y182: 6 | Z182: 7 | AA182: 5 | AB182: 7 | AC182: 4 | AD182: 28 | AE182: 46 | AF182: 38 | AG182: 32 | AH182: 36 | AI182: 19 | AJ182: 25 | AK182: 25 | AL182: 23 | AM182: 11 | AN182: 15 | AO182: 8 | AP182: 5 | AQ182: 6 | AR182: 1 | AS182: 8 | AT182: 4 | AU182: 14 | AV182: 227 | AW182: 18 | AX182: 16 | AY182: 94 | AZ182: 16 | BA182: 476 | BB182: 109 | BC182: 39 | BD182: 85 | BE182: 175 | BF182: 68
F183: 1369 | G183: PUESTO DE SALUD ATIQUIPA | H183: 75 | J183: 10 | K183: 5 | L183: 8 | M183: 8 | N183: 10 | O183: 13 | P183: 2 | Q183: 4 | R183: 5 | S183: 6 | T183: 4 | U183: 4 | V183: 6 | W183: 7 | X183: 3 | Y183: 4 | Z183: 5 | AA183: 4 | AB183: 5 | AC183: 3 | AD183: 21 | AE183: 34 | AF183: 28 | AG183: 24 | AH183: 27 | AI183: 14 | AJ183: 19 | AK183: 19 | AL183: 17 | AM183: 8 | AN183: 11 | AO183: 6 | AP183: 4 | AQ183: 4 | AR183: 1 | AS183: 6 | AT183: 3 | AU183: 10 | AV183: 170 | AW183: 13 | AX183: 12 | AY183: 70 | AZ183: 12 | BA183: 357 | BB183: 82 | BC183: 29 | BD183: 64 | BE183: 131 | BF183: 51
F184: 1368 | G184: PUESTO DE SALUD SANTA ROSA | H184: 25 | J184: 3 | K184: 2 | L184: 3 | M184: 3 | N184: 4 | O184: 5 | P184: 1 | Q184: 1 | R184: 2 | S184: 2 | T184: 2 | U184: 2 | V184: 2 | W184: 2 | X184: 1 | Y184: 2 | Z184: 2 | AA184: 1 | AB184: 2 | AC184: 1 | AD184: 7 | AE184: 12 | AF184: 10 | AG184: 8 | AH184: 9 | AI184: 5 | AJ184: 6 | AK184: 6 | AL184: 6 | AM184: 3 | AN184: 4 | AO184: 2 | AP184: 1 | AQ184: 2 | AR184: 0 | AS184: 2 | AT184: 1 | AU184: 4 | AV184: 57 | AW184: 5 | AX184: 4 | AY184: 24 | AZ184: 4 | BA184: 119 | BB184: 27 | BC184: 10 | BD184: 21 | BE184: 44 | BF184: 17
A185: 040305 | B185: AREQUIPA | C185: AREQUIPA | D185: CARAVELI | E185: BELLA UNION | I185: 2,935 | J185: 50 | K185: 39 | L185: 38 | M185: 39 | N185: 36 | O185: 31 | P185: 50 | Q185: 42 | R185: 44 | S185: 40 | T185: 27 | U185: 41 | V185: 51 | W185: 38 | X185: 35 | Y185: 43 | Z185: 61 | AA185: 42 | AB185: 45 | AC185: 46 | AD185: 199 | AE185: 242 | AF185: 220 | AG185: 244 | AH185: 226 | AI185: 222 | AJ185: 168 | AK185: 151 | AL185: 125 | AM185: 86 | AN185: 81 | AO185: 61 | AP185: 36 | AQ185: 36 | AR185: 7 | AS185: 26 | AT185: 32 | AU185: 69 | AV185: 1,422 | AW185: 91 | AX185: 123 | AY185: 670 | AZ185: 108 | BA185: 2,935 | BB185: 477 | BC185: 270 | BD185: 532 | BE185: 1,231 | BF185: 425
F186: 1374 | G186: PUESTO DE SALUD BELLA UNION | H186: 100 | J186: 50 | K186: 39 | L186: 38 | M186: 39 | N186: 36 | O186: 31 | P186: 50 | Q186: 42 | R186: 44 | S186: 40 | T186: 27 | U186: 41 | V186: 51 | W186: 38 | X186: 35 | Y186: 43 | Z186: 61 | AA186: 42 | AB186: 45 | AC186: 46 | AD186: 199 | AE186: 242 | AF186: 220 | AG186: 244 | AH186: 226 | AI186: 222 | AJ186: 168 | AK186: 151 | AL186: 125 | AM186: 86 | AN186: 81 | AO186: 61 | AP186: 36 | AQ186: 36 | AR186: 7 | AS186: 26 | AT186: 32 | AU186: 69 | AV186: 1,422 | AW186: 91 | AX186: 123 | AY186: 670 | AZ186: 108 | BA186: 2,935 | BB186: 477 | BC186: 270 | BD186: 532 | BE186: 1,231 | BF186: 425
A187: 040306 | B187: AREQUIPA | C187: AREQUIPA | D187: CARAVELI | E187: CAHUACHO | I187: 637 | J187: 23 | K187: 69 | L187: 17 | M187: 5 | N187: 7 | O187: 11 | P187: 4 | Q187: 4 | R187: 11 | S187: 8 | T187: 5 | U187: 8 | V187: 11 | W187: 10 | X187: 10 | Y187: 10 | Z187: 7 | AA187: 9 | AB187: 9 | AC187: 10 | AD187: 30 | AE187: 40 | AF187: 33 | AG187: 32 | AH187: 37 | AI187: 30 | AJ187: 33 | AK187: 28 | AL187: 22 | AM187: 24 | AN187: 22 | AO187: 18 | AP187: 17 | AQ187: 23 | AR187: 0 | AS187: 24 | AT187: 27 | AU187: 59 | AV187: 295 | AW187: 23 | AX187: 23 | AY187: 88 | AZ187: 132 | BA187: 637 | BB187: 172 | BC187: 57 | BD187: 89 | BE187: 193 | BF187: 126
F188: 1377 | G188: PUESTO DE SALUD CAHUACHO | H188: 31 | J188: 7 | K188: 21 | L188: 5 | M188: 2 | N188: 2 | O188: 3 | P188: 1 | Q188: 1 | R188: 3 | S188: 2 | T188: 2 | U188: 2 | V188: 3 | W188: 3 | X188: 3 | Y188: 3 | Z188: 2 | AA188: 3 | AB188: 3 | AC188: 3 | AD188: 9 | AE188: 12 | AF188: 10 | AG188: 10 | AH188: 11 | AI188: 9 | AJ188: 10 | AK188: 9 | AL188: 7 | AM188: 7 | AN188: 7 | AO188: 6 | AP188: 5 | AQ188: 7 | AR188: 0 | AS188: 7 | AT188: 8 | AU188: 18 | AV188: 91 | AW188: 7 | AX188: 7 | AY188: 27 | AZ188: 41 | BA188: 197 | BB188: 53 | BC188: 18 | BD188: 28 | BE188: 60 | BF188: 39
F189: 1338 | G189: PUESTO DE SALUD SONDOR - CARAVELI | H189: 33 | J189: 8 | K189: 23 | L189: 6 | M189: 2 | N189: 2 | O189: 4 | P189: 1 | Q189: 1 | R189: 4 | S189: 3 | T189: 2 | U189: 3 | V189: 4 | W189: 3 | X189: 3 | Y189: 3 | Z189: 2 | AA189: 3 | AB189: 3 | AC189: 3 | AD189: 10 | AE189: 13 | AF189: 11 | AG189: 11 | AH189: 12 | AI189: 10 | AJ189: 11 | AK189: 9 | AL189: 7 | AM189: 8 | AN189: 7 | AO189: 6 | AP189: 6 | AQ189: 8 | AR189: 0 | AS189: 8 | AT189: 9 | AU189: 19 | AV189: 97 | AW189: 8 | AX189: 8 | AY189: 29 | AZ189: 44 | BA189: 210 | BB189: 57 | BC189: 19 | BD189: 29 | BE189: 64 | BF189: 42
F190: 1379 | G190: PUESTO DE SALUD AYROCA | H190: 36 | J190: 8 | K190: 25 | L190: 6 | M190: 1 | N190: 3 | O190: 4 | P190: 2 | Q190: 2 | R190: 4 | S190: 3 | T190: 1 | U190: 3 | V190: 4 | W190: 4 | X190: 4 | Y190: 4 | Z190: 3 | AA190: 3 | AB190: 3 | AC190: 4 | AD190: 11 | AE190: 15 | AF190: 12 | AG190: 11 | AH190: 14 | AI190: 11 | AJ190: 12 | AK190: 10 | AL190: 8 | AM190: 9 | AN190: 8 | AO190: 6 | AP190: 6 | AQ190: 8 | AR190: 0 | AS190: 9 | AT190: 10 | AU190: 22 | AV190: 107 | AW190: 8 | AX190: 8 | AY190: 32 | AZ190: 47 | BA190: 230 | BB190: 62 | BC190: 20 | BD190: 32 | BE190: 69 | BF190: 45
A191: 040307 | B191: AREQUIPA | C191: AREQUIPA | D191: CARAVELI | E191: CHALA | I191: 10,852 | J191: 179 | K191: 153 | L191: 203 | M191: 171 | N191: 161 | O191: 154 | P191: 228 | Q191: 233 | R191: 267 | S191: 226 | T191: 224 | U191: 209 | V191: 190 | W191: 192 | X191: 191 | Y191: 205 | Z191: 210 | AA191: 190 | AB191: 157 | AC191: 163 | AD191: 742 | AE191: 845 | AF191: 940 | AG191: 997 | AH191: 795 | AI191: 689 | AJ191: 550 | AK191: 436 | AL191: 337 | AM191: 253 | AN191: 151 | AO191: 87 | AP191: 58 | AQ191: 66 | AR191: 14 | AS191: 108 | AT191: 104 | AU191: 249 | AV191: 5,382 | AW191: 463 | AX191: 465 | AY191: 2,655 | AZ191: 359 | BA191: 10,852 | BB191: 2,408 | BC191: 1,178 | BD191: 1,907 | BE191: 4,407 | BF191: 952
F192: 1350 | G192: CENTRO DE SALUD CHALA | H192: 100 | J192: 179 | K192: 153 | L192: 203 | M192: 171 | N192: 161 | O192: 154 | P192: 228 | Q192: 233 | R192: 267 | S192: 226 | T192: 224 | U192: 209 | V192: 190 | W192: 192 | X192: 191 | Y192: 205 | Z192: 210 | AA192: 190 | AB192: 157 | AC192: 163 | AD192: 742 | AE192: 845 | AF192: 940 | AG192: 997 | AH192: 795 | AI192: 689 | AJ192: 550 | AK192: 436 | AL192: 337 | AM192: 253 | AN192: 151 | AO192: 87 | AP192: 58 | AQ192: 66 | AR192: 14 | AS192: 108 | AT192: 104 | AU192: 249 | AV192: 5,382 | AW192: 463 | AX192: 465 | AY192: 2,655 | AZ192: 359 | BA192: 10,852 | BB192: 2,408 | BC192: 1,178 | BD192: 1,907 | BE192: 4,407 | BF192: 952
A193: 040308 | B193: AREQUIPA | C193: AREQUIPA | D193: CARAVELI | E193: CHAPARRA | I193: 3,533 | J193: 55 | K193: 40 | L193: 65 | M193: 77 | N193: 50 | O193: 50 | P193: 49 | Q193: 49 | R193: 44 | S193: 55 | T193: 51 | U193: 76 | V193: 66 | W193: 61 | X193: 63 | Y193: 65 | Z193: 58 | AA193: 61 | AB193: 45 | AC193: 40 | AD193: 185 | AE193: 205 | AF193: 321 | AG193: 342 | AH193: 317 | AI193: 256 | AJ193: 214 | AK193: 208 | AL193: 109 | AM193: 88 | AN193: 76 | AO193: 28 | AP193: 30 | AQ193: 34 | AR193: 2 | AS193: 26 | AT193: 27 | AU193: 64 | AV193: 1,545 | AW193: 164 | AX193: 152 | AY193: 659 | AZ193: 81 | BA193: 3,533 | BB193: 661 | BC193: 374 | BD193: 475 | BE193: 1,658 | BF193: 365
F194: 1370 | G194: PUESTO DE SALUD CHAPARRA | H194: 80 | J194: 44 | K194: 32 | L194: 52 | M194: 62 | N194: 40 | O194: 40 | P194: 39 | Q194: 39 | R194: 35 | S194: 44 | T194: 41 | U194: 61 | V194: 53 | W194: 49 | X194: 50 | Y194: 52 | Z194: 46 | AA194: 49 | AB194: 36 | AC194: 32 | AD194: 148 | AE194: 164 | AF194: 257 | AG194: 274 | AH194: 254 | AI194: 205 | AJ194: 171 | AK194: 166 | AL194: 87 | AM194: 70 | AN194: 61 | AO194: 22 | AP194: 24 | AQ194: 27 | AR194: 2 | AS194: 21 | AT194: 22 | AU194: 51 | AV194: 1,236 | AW194: 131 | AX194: 122 | AY194: 527 | AZ194: 65 | BA194: 2,826 | BB194: 529 | BC194: 299 | BD194: 380 | BE194: 1,326 | BF194: 292
F195: 1371 | G195: PUESTO DE SALUD ACHANIZO | H195: 20 | J195: 11 | K195: 8 | L195: 13 | M195: 15 | N195: 10 | O195: 10 | P195: 10 | Q195: 10 | R195: 9 | S195: 11 | T195: 10 | U195: 15 | V195: 13 | W195: 12 | X195: 13 | Y195: 13 | Z195: 12 | AA195: 12 | AB195: 9 | AC195: 8 | AD195: 37 | AE195: 41 | AF195: 64 | AG195: 68 | AH195: 63 | AI195: 51 | AJ195: 43 | AK195: 42 | AL195: 22 | AM195: 18 | AN195: 15 | AO195: 6 | AP195: 6 | AQ195: 7 | AR195: 0 | AS195: 5 | AT195: 5 | AU195: 13 | AV195: 309 | AW195: 33 | AX195: 30 | AY195: 132 | AZ195: 16 | BA195: 707 | BB195: 132 | BC195: 75 | BD195: 95 | BE195: 332 | BF195: 73
A196: 040309 | B196: AREQUIPA | C196: AREQUIPA | D196: CARAVELI | E196: HUANUHUANU | I196: 3,265 | J196: 43 | K196: 45 | L196: 51 | M196: 30 | N196: 42 | O196: 49 | P196: 39 | Q196: 50 | R196: 43 | S196: 49 | T196: 44 | U196: 64 | V196: 67 | W196: 78 | X196: 70 | Y196: 54 | Z196: 60 | AA196: 48 | AB196: 47 | AC196: 43 | AD196: 173 | AE196: 258 | AF196: 354 | AG196: 338 | AH196: 250 | AI196: 255 | AJ196: 206 | AK196: 146 | AL196: 116 | AM196: 68 | AN196: 34 | AO196: 11 | AP196: 14 | AQ196: 26 | AR196: 2 | AS196: 17 | AT196: 18 | AU196: 47 | AV196: 1,320 | AW196: 160 | AX196: 109 | AY196: 614 | AZ196: 101 | BA196: 3,265 | BB196: 549 | BC196: 377 | BD196: 521 | BE196: 1,549 | BF196: 269
F197: 25072 | G197: PUESTO DE SALUD MOLLEHUACA | H197: 20 | J197: 9 | K197: 9 | L197: 10 | M197: 6 | N197: 8 | O197: 10 | P197: 8 | Q197: 10 | R197: 9 | S197: 10 | T197: 9 | U197: 13 | V197: 13 | W197: 16 | X197: 14 | Y197: 11 | Z197: 12 | AA197: 10 | AB197: 9 | AC197: 9 | AD197: 35 | AE197: 52 | AF197: 71 | AG197: 68 | AH197: 50 | AI197: 51 | AJ197: 41 | AK197: 29 | AL197: 23 | AM197: 14 | AN197: 7 | AO197: 2 | AP197: 3 | AQ197: 5 | AR197: 0 | AS197: 3 | AT197: 4 | AU197: 9 | AV197: 264 | AW197: 32 | AX197: 22 | AY197: 123 | AZ197: 20 | BA197: 653 | BB197: 110 | BC197: 75 | BD197: 104 | BE197: 310 | BF197: 54
F198: 1367 | G198: PUESTO DE SALUD TOCOTA | H198: 80 | J198: 34 | K198: 36 | L198: 41 | M198: 24 | N198: 34 | O198: 39 | P198: 31 | Q198: 40 | R198: 34 | S198: 39 | T198: 35 | U198: 51 | V198: 54 | W198: 62 | X198: 56 | Y198: 43 | Z198: 48 | AA198: 38 | AB198: 38 | AC198: 34 | AD198: 138 | AE198: 206 | AF198: 283 | AG198: 270 | AH198: 200 | AI198: 204 | AJ198: 165 | AK198: 117 | AL198: 93 | AM198: 54 | AN198: 27 | AO198: 9 | AP198: 11 | AQ198: 21 | AR198: 2 | AS198: 14 | AT198: 14 | AU198: 38 | AV198: 1,056 | AW198: 128 | AX198: 87 | AY198: 491 | AZ198: 81 | BA198: 2,612 | BB198: 439 | BC198: 302 | BD198: 417 | BE198: 1,239 | BF198: 215
A199: 040310 | B199: AREQUIPA | C199: AREQUIPA | D199: CARAVELI | E199: JAQUI | I199: 1,604 | J199: 16 | K199: 22 | L199: 29 | M199: 20 | N199: 22 | O199: 17 | P199: 25 | Q199: 25 | R199: 25 | S199: 19 | T199: 22 | U199: 42 | V199: 40 | W199: 27 | X199: 26 | Y199: 33 | Z199: 29 | AA199: 27 | AB199: 26 | AC199: 19 | AD199: 92 | AE199: 129 | AF199: 105 | AG199: 89 | AH199: 99 | AI199: 107 | AJ199: 104 | AK199: 98 | AL199: 87 | AM199: 72 | AN199: 40 | AO199: 26 | AP199: 22 | AQ199: 23 | AR199: 0 | AS199: 12 | AT199: 5 | AU199: 21 | AV199: 766 | AW199: 76 | AX199: 68 | AY199: 294 | AZ199: 46 | BA199: 1,604 | BB199: 284 | BC199: 182 | BD199: 266 | BE199: 602 | BF199: 270
F200: 1373 | G200: PUESTO DE SALUD JAQUI | H200: 100 | J200: 16 | K200: 22 | L200: 29 | M200: 20 | N200: 22 | O200: 17 | P200: 25 | Q200: 25 | R200: 25 | S200: 19 | T200: 22 | U200: 42 | V200: 40 | W200: 27 | X200: 26 | Y200: 33 | Z200: 29 | AA200: 27 | AB200: 26 | AC200: 19 | AD200: 92 | AE200: 129 | AF200: 105 | AG200: 89 | AH200: 99 | AI200: 107 | AJ200: 104 | AK200: 98 | AL200: 87 | AM200: 72 | AN200: 40 | AO200: 26 | AP200: 22 | AQ200: 23 | AR200: 0 | AS200: 12 | AT200: 5 | AU200: 21 | AV200: 766 | AW200: 76 | AX200: 68 | AY200: 294 | AZ200: 46 | BA200: 1,604 | BB200: 284 | BC200: 182 | BD200: 266 | BE200: 602 | BF200: 270
A201: 040311 | B201: AREQUIPA | C201: AREQUIPA | D201: CARAVELI | E201: LOMAS | I201: 1,634 | J201: 29 | K201: 20 | L201: 20 | M201: 11 | N201: 27 | O201: 28 | P201: 24 | Q201: 20 | R201: 23 | S201: 32 | T201: 24 | U201: 27 | V201: 20 | W201: 26 | X201: 20 | Y201: 23 | Z201: 24 | AA201: 20 | AB201: 18 | AC201: 16 | AD201: 117 | AE201: 136 | AF201: 139 | AG201: 135 | AH201: 130 | AI201: 127 | AJ201: 96 | AK201: 94 | AL201: 82 | AM201: 49 | AN201: 34 | AO201: 24 | AP201: 10 | AQ201: 9 | AR201: 2 | AS201: 16 | AT201: 13 | AU201: 35 | AV201: 766 | AW201: 54 | AX201: 51 | AY201: 362 | AZ201: 38 | BA201: 1,634 | BB201: 285 | BC201: 133 | BD201: 287 | BE201: 721 | BF201: 208
F202: 1376 | G202: PUESTO DE SALUD LOMAS | H202: 100 | J202: 29 | K202: 20 | L202: 20 | M202: 11 | N202: 27 | O202: 28 | P202: 24 | Q202: 20 | R202: 23 | S202: 32 | T202: 24 | U202: 27 | V202: 20 | W202: 26 | X202: 20 | Y202: 23 | Z202: 24 | AA202: 20 | AB202: 18 | AC202: 16 | AD202: 117 | AE202: 136 | AF202: 139 | AG202: 135 | AH202: 130 | AI202: 127 | AJ202: 96 | AK202: 94 | AL202: 82 | AM202: 49 | AN202: 34 | AO202: 24 | AP202: 10 | AQ202: 9 | AR202: 2 | AS202: 16 | AT202: 13 | AU202: 35 | AV202: 766 | AW202: 54 | AX202: 51 | AY202: 362 | AZ202: 38 | BA202: 1,634 | BB202: 285 | BC202: 133 | BD202: 287 | BE202: 721 | BF202: 208
A203: 040312 | B203: AREQUIPA | C203: AREQUIPA | D203: CARAVELI | E203: QUICACHA | I203: 1,938 | J203: 27 | K203: 23 | L203: 45 | M203: 15 | N203: 27 | O203: 28 | P203: 36 | Q203: 32 | R203: 29 | S203: 34 | T203: 40 | U203: 43 | V203: 39 | W203: 44 | X203: 31 | Y203: 43 | Z203: 41 | AA203: 40 | AB203: 29 | AC203: 34 | AD203: 149 | AE203: 134 | AF203: 136 | AG203: 140 | AH203: 112 | AI203: 117 | AJ203: 101 | AK203: 93 | AL203: 75 | AM203: 64 | AN203: 42 | AO203: 31 | AP203: 23 | AQ203: 41 | AR203: 0 | AS203: 12 | AT203: 14 | AU203: 32 | AV203: 946 | AW203: 114 | AX203: 90 | AY203: 369 | AZ203: 58 | BA203: 1,938 | BB203: 379 | BC203: 238 | BD203: 346 | BE203: 699 | BF203: 276
... 173 more rows

Sheet RED AREQUIPA CAYLLOMA
A5: * Actualizado con datos INEI
A6: POBLACION 2023 | J6: POBLACION TOTAL, POR EDADS SIMPLES | AD6: POBLACIÓN TOTAL, POR GRUPOS QUINQUEN ALES DE EDAD | AR6: EDADES ESPECIALES | AU6: NACIMIENTOS VIVOS | AV6: POBLACION FEMENINA TOTAL | AW6: POBLACION FEMENINA | AZ6: GESTANTES ESPERADAS
A7: UBIGEO | B7: DIRESA | C7: DEPARTAMENTO | D7: PROVINCIA | E7: DISTRITO | I7: Total | J7: 0 | K7: 1 | L7: 2 | M7: 3 | N7: 4 | O7: 5 | P7: 6 | Q7: 7 | R7: 8 | S7: 9 | T7: 10 | U7: 11 | V7: 12 | W7: 13 | X7: 14 | Y7: 15 | Z7: 16 | AA7: 17 | AB7: 18 | AC7: 19 | AD7: 20-24 | AE7: 25-29 | AF7: 30-34 | AG7: 35-39 | AH7: 40-44 | AI7: 45-49 | AJ7: 50-54 | AK7: 55-59 | AL7: 60-64 | AM7: 65-69 | AN7: 70-74 | AO7: 75-79 | AP7: 80-84 | AQ7: 85-+ | AR7: 28 DIAS | AS7: 0-5 MESES | AT7: 6-11 MESES | AW7: 10 - 14 | AX7: 15- 19 | AY7: 20- 49 | BA7: TOTAL | BB7: NIÑO | BC7: Adolescente | BD7: Joven | BE7: Adulto | BF7: Adulto Mayor
A8: 000000 | B8: PERU | C8: PERU | D8: PERU | E8: PERU | H8: PORCENTAJE | I8: 33,833,230 | J8: 474,467 | K8: 484,109 | L8: 518,561 | M8: 544,106 | N8: 557,718 | O8: 562,770 | P8: 592,265 | Q8: 608,107 | R8: 605,937 | S8: 592,551 | T8: 587,239 | U8: 590,557 | V8: 603,452 | W8: 599,440 | X8: 558,532 | Y8: 568,115 | Z8: 583,829 | AA8: 572,115 | AB8: 542,767 | AC8: 523,513 | AD8: 2,667,032 | AE8: 2,886,747 | AF8: 2,697,022 | AG8: 2,496,520 | AH8: 2,292,724 | AI8: 2,070,511 | AJ8: 1,771,512 | AK8: 1,526,063 | AL8: 1,242,426 | AM8: 992,073 | AN8: 726,744 | AO8: 526,092 | AP8: 343,282 | AQ8: 324,332 | AR8: 29,817 | AS8: 258,139 | AT8: 265,715 | AU8: 565,627 | AV8: 16,932,068 | AW8: 1,444,835 | AX8: 1,373,837 | AY8: 7,536,044 | AZ8: 863,618 | BA8: 33,833,230 | BB8: 6,718,387 | BC8: 3,485,483 | BD8: 6,620,059 | BE8: 12,854,352 | BF8: 4,154,949
A9: 040101 | B9: AREQUIPA | C9: AREQUIPA | D9: AREQUIPA | E9: AREQUIPA | G9: AREQUIPA | I9: 56,369 | J9: 481 | K9: 488 | L9: 671 | M9: 745 | N9: 833 | O9: 864 | P9: 638 | Q9: 688 | R9: 689 | S9: 635 | T9: 631 | U9: 642 | V9: 648 | W9: 630 | X9: 613 | Y9: 616 | Z9: 603 | AA9: 596 | AB9: 570 | AC9: 595 | AD9: 3,347 | AE9: 3,683 | AF9: 3,992 | AG9: 3,715 | AH9: 3,802 | AI9: 4,014 | AJ9: 3,954 | AK9: 3,801 | AL9: 3,484 | AM9: 2,987 | AN9: 2,342 | AO9: 1,744 | AP9: 1,260 | AQ9: 1,368 | AR9: 58 | AS9: 363 | AT9: 243 | AU9: 684 | AV9: 28,622 | AW9: 1,502 | AX9: 1,445 | AY9: 11,175 | AZ9: 1,749 | BA9: 56,369 | BB9: 8,005 | BC9: 3,706 | BD9: 8,195 | BE9: 23,278 | BF9: 13,185
G11: RED AREQUIPA CAYLLOMA | I11: =SUM(J11:AQ11) -> 1,302,048 | J11: =+J13+J24+J33+J40+J47+J52+J57+J61+J67+J73+J79+J89+J100+J108+J112+J117+J124+J130+J136+J143+J149+J160+J169+J175+J181+J190+J197+J204 -> 14,451 | K11: =+K13+K24+K33+K40+K47+K52+K57+K61+K67+K73+K79+K89+K100+K108+K112+K117+K124+K130+K136+K143+K149+K160+K169+K175+K181+K190+K197+K204 -> 14,645 | L11: 17,385 | M11: 18,486 | N11: 19,057 | O11: 19,512 | P11: 22,671 | Q11: 22,962 | R11: 22,619 | S11: 21,646 | T11: 20,889 | U11: 21,040 | V11: 21,668 | W11: 20,847 | X11: 19,288 | Y11: 19,157 | Z11: 19,261 | AA11: 19,208 | AB11: 19,199 | AC11: 19,498 | AD11: 101,227 | AE11: 115,183 | AF11: 114,596 | AG11: 105,075 | AH11: 97,112 | AI11: 86,758 | AJ11: 71,336 | AK11: 59,429 | AL11: 47,147 | AM11: 38,168 | AN11: 27,784 | AO11: 19,838 | AP11: 12,582 | AQ11: 12,324 | AR11: 938 | AS11: 8,858 | AT11: 8,374 | AU11: 19,553 | AV11: 652,965 | AW11: 50,868 | AX11: 47,652 | AY11: 308,246 | AZ11: 32,024 | BA11: 1,302,053 | BB11: 235,365 | BC11: 119,432 | BD11: 255,106 | BE11: 534,311 | BF11: 157,845
A13: 040501 | B13: AREQUIPA | C13: AREQUIPA | D13: CAYLLOMA | E13: CHIVAY | G13: MR CHIVAY | I13: =SUM(J13:AQ13) -> 11,985 | J13: =SUM(J14:J22) -> 169 | K13: =SUM(K14:K22) -> 122 | L13: 152 | M13: 139 | N13: 165 | O13: 194 | P13: 167 | Q13: 179 | R13: 166 | S13: 168 | T13: 165 | U13: 176 | V13: 204 | W13: 178 | X13: 169 | Y13: 193 | Z13: 204 | AA13: 202 | AB13: 185 | AC13: 193 | AD13: 982 | AE13: 1,031 | AF13: 940 | AG13: 851 | AH13: 805 | AI13: 745 | AJ13: 605 | AK13: 618 | AL13: 508 | AM13: 416 | AN13: 328 | AO13: 282 | AP13: 182 | AQ13: 202 | AR13: 8 | AS13: 83 | AT13: 62 | AU13: 188 | AV13: 5,884 | AW13: 427 | AX13: 467 | AY13: 2,569 | AZ13: 251 | BA13: 11,986 | BB13: 1,962 | BC13: 1,149 | BD13: 2,392 | BE13: 4,565 | BF13: 1,918
F14: 1419 | G14: CENTRO DE SALUD CHIVAY | H14: 90 | J14: 76 | K14: 50 | L14: 59 | M14: 67 | N14: 96 | O14: 117 | P14: 94 | Q14: 99 | R14: 100 | S14: 100 | T14: 96 | U14: 104 | V14: 116 | W14: 101 | X14: 96 | Y14: 111 | Z14: 113 | AA14: 106 | AB14: 107 | AC14: 93 | AD14: 516 | AE14: 490 | AF14: 445 | AG14: 380 | AH14: 315 | AI14: 283 | AJ14: 220 | AK14: 247 | AL14: 175 | AM14: 121 | AN14: 103 | AO14: 95 | AP14: 48 | AQ14: 59 | AR14: 2 | AS14: 38 | AT14: 21 | AU14: 82 | AV14: 2,693 | AW14: 244 | AX14: 255 | AY14: 1,194 | AZ14: 93 | BA14: 5,398 | BB14: 1,059 | BC14: 643 | BD14: 1,205 | BE14: 1,889 | BF14: 601
F15: 1423 | G15: PUESTO DE SALUD CANOCOTA | H15: 10 | J15: 8 | K15: 6 | L15: 7 | M15: 8 | N15: 11 | O15: 13 | P15: 10 | Q15: 11 | R15: 11 | S15: 11 | T15: 11 | U15: 12 | V15: 13 | W15: 11 | X15: 11 | Y15: 12 | Z15: 13 | AA15: 12 | AB15: 12 | AC15: 10 | AD15: 57 | AE15: 54 | AF15: 49 | AG15: 42 | AH15: 35 | AI15: 31 | AJ15: 25 | AK15: 27 | AL15: 19 | AM15: 14 | AN15: 11 | AO15: 11 | AP15: 5 | AQ15: 7 | AR15: 0 | AS15: 4 | AT15: 2 | AU15: 9 | AV15: 299 | AW15: 27 | AX15: 28 | AY15: 133 | AZ15: 10 | BA15: 600 | BB15: 118 | BC15: 72 | BD15: 134 | BE15: 210 | BF15: 67
A16: 040502 | B16: AREQUIPA | C16: AREQUIPA | D16: CAYLLOMA | E16: ACHOMA | F16: 1429 | G16: PUESTO DE SALUD ACHOMA | H16: 100 | J16: 11 | K16: 12 | L16: 7 | M16: 6 | N16: 10 | O16: 11 | P16: 8 | Q16: 9 | R16: 7 | S16: 4 | T16: 5 | U16: 9 | V16: 11 | W16: 5 | X16: 9 | Y16: 10 | Z16: 8 | AA16: 10 | AB16: 6 | AC16: 14 | AD16: 62 | AE16: 76 | AF16: 58 | AG16: 44 | AH16: 58 | AI16: 67 | AJ16: 59 | AK16: 61 | AL16: 49 | AM16: 36 | AN16: 30 | AO16: 23 | AP16: 21 | AQ16: 21 | AR16: 0 | AS16: 4 | AT16: 6 | AU16: 12 | AV16: 393 | AW16: 18 | AX16: 24 | AY16: 160 | AZ16: 17 | BA16: 837 | BB16: 99 | BC16: 53 | BD16: 158 | BE16: 347 | BF16: 180
A17: 040506 | B17: AREQUIPA | C17: AREQUIPA | D17: CAYLLOMA | E17: COPORAQUE | F17: 1424 | G17: PUESTO DE SALUD COPORAQUE | H17: 100 | J17: 16 | K17: 11 | L17: 16 | M17: 16 | N17: 10 | O17: 13 | P17: 19 | Q17: 17 | R17: 13 | S17: 14 | T17: 6 | U17: 11 | V17: 13 | W17: 11 | X17: 8 | Y17: 15 | Z17: 15 | AA17: 13 | AB17: 13 | AC17: 15 | AD17: 67 | AE17: 92 | AF17: 79 | AG17: 98 | AH17: 117 | AI17: 76 | AJ17: 67 | AK17: 61 | AL17: 62 | AM17: 48 | AN17: 39 | AO17: 31 | AP17: 22 | AQ17: 25 | AR17: 1 | AS17: 5 | AT17: 6 | AU17: 17 | AV17: 588 | AW17: 24 | AX17: 36 | AY17: 274 | AZ17: 30 | BA17: 1,149 | BB17: 162 | BC17: 75 | BD17: 187 | BE17: 498 | BF17: 227
A18: 040509 | B18: AREQUIPA | C18: AREQUIPA | D18: CAYLLOMA | E18: ICHUPAMPA | F18: 1425 | G18: PUESTO DE SALUD ICHUPAMPA | H18: 100 | J18: 12 | K18: 6 | L18: 15 | M18: 5 | N18: 8 | O18: 4 | P18: 5 | Q18: 6 | R18: 7 | S18: 6 | T18: 7 | U18: 9 | V18: 10 | W18: 5 | X18: 8 | Y18: 5 | Z18: 8 | AA18: 9 | AB18: 3 | AC18: 7 | AD18: 35 | AE18: 46 | AF18: 54 | AG18: 44 | AH18: 39 | AI18: 39 | AJ18: 34 | AK18: 35 | AL18: 30 | AM18: 32 | AN18: 24 | AO18: 16 | AP18: 12 | AQ18: 11 | AR18: 1 | AS18: 10 | AT18: 5 | AU18: 16 | AV18: 283 | AW18: 18 | AX18: 13 | AY18: 124 | AZ18: 21 | BA18: 596 | BB18: 90 | BC18: 45 | BD18: 91 | BE18: 245 | BF18: 125
A19: 040510 | B19: AREQUIPA | C19: AREQUIPA | D19: CAYLLOMA | E19: LARI | F19: 1426 | G19: PUESTO DE SALUD LARI | H19: 100 | J19: 18 | K19: 11 | L19: 15 | M19: 11 | N19: 9 | O19: 7 | P19: 8 | Q19: 10 | R19: 5 | S19: 11 | T19: 13 | U19: 12 | V19: 9 | W19: 18 | X19: 12 | Y19: 13 | Z19: 14 | AA19: 12 | AB19: 15 | AC19: 16 | AD19: 64 | AE19: 74 | AF19: 72 | AG19: 45 | AH19: 56 | AI19: 57 | AJ19: 48 | AK19: 45 | AL19: 38 | AM19: 34 | AN19: 18 | AO19: 17 | AP19: 20 | AQ19: 13 | AR19: 1 | AS19: 9 | AT19: 11 | AU19: 22 | AV19: 389 | AW19: 32 | AX19: 33 | AY19: 159 | AZ19: 22 | BA19: 840 | BB19: 130 | BC19: 78 | BD19: 169 | BE19: 323 | BF19: 140
A20: 040512 | B20: AREQUIPA | C20: AREQUIPA | D20: CAYLLOMA | E20: MACA | F20: 1430 | G20: PUESTO DE SALUD MACA | H20: 100 | J20: 8 | K20: 6 | L20: 8 | M20: 6 | N20: 5 | O20: 5 | P20: 4 | Q20: 8 | R20: 7 | S20: 5 | T20: 5 | U20: 5 | V20: 6 | W20: 5 | X20: 7 | Y20: 9 | Z20: 7 | AA20: 11 | AB20: 5 | AC20: 12 | AD20: 46 | AE20: 50 | AF20: 40 | AG20: 59 | AH20: 56 | AI20: 56 | AJ20: 47 | AK20: 43 | AL20: 32 | AM20: 39 | AN20: 27 | AO20: 35 | AP20: 15 | AQ20: 21 | AR20: 2 | AS20: 4 | AT20: 0 | AU20: 9 | AV20: 338 | AW20: 10 | AX20: 19 | AY20: 141 | AZ20: 15 | BA20: 700 | BB20: 72 | BC20: 45 | BD20: 113 | BE20: 301 | BF20: 169
A21: 040513 | B21: AREQUIPA | C21: AREQUIPA | D21: CAYLLOMA | E21: MADRIGAL | F21: 1427 | G21: PUESTO DE SALUD MADRIGAL | H21: 100 | J21: 5 | K21: 4 | L21: 6 | M21: 6 | N21: 4 | O21: 8 | P21: 4 | Q21: 5 | R21: 5 | S21: 4 | T21: 6 | U21: 2 | V21: 8 | W21: 7 | X21: 6 | Y21: 6 | Z21: 10 | AA21: 9 | AB21: 6 | AC21: 7 | AD21: 45 | AE21: 42 | AF21: 41 | AG21: 50 | AH21: 42 | AI21: 54 | AJ21: 41 | AK21: 41 | AL21: 49 | AM21: 44 | AN21: 33 | AO21: 30 | AP21: 21 | AQ21: 27 | AR21: 0 | AS21: 3 | AT21: 2 | AU21: 5 | AV21: 337 | AW21: 17 | AX21: 23 | AY21: 123 | AZ21: 10 | BA21: 678 | BB21: 59 | BC21: 46 | BD21: 100 | BE21: 269 | BF21: 204
A22: 040519 | B22: AREQUIPA | C22: AREQUIPA | D22: CAYLLOMA | E22: YANQUE | F22: 1428 | G22: PUESTO DE SALUD YANQUE | H22: 54 | J22: 15 | K22: 16 | L22: 19 | M22: 14 | N22: 12 | O22: 16 | P22: 15 | Q22: 14 | R22: 11 | S22: 13 | T22: 16 | U22: 12 | V22: 18 | W22: 15 | X22: 12 | Y22: 12 | Z22: 16 | AA22: 20 | AB22: 18 | AC22: 19 | AD22: 90 | AE22: 107 | AF22: 102 | AG22: 89 | AH22: 87 | AI22: 82 | AJ22: 64 | AK22: 58 | AL22: 54 | AM22: 48 | AN22: 43 | AO22: 24 | AP22: 18 | AQ22: 18 | AR22: 1 | AS22: 6 | AT22: 9 | AU22: 16 | AV22: 564 | AW22: 37 | AX22: 36 | AY22: 261 | AZ22: 33 | BA22: 1,188 | BB22: 173 | BC22: 92 | BD22: 235 | BE22: 483 | BF22: 205
A24: 040504 | B24: AREQUIPA | C24: AREQUIPA | D24: CAYLLOMA | E24: CALLALLI | G24: MR CALLALLI | I24: =SUM(J24:AQ24) -> 5,203 | J24: =SUM(J25:J31) -> 71 | K24: =SUM(K25:K31) -> 66 | L24: 80 | M24: 49 | N24: 62 | O24: 71 | P24: 59 | Q24: 59 | R24: 49 | S24: 60 | T24: 55 | U24: 70 | V24: 73 | W24: 67 | X24: 63 | Y24: 69 | Z24: 81 | AA24: 80 | AB24: 79 | AC24: 72 | AD24: 407 | AE24: 424 | AF24: 392 | AG24: 360 | AH24: 358 | AI24: 375 | AJ24: 318 | AK24: 307 | AL24: 256 | AM24: 204 | AN24: 178 | AO24: 137 | AP24: 75 | AQ24: 77 | AR24: 6 | AS24: 38 | AT24: 31 | AU24: 85 | AV24: 2,454 | AW24: 150 | AX24: 172 | AY24: 1,059 | AZ24: 118 | BA24: 5,202 | BB24: 751 | BC24: 434 | BD24: 981 | BE24: 2,109 | BF24: 927
F25: 1421 | G25: CENTRO DE SALUD CALLALLI | H25: 100 | J25: 22 | K25: 19 | L25: 28 | M25: 10 | N25: 18 | O25: 19 | P25: 16 | Q25: 11 | R25: 13 | S25: 17 | T25: 13 | U25: 20 | V25: 13 | W25: 21 | X25: 11 | Y25: 13 | Z25: 17 | AA25: 12 | AB25: 14 | AC25: 13 | AD25: 92 | AE25: 115 | AF25: 101 | AG25: 90 | AH25: 77 | AI25: 102 | AJ25: 99 | AK25: 93 | AL25: 77 | AM25: 63 | AN25: 51 | AO25: 33 | AP25: 19 | AQ25: 23 | AR25: 2 | AS25: 15 | AT25: 13 | AU25: 32 | AV25: 648 | AW25: 38 | AX25: 39 | AY25: 260 | AZ25: 37 | BA25: 1,355 | BB25: 206 | BC25: 87 | BD25: 234 | BE25: 562 | BF25: 266
A26: 040515 | B26: AREQUIPA | C26: AREQUIPA | D26: CAYLLOMA | E26: SIBAYO | F26: 1435 | G26: PUESTO DE SALUD SANTA ROSA DE SIBAYO | H26: 100 | J26: 11 | K26: 11 | L26: 11 | M26: 6 | N26: 8 | O26: 10 | P26: 3 | Q26: 9 | R26: 5 | S26: 9 | T26: 6 | U26: 10 | V26: 8 | W26: 9 | X26: 7 | Y26: 13 | Z26: 12 | AA26: 11 | AB26: 9 | AC26: 9 | AD26: 58 | AE26: 57 | AF26: 57 | AG26: 51 | AH26: 53 | AI26: 60 | AJ26: 36 | AK26: 37 | AL26: 35 | AM26: 26 | AN26: 21 | AO26: 19 | AP26: 9 | AQ26: 11 | AR26: 2 | AS26: 8 | AT26: 0 | AU26: 12 | AV26: 352 | AW26: 16 | AX26: 25 | AY26: 166 | AZ26: 13 | BA26: 707 | BB26: 99 | BC26: 60 | BD26: 133 | BE26: 294 | BF26: 121
A27: 040517 | B27: AREQUIPA | C27: AREQUIPA | D27: CAYLLOMA | E27: TISCO | F27: 1438 | G27: PUESTO DE SALUD TISCO | H27: 39 | J27: 6 | K27: 6 | L27: 5 | M27: 7 | N27: 7 | O27: 8 | P27: 7 | Q27: 7 | R27: 7 | S27: 6 | T27: 6 | U27: 8 | V27: 11 | W27: 8 | X27: 11 | Y27: 10 | Z27: 10 | AA27: 13 | AB27: 11 | AC27: 7 | AD27: 52 | AE27: 45 | AF27: 40 | AG27: 37 | AH27: 41 | AI27: 40 | AJ27: 38 | AK27: 38 | AL27: 28 | AM27: 22 | AN27: 17 | AO27: 18 | AP27: 9 | AQ27: 7 | AR27: 0 | AS27: 3 | AT27: 4 | AU27: 7 | AV27: 267 | AW27: 19 | AX27: 22 | AY27: 109 | AZ27: 10 | BA27: 592 | BB27: 80 | BC27: 62 | BD27: 115 | BE27: 235 | BF27: 101
F28: 1431 | G28: PUESTO DE SALUD COTACOTA | H28: 37 | J28: 6 | K28: 6 | L28: 6 | M28: 6 | N28: 6 | O28: 8 | P28: 7 | Q28: 6 | R28: 6 | S28: 6 | T28: 5 | U28: 8 | V28: 11 | W28: 7 | X28: 10 | Y28: 10 | Z28: 9 | AA28: 11 | AB28: 11 | AC28: 7 | AD28: 48 | AE28: 42 | AF28: 38 | AG28: 35 | AH28: 40 | AI28: 38 | AJ28: 36 | AK28: 36 | AL28: 27 | AM28: 21 | AN28: 16 | AO28: 18 | AP28: 8 | AQ28: 7 | AR28: 0 | AS28: 2 | AT28: 3 | AU28: 6 | AV28: 253 | AW28: 17 | AX28: 21 | AY28: 104 | AZ28: 9 | BA28: 562 | BB28: 76 | BC28: 59 | BD28: 108 | BE28: 222 | BF28: 97
F29: 6891 | G29: PUESTO DE SALUD TARUCAMARCA | H29: 24 | J29: 4 | K29: 4 | L29: 4 | M29: 4 | N29: 4 | O29: 5 | P29: 4 | Q29: 4 | R29: 4 | S29: 4 | T29: 3 | U29: 5 | V29: 7 | W29: 5 | X29: 7 | Y29: 6 | Z29: 6 | AA29: 7 | AB29: 7 | AC29: 5 | AD29: 31 | AE29: 27 | AF29: 24 | AG29: 23 | AH29: 26 | AI29: 25 | AJ29: 23 | AK29: 23 | AL29: 18 | AM29: 13 | AN29: 10 | AO29: 12 | AP29: 5 | AQ29: 5 | AR29: 0 | AS29: 1 | AT29: 2 | AU29: 4 | AV29: 164 | AW29: 11 | AX29: 14 | AY29: 67 | AZ29: 6 | BA29: 365 | BB29: 49 | BC29: 38 | BD29: 70 | BE29: 144 | BF29: 63
A30: 040518 | B30: AREQUIPA | C30: AREQUIPA | D30: CAYLLOMA | E30: TUTI | F30: 1436 | G30: PUESTO DE SALUD TUTI | H30: 100 | J30: 9 | K30: 7 | L30: 9 | M30: 4 | N30: 8 | O30: 8 | P30: 10 | Q30: 10 | R30: 4 | S30: 6 | T30: 9 | U30: 9 | V30: 8 | W30: 5 | X30: 7 | Y30: 7 | Z30: 14 | AA30: 9 | AB30: 11 | AC30: 14 | AD30: 49 | AE30: 46 | AF30: 45 | AG30: 48 | AH30: 47 | AI30: 40 | AJ30: 31 | AK30: 30 | AL30: 25 | AM30: 19 | AN30: 26 | AO30: 17 | AP30: 9 | AQ30: 9 | AR30: 1 | AS30: 4 | AT30: 2 | AU30: 10 | AV30: 289 | AW30: 18 | AX30: 21 | AY30: 131 | AZ30: 14 | BA30: 609 | BB30: 93 | BC30: 50 | BD30: 120 | BE30: 241 | BF30: 105
A31: 040519 | B31: AREQUIPA | C31: AREQUIPA | D31: CAYLLOMA | E31: YANQUE | F31: 1437 | G31: PUESTO DE SALUD CHALHUANCA | H31: 46 | J31: 13 | K31: 13 | L31: 17 | M31: 12 | N31: 11 | O31: 13 | P31: 12 | Q31: 12 | R31: 10 | S31: 12 | T31: 13 | U31: 10 | V31: 15 | W31: 12 | X31: 10 | Y31: 10 | Z31: 13 | AA31: 17 | AB31: 16 | AC31: 17 | AD31: 77 | AE31: 92 | AF31: 87 | AG31: 76 | AH31: 74 | AI31: 70 | AJ31: 55 | AK31: 50 | AL31: 46 | AM31: 40 | AN31: 37 | AO31: 20 | AP31: 16 | AQ31: 15 | AR31: 1 | AS31: 5 | AT31: 7 | AU31: 14 | AV31: 481 | AW31: 31 | AX31: 30 | AY31: 222 | AZ31: 29 | BA31: 1,012 | BB31: 148 | BC31: 78 | BD31: 201 | BE31: 411 | BF31: 174
A33: 040503 | B33: AREQUIPA | C33: AREQUIPA | D33: CAYLLOMA | E33: CABANACONDE | G33: MR CABANACONDE | I33: =SUM(J33:AQ33) -> 4,273 | J33: =SUM(J34:J38) -> 46 | K33: =SUM(K34:K38) -> 39 | L33: 51 | M33: 38 | N33: 35 | O33: 28 | P33: 53 | Q33: 48 | R33: 36 | S33: 34 | T33: 38 | U33: 48 | V33: 48 | W33: 52 | X33: 58 | Y33: 46 | Z33: 77 | AA33: 59 | AB33: 53 | AC33: 48 | AD33: 270 | AE33: 310 | AF33: 296 | AG33: 286 | AH33: 308 | AI33: 292 | AJ33: 282 | AK33: 298 | AL33: 224 | AM33: 231 | AN33: 158 | AO33: 131 | AP33: 123 | AQ33: 129 | AR33: 2 | AS33: 21 | AT33: 27 | AU33: 65 | AV33: 1,963 | AW33: 119 | AX33: 144 | AY33: 749 | AZ33: 103 | BA33: 4,273 | BB33: 494 | BC33: 340 | BD33: 681 | BE33: 1,762 | BF33: 996
F34: 1420 | G34: CENTRO DE SALUD CABANACONDE | H34: 90 | J34: 17 | K34: 19 | L34: 25 | M34: 14 | N34: 17 | O34: 13 | P34: 28 | Q34: 22 | R34: 18 | S34: 15 | T34: 19 | U34: 22 | V34: 22 | W34: 30 | X34: 25 | Y34: 21 | Z34: 37 | AA34: 27 | AB34: 24 | AC34: 22 | AD34: 129 | AE34: 149 | AF34: 128 | AG34: 112 | AH34: 128 | AI34: 126 | AJ34: 130 | AK34: 153 | AL34: 94 | AM34: 90 | AN34: 63 | AO34: 49 | AP34: 52 | AQ34: 58 | AR34: 0 | AS34: 10 | AT34: 11 | AU34: 24 | AV34: 949 | AW34: 55 | AX34: 67 | AY34: 371 | AZ34: 43 | BA34: 1,899 | BB34: 229 | BC34: 161 | BD34: 325 | BE34: 777 | BF34: 407
F35: 1432 | G35: PUESTO DE SALUD PINCHOLLO | H35: 10 | J35: 2 | K35: 2 | L35: 3 | M35: 2 | N35: 2 | O35: 1 | P35: 3 | Q35: 3 | R35: 2 | S35: 2 | T35: 2 | U35: 2 | V35: 2 | W35: 3 | X35: 3 | Y35: 2 | Z35: 4 | AA35: 3 | AB35: 3 | AC35: 3 | AD35: 14 | AE35: 17 | AF35: 14 | AG35: 12 | AH35: 14 | AI35: 14 | AJ35: 15 | AK35: 17 | AL35: 10 | AM35: 10 | AN35: 7 | AO35: 6 | AP35: 6 | AQ35: 7 | AR35: 0 | AS35: 1 | AT35: 1 | AU35: 3 | AV35: 105 | AW35: 6 | AX35: 8 | AY35: 41 | AZ35: 5 | BA35: 211 | BB35: 26 | BC35: 18 | BD35: 36 | BE35: 86 | BF35: 45
A36: 040507 | B36: AREQUIPA | C36: AREQUIPA | D36: CAYLLOMA | E36: HUAMBO | F36: 1433 | G36: PUESTO DE SALUD HUAMBO | H36: 100 | J36: 7 | K36: 6 | L36: 6 | M36: 8 | N36: 10 | O36: 8 | P36: 7 | Q36: 7 | R36: 2 | S36: 5 | T36: 11 | U36: 8 | V36: 7 | W36: 5 | X36: 9 | Y36: 8 | Z36: 15 | AA36: 15 | AB36: 9 | AC36: 4 | AD36: 41 | AE36: 47 | AF36: 43 | AG36: 35 | AH36: 42 | AI36: 37 | AJ36: 45 | AK36: 44 | AL36: 31 | AM36: 48 | AN36: 25 | AO36: 25 | AP36: 22 | AQ36: 23 | AR36: 1 | AS36: 5 | AT36: 2 | AU36: 8 | AV36: 298 | AW36: 20 | AX36: 26 | AY36: 100 | AZ36: 12 | BA36: 665 | BB36: 85 | BC36: 59 | BD36: 101 | BE36: 246 | BF36: 174
A37: 040516 | B37: AREQUIPA | C37: AREQUIPA | D37: CAYLLOMA | E37: TAPAY | F37: 1434 | G37: PUESTO DE SALUD TAPAY | H37: 100 | J37: 5 | K37: 9 | L37: 10 | M37: 7 | N37: 3 | O37: 3 | P37: 10 | Q37: 10 | R37: 10 | S37: 8 | T37: 3 | U37: 8 | V37: 10 | W37: 7 | X37: 16 | Y37: 10 | Z37: 12 | AA37: 9 | AB37: 9 | AC37: 10 | AD37: 50 | AE37: 69 | AF37: 63 | AG37: 81 | AH37: 73 | AI37: 63 | AJ37: 51 | AK37: 52 | AL37: 53 | AM37: 51 | AN37: 38 | AO37: 26 | AP37: 24 | AQ37: 18 | AR37: 1 | AS37: 5 | AT37: 7 | AU37: 14 | AV37: 367 | AW37: 21 | AX37: 27 | AY37: 151 | AZ37: 25 | BA37: 881 | BB37: 86 | BC37: 64 | BD37: 138 | BE37: 383 | BF37: 210
A38: 040406 | B38: AREQUIPA | C38: AREQUIPA | D38: CASTILLA | E38: CHOCO | F38: 1441 | G38: PUESTO DE SALUD CHOCO | H38: 100 | J38: 15 | K38: 3 | L38: 7 | M38: 7 | N38: 3 | O38: 3 | P38: 5 | Q38: 6 | R38: 4 | S38: 4 | T38: 3 | U38: 8 | V38: 7 | W38: 7 | X38: 5 | Y38: 5 | Z38: 9 | AA38: 5 | AB38: 8 | AC38: 9 | AD38: 36 | AE38: 28 | AF38: 48 | AG38: 46 | AH38: 51 | AI38: 52 | AJ38: 41 | AK38: 32 | AL38: 36 | AM38: 32 | AN38: 25 | AO38: 25 | AP38: 19 | AQ38: 23 | AR38: 0 | AS38: 0 | AT38: 6 | AU38: 16 | AV38: 244 | AW38: 17 | AX38: 16 | AY38: 86 | AZ38: 18 | BA38: 617 | BB38: 68 | BC38: 38 | BD38: 81 | BE38: 270 | BF38: 160
A40: 040505 | B40: AREQUIPA | C40: AREQUIPA | D40: CAYLLOMA | E40: CAYLLOMA | G40: MR CAYLLOMA | I40: =SUM(J40:AQ40) -> 7,927 | J40: =SUM(J41:J45) -> 120 | K40: =SUM(K41:K45) -> 122 | L40: 108 | M40: 113 | N40: 103 | O40: 113 | P40: 109 | Q40: 126 | R40: 143 | S40: 137 | T40: 150 | U40: 152 | V40: 154 | W40: 152 | X40: 148 | Y40: 180 | Z40: 161 | AA40: 165 | AB40: 155 | AC40: 137 | AD40: 731 | AE40: 697 | AF40: 604 | AG40: 562 | AH40: 470 | AI40: 455 | AJ40: 364 | AK40: 392 | AL40: 287 | AM40: 226 | AN40: 146 | AO40: 100 | AP40: 71 | AQ40: 74 | AR40: 13 | AS40: 75 | AT40: 80 | AU40: 181 | AV40: 3,733 | AW40: 374 | AX40: 387 | AY40: 1,582 | AZ40: 290 | BA40: 7,930 | BB40: 1,496 | BC40: 959 | BD40: 1,720 | BE40: 2,849 | BF40: 905
F41: 1422 | G41: CENTRO DE SALUD CAYLLOMA | H41: 77 | J41: 46 | K41: 45 | L41: 41 | M41: 41 | N41: 30 | O41: 45 | P41: 35 | Q41: 46 | R41: 53 | S41: 52 | T41: 56 | U41: 59 | V41: 63 | W41: 47 | X41: 57 | Y41: 58 | Z41: 52 | AA41: 59 | AB41: 58 | AC41: 44 | AD41: 263 | AE41: 264 | AF41: 213 | AG41: 215 | AH41: 184 | AI41: 163 | AJ41: 142 | AK41: 134 | AL41: 110 | AM41: 82 | AN41: 55 | AO41: 39 | AP41: 24 | AQ41: 19 | AR41: 6 | AS41: 27 | AT41: 29 | AU41: 66 | AV41: 1,389 | AW41: 143 | AX41: 130 | AY41: 610 | AZ41: 137 | BA41: 2,897 | BB41: 550 | BC41: 336 | BD41: 629 | BE41: 1,051 | BF41: 330
F42: 1418 | G42: PUESTO DE SALUD JACHAÑA | H42: 23 | J42: 14 | K42: 14 | L42: 12 | M42: 12 | N42: 9 | O42: 14 | P42: 10 | Q42: 14 | R42: 16 | S42: 16 | T42: 17 | U42: 17 | V42: 19 | W42: 14 | X42: 17 | Y42: 17 | Z42: 16 | AA42: 18 | AB42: 17 | AC42: 13 | AD42: 79 | AE42: 79 | AF42: 63 | AG42: 64 | AH42: 55 | AI42: 49 | AJ42: 43 | AK42: 40 | AL42: 33 | AM42: 25 | AN42: 17 | AO42: 12 | AP42: 7 | AQ42: 6 | AR42: 2 | AS42: 8 | AT42: 9 | AU42: 20 | AV42: 415 | AW42: 43 | AX42: 39 | AY42: 182 | AZ42: 41 | BA42: 865 | BB42: 164 | BC42: 101 | BD42: 188 | BE42: 314 | BF42: 99
A43: 040404 | B43: AREQUIPA | C43: AREQUIPA | D43: CASTILLA | E43: CHACHAS | F43: 1442 | G43: PUESTO DE SALUD TOLCONI | H43: 63 | J43: 19 | K43: 19 | L43: 19 | M43: 18 | N43: 14 | O43: 18 | P43: 13 | Q43: 13 | R43: 16 | S43: 15 | T43: 22 | U43: 17 | V43: 20 | W43: 20 | X43: 16 | Y43: 24 | Z43: 16 | AA43: 20 | AB43: 13 | AC43: 13 | AD43: 77 | AE43: 77 | AF43: 84 | AG43: 76 | AH43: 53 | AI43: 55 | AJ43: 45 | AK43: 52 | AL43: 39 | AM43: 28 | AN43: 19 | AO43: 16 | AP43: 10 | AQ43: 16 | AR43: 3 | AS43: 15 | AT43: 9 | AU43: 26 | AV43: 426 | AW43: 43 | AX43: 39 | AY43: 160 | AZ43: 34 | BA43: 995 | BB43: 203 | BC43: 115 | BD43: 180 | BE43: 367 | BF43: 129
A44: 040603 | B44: AREQUIPA | C44: AREQUIPA | D44: CONDESUYOS | E44: CAYARANI | F44: 1440 | G44: CENTRO DE SALUD CAYARANI | H44: 80 | J44: 33 | K44: 35 | L44: 29 | M44: 34 | N44: 40 | O44: 29 | P44: 41 | Q44: 42 | R44: 46 | S44: 43 | T44: 44 | U44: 47 | V44: 42 | W44: 57 | X44: 46 | Y44: 65 | Z44: 62 | AA44: 54 | AB44: 54 | AC44: 54 | AD44: 250 | AE44: 222 | AF44: 195 | AG44: 166 | AH44: 142 | AI44: 150 | AJ44: 107 | AK44: 133 | AL44: 84 | AM44: 73 | AN44: 44 | AO44: 26 | AP44: 24 | AQ44: 26 | AR44: 2 | AS44: 20 | AT44: 26 | AU44: 55 | AV44: 1,202 | AW44: 116 | AX44: 143 | AY44: 504 | AZ44: 62 | BA44: 2,538 | BB44: 463 | BC44: 326 | BD44: 578 | BE44: 894 | BF44: 278
F45: 7407 | G45: PUESTO DE SALUD ARCATA | H45: 20 | J45: 8 | K45: 9 | L45: 7 | M45: 8 | N45: 10 | O45: 7 | P45: 10 | Q45: 11 | R45: 12 | S45: 11 | T45: 11 | U45: 12 | V45: 10 | W45: 14 | X45: 12 | Y45: 16 | Z45: 15 | AA45: 14 | AB45: 13 | AC45: 13 | AD45: 62 | AE45: 55 | AF45: 49 | AG45: 41 | AH45: 36 | AI45: 38 | AJ45: 27 | AK45: 33 | AL45: 21 | AM45: 18 | AN45: 11 | AO45: 7 | AP45: 6 | AQ45: 7 | AR45: 0 | AS45: 5 | AT45: 7 | AU45: 14 | AV45: 301 | AW45: 29 | AX45: 36 | AY45: 126 | AZ45: 16 | BA45: 635 | BB45: 116 | BC45: 81 | BD45: 145 | BE45: 223 | BF45: 69
A47: 040103 | B47: AREQUIPA | C47: AREQUIPA | D47: AREQUIPA | E47: CAYMA | G47: MR FRANCISCO BOLOGNESI | I47: =SUM(J47:AQ47) -> 56,332 | J47: =SUM(J48:J50) -> 652 | K47: =SUM(K48:K50) -> 625 | L47: 731 | M47: 823 | N47: 835 | O47: 903 | P47: 1,026 | Q47: 1,006 | R47: 1,005 | S47: 941 | T47: 915 | U47: 916 | V47: 982 | W47: 905 | X47: 826 | Y47: 857 | Z47: 772 | AA47: 811 | AB47: 821 | AC47: 803 | AD47: 4,358 | AE47: 5,077 | AF47: 5,326 | AG47: 4,716 | AH47: 4,072 | AI47: 3,552 | AJ47: 2,965 | AK47: 2,507 | AL47: 2,065 | AM47: 1,634 | AN47: 1,148 | AO47: 808 | AP47: 461 | AQ47: 488 | AR47: 41 | AS47: 380 | AT47: 370 | AU47: 834 | AV47: 28,284 | AW47: 2,204 | AX47: 1,973 | AY47: 13,454 | AZ47: 1,344 | BA47: 56,336 | BB47: 10,376 | BC47: 5,153 | BD47: 11,059 | BE47: 23,140 | BF47: 6,607
F48: 1234 | G48: CENTRO DE SALUD FRANCISCO BOLOGNESI | H48: 33 | J48: 422 | K48: 404 | L48: 473 | M48: 533 | N48: 540 | O48: 584 | P48: 664 | Q48: 651 | R48: 650 | S48: 608 | T48: 593 | U48: 593 | V48: 635 | W48: 585 | X48: 534 | Y48: 555 | Z48: 500 | AA48: 525 | AB48: 531 | AC48: 520 | AD48: 2,819 | AE48: 3,286 | AF48: 3,447 | AG48: 3,051 | AH48: 2,635 | AI48: 2,298 | AJ48: 1,918 | AK48: 1,622 | AL48: 1,336 | AM48: 1,057 | AN48: 743 | AO48: 523 | AP48: 298 | AQ48: 315 | AR48: 27 | AS48: 245 | AT48: 239 | AU48: 540 | AV48: 18,301 | AW48: 1,426 | AX48: 1,276 | AY48: 8,706 | AZ48: 870 | BA48: 36,453 | BB48: 6,713 | BC48: 3,334 | BD48: 7,155 | BE48: 14,973 | BF48: 4,276
F49: 1244 | G49: PUESTO DE SALUD LA TOMILLA | H49: 10 | J49: 128 | K49: 123 | L49: 143 | M49: 161 | N49: 164 | O49: 177 | P49: 201 | Q49: 197 | R49: 197 | S49: 185 | T49: 179 | U49: 179 | V49: 193 | W49: 178 | X49: 162 | Y49: 168 | Z49: 151 | AA49: 159 | AB49: 161 | AC49: 157 | AD49: 855 | AE49: 995 | AF49: 1,044 | AG49: 925 | AH49: 798 | AI49: 697 | AJ49: 582 | AK49: 492 | AL49: 405 | AM49: 321 | AN49: 225 | AO49: 158 | AP49: 91 | AQ49: 96 | AR49: 8 | AS49: 75 | AT49: 73 | AU49: 163 | AV49: 5,546 | AW49: 432 | AX49: 387 | AY49: 2,638 | AZ49: 263 | BA49: 11,046 | BB49: 2,035 | BC49: 1,011 | BD49: 2,169 | BE49: 4,537 | BF49: 1,295
F50: 6890 | G50: PUESTO DE SALUD RAFAEL BELAUNDE | H50: 8 | J50: 102 | K50: 98 | L50: 115 | M50: 129 | N50: 131 | O50: 142 | P50: 161 | Q50: 158 | R50: 158 | S50: 148 | T50: 143 | U50: 144 | V50: 154 | W50: 142 | X50: 130 | Y50: 134 | Z50: 121 | AA50: 127 | AB50: 129 | AC50: 126 | AD50: 684 | AE50: 796 | AF50: 835 | AG50: 740 | AH50: 639 | AI50: 557 | AJ50: 465 | AK50: 393 | AL50: 324 | AM50: 256 | AN50: 180 | AO50: 127 | AP50: 72 | AQ50: 77 | AR50: 6 | AS50: 60 | AT50: 58 | AU50: 131 | AV50: 4,437 | AW50: 346 | AX50: 310 | AY50: 2,110 | AZ50: 211 | BA50: 8,837 | BB50: 1,628 | BC50: 808 | BD50: 1,735 | BE50: 3,630 | BF50: 1,036
A52: 040103 | B52: AREQUIPA | C52: AREQUIPA | D52: AREQUIPA | E52: CAYMA | G52: MR BUENOS AIRES DE CAYMA | I52: =SUM(J52:AQ52) -> 54,131 | J52: =SUM(J53:J55) -> 626 | K52: =SUM(K53:K55) -> 601 | L52: 702 | M52: 791 | N52: 803 | O52: 867 | P52: 985 | Q52: 967 | R52: 966 | S52: 905 | T52: 878 | U52: 878 | V52: 944 | W52: 870 | X52: 795 | Y52: 824 | Z52: 740 | AA52: 780 | AB52: 789 | AC52: 771 | AD52: 4,189 | AE52: 4,877 | AF52: 5,116 | AG52: 4,532 | AH52: 3,912 | AI52: 3,414 | AJ52: 2,850 | AK52: 2,410 | AL52: 1,985 | AM52: 1,572 | AN52: 1,103 | AO52: 776 | AP52: 444 | AQ52: 469 | AR52: 40 | AS52: 366 | AT52: 356 | AU52: 800 | AV52: 27,175 | AW52: 2,116 | AX52: 1,896 | AY52: 12,927 | AZ52: 1,290 | BA52: 54,127 | BB52: 9,971 | BC52: 4,953 | BD52: 10,626 | BE52: 22,232 | BF52: 6,346
F53: 1235 | G53: CENTRO DE SALUD BUENOS AIRES DE CAYMA | H53: 27 | J53: 345 | K53: 331 | L53: 387 | M53: 436 | N53: 442 | O53: 478 | P53: 543 | Q53: 533 | R53: 532 | S53: 498 | T53: 484 | U53: 484 | V53: 520 | W53: 479 | X53: 438 | Y53: 454 | Z53: 408 | AA53: 430 | AB53: 435 | AC53: 425 | AD53: 2,308 | AE53: 2,688 | AF53: 2,819 | AG53: 2,497 | AH53: 2,156 | AI53: 1,881 | AJ53: 1,570 | AK53: 1,328 | AL53: 1,094 | AM53: 866 | AN53: 608 | AO53: 428 | AP53: 244 | AQ53: 258 | AR53: 22 | AS53: 201 | AT53: 196 | AU53: 441 | AV53: 14,974 | AW53: 1,166 | AX53: 1,045 | AY53: 7,123 | AZ53: 711 | BA53: 29,825 | BB53: 5,494 | BC53: 2,729 | BD53: 5,855 | BE53: 12,250 | BF53: 3,497
F54: 1245 | G54: PUESTO DE SALUD SAN JOSE | H54: 10 | J54: 128 | K54: 123 | L54: 143 | M54: 161 | N54: 164 | O54: 177 | P54: 201 | Q54: 197 | R54: 197 | S54: 185 | T54: 179 | U54: 179 | V54: 193 | W54: 178 | X54: 162 | Y54: 168 | Z54: 151 | AA54: 159 | AB54: 161 | AC54: 157 | AD54: 855 | AE54: 995 | AF54: 1,044 | AG54: 925 | AH54: 798 | AI54: 697 | AJ54: 582 | AK54: 492 | AL54: 405 | AM54: 321 | AN54: 225 | AO54: 158 | AP54: 91 | AQ54: 96 | AR54: 8 | AS54: 75 | AT54: 73 | AU54: 163 | AV54: 5,546 | AW54: 432 | AX54: 387 | AY54: 2,638 | AZ54: 263 | BA54: 11,046 | BB54: 2,035 | BC54: 1,011 | BD54: 2,169 | BE54: 4,537 | BF54: 1,295
F55: 1246 | G55: PUESTO DE SALUD DEAN VALDIVIA | H55: 12 | J55: 153 | K55: 147 | L55: 172 | M55: 194 | N55: 197 | O55: 212 | P55: 241 | Q55: 237 | R55: 237 | S55: 222 | T55: 215 | U55: 215 | V55: 231 | W55: 213 | X55: 195 | Y55: 202 | Z55: 181 | AA55: 191 | AB55: 193 | AC55: 189 | AD55: 1,026 | AE55: 1,194 | AF55: 1,253 | AG55: 1,110 | AH55: 958 | AI55: 836 | AJ55: 698 | AK55: 590 | AL55: 486 | AM55: 385 | AN55: 270 | AO55: 190 | AP55: 109 | AQ55: 115 | AR55: 10 | AS55: 90 | AT55: 87 | AU55: 196 | AV55: 6,655 | AW55: 518 | AX55: 464 | AY55: 3,166 | AZ55: 316 | BA55: 13,256 | BB55: 2,442 | BC55: 1,213 | BD55: 2,602 | BE55: 5,445 | BF55: 1,554
A57: 040104 | B57: AREQUIPA | C57: AREQUIPA | D57: AREQUIPA | E57: CERRO COLORADO | G57: MR CERRO COLORADO | I57: =SUM(J57:AQ57) -> 43,942 | J57: =SUM(J58:J59) -> 496 | K57: =SUM(K58:K59) -> 480 | L57: 574 | M57: 610 | N57: 598 | O57: 620 | P57: 916 | Q57: 912 | R57: 902 | S57: 856 | T57: 800 | U57: 794 | V57: 802 | W57: 764 | X57: 684 | Y57: 704 | Z57: 676 | AA57: 700 | AB57: 690 | AC57: 714 | AD57: 3,678 | AE57: 4,064 | AF57: 4,018 | AG57: 3,626 | AH57: 3,346 | AI57: 2,828 | AJ57: 2,202 | AK57: 1,738 | AL57: 1,260 | AM57: 1,018 | AN57: 758 | AO57: 496 | AP57: 320 | AQ57: 298 | AR57: 32 | AS57: 296 | AT57: 284 | AU57: 664 | AV57: 22,246 | AW57: 1,896 | AX57: 1,730 | AY57: 10,944 | AZ57: 1,192 | BA57: 43,938 | BB57: 8,558 | BC57: 4,328 | BD57: 9,146 | BE57: 17,756 | BF57: 4,150
F58: 1236 | G58: CENTRO DE SALUD CERRO COLORADO | H58: 9 | J58: 248 | K58: 240 | L58: 287 | M58: 305 | N58: 299 | O58: 310 | P58: 458 | Q58: 456 | R58: 451 | S58: 428 | T58: 400 | U58: 397 | V58: 401 | W58: 382 | X58: 342 | Y58: 352 | Z58: 338 | AA58: 350 | AB58: 345 | AC58: 357 | AD58: 1,839 | AE58: 2,032 | AF58: 2,009 | AG58: 1,813 | AH58: 1,673 | AI58: 1,414 | AJ58: 1,101 | AK58: 869 | AL58: 630 | AM58: 509 | AN58: 379 | AO58: 248 | AP58: 160 | AQ58: 149 | AR58: 16 | AS58: 148 | AT58: 142 | AU58: 332 | AV58: 11,123 | AW58: 948 | AX58: 865 | AY58: 5,472 | AZ58: 596 | BA58: 21,969 | BB58: 4,279 | BC58: 2,164 | BD58: 4,573 | BE58: 8,878 | BF58: 2,075
F59: 1248 | G59: CENTRO DE SALUD ALTO LIBERTAD | H59: 9 | J59: 248 | K59: 240 | L59: 287 | M59: 305 | N59: 299 | O59: 310 | P59: 458 | Q59: 456 | R59: 451 | S59: 428 | T59: 400 | U59: 397 | V59: 401 | W59: 382 | X59: 342 | Y59: 352 | Z59: 338 | AA59: 350 | AB59: 345 | AC59: 357 | AD59: 1,839 | AE59: 2,032 | AF59: 2,009 | AG59: 1,813 | AH59: 1,673 | AI59: 1,414 | AJ59: 1,101 | AK59: 869 | AL59: 630 | AM59: 509 | AN59: 379 | AO59: 248 | AP59: 160 | AQ59: 149 | AR59: 16 | AS59: 148 | AT59: 142 | AU59: 332 | AV59: 11,123 | AW59: 948 | AX59: 865 | AY59: 5,472 | AZ59: 596 | BA59: 21,969 | BB59: 4,279 | BC59: 2,164 | BD59: 4,573 | BE59: 8,878 | BF59: 2,075
A61: 040104 | B61: AREQUIPA | C61: AREQUIPA | D61: AREQUIPA | E61: CERRO COLORADO | G61: MR MARISCAL CASTILLA | I61: =SUM(J61:AQ61) -> 56,151 | J61: =SUM(J62:J65) -> 634 | K61: =SUM(K62:K65) -> 614 | L61: 734 | M61: 780 | N61: 764 | O61: 792 | P61: 1,171 | Q61: 1,166 | R61: 1,152 | S61: 1,094 | T61: 1,022 | U61: 1,014 | V61: 1,026 | W61: 976 | X61: 874 | Y61: 899 | Z61: 864 | AA61: 895 | AB61: 881 | AC61: 913 | AD61: 4,699 | AE61: 5,193 | AF61: 5,134 | AG61: 4,632 | AH61: 4,276 | AI61: 3,613 | AJ61: 2,813 | AK61: 2,221 | AL61: 1,610 | AM61: 1,302 | AN61: 968 | AO61: 634 | AP61: 409 | AQ61: 382 | AR61: 41 | AS61: 378 | AT61: 362 | AU61: 848 | AV61: 28,426 | AW61: 2,422 | AX61: 2,210 | AY61: 13,984 | AZ61: 1,523 | BA61: 56,143 | BB61: 10,934 | BC61: 5,530 | BD61: 11,686 | BE61: 22,688 | BF61: 5,304
F62: 1238 | G62: CENTRO DE SALUD MARISCAL CASTILLA | H62: 10 | J62: 275 | K62: 267 | L62: 319 | M62: 339 | N62: 332 | O62: 345 | P62: 509 | Q62: 507 | R62: 501 | S62: 475 | T62: 445 | U62: 441 | V62: 446 | W62: 425 | X62: 380 | Y62: 391 | Z62: 375 | AA62: 389 | AB62: 383 | AC62: 397 | AD62: 2,043 | AE62: 2,258 | AF62: 2,232 | AG62: 2,014 | AH62: 1,859 | AI62: 1,571 | AJ62: 1,223 | AK62: 965 | AL62: 700 | AM62: 566 | AN62: 421 | AO62: 275 | AP62: 178 | AQ62: 166 | AR62: 18 | AS62: 165 | AT62: 157 | AU62: 368 | AV62: 12,359 | AW62: 1,053 | AX62: 961 | AY62: 6,080 | AZ62: 662 | BA62: 24,410 | BB62: 4,754 | BC62: 2,405 | BD62: 5,081 | BE62: 9,865 | BF62: 2,306
F63: 1249 | G63: CENTRO DE SALUD SEMI RURAL PACHACUTEC | H63: 9 | J63: 248 | K63: 240 | L63: 287 | M63: 305 | N63: 299 | O63: 310 | P63: 458 | Q63: 456 | R63: 451 | S63: 428 | T63: 400 | U63: 397 | V63: 401 | W63: 382 | X63: 342 | Y63: 352 | Z63: 338 | AA63: 350 | AB63: 345 | AC63: 357 | AD63: 1,839 | AE63: 2,032 | AF63: 2,009 | AG63: 1,813 | AH63: 1,673 | AI63: 1,414 | AJ63: 1,101 | AK63: 869 | AL63: 630 | AM63: 509 | AN63: 379 | AO63: 248 | AP63: 160 | AQ63: 149 | AR63: 16 | AS63: 148 | AT63: 142 | AU63: 332 | AV63: 11,123 | AW63: 948 | AX63: 865 | AY63: 5,472 | AZ63: 596 | BA63: 21,969 | BB63: 4,279 | BC63: 2,164 | BD63: 4,573 | BE63: 8,878 | BF63: 2,075
F64: 1250 | G64: PUESTO DE SALUD JOSE SANTOS ATAHUALPA | H64: 3 | J64: 83 | K64: 80 | L64: 96 | M64: 102 | N64: 100 | O64: 103 | P64: 153 | Q64: 152 | R64: 150 | S64: 143 | T64: 133 | U64: 132 | V64: 134 | W64: 127 | X64: 114 | Y64: 117 | Z64: 113 | AA64: 117 | AB64: 115 | AC64: 119 | AD64: 613 | AE64: 677 | AF64: 670 | AG64: 604 | AH64: 558 | AI64: 471 | AJ64: 367 | AK64: 290 | AL64: 210 | AM64: 170 | AN64: 126 | AO64: 83 | AP64: 53 | AQ64: 50 | AR64: 5 | AS64: 49 | AT64: 47 | AU64: 111 | AV64: 3,708 | AW64: 316 | AX64: 288 | AY64: 1,824 | AZ64: 199 | BA64: 7,323 | BB64: 1,426 | BC64: 721 | BD64: 1,524 | BE64: 2,959 | BF64: 692
F65: 1252 | G65: PUESTO DE SALUD EL CURAL | H65: 1 | J65: 28 | K65: 27 | L65: 32 | M65: 34 | N65: 33 | O65: 34 | P65: 51 | Q65: 51 | R65: 50 | S65: 48 | T65: 44 | U65: 44 | V65: 45 | W65: 42 | X65: 38 | Y65: 39 | Z65: 38 | AA65: 39 | AB65: 38 | AC65: 40 | AD65: 204 | AE65: 226 | AF65: 223 | AG65: 201 | AH65: 186 | AI65: 157 | AJ65: 122 | AK65: 97 | AL65: 70 | AM65: 57 | AN65: 42 | AO65: 28 | AP65: 18 | AQ65: 17 | AR65: 2 | AS65: 16 | AT65: 16 | AU65: 37 | AV65: 1,236 | AW65: 105 | AX65: 96 | AY65: 608 | AZ65: 66 | BA65: 2,441 | BB65: 475 | BC65: 240 | BD65: 508 | BE65: 986 | BF65: 231
A67: 040104 | B67: AREQUIPA | C67: AREQUIPA | D67: AREQUIPA | E67: CERRO COLORADO | G67: MR MARITZA CAMPOS DIAS_ZAMACOLA | I67: =SUM(J67:AQ67) -> 144,010 | J67: =SUM(J68:J71) -> 1,622 | K67: =SUM(K68:K71) -> 1,578 | L67: 1,881 | M67: 1,997 | N67: 1,959 | O67: 2,034 | P67: 3,001 | Q67: 2,992 | R67: 2,957 | S67: 2,801 | T67: 2,626 | U67: 2,600 | V67: 2,630 | W67: 2,505 | X67: 2,241 | Y67: 2,305 | Z67: 2,214 | AA67: 2,290 | AB67: 2,261 | AC67: 2,341 | AD67: 12,051 | AE67: 13,322 | AF67: 13,169 | AG67: 11,885 | AH67: 10,964 | AI67: 9,270 | AJ67: 7,216 | AK67: 5,695 | AL67: 4,126 | AM67: 3,336 | AN67: 2,487 | AO67: 1,624 | AP67: 1,051 | AQ67: 979 | AR67: 109 | AS67: 974 | AT67: 928 | AU67: 2,172 | AV67: 72,921 | AW67: 6,214 | AX67: 5,669 | AY67: 35,871 | AZ67: 3,907 | BA67: 144,022 | BB67: 28,051 | BC67: 14,191 | BD67: 29,975 | BE67: 58,202 | BF67: 13,604
F68: 1237 | G68: MARITZA CAMPOS DIAZ - ZAMACOLA | H68: 17 | J68: 468 | K68: 454 | L68: 542 | M68: 576 | N68: 565 | O68: 586 | P68: 865 | Q68: 862 | R68: 852 | S68: 808 | T68: 756 | U68: 749 | V68: 758 | W68: 722 | X68: 646 | Y68: 664 | Z68: 638 | AA68: 660 | AB68: 651 | AC68: 675 | AD68: 3,473 | AE68: 3,838 | AF68: 3,795 | AG68: 3,424 | AH68: 3,160 | AI68: 2,671 | AJ68: 2,079 | AK68: 1,641 | AL68: 1,189 | AM68: 962 | AN68: 716 | AO68: 468 | AP68: 303 | AQ68: 282 | AR68: 31 | AS68: 280 | AT68: 268 | AU68: 626 | AV68: 21,011 | AW68: 1,790 | AX68: 1,634 | AY68: 10,336 | AZ68: 1,126 | BA68: 41,498 | BB68: 8,082 | BC68: 4,088 | BD68: 8,637 | BE68: 16,770 | BF68: 3,920
F69: 1251 | G69: PUESTO DE SALUD NAZARENO | H69: 18 | J69: 494 | K69: 482 | L69: 574 | M69: 608 | N69: 597 | O69: 621 | P69: 915 | Q69: 913 | R69: 902 | S69: 853 | T69: 802 | U69: 793 | V69: 802 | W69: 764 | X69: 683 | Y69: 703 | Z69: 675 | AA69: 697 | AB69: 690 | AC69: 714 | AD69: 3,676 | AE69: 4,065 | AF69: 4,017 | AG69: 3,627 | AH69: 3,343 | AI69: 2,828 | AJ69: 2,202 | AK69: 1,737 | AL69: 1,258 | AM69: 1,017 | AN69: 760 | AO69: 495 | AP69: 321 | AQ69: 299 | AR69: 34 | AS69: 298 | AT69: 282 | AU69: 662 | AV69: 22,248 | AW69: 1,896 | AX69: 1,729 | AY69: 10,943 | AZ69: 1,191 | BA69: 43,940 | BB69: 8,559 | BC69: 4,331 | BD69: 9,144 | BE69: 17,757 | BF69: 4,150
F70: 1247 | G70: PUESTO DE SALUD CIUDAD MUNICIPAL | H70: 16 | J70: 440 | K70: 428 | L70: 510 | M70: 542 | N70: 531 | O70: 551 | P70: 814 | Q70: 811 | R70: 802 | S70: 760 | T70: 712 | U70: 705 | V70: 713 | W70: 679 | X70: 608 | Y70: 625 | Z70: 601 | AA70: 622 | AB70: 613 | AC70: 635 | AD70: 3,268 | AE70: 3,613 | AF70: 3,571 | AG70: 3,223 | AH70: 2,974 | AI70: 2,514 | AJ70: 1,957 | AK70: 1,545 | AL70: 1,119 | AM70: 905 | AN70: 674 | AO70: 441 | AP70: 285 | AQ70: 265 | AR70: 29 | AS70: 264 | AT70: 252 | AU70: 589 | AV70: 19,775 | AW70: 1,685 | AX70: 1,537 | AY70: 9,728 | AZ70: 1,060 | BA70: 39,056 | BB70: 7,607 | BC70: 3,848 | BD70: 8,129 | BE70: 15,783 | BF70: 3,689
F71: 11023 | G71: PUESTO DE SALUD PERUARBO | H71: 8 | J71: 220 | K71: 214 | L71: 255 | M71: 271 | N71: 266 | O71: 276 | P71: 407 | Q71: 406 | R71: 401 | S71: 380 | T71: 356 | U71: 353 | V71: 357 | W71: 340 | X71: 304 | Y71: 313 | Z71: 300 | AA71: 311 | AB71: 307 | AC71: 317 | AD71: 1,634 | AE71: 1,806 | AF71: 1,786 | AG71: 1,611 | AH71: 1,487 | AI71: 1,257 | AJ71: 978 | AK71: 772 | AL71: 560 | AM71: 452 | AN71: 337 | AO71: 220 | AP71: 142 | AQ71: 133 | AR71: 15 | AS71: 132 | AT71: 126 | AU71: 295 | AV71: 9,887 | AW71: 843 | AX71: 769 | AY71: 4,864 | AZ71: 530 | BA71: 19,528 | BB71: 3,803 | BC71: 1,924 | BD71: 4,065 | BE71: 7,892 | BF71: 1,845
A73: 040126 | B73: AREQUIPA | C73: AREQUIPA | D73: AREQUIPA | E73: YANAHUARA | G73: MR YANAHUARA | I73: =SUM(J73:AQ73) -> 56,682 | J73: =SUM(J74:J77) -> 583 | K73: =SUM(K74:K77) -> 678 | L73: 846 | M73: 858 | N73: 860 | O73: 797 | P73: 865 | Q73: 868 | R73: 870 | S73: 853 | T73: 785 | U73: 814 | V73: 831 | W73: 808 | X73: 762 | Y73: 729 | Z73: 737 | AA73: 727 | AB73: 745 | AC73: 766 | AD73: 3,838 | AE73: 4,180 | AF73: 4,386 | AG73: 4,121 | AH73: 4,084 | AI73: 3,952 | AJ73: 3,428 | AK73: 2,997 | AL73: 2,624 | AM73: 2,299 | AN73: 1,778 | AO73: 1,337 | AP73: 904 | AQ73: 972 | AR73: 38 | AS73: 364 | AT73: 378 | AU73: 823 | AV73: 29,314 | AW73: 1,933 | AX73: 1,844 | AY73: 12,661 | AZ73: 1,203 | BA73: 56,681 | BB73: 9,677 | BC73: 4,595 | BD73: 9,529 | BE73: 22,968 | BF73: 9,912
F74: 1233 | G74: CENTRO DE SALUD YANAHUARA | H74: 7.79 | J74: 19 | K74: 24 | L74: 32 | M74: 32 | N74: 29 | O74: 24 | P74: 29 | Q74: 28 | R74: 30 | S74: 31 | T74: 29 | U74: 29 | V74: 27 | W74: 28 | X74: 25 | Y74: 23 | Z74: 26 | AA74: 23 | AB74: 26 | AC74: 27 | AD74: 127 | AE74: 149 | AF74: 160 | AG74: 153 | AH74: 153 | AI74: 159 | AJ74: 143 | AK74: 128 | AL74: 118 | AM74: 102 | AN74: 82 | AO74: 63 | AP74: 45 | AQ74: 51 | AR74: 1 | AS74: 12 | AT74: 14 | AU74: 29 | AV74: 1,154 | AW74: 66 | AX74: 60 | AY74: 481 | AZ74: 45 | BA74: 2,175 | BB74: 336 | BC74: 153 | BD74: 330 | BE74: 896 | BF74: 461
A75: 040117 | B75: AREQUIPA | C75: AREQUIPA | D75: AREQUIPA | E75: SACHACA | F75: 1282 | G75: PUESTO DE SALUD SACHACA | H75: 65 | J75: 225 | K75: 248 | L75: 297 | M75: 300 | N75: 331 | O75: 326 | P75: 328 | Q75: 339 | R75: 322 | S75: 303 | T75: 281 | U75: 299 | V75: 320 | W75: 299 | X75: 297 | Y75: 287 | Z75: 273 | AA75: 286 | AB75: 276 | AC75: 281 | AD75: 1,474 | AE75: 1,522 | AF75: 1,571 | AG75: 1,456 | AH75: 1,425 | AI75: 1,295 | AJ75: 1,083 | AK75: 920 | AL75: 762 | AM75: 681 | AN75: 499 | AO75: 363 | AP75: 228 | AQ75: 221 | AR75: 16 | AS75: 138 | AT75: 131 | AU75: 302 | AV75: 9,812 | AW75: 729 | AX75: 714 | AY75: 4,376 | AZ75: 424 | BA75: 19,419 | BB75: 3,599 | BC75: 1,762 | BD75: 3,554 | BE75: 7,751 | BF75: 2,753
F76: 1283 | G76: PUESTO DE SALUD PAMPA DE CAMARONES | H76: 35 | J76: 121 | K76: 134 | L76: 160 | M76: 161 | N76: 178 | O76: 175 | P76: 177 | Q76: 183 | R76: 174 | S76: 163 | T76: 151 | U76: 161 | V76: 172 | W76: 161 | X76: 160 | Y76: 155 | Z76: 147 | AA76: 154 | AB76: 149 | AC76: 152 | AD76: 794 | AE76: 819 | AF76: 846 | AG76: 784 | AH76: 768 | AI76: 698 | AJ76: 583 | AK76: 495 | AL76: 410 | AM76: 366 | AN76: 268 | AO76: 196 | AP76: 123 | AQ76: 119 | AR76: 8 | AS76: 74 | AT76: 70 | AU76: 163 | AV76: 5,283 | AW76: 393 | AX76: 385 | AY76: 2,357 | AZ76: 228 | BA76: 10,456 | BB76: 1,938 | BC76: 949 | BD76: 1,913 | BE76: 4,173 | BF76: 1,483
F77: 0 | G77: EESALUD | H77: 88.21 | J77: 218 | K77: 272 | L77: 357 | M77: 365 | N77: 322 | O77: 272 | P77: 331 | Q77: 318 | R77: 344 | S77: 356 | T77: 324 | U77: 325 | V77: 312 | W77: 320 | X77: 280 | Y77: 264 | Z77: 291 | AA77: 264 | AB77: 294 | AC77: 306 | AD77: 1,443 | AE77: 1,690 | AF77: 1,809 | AG77: 1,728 | AH77: 1,738 | AI77: 1,800 | AJ77: 1,619 | AK77: 1,454 | AL77: 1,334 | AM77: 1,150 | AN77: 929 | AO77: 715 | AP77: 508 | AQ77: 581 | AR77: 13 | AS77: 140 | AT77: 163 | AU77: 329 | AV77: 13,065 | AW77: 745 | AX77: 685 | AY77: 5,447 | AZ77: 506 | BA77: 24,631 | BB77: 3,804 | BC77: 1,731 | BD77: 3,732 | BE77: 10,148 | BF77: 5,215
A79: 040128 | B79: AREQUIPA | C79: AREQUIPA | D79: AREQUIPA | E79: YURA | G79: MR CIUDAD DE DIOS | I79: =SUM(J79:AQ79) -> 48,939 | J79: =SUM(J80:J87) -> 614 | K79: =SUM(K80:K87) -> 653 | L79: 850 | M79: 904 | N79: 978 | O79: 1,022 | P79: 989 | Q79: 923 | R79: 947 | S79: 817 | T79: 865 | U79: 815 | V79: 881 | W79: 828 | X79: 717 | Y79: 731 | Z79: 673 | AA79: 761 | AB79: 824 | AC79: 755 | AD79: 3,948 | AE79: 4,692 | AF79: 4,730 | AG79: 4,101 | AH79: 3,361 | AI79: 2,855 | AJ79: 2,282 | AK79: 1,905 | AL79: 1,446 | AM79: 1,180 | AN79: 794 | AO79: 516 | AP79: 301 | AQ79: 281 | AR79: 29 | AS79: 361 | AT79: 381 | AU79: 837 | AV79: 24,743 | AW79: 2,031 | AX79: 1,889 | AY79: 12,090 | AZ79: 1,311 | BA79: 48,942 | BB79: 10,378 | BC79: 4,590 | BD79: 10,219 | BE79: 19,235 | BF79: 4,520
F80: 1253 | G80: CENTRO DE SALUD CIUDAD DE DIOS | H80: 85 | J80: 480 | K80: 523 | L80: 688 | M80: 735 | N80: 800 | O80: 829 | P80: 811 | Q80: 754 | R80: 770 | S80: 660 | T80: 697 | U80: 654 | V80: 716 | W80: 664 | X80: 575 | Y80: 588 | Z80: 530 | AA80: 599 | AB80: 662 | AC80: 606 | AD80: 3,182 | AE80: 3,794 | AF80: 3,824 | AG80: 3,273 | AH80: 2,632 | AI80: 2,198 | AJ80: 1,731 | AK80: 1,423 | AL80: 1,053 | AM80: 861 | AN80: 548 | AO80: 348 | AP80: 189 | AQ80: 167 | AR80: 21 | AS80: 276 | AT80: 308 | AU80: 653 | AV80: 19,591 | AW80: 1,643 | AX80: 1,510 | AY80: 9,705 | AZ80: 1,035 | BA80: 38,564 | BB80: 8,401 | BC80: 3,672 | BD80: 8,243 | BE80: 15,081 | BF80: 3,167
F81: 1254 | G81: PUESTO DE SALUD YURA | H81: 15 | J81: 85 | K81: 92 | L81: 121 | M81: 130 | N81: 141 | O81: 146 | P81: 143 | Q81: 133 | R81: 136 | S81: 117 | T81: 123 | U81: 116 | V81: 126 | W81: 117 | X81: 101 | Y81: 104 | Z81: 94 | AA81: 106 | AB81: 117 | AC81: 107 | AD81: 561 | AE81: 669 | AF81: 675 | AG81: 578 | AH81: 464 | AI81: 388 | AJ81: 305 | AK81: 251 | AL81: 186 | AM81: 152 | AN81: 97 | AO81: 62 | AP81: 33 | AQ81: 30 | AR81: 4 | AS81: 49 | AT81: 54 | AU81: 115 | AV81: 3,457 | AW81: 290 | AX81: 267 | AY81: 1,713 | AZ81: 183 | BA81: 6,806 | BB81: 1,483 | BC81: 648 | BD81: 1,455 | BE81: 2,661 | BF81: 559
A82: 040508 | B82: AREQUIPA | C82: AREQUIPA | D82: CAYLLOMA | E82: HUANCA | F82: 1239 | G82: PUESTO DE SALUD HUANCA | H82: 100 | J82: 11 | K82: 13 | L82: 8 | M82: 5 | N82: 11 | O82: 17 | P82: 5 | Q82: 5 | R82: 6 | S82: 8 | T82: 8 | U82: 7 | V82: 8 | W82: 10 | X82: 8 | Y82: 6 | Z82: 11 | AA82: 13 | AB82: 9 | AC82: 12 | AD82: 52 | AE82: 62 | AF82: 58 | AG82: 66 | AH82: 78 | AI82: 82 | AJ82: 77 | AK82: 66 | AL82: 69 | AM82: 55 | AN82: 46 | AO82: 34 | AP82: 28 | AQ82: 32 | AR82: 0 | AS82: 10 | AT82: 6 | AU82: 19 | AV82: 445 | AW82: 18 | AX82: 25 | AY82: 164 | AZ82: 28 | BA82: 986 | BB82: 104 | BC82: 56 | BD82: 135 | BE82: 427 | BF82: 264
A83: 040126 | B83: AREQUIPA | C83: AREQUIPA | D83: AREQUIPA | E83: YANAHUARA | F83: 1241 | G83: PUESTO DE SALUD SUMBAY - CHASQUIPAMPA | H83: 4 | J83: 10 | K83: 12 | L83: 16 | M83: 17 | N83: 15 | O83: 12 | P83: 15 | Q83: 14 | R83: 16 | S83: 16 | T83: 15 | U83: 15 | V83: 14 | W83: 15 | X83: 13 | Y83: 12 | Z83: 13 | AA83: 12 | AB83: 13 | AC83: 14 | AD83: 65 | AE83: 77 | AF83: 82 | AG83: 78 | AH83: 79 | AI83: 82 | AJ83: 73 | AK83: 66 | AL83: 60 | AM83: 52 | AN83: 42 | AO83: 32 | AP83: 23 | AQ83: 26 | AR83: 1 | AS83: 6 | AT83: 7 | AU83: 15 | AV83: 592 | AW83: 34 | AX83: 31 | AY83: 247 | AZ83: 23 | BA83: 1,117 | BB83: 173 | BC83: 78 | BD83: 169 | BE83: 460 | BF83: 237
A84: 040511 | B84: AREQUIPA | C84: AREQUIPA | D84: CAYLLOMA | E84: LLUTA | F84: 1255 | G84: PUESTO DE SALUD LLUTA | H84: 60 | J84: 13 | K84: 4 | L84: 4 | M84: 5 | N84: 3 | O84: 5 | P84: 2 | Q84: 2 | R84: 5 | S84: 2 | T84: 3 | U84: 6 | V84: 5 | W84: 7 | X84: 5 | Y84: 6 | Z84: 5 | AA84: 7 | AB84: 6 | AC84: 4 | AD84: 21 | AE84: 21 | AF84: 27 | AG84: 29 | AH84: 32 | AI84: 34 | AJ84: 30 | AK84: 30 | AL84: 23 | AM84: 20 | AN84: 20 | AO84: 17 | AP84: 12 | AQ84: 12 | AR84: 2 | AS84: 6 | AT84: 3 | AU84: 14 | AV84: 171 | AW84: 11 | AX84: 14 | AY84: 59 | AZ84: 16 | BA84: 429 | BB84: 54 | BC84: 35 | BD84: 51 | BE84: 184 | BF84: 104
F85: 1256 | G85: PUESTO DE SALUD TAYA | H85: 23 | J85: 5 | K85: 1 | L85: 2 | M85: 2 | N85: 1 | O85: 2 | P85: 0 | Q85: 1 | R85: 2 | S85: 1 | T85: 1 | U85: 2 | V85: 2 | W85: 3 | X85: 2 | Y85: 2 | Z85: 2 | AA85: 3 | AB85: 2 | AC85: 1 | AD85: 8 | AE85: 8 | AF85: 11 | AG85: 12 | AH85: 12 | AI85: 13 | AJ85: 11 | AK85: 12 | AL85: 9 | AM85: 7 | AN85: 8 | AO85: 6 | AP85: 5 | AQ85: 5 | AR85: 0 | AS85: 3 | AT85: 1 | AU85: 6 | AV85: 66 | AW85: 4 | AX85: 5 | AY85: 23 | AZ85: 6 | BA85: 164 | BB85: 21 | BC85: 14 | BD85: 20 | BE85: 70 | BF85: 40
A86: 040514 | B86: AREQUIPA | C86: AREQUIPA | D86: CAYLLOMA | E86: SAN ANTONIO DE CHUCA | F86: 1242 | G86: PUESTO DE SALUD IMATA | H86: 60 | J86: 6 | K86: 5 | L86: 7 | M86: 6 | N86: 4 | O86: 7 | P86: 8 | Q86: 8 | R86: 7 | S86: 8 | T86: 11 | U86: 9 | V86: 6 | W86: 7 | X86: 8 | Y86: 8 | Z86: 11 | AA86: 13 | AB86: 9 | AC86: 7 | AD86: 35 | AE86: 37 | AF86: 32 | AG86: 39 | AH86: 38 | AI86: 35 | AJ86: 33 | AK86: 34 | AL86: 28 | AM86: 20 | AN86: 20 | AO86: 10 | AP86: 7 | AQ86: 5 | AR86: 1 | AS86: 7 | AT86: 1 | AU86: 9 | AV86: 253 | AW86: 19 | AX86: 22 | AY86: 107 | AZ86: 12 | BA86: 526 | BB86: 85 | BC86: 52 | BD86: 88 | BE86: 211 | BF86: 89
F87: 1243 | G87: PUESTO DE SALUD PILLONES | H87: 40 | J87: 4 | K87: 3 | L87: 4 | M87: 4 | N87: 3 | O87: 4 | P87: 5 | Q87: 6 | R87: 5 | S87: 5 | T87: 7 | U87: 6 | V87: 4 | W87: 5 | X87: 5 | Y87: 5 | Z87: 7 | AA87: 8 | AB87: 6 | AC87: 4 | AD87: 24 | AE87: 24 | AF87: 21 | AG87: 26 | AH87: 26 | AI87: 23 | AJ87: 22 | AK87: 23 | AL87: 18 | AM87: 13 | AN87: 13 | AO87: 7 | AP87: 4 | AQ87: 4 | AR87: 0 | AS87: 4 | AT87: 1 | AU87: 6 | AV87: 168 | AW87: 12 | AX87: 15 | AY87: 72 | AZ87: 8 | BA87: 350 | BB87: 57 | BC87: 35 | BD87: 58 | BE87: 141 | BF87: 60
A89: 040520 | B89: AREQUIPA | C89: AREQUIPA | D89: CAYLLOMA | E89: MAJES | G89: MR SANDRITA PEREZ-PEDREGAL | I89: =SUM(J89:AQ89) -> 77,518 | J89: =SUM(J90:J98) -> 1,144 | K89: =SUM(K90:K98) -> 1,257 | L89: 1,358 | M89: 1,350 | N89: 1,305 | O89: 1,292 | P89: 1,331 | Q89: 1,439 | R89: 1,249 | S89: 1,256 | T89: 1,206 | U89: 1,273 | V89: 1,268 | W89: 1,258 | X89: 1,216 | Y89: 1,062 | Z89: 1,260 | AA89: 1,230 | AB89: 1,196 | AC89: 1,137 | AD89: 5,655 | AE89: 6,697 | AF89: 6,830 | AG89: 6,770 | AH89: 6,007 | AI89: 5,351 | AJ89: 4,262 | AK89: 3,415 | AL89: 2,559 | AM89: 1,891 | AN89: 1,333 | AO89: 863 | AP89: 449 | AQ89: 349 | AR89: 53 | AS89: 667 | AT89: 763 | AU89: 1,633 | AV89: 38,682 | AW89: 3,064 | AX89: 2,851 | AY89: 18,802 | AZ89: 2,105 | BA89: 77,516 | BB89: 15,459 | BC89: 7,294 | BD89: 14,685 | BE89: 32,634 | BF89: 7,444
F90: 1325 | G90: CENTRO DE SALUD SANDRITA PEREZ EL PEDREGAL | H90: 46 | J90: 517 | K90: 571 | L90: 615 | M90: 614 | N90: 589 | O90: 582 | P90: 607 | Q90: 654 | R90: 569 | S90: 571 | T90: 548 | U90: 577 | V90: 574 | W90: 572 | X90: 554 | Y90: 482 | Z90: 571 | AA90: 555 | AB90: 542 | AC90: 517 | AD90: 2,557 | AE90: 3,037 | AF90: 3,095 | AG90: 3,079 | AH90: 2,724 | AI90: 2,424 | AJ90: 1,916 | AK90: 1,533 | AL90: 1,146 | AM90: 841 | AN90: 594 | AO90: 383 | AP90: 195 | AQ90: 149 | AR90: 23 | AS90: 303 | AT90: 346 | AU90: 739 | AV90: 17,535 | AW90: 1,390 | AX90: 1,295 | AY90: 8,546 | AZ90: 946 | BA90: 35,054 | BB90: 7,011 | BC90: 3,308 | BD90: 6,654 | BE90: 14,770 | BF90: 3,310
F91: 1326 | G91: CENTRO DE SALUD LA COLINA | H91: 41 | J91: 461 | K91: 509 | L91: 547 | M91: 547 | N91: 525 | O91: 518 | P91: 541 | Q91: 583 | R91: 507 | S91: 509 | T91: 487 | U91: 514 | V91: 512 | W91: 510 | X91: 494 | Y91: 429 | Z91: 508 | AA91: 496 | AB91: 483 | AC91: 461 | AD91: 2,280 | AE91: 2,707 | AF91: 2,758 | AG91: 2,743 | AH91: 2,428 | AI91: 2,160 | AJ91: 1,708 | AK91: 1,366 | AL91: 1,021 | AM91: 750 | AN91: 530 | AO91: 342 | AP91: 175 | AQ91: 134 | AR91: 21 | AS91: 269 | AT91: 309 | AU91: 660 | AV91: 15,629 | AW91: 1,238 | AX91: 1,155 | AY91: 7,617 | AZ91: 843 | BA91: 31,244 | BB91: 6,250 | BC91: 2,949 | BD91: 5,931 | BE91: 13,164 | BF91: 2,950
F92: 1341 | G92: ASENTAMIENTO B-1 | H92: 7 | J92: 79 | K92: 87 | L92: 93 | M92: 93 | N92: 90 | O92: 88 | P92: 92 | Q92: 100 | R92: 87 | S92: 87 | T92: 83 | U92: 88 | V92: 87 | W92: 87 | X92: 84 | Y92: 73 | Z92: 87 | AA92: 85 | AB92: 83 | AC92: 79 | AD92: 389 | AE92: 462 | AF92: 471 | AG92: 468 | AH92: 414 | AI92: 369 | AJ92: 292 | AK92: 233 | AL92: 174 | AM92: 128 | AN92: 90 | AO92: 58 | AP92: 30 | AQ92: 23 | AR92: 4 | AS92: 46 | AT92: 53 | AU92: 113 | AV92: 2,668 | AW92: 211 | AX92: 197 | AY92: 1,300 | AZ92: 144 | BA92: 5,334 | BB92: 1,067 | BC92: 503 | BD92: 1,013 | BE92: 2,247 | BF92: 504
F93: 1342 | G93: PUESTO DE SALUD B-2 | H93: 6 | J93: 67 | K93: 75 | L93: 80 | M93: 80 | N93: 77 | O93: 76 | P93: 79 | Q93: 85 | R93: 74 | S93: 75 | T93: 71 | U93: 75 | V93: 75 | W93: 75 | X93: 72 | Y93: 63 | Z93: 74 | AA93: 73 | AB93: 71 | AC93: 68 | AD93: 334 | AE93: 396 | AF93: 404 | AG93: 401 | AH93: 355 | AI93: 316 | AJ93: 250 | AK93: 200 | AL93: 149 | AM93: 110 | AN93: 78 | AO93: 50 | AP93: 26 | AQ93: 20 | AR93: 3 | AS93: 39 | AT93: 45 | AU93: 97 | AV93: 2,287 | AW93: 181 | AX93: 169 | AY93: 1,115 | AZ93: 123 | BA93: 4,572 | BB93: 915 | BC93: 432 | BD93: 868 | BE93: 1,926 | BF93: 432
F94: 1340 | G94: PUESTO DE SALUD QUERQUE | H94: 17 | J94: 4 | K94: 1 | L94: 1 | M94: 1 | N94: 1 | O94: 2 | P94: 0 | Q94: 1 | R94: 1 | S94: 1 | T94: 1 | U94: 2 | V94: 2 | W94: 2 | X94: 1 | Y94: 2 | Z94: 1 | AA94: 2 | AB94: 2 | AC94: 1 | AD94: 6 | AE94: 6 | AF94: 8 | AG94: 9 | AH94: 9 | AI94: 10 | AJ94: 8 | AK94: 9 | AL94: 7 | AM94: 5 | AN94: 6 | AO94: 5 | AP94: 4 | AQ94: 3 | AR94: 0 | AS94: 2 | AT94: 1 | AU94: 4 | AV94: 49 | AW94: 3 | AX94: 4 | AY94: 17 | AZ94: 4 | BA94: 122 | BB94: 15 | BC94: 10 | BD94: 15 | BE94: 52 | BF94: 30
A95: 040118 | B95: AREQUIPA | C95: AREQUIPA | D95: AREQUIPA | E95: SAN JUAN DE SIGUAS | F95: 1339 | G95: PUESTO DE SALUD SAN JUAN DE SIGUAS - TAMBILLO | H95: 100 | J95: 10 | K95: 10 | L95: 9 | M95: 7 | N95: 15 | O95: 18 | P95: 4 | Q95: 7 | R95: 4 | S95: 6 | T95: 9 | U95: 8 | V95: 10 | W95: 4 | X95: 5 | Y95: 5 | Z95: 11 | AA95: 5 | AB95: 7 | AC95: 4 | AD95: 37 | AE95: 41 | AF95: 43 | AG95: 35 | AH95: 42 | AI95: 29 | AJ95: 41 | AK95: 37 | AL95: 26 | AM95: 27 | AN95: 16 | AO95: 11 | AP95: 5 | AQ95: 8 | AR95: 2 | AS95: 7 | AT95: 5 | AU95: 13 | AV95: 233 | AW95: 18 | AX95: 13 | AY95: 92 | AZ95: 34 | BA95: 556 | BB95: 107 | BC95: 40 | BD95: 89 | BE95: 227 | BF95: 93
A96: 040120 | B96: AREQUIPA | C96: AREQUIPA | D96: AREQUIPA | E96: SANTA ISABEL DE SIGUAS | F96: 1336 | G96: SANTA ISABEL DE SIGUAS | H96: 74 | J96: 4 | K96: 2 | L96: 9 | M96: 6 | N96: 6 | O96: 6 | P96: 6 | Q96: 7 | R96: 5 | S96: 5 | T96: 5 | U96: 7 | V96: 6 | W96: 6 | X96: 4 | Y96: 6 | Z96: 6 | AA96: 10 | AB96: 6 | AC96: 5 | AD96: 38 | AE96: 36 | AF96: 37 | AG96: 25 | AH96: 25 | AI96: 31 | AJ96: 35 | AK96: 27 | AL96: 26 | AM96: 22 | AN96: 15 | AO96: 10 | AP96: 10 | AQ96: 8 | AR96: 0 | AS96: 1 | AT96: 2 | AU96: 5 | AV96: 207 | AW96: 17 | AX96: 14 | AY96: 85 | AZ96: 9 | BA96: 470 | BB96: 70 | BC96: 38 | BD96: 85 | BE96: 184 | BF96: 93
F97: 1378 | G97: PUESTO DE SALUD SONDOR | H97: 13 | J97: 1 | K97: 1 | L97: 2 | M97: 1 | N97: 1 | O97: 1 | P97: 1 | Q97: 1 | R97: 1 | S97: 1 | T97: 1 | U97: 1 | V97: 1 | W97: 1 | X97: 1 | Y97: 1 | Z97: 1 | AA97: 2 | AB97: 1 | AC97: 1 | AD97: 7 | AE97: 6 | AF97: 7 | AG97: 5 | AH97: 5 | AI97: 6 | AJ97: 6 | AK97: 5 | AL97: 5 | AM97: 4 | AN97: 2 | AO97: 2 | AP97: 2 | AQ97: 2 | AR97: 0 | AS97: 0 | AT97: 1 | AU97: 1 | AV97: 37 | AW97: 3 | AX97: 2 | AY97: 15 | AZ97: 1 | BA97: 82 | BB97: 12 | BC97: 7 | BD97: 15 | BE97: 32 | BF97: 16
F98: 1337 | G98: PUESTO DE SALUD PITAY | H98: 13 | J98: 1 | K98: 1 | L98: 2 | M98: 1 | N98: 1 | O98: 1 | P98: 1 | Q98: 1 | R98: 1 | S98: 1 | T98: 1 | U98: 1 | V98: 1 | W98: 1 | X98: 1 | Y98: 1 | Z98: 1 | AA98: 2 | AB98: 1 | AC98: 1 | AD98: 7 | AE98: 6 | AF98: 7 | AG98: 5 | AH98: 5 | AI98: 6 | AJ98: 6 | AK98: 5 | AL98: 5 | AM98: 4 | AN98: 2 | AO98: 2 | AP98: 2 | AQ98: 2 | AR98: 0 | AS98: 0 | AT98: 1 | AU98: 1 | AV98: 37 | AW98: 3 | AX98: 2 | AY98: 15 | AZ98: 1 | BA98: 82 | BB98: 12 | BC98: 7 | BD98: 15 | BE98: 32 | BF98: 16
A100: 040102 | B100: AREQUIPA | C100: AREQUIPA | D100: AREQUIPA | E100: ALTO SELVA ALEGRE | G100: MR ALTO SELVA ALEGRE | I100: =SUM(J100:AQ100) -> 93,516 | J100: =SUM(J101:J106) -> 800 | K100: =SUM(K101:K106) -> 1,026 | L100: 1,293 | M100: 1,353 | N100: 1,424 | O100: 1,444 | P100: 1,536 | Q100: 1,590 | R100: 1,581 | S100: 1,500 | T100: 1,468 | U100: 1,489 | V100: 1,490 | W100: 1,476 | X100: 1,398 | Y100: 1,282 | Z100: 1,346 | AA100: 1,316 | AB100: 1,242 | AC100: 1,378 | AD100: 7,418 | AE100: 8,898 | AF100: 8,641 | AG100: 7,426 | AH100: 6,666 | AI100: 5,848 | AJ100: 5,148 | AK100: 4,558 | AL100: 3,839 | AM100: 2,802 | AN100: 1,836 | AO100: 1,236 | AP100: 841 | AQ100: 927 | AR100: 56 | AS100: 618 | AT100: 515 | AU100: 1,242 | AV100: 47,337 | AW100: 3,536 | AX100: 3,214 | AY100: 22,511 | AZ100: 2,436 | BA100: 93,514 | BB100: 16,502 | BC100: 8,309 | BD100: 18,934 | BE100: 38,289 | BF100: 11,482
F101: 1291 | G101: CENTRO DE SALUD ALTO SELVA ALEGRE | H101: 32 | J101: 256 | K101: 328 | L101: 414 | M101: 433 | N101: 455 | O101: 462 | P101: 492 | Q101: 509 | R101: 506 | S101: 480 | T101: 470 | U101: 476 | V101: 477 | W101: 473 | X101: 447 | Y101: 410 | Z101: 431 | AA101: 421 | AB101: 397 | AC101: 441 | AD101: 2,374 | AE101: 2,847 | AF101: 2,765 | AG101: 2,376 | AH101: 2,133 | AI101: 1,872 | AJ101: 1,648 | AK101: 1,459 | AL101: 1,228 | AM101: 897 | AN101: 588 | AO101: 396 | AP101: 269 | AQ101: 297 | AR101: 18 | AS101: 198 | AT101: 165 | AU101: 397 | AV101: 15,148 | AW101: 1,132 | AX101: 1,028 | AY101: 7,204 | AZ101: 780 | BA101: 29,924 | BB101: 5,281 | BC101: 2,659 | BD101: 6,059 | BE101: 12,252 | BF101: 3,674
F102: 1300 | G102: CENTRO DE SALUD APURIMAC | H102: 11 | J102: 88 | K102: 113 | L102: 142 | M102: 149 | N102: 157 | O102: 159 | P102: 169 | Q102: 175 | R102: 174 | S102: 165 | T102: 161 | U102: 164 | V102: 164 | W102: 162 | X102: 154 | Y102: 141 | Z102: 148 | AA102: 145 | AB102: 137 | AC102: 152 | AD102: 816 | AE102: 979 | AF102: 950 | AG102: 817 | AH102: 733 | AI102: 643 | AJ102: 566 | AK102: 501 | AL102: 422 | AM102: 308 | AN102: 202 | AO102: 136 | AP102: 92 | AQ102: 102 | AR102: 6 | AS102: 68 | AT102: 57 | AU102: 137 | AV102: 5,207 | AW102: 389 | AX102: 354 | AY102: 2,476 | AZ102: 268 | BA102: 10,287 | BB102: 1,815 | BC102: 914 | BD102: 2,083 | BE102: 4,212 | BF102: 1,263
F103: 1302 | G103: CENTRO DE SALUD INDEPENDENCIA | H103: 29 | J103: 232 | K103: 298 | L103: 375 | M103: 392 | N103: 413 | O103: 419 | P103: 445 | Q103: 461 | R103: 458 | S103: 435 | T103: 426 | U103: 432 | V103: 432 | W103: 428 | X103: 405 | Y103: 372 | Z103: 390 | AA103: 382 | AB103: 360 | AC103: 400 | AD103: 2,151 | AE103: 2,580 | AF103: 2,506 | AG103: 2,154 | AH103: 1,933 | AI103: 1,696 | AJ103: 1,493 | AK103: 1,322 | AL103: 1,113 | AM103: 813 | AN103: 532 | AO103: 358 | AP103: 244 | AQ103: 269 | AR103: 16 | AS103: 179 | AT103: 149 | AU103: 360 | AV103: 13,728 | AW103: 1,025 | AX103: 932 | AY103: 6,528 | AZ103: 706 | BA103: 27,119 | BB103: 4,786 | BC103: 2,409 | BD103: 5,491 | BE103: 11,104 | BF103: 3,330
F104: 1301 | G104: PUESTO DE SALUD LEONES DEL MISTI | H104: 9 | J104: 72 | K104: 92 | L104: 116 | M104: 122 | N104: 128 | O104: 130 | P104: 138 | Q104: 143 | R104: 142 | S104: 135 | T104: 132 | U104: 134 | V104: 134 | W104: 133 | X104: 126 | Y104: 115 | Z104: 121 | AA104: 118 | AB104: 112 | AC104: 124 | AD104: 668 | AE104: 801 | AF104: 778 | AG104: 668 | AH104: 600 | AI104: 526 | AJ104: 463 | AK104: 410 | AL104: 346 | AM104: 252 | AN104: 165 | AO104: 111 | AP104: 76 | AQ104: 83 | AR104: 5 | AS104: 56 | AT104: 46 | AU104: 112 | AV104: 4,260 | AW104: 318 | AX104: 289 | AY104: 2,026 | AZ104: 219 | BA104: 8,416 | BB104: 1,485 | BC104: 748 | BD104: 1,704 | BE104: 3,446 | BF104: 1,033
F105: 1303 | G105: PUESTO DE SALUD SAN JUAN BAUTISTA | H105: 7 | J105: 56 | K105: 72 | L105: 91 | M105: 95 | N105: 100 | O105: 101 | P105: 108 | Q105: 111 | R105: 111 | S105: 105 | T105: 103 | U105: 104 | V105: 104 | W105: 103 | X105: 98 | Y105: 90 | Z105: 94 | AA105: 92 | AB105: 87 | AC105: 96 | AD105: 519 | AE105: 623 | AF105: 605 | AG105: 520 | AH105: 467 | AI105: 409 | AJ105: 360 | AK105: 319 | AL105: 269 | AM105: 196 | AN105: 129 | AO105: 87 | AP105: 59 | AQ105: 65 | AR105: 4 | AS105: 43 | AT105: 36 | AU105: 87 | AV105: 3,314 | AW105: 248 | AX105: 225 | AY105: 1,576 | AZ105: 171 | BA105: 6,546 | BB105: 1,155 | BC105: 582 | BD105: 1,325 | BE105: 2,680 | BF105: 804
F106: 1304 | G106: PUESTO DE SALUD HEROES DEL CENEPA | H106: 12 | J106: 96 | K106: 123 | L106: 155 | M106: 162 | N106: 171 | O106: 173 | P106: 184 | Q106: 191 | R106: 190 | S106: 180 | T106: 176 | U106: 179 | V106: 179 | W106: 177 | X106: 168 | Y106: 154 | Z106: 162 | AA106: 158 | AB106: 149 | AC106: 165 | AD106: 890 | AE106: 1,068 | AF106: 1,037 | AG106: 891 | AH106: 800 | AI106: 702 | AJ106: 618 | AK106: 547 | AL106: 461 | AM106: 336 | AN106: 220 | AO106: 148 | AP106: 101 | AQ106: 111 | AR106: 7 | AS106: 74 | AT106: 62 | AU106: 149 | AV106: 5,680 | AW106: 424 | AX106: 386 | AY106: 2,701 | AZ106: 292 | BA106: 11,222 | BB106: 1,980 | BC106: 997 | BD106: 2,272 | BE106: 4,595 | BF106: 1,378
A108: 040109 | B108: AREQUIPA | C108: AREQUIPA | D108: AREQUIPA | E108: MARIANO MELGAR | G108: MR MARIANO MELGAR | I108: =SUM(J108:AQ108) -> 44,504 | J108: =SUM(J109:J110) -> 507 | K108: =SUM(K109:K110) -> 493 | L108: 552 | M108: 590 | N108: 623 | O108: 706 | P108: 709 | Q108: 691 | R108: 725 | S108: 708 | T108: 661 | U108: 680 | V108: 694 | W108: 686 | X108: 666 | Y108: 648 | Z108: 656 | AA108: 611 | AB108: 621 | AC108: 654 | AD108: 3,342 | AE108: 3,839 | AF108: 3,828 | AG108: 3,376 | AH108: 3,236 | AI108: 3,033 | AJ108: 2,629 | AK108: 2,237 | AL108: 1,835 | AM108: 1,463 | AN108: 1,068 | AO108: 728 | AP108: 488 | AQ108: 521 | AR108: 32 | AS108: 319 | AT108: 266 | AU108: 668 | AV108: 22,385 | AW108: 1,669 | AX108: 1,589 | AY108: 10,236 | AZ108: 1,099 | BA108: 44,508 | BB108: 7,646 | BC108: 3,960 | BD108: 8,456 | BE108: 18,341 | BF108: 6,105
F109: 1294 | G109: CENTRO DE SALUD MARIANO MELGAR | H109: 58 | J109: 452 | K109: 440 | L109: 492 | M109: 527 | N109: 556 | O109: 630 | P109: 633 | Q109: 617 | R109: 647 | S109: 632 | T109: 590 | U109: 607 | V109: 619 | W109: 612 | X109: 594 | Y109: 578 | Z109: 585 | AA109: 545 | AB109: 554 | AC109: 584 | AD109: 2,982 | AE109: 3,426 | AF109: 3,416 | AG109: 3,012 | AH109: 2,887 | AI109: 2,706 | AJ109: 2,346 | AK109: 1,996 | AL109: 1,637 | AM109: 1,305 | AN109: 953 | AO109: 650 | AP109: 435 | AQ109: 465 | AR109: 28 | AS109: 285 | AT109: 237 | AU109: 596 | AV109: 19,974 | AW109: 1,489 | AX109: 1,418 | AY109: 9,134 | AZ109: 981 | BA109: 39,715 | BB109: 6,823 | BC109: 3,533 | BD109: 7,545 | BE109: 16,366 | BF109: 5,447
F110: 1308 | G110: PUESTO DE SALUD ATALAYA | H110: 7 | J110: 55 | K110: 53 | L110: 60 | M110: 63 | N110: 67 | O110: 76 | P110: 76 | Q110: 74 | R110: 78 | S110: 76 | T110: 71 | U110: 73 | V110: 75 | W110: 74 | X110: 72 | Y110: 70 | Z110: 71 | AA110: 66 | AB110: 67 | AC110: 70 | AD110: 360 | AE110: 413 | AF110: 412 | AG110: 364 | AH110: 349 | AI110: 327 | AJ110: 283 | AK110: 241 | AL110: 198 | AM110: 158 | AN110: 115 | AO110: 78 | AP110: 53 | AQ110: 56 | AR110: 4 | AS110: 34 | AT110: 29 | AU110: 72 | AV110: 2,411 | AW110: 180 | AX110: 171 | AY110: 1,102 | AZ110: 118 | BA110: 4,793 | BB110: 823 | BC110: 427 | BD110: 911 | BE110: 1,975 | BF110: 658
A112: 040109 | B112: AREQUIPA | C112: AREQUIPA | D112: AREQUIPA | E112: MARIANO MELGAR | G112: MR GENERALISIMO SAN MARTIN | I112: =SUM(J112:AQ112) -> 23,971 | J112: =SUM(J113:J115) -> 273 | K112: =SUM(K113:K115) -> 265 | L112: 298 | M112: 317 | N112: 337 | O112: 380 | P112: 383 | Q112: 373 | R112: 390 | S112: 381 | T112: 356 | U112: 366 | V112: 374 | W112: 369 | X112: 360 | Y112: 349 | Z112: 352 | AA112: 328 | AB112: 335 | AC112: 352 | AD112: 1,799 | AE112: 2,067 | AF112: 2,061 | AG112: 1,819 | AH112: 1,743 | AI112: 1,633 | AJ112: 1,416 | AK112: 1,205 | AL112: 990 | AM112: 788 | AN112: 575 | AO112: 392 | AP112: 264 | AQ112: 281 | AR112: 18 | AS112: 171 | AT112: 143 | AU112: 360 | AV112: 12,053 | AW112: 898 | AX112: 855 | AY112: 5,511 | AZ112: 592 | BA112: 23,967 | BB112: 4,118 | BC112: 2,133 | BD112: 4,553 | BE112: 9,875 | BF112: 3,288
F113: 1295 | G113: CENTRO DE SALUD GENERALISIMO SAN MARTIN | H113: 26 | J113: 203 | K113: 197 | L113: 221 | M113: 236 | N113: 250 | O113: 282 | P113: 284 | Q113: 277 | R113: 290 | S113: 283 | T113: 264 | U113: 272 | V113: 278 | W113: 274 | X113: 267 | Y113: 259 | Z113: 262 | AA113: 244 | AB113: 249 | AC113: 262 | AD113: 1,337 | AE113: 1,536 | AF113: 1,531 | AG113: 1,351 | AH113: 1,295 | AI113: 1,213 | AJ113: 1,052 | AK113: 895 | AL113: 735 | AM113: 585 | AN113: 427 | AO113: 291 | AP113: 196 | AQ113: 209 | AR113: 13 | AS113: 127 | AT113: 106 | AU113: 267 | AV113: 8,954 | AW113: 667 | AX113: 635 | AY113: 4,094 | AZ113: 440 | BA113: 17,804 | BB113: 3,059 | BC113: 1,584 | BD113: 3,382 | BE113: 7,336 | BF113: 2,442
F114: 1309 | G114: PUESTO DE SALUD JERUSALEN | H114: 6 | J114: 47 | K114: 45 | L114: 51 | M114: 54 | N114: 58 | O114: 65 | P114: 66 | Q114: 64 | R114: 67 | S114: 65 | T114: 61 | U114: 63 | V114: 64 | W114: 63 | X114: 62 | Y114: 60 | Z114: 60 | AA114: 56 | AB114: 57 | AC114: 60 | AD114: 308 | AE114: 354 | AF114: 353 | AG114: 312 | AH114: 299 | AI114: 280 | AJ114: 243 | AK114: 207 | AL114: 170 | AM114: 135 | AN114: 99 | AO114: 67 | AP114: 45 | AQ114: 48 | AR114: 3 | AS114: 29 | AT114: 25 | AU114: 62 | AV114: 2,066 | AW114: 154 | AX114: 147 | AY114: 945 | AZ114: 101 | BA114: 4,109 | BB114: 706 | BC114: 366 | BD114: 781 | BE114: 1,693 | BF114: 564
F115: 7722 | G115: PUESTO DE SALUD EL MIRADOR | H115: 3 | J115: 23 | K115: 23 | L115: 26 | M115: 27 | N115: 29 | O115: 33 | P115: 33 | Q115: 32 | R115: 33 | S115: 33 | T115: 31 | U115: 31 | V115: 32 | W115: 32 | X115: 31 | Y115: 30 | Z115: 30 | AA115: 28 | AB115: 29 | AC115: 30 | AD115: 154 | AE115: 177 | AF115: 177 | AG115: 156 | AH115: 149 | AI115: 140 | AJ115: 121 | AK115: 103 | AL115: 85 | AM115: 68 | AN115: 49 | AO115: 34 | AP115: 23 | AQ115: 24 | AR115: 2 | AS115: 15 | AT115: 12 | AU115: 31 | AV115: 1,033 | AW115: 77 | AX115: 73 | AY115: 472 | AZ115: 51 | BA115: 2,054 | BB115: 353 | BC115: 183 | BD115: 390 | BE115: 846 | BF115: 282
A117: 040110 | B117: AREQUIPA | C117: AREQUIPA | D117: AREQUIPA | E117: MIRAFLORES | G117: MR EDIFICADORES MISTI | I117: =SUM(J117:AQ117) -> 67,675 | J117: =SUM(J118:J122) -> 749 | K117: =SUM(K118:K122) -> 657 | L117: 813 | M117: 885 | N117: 1,067 | O117: 1,033 | P117: 1,027 | Q117: 1,062 | R117: 1,128 | S117: 989 | T117: 1,025 | U117: 985 | V117: 982 | W117: 981 | X117: 936 | Y117: 859 | Z117: 925 | AA117: 882 | AB117: 906 | AC117: 974 | AD117: 5,174 | AE117: 5,872 | AF117: 5,799 | AG117: 5,223 | AH117: 5,142 | AI117: 4,785 | AJ117: 4,123 | AK117: 3,400 | AL117: 2,807 | AM117: 2,178 | AN117: 1,584 | AO117: 1,131 | AP117: 756 | AQ117: 836 | AR117: 39 | AS117: 448 | AT117: 402 | AU117: 978 | AV117: 33,650 | AW117: 2,427 | AX117: 2,286 | AY117: 15,647 | AZ117: 1,668 | BA117: 67,675 | BB117: 11,420 | BC117: 5,565 | BD117: 12,926 | BE117: 28,472 | BF117: 9,292
F118: 1293 | G118: CENTRO DE SALUD MIRAFLORES | H118: 34 | J118: 255 | K118: 223 | L118: 276 | M118: 301 | N118: 363 | O118: 351 | P118: 349 | Q118: 361 | R118: 384 | S118: 336 | T118: 349 | U118: 335 | V118: 334 | W118: 334 | X118: 318 | Y118: 292 | Z118: 315 | AA118: 300 | AB118: 308 | AC118: 331 | AD118: 1,759 | AE118: 1,996 | AF118: 1,972 | AG118: 1,776 | AH118: 1,748 | AI118: 1,627 | AJ118: 1,402 | AK118: 1,156 | AL118: 954 | AM118: 741 | AN118: 539 | AO118: 385 | AP118: 257 | AQ118: 284 | AR118: 13 | AS118: 152 | AT118: 137 | AU118: 333 | AV118: 11,441 | AW118: 825 | AX118: 777 | AY118: 5,320 | AZ118: 567 | BA118: 23,010 | BB118: 3,883 | BC118: 1,892 | BD118: 4,395 | BE118: 9,680 | BF118: 3,159
F119: 1292 | G119: CENTRO DE SALUD EDIFICADORES MISTI | H119: 40 | J119: 299 | K119: 262 | L119: 326 | M119: 353 | N119: 427 | O119: 413 | P119: 411 | Q119: 425 | R119: 451 | S119: 396 | T119: 409 | U119: 393 | V119: 392 | W119: 393 | X119: 374 | Y119: 343 | Z119: 369 | AA119: 352 | AB119: 363 | AC119: 390 | AD119: 2,070 | AE119: 2,349 | AF119: 2,319 | AG119: 2,089 | AH119: 2,058 | AI119: 1,913 | AJ119: 1,649 | AK119: 1,360 | AL119: 1,122 | AM119: 871 | AN119: 633 | AO119: 453 | AP119: 303 | AQ119: 334 | AR119: 16 | AS119: 179 | AT119: 161 | AU119: 391 | AV119: 13,460 | AW119: 971 | AX119: 914 | AY119: 6,258 | AZ119: 668 | BA119: 27,069 | BB119: 4,567 | BC119: 2,226 | BD119: 5,170 | BE119: 11,389 | BF119: 3,718
F120: 1306 | G120: CENTRO DE SALUD PORVENIR-MIRAFLORES | H120: 10 | J120: 75 | K120: 66 | L120: 81 | M120: 89 | N120: 107 | O120: 103 | P120: 103 | Q120: 106 | R120: 113 | S120: 99 | T120: 103 | U120: 99 | V120: 98 | W120: 98 | X120: 94 | Y120: 86 | Z120: 93 | AA120: 88 | AB120: 91 | AC120: 97 | AD120: 517 | AE120: 587 | AF120: 580 | AG120: 522 | AH120: 514 | AI120: 479 | AJ120: 412 | AK120: 340 | AL120: 281 | AM120: 218 | AN120: 158 | AO120: 113 | AP120: 76 | AQ120: 84 | AR120: 4 | AS120: 45 | AT120: 40 | AU120: 98 | AV120: 3,365 | AW120: 243 | AX120: 229 | AY120: 1,565 | AZ120: 167 | BA120: 6,768 | BB120: 1,142 | BC120: 557 | BD120: 1,293 | BE120: 2,847 | BF120: 929
F121: 1307 | G121: CENTRO DE SALUD MATEO PUMACAHUA | H121: 8 | J121: 60 | K121: 53 | L121: 65 | M121: 71 | N121: 85 | O121: 83 | P121: 82 | Q121: 85 | R121: 90 | S121: 79 | T121: 82 | U121: 79 | V121: 79 | W121: 78 | X121: 75 | Y121: 69 | Z121: 74 | AA121: 71 | AB121: 72 | AC121: 78 | AD121: 414 | AE121: 470 | AF121: 464 | AG121: 418 | AH121: 411 | AI121: 383 | AJ121: 330 | AK121: 272 | AL121: 225 | AM121: 174 | AN121: 127 | AO121: 90 | AP121: 60 | AQ121: 67 | AR121: 3 | AS121: 36 | AT121: 32 | AU121: 78 | AV121: 2,692 | AW121: 194 | AX121: 183 | AY121: 1,252 | AZ121: 133 | BA121: 5,414 | BB121: 914 | BC121: 445 | BD121: 1,034 | BE121: 2,278 | BF121: 743
F122: 1305 | G122: PUESTO DE SALUD TOMASA T. COMDEMAYTA | H122: 8 | J122: 60 | K122: 53 | L122: 65 | M122: 71 | N122: 85 | O122: 83 | P122: 82 | Q122: 85 | R122: 90 | S122: 79 | T122: 82 | U122: 79 | V122: 79 | W122: 78 | X122: 75 | Y122: 69 | Z122: 74 | AA122: 71 | AB122: 72 | AC122: 78 | AD122: 414 | AE122: 470 | AF122: 464 | AG122: 418 | AH122: 411 | AI122: 383 | AJ122: 330 | AK122: 272 | AL122: 225 | AM122: 174 | AN122: 127 | AO122: 90 | AP122: 60 | AQ122: 67 | AR122: 3 | AS122: 36 | AT122: 32 | AU122: 78 | AV122: 2,692 | AW122: 194 | AX122: 183 | AY122: 1,252 | AZ122: 133 | BA122: 5,414 | BB122: 914 | BC122: 445 | BD122: 1,034 | BE122: 2,278 | BF122: 743
A124: 040112 | B124: AREQUIPA | C124: AREQUIPA | D124: AREQUIPA | E124: PAUCARPATA | G124: MR 15 DE AGOSTO | I124: =SUM(J124:AQ124) -> 46,105 | J124: =SUM(J125:J128) -> 537 | K124: =SUM(K125:K128) -> 514 | L124: 607 | M124: 705 | N124: 752 | O124: 766 | P124: 778 | Q124: 802 | R124: 778 | S124: 757 | T124: 747 | U124: 752 | V124: 775 | W124: 762 | X124: 701 | Y124: 701 | Z124: 711 | AA124: 677 | AB124: 675 | AC124: 676 | AD124: 3,483 | AE124: 3,880 | AF124: 3,804 | AG124: 3,563 | AH124: 3,493 | AI124: 3,229 | AJ124: 2,699 | AK124: 2,074 | AL124: 1,569 | AM124: 1,330 | AN124: 1,026 | AO124: 808 | AP124: 508 | AQ124: 466 | AR124: 39 | AS124: 318 | AT124: 302 | AU124: 711 | AV124: 22,787 | AW124: 1,801 | AX124: 1,695 | AY124: 10,404 | AZ124: 1,105 | BA124: 46,103 | BB124: 8,493 | BC124: 4,327 | BD124: 8,715 | BE124: 18,863 | BF124: 5,707
F125: 1298 | G125: CENTRO DE SALUD 15 DE AGOSTO | H125: 13.57 | J125: 222 | K125: 213 | L125: 251 | M125: 291 | N125: 311 | O125: 317 | P125: 322 | Q125: 332 | R125: 322 | S125: 313 | T125: 309 | U125: 311 | V125: 321 | W125: 315 | X125: 290 | Y125: 290 | Z125: 294 | AA125: 280 | AB125: 279 | AC125: 280 | AD125: 1,441 | AE125: 1,605 | AF125: 1,574 | AG125: 1,474 | AH125: 1,445 | AI125: 1,336 | AJ125: 1,117 | AK125: 858 | AL125: 649 | AM125: 550 | AN125: 424 | AO125: 334 | AP125: 210 | AQ125: 193 | AR125: 16 | AS125: 132 | AT125: 125 | AU125: 294 | AV125: 9,427 | AW125: 745 | AX125: 701 | AY125: 4,304 | AZ125: 457 | BA125: 19,074 | BB125: 3,514 | BC125: 1,790 | BD125: 3,606 | BE125: 7,804 | BF125: 2,361
F126: 1316 | G126: PUESTO DE SALUD MIGUEL GRAU MODULO A | H126: 6.32 | J126: 104 | K126: 99 | L126: 117 | M126: 136 | N126: 145 | O126: 147 | P126: 150 | Q126: 154 | R126: 150 | S126: 146 | T126: 144 | U126: 145 | V126: 149 | W126: 147 | X126: 135 | Y126: 135 | Z126: 137 | AA126: 131 | AB126: 130 | AC126: 130 | AD126: 671 | AE126: 748 | AF126: 733 | AG126: 687 | AH126: 673 | AI126: 622 | AJ126: 520 | AK126: 400 | AL126: 302 | AM126: 256 | AN126: 198 | AO126: 156 | AP126: 98 | AQ126: 90 | AR126: 7 | AS126: 61 | AT126: 58 | AU126: 137 | AV126: 4,391 | AW126: 347 | AX126: 327 | AY126: 2,005 | AZ126: 213 | BA126: 8,883 | BB126: 1,636 | BC126: 834 | BD126: 1,679 | BE126: 3,635 | BF126: 1,100
F127: 1317 | G127: CENTRO DE SALUD MIGUEL GRAU B | H127: 6.5 | J127: 106 | K127: 102 | L127: 120 | M127: 140 | N127: 149 | O127: 152 | P127: 154 | Q127: 159 | R127: 154 | S127: 150 | T127: 148 | U127: 149 | V127: 154 | W127: 151 | X127: 139 | Y127: 139 | Z127: 141 | AA127: 134 | AB127: 134 | AC127: 134 | AD127: 690 | AE127: 769 | AF127: 754 | AG127: 706 | AH127: 692 | AI127: 640 | AJ127: 535 | AK127: 411 | AL127: 311 | AM127: 264 | AN127: 203 | AO127: 160 | AP127: 101 | AQ127: 92 | AR127: 8 | AS127: 63 | AT127: 60 | AU127: 141 | AV127: 4,516 | AW127: 357 | AX127: 336 | AY127: 2,062 | AZ127: 219 | BA127: 9,136 | BB127: 1,683 | BC127: 857 | BD127: 1,727 | BE127: 3,738 | BF127: 1,131
F128: 1318 | G128: PUESTO DE SALUD MIGUEL GRAU MODULO C-D | H128: 6.41 | J128: 105 | K128: 100 | L128: 119 | M128: 138 | N128: 147 | O128: 150 | P128: 152 | Q128: 157 | R128: 152 | S128: 148 | T128: 146 | U128: 147 | V128: 151 | W128: 149 | X128: 137 | Y128: 137 | Z128: 139 | AA128: 132 | AB128: 132 | AC128: 132 | AD128: 681 | AE128: 758 | AF128: 743 | AG128: 696 | AH128: 683 | AI128: 631 | AJ128: 527 | AK128: 405 | AL128: 307 | AM128: 260 | AN128: 201 | AO128: 158 | AP128: 99 | AQ128: 91 | AR128: 8 | AS128: 62 | AT128: 59 | AU128: 139 | AV128: 4,453 | AW128: 352 | AX128: 331 | AY128: 2,033 | AZ128: 216 | BA128: 9,010 | BB128: 1,660 | BC128: 846 | BD128: 1,703 | BE128: 3,686 | BF128: 1,115
A130: 040112 | B130: AREQUIPA | C130: AREQUIPA | D130: AREQUIPA | E130: PAUCARPATA | G130: MR AMPLIACION PAUCARPATA | I130: =SUM(J130:AQ130) -> 53,415 | J130: =SUM(J131:J134) -> 623 | K130: 595 | L130: 702 | M130: 815 | N130: 871 | O130: 886 | P130: 900 | Q130: 928 | R130: 904 | S130: 875 | T130: 865 | U130: 873 | V130: 897 | W130: 883 | X130: 815 | Y130: 811 | Z130: 822 | AA130: 786 | AB130: 782 | AC130: 784 | AD130: 4,037 | AE130: 4,495 | AF130: 4,406 | AG130: =SUM(AG131:AG134) -> 4,128 | AH130: =SUM(AH131:AH134) -> 4,049 | AI130: 3,742 | AJ130: 3,126 | AK130: 2,403 | AL130: 1,817 | AM130: 1,541 | AN130: 1,188 | AO130: 936 | AP130: 590 | AQ130: 540 | AR130: 44 | AS130: 372 | AT130: 352 | AU130: 820 | AV130: 26,401 | AW130: 2,083 | AX130: 1,964 | AY130: 12,053 | AZ130: 1,279 | BA130: 53,415 | BB130: 9,838 | BC130: 5,013 | BD130: 10,096 | BE130: 21,853 | BF130: 6,610
F131: 1296 | G131: CENTRO DE SALUD AMPLIACIÓN PAUCARPATA | H131: 15 | J131: 246 | K131: 235 | L131: 277 | M131: 321 | N131: 343 | O131: 349 | P131: 355 | Q131: 366 | R131: 358 | S131: 345 | T131: 341 | U131: 345 | V131: 354 | W131: 349 | X131: 323 | Y131: 320 | Z131: 324 | AA131: 311 | AB131: 309 | AC131: 310 | AD131: 1,594 | AE131: 1,775 | AF131: 1,738 | AG131: 1,629 | AH131: 1,599 | AI131: 1,477 | AJ131: 1,234 | AK131: 949 | AL131: 717 | AM131: 609 | AN131: 469 | AO131: 369 | AP131: 233 | AQ131: 214 | AR131: 17 | AS131: 148 | AT131: 140 | AU131: 322 | AV131: 10,422 | AW131: 822 | AX131: 776 | AY131: 4,758 | AZ131: 505 | BA131: 21,086 | BB131: 3,882 | BC131: 1,978 | BD131: 3,985 | BE131: 8,626 | BF131: 2,608
F132: 1310 | G132: CENTRO DE SALUD MANUEL PRADO | H132: 12 | J132: 197 | K132: 188 | L132: 222 | M132: 258 | N132: 275 | O132: 280 | P132: 284 | Q132: 293 | R132: 285 | S132: 277 | T132: 273 | U132: 275 | V132: 283 | W132: 279 | X132: 257 | Y132: 256 | Z132: 260 | AA132: 248 | AB132: 247 | AC132: 247 | AD132: 1,275 | AE132: 1,419 | AF132: 1,392 | AG132: 1,304 | AH132: 1,278 | AI132: 1,182 | AJ132: 987 | AK132: 759 | AL132: 574 | AM132: 486 | AN132: 375 | AO132: 296 | AP132: 186 | AQ132: 170 | AR132: 14 | AS132: 117 | AT132: 111 | AU132: 260 | AV132: 8,337 | AW132: 658 | AX132: 620 | AY132: 3,806 | AZ132: 404 | BA132: 16,867 | BB132: 3,107 | BC132: 1,583 | BD132: 3,188 | BE132: 6,901 | BF132: 2,088
F133: 1313 | G133: CENTRO DE SALUD NUEVA ALBORADA | H133: 6 | J133: 98 | K133: 94 | L133: 111 | M133: 129 | N133: 138 | O133: 140 | P133: 142 | Q133: 147 | R133: 142 | S133: 138 | T133: 137 | U133: 138 | V133: 142 | W133: 139 | X133: 128 | Y133: 128 | Z133: 130 | AA133: 124 | AB133: 123 | AC133: 124 | AD133: 637 | AE133: 710 | AF133: 696 | AG133: 652 | AH133: 639 | AI133: 591 | AJ133: 494 | AK133: 379 | AL133: 287 | AM133: 243 | AN133: 188 | AO133: 148 | AP133: 93 | AQ133: 85 | AR133: 7 | AS133: 58 | AT133: 55 | AU133: 130 | AV133: 4,168 | AW133: 329 | AX133: 310 | AY133: 1,903 | AZ133: 202 | BA133: 8,434 | BB133: 1,554 | BC133: 792 | BD133: 1,594 | BE133: 3,451 | BF133: 1,044
F134: 1315 | G134: CENTRO DE SALUD CAMPO MARTE | H134: 5 | J134: 82 | K134: 78 | L134: 92 | M134: 107 | N134: 115 | O134: 117 | P134: 119 | Q134: 122 | R134: 119 | S134: 115 | T134: 114 | U134: 115 | V134: 118 | W134: 116 | X134: 107 | Y134: 107 | Z134: 108 | AA134: 103 | AB134: 103 | AC134: 103 | AD134: 531 | AE134: 591 | AF134: 580 | AG134: 543 | AH134: 533 | AI134: 492 | AJ134: 411 | AK134: 316 | AL134: 239 | AM134: 203 | AN134: 156 | AO134: 123 | AP134: 78 | AQ134: 71 | AR134: 6 | AS134: 49 | AT134: 46 | AU134: 108 | AV134: 3,474 | AW134: 274 | AX134: 258 | AY134: 1,586 | AZ134: 168 | BA134: 7,028 | BB134: 1,295 | BC134: 660 | BD134: 1,329 | BE134: 2,875 | BF134: 870
A136: 040112 | B136: AREQUIPA | C136: AREQUIPA | D136: AREQUIPA | E136: PAUCARPATA | G136: MR CIUDAD BLANCA | I136: =SUM(J136:AQ136) -> 41,041 | J136: =SUM(J137:J141) -> 478 | K136: =SUM(K137:K141) -> 457 | L136: 540 | M136: 628 | N136: 669 | O136: 681 | P136: 692 | Q136: 714 | R136: 692 | S136: 674 | T136: 666 | U136: 669 | V136: 690 | W136: 677 | X136: 624 | Y136: 624 | Z136: 633 | AA136: 603 | AB136: 601 | AC136: 602 | AD136: 3,101 | AE136: 3,454 | AF136: 3,387 | AG136: 3,172 | AH136: 3,109 | AI136: 2,876 | AJ136: 2,403 | AK136: 1,846 | AL136: 1,396 | AM136: 1,183 | AN136: 914 | AO136: 719 | AP136: 453 | AQ136: 414 | AR136: 35 | AS136: 283 | AT136: 268 | AU136: 632 | AV136: 20,285 | AW136: 1,603 | AX136: 1,510 | AY136: 9,262 | AZ136: 984 | BA136: 41,043 | BB136: 7,561 | BC136: 3,852 | BD136: 7,759 | BE136: 16,793 | BF136: 5,081
F137: 1297 | G137: CENTRO DE SALUD CIUDAD BLANCA | H137: 10 | J137: 164 | K137: 157 | L137: 185 | M137: 215 | N137: 229 | O137: 233 | P137: 237 | Q137: 244 | R137: 237 | S137: 231 | T137: 228 | U137: 229 | V137: 236 | W137: 232 | X137: 214 | Y137: 214 | Z137: 217 | AA137: 207 | AB137: 206 | AC137: 206 | AD137: 1,062 | AE137: 1,183 | AF137: 1,160 | AG137: 1,086 | AH137: 1,065 | AI137: 985 | AJ137: 823 | AK137: 632 | AL137: 478 | AM137: 405 | AN137: 313 | AO137: 246 | AP137: 155 | AQ137: 142 | AR137: 12 | AS137: 97 | AT137: 92 | AU137: 216 | AV137: 6,947 | AW137: 549 | AX137: 517 | AY137: 3,172 | AZ137: 337 | BA137: 14,056 | BB137: 2,589 | BC137: 1,319 | BD137: 2,657 | BE137: 5,751 | BF137: 1,740
F138: 1314 | G138: SAN JUAN DE CIUDAD BLANCA | H138: 6 | J138: 98 | K138: 94 | L138: 111 | M138: 129 | N138: 138 | O138: 140 | P138: 142 | Q138: 147 | R138: 142 | S138: 138 | T138: 137 | U138: 138 | V138: 142 | W138: 139 | X138: 128 | Y138: 128 | Z138: 130 | AA138: 124 | AB138: 123 | AC138: 124 | AD138: 637 | AE138: 710 | AF138: 696 | AG138: 652 | AH138: 639 | AI138: 591 | AJ138: 494 | AK138: 379 | AL138: 287 | AM138: 243 | AN138: 188 | AO138: 148 | AP138: 93 | AQ138: 85 | AR138: 7 | AS138: 58 | AT138: 55 | AU138: 130 | AV138: 4,168 | AW138: 329 | AX138: 310 | AY138: 1,903 | AZ138: 202 | BA138: 8,434 | BB138: 1,554 | BC138: 792 | BD138: 1,594 | BE138: 3,451 | BF138: 1,044
F139: 1311 | G139: PUESTO DE SALUD ALTO JESUS | H139: 2.2 | J139: 36 | K139: 34 | L139: 41 | M139: 47 | N139: 50 | O139: 51 | P139: 52 | Q139: 54 | R139: 52 | S139: 51 | T139: 50 | U139: 50 | V139: 52 | W139: 51 | X139: 47 | Y139: 47 | Z139: 48 | AA139: 45 | AB139: 45 | AC139: 45 | AD139: 234 | AE139: 260 | AF139: 255 | AG139: 239 | AH139: 234 | AI139: 217 | AJ139: 181 | AK139: 139 | AL139: 105 | AM139: 89 | AN139: 69 | AO139: 54 | AP139: 34 | AQ139: 31 | AR139: 3 | AS139: 21 | AT139: 20 | AU139: 48 | AV139: 1,528 | AW139: 121 | AX139: 114 | AY139: 698 | AZ139: 74 | BA139: 3,092 | BB139: 570 | BC139: 290 | BD139: 585 | BE139: 1,265 | BF139: 383
F140: 1312 | G140: PUESTO DE SALUD ISRAEL | H140: 4.5 | J140: 74 | K140: 70 | L140: 83 | M140: 97 | N140: 103 | O140: 105 | P140: 107 | Q140: 110 | R140: 107 | S140: 104 | T140: 103 | U140: 103 | V140: 106 | W140: 104 | X140: 96 | Y140: 96 | Z140: 97 | AA140: 93 | AB140: 93 | AC140: 93 | AD140: 478 | AE140: 532 | AF140: 522 | AG140: 489 | AH140: 479 | AI140: 443 | AJ140: 370 | AK140: 285 | AL140: 215 | AM140: 182 | AN140: 141 | AO140: 111 | AP140: 70 | AQ140: 64 | AR140: 5 | AS140: 44 | AT140: 41 | AU140: 97 | AV140: 3,126 | AW140: 247 | AX140: 233 | AY140: 1,427 | AZ140: 152 | BA140: 6,325 | BB140: 1,165 | BC140: 594 | BD140: 1,196 | BE140: 2,588 | BF140: 783
F141: 7744 | G141: PUESTO DE SALUD VILLA JESUS | H141: 6.5 | J141: 106 | K141: 102 | L141: 120 | M141: 140 | N141: 149 | O141: 152 | P141: 154 | Q141: 159 | R141: 154 | S141: 150 | T141: 148 | U141: 149 | V141: 154 | W141: 151 | X141: 139 | Y141: 139 | Z141: 141 | AA141: 134 | AB141: 134 | AC141: 134 | AD141: 690 | AE141: 769 | AF141: 754 | AG141: 706 | AH141: 692 | AI141: 640 | AJ141: 535 | AK141: 411 | AL141: 311 | AM141: 264 | AN141: 203 | AO141: 160 | AP141: 101 | AQ141: 92 | AR141: 8 | AS141: 63 | AT141: 60 | AU141: 141 | AV141: 4,516 | AW141: 357 | AX141: 336 | AY141: 2,062 | AZ141: 219 | BA141: 9,136 | BB141: 1,683 | BC141: 857 | BD141: 1,727 | BE141: 3,738 | BF141: 1,131
A143: 040106 | B143: AREQUIPA | C143: AREQUIPA | D143: AREQUIPA | E143: CHIGUATA | G143: MR CHIGUATA | I143: =SUM(J143:AQ143) -> 4,629 | J143: =SUM(J144:J147) -> 86 | K143: =SUM(K144:K147) -> 80 | L143: 89 | M143: 88 | N143: 72 | O143: 104 | P143: 54 | Q143: 67 | R143: 60 | S143: 59 | T143: 52 | U143: 65 | V143: 47 | W143: 50 | X143: 53 | Y143: 60 | Z143: 34 | AA143: 56 | AB143: 53 | AC143: 50 | AD143: 297 | AE143: 355 | AF143: 395 | AG143: 375 | AH143: 351 | AI143: 307 | AJ143: 275 | AK143: 251 | AL143: 190 | AM143: 181 | AN143: 139 | AO143: 91 | AP143: 71 | AQ143: 72 | AR143: 6 | AS143: 43 | AT143: 46 | AU143: 105 | AV143: 2,181 | AW143: 119 | AX143: 115 | AY143: 1,012 | AZ143: 196 | BA143: 4,629 | BB143: 876 | BC143: 300 | BD143: 755 | BE143: 1,954 | BF143: 744
F144: 1299 | G144: CENTRO DE SALUD CHIGUATA | H144: 80 | J144: 46 | K144: 48 | L144: 51 | M144: 49 | N144: 34 | O144: 57 | P144: 38 | Q144: 46 | R144: 41 | S144: 38 | T144: 33 | U144: 44 | V144: 32 | W144: 28 | X144: 36 | Y144: 38 | Z144: 21 | AA144: 32 | AB144: 33 | AC144: 31 | AD144: 184 | AE144: 210 | AF144: 239 | AG144: 214 | AH144: 186 | AI144: 168 | AJ144: 154 | AK144: 133 | AL144: 101 | AM144: 105 | AN144: 83 | AO144: 51 | AP144: 38 | AQ144: 41 | AR144: 3 | AS144: 26 | AT144: 26 | AU144: 60 | AV144: 1,261 | AW144: 77 | AX144: 70 | AY144: 579 | AZ144: 123 | BA144: 2,681 | BB144: 525 | BC144: 186 | BD144: 458 | BE144: 1,093 | BF144: 418
F145: 1320 | G145: PUESTO DE SALUD ARENALES | H145: 20 | J145: 12 | K145: 12 | L145: 13 | M145: 12 | N145: 9 | O145: 14 | P145: 9 | Q145: 11 | R145: 10 | S145: 10 | T145: 8 | U145: 11 | V145: 8 | W145: 7 | X145: 9 | Y145: 9 | Z145: 5 | AA145: 8 | AB145: 8 | AC145: 8 | AD145: 46 | AE145: 53 | AF145: 60 | AG145: 53 | AH145: 46 | AI145: 42 | AJ145: 38 | AK145: 33 | AL145: 25 | AM145: 26 | AN145: 21 | AO145: 13 | AP145: 9 | AQ145: 10 | AR145: 1 | AS145: 6 | AT145: 6 | AU145: 15 | AV145: 315 | AW145: 19 | AX145: 17 | AY145: 145 | AZ145: 31 | BA145: 670 | BB145: 131 | BC145: 47 | BD145: 115 | BE145: 273 | BF145: 105
A146: 040119 | B146: AREQUIPA | C146: AREQUIPA | D146: AREQUIPA | E146: SAN JUAN DE TARUCANI | F146: 1319 | G146: PUESTO DE SALUD SAN JUAN DE TARUCANI | H146: 80 | J146: 22 | K146: 16 | L146: 20 | M146: 22 | N146: 23 | O146: 26 | P146: 6 | Q146: 8 | R146: 7 | S146: 9 | T146: 9 | U146: 8 | V146: 6 | W146: 12 | X146: 6 | Y146: 10 | Z146: 6 | AA146: 13 | AB146: 10 | AC146: 9 | AD146: 54 | AE146: 74 | AF146: 77 | AG146: 86 | AH146: 95 | AI146: 78 | AJ146: 66 | AK146: 68 | AL146: 51 | AM146: 40 | AN146: 28 | AO146: 22 | AP146: 19 | AQ146: 17 | AR146: 2 | AS146: 9 | AT146: 11 | AU146: 24 | AV146: 484 | AW146: 18 | AX146: 22 | AY146: 230 | AZ146: 34 | BA146: 1,022 | BB146: 176 | BC146: 54 | BD146: 146 | BE146: 470 | BF146: 177
F147: 1321 | G147: PUESTO DE SALUD SALINAS HUITO | H147: 20 | J147: 6 | K147: 4 | L147: 5 | M147: 5 | N147: 6 | O147: 7 | P147: 1 | Q147: 2 | R147: 2 | S147: 2 | T147: 2 | U147: 2 | V147: 1 | W147: 3 | X147: 2 | Y147: 3 | Z147: 2 | AA147: 3 | AB147: 2 | AC147: 2 | AD147: 13 | AE147: 18 | AF147: 19 | AG147: 22 | AH147: 24 | AI147: 19 | AJ147: 17 | AK147: 17 | AL147: 13 | AM147: 10 | AN147: 7 | AO147: 5 | AP147: 5 | AQ147: 4 | AR147: 0 | AS147: 2 | AT147: 3 | AU147: 6 | AV147: 121 | AW147: 5 | AX147: 6 | AY147: 58 | AZ147: 8 | BA147: 256 | BB147: 44 | BC147: 13 | BD147: 36 | BE147: 118 | BF147: 44
A149: 040105 | B149: AREQUIPA | C149: AREQUIPA | D149: AREQUIPA | E149: CHARACATO | G149: MR CHARACATO | I149: =SUM(J149:AQ149) -> 40,987 | J149: =SUM(J150:J158) -> 456 | K149: =SUM(K150:K158) -> 429 | L149: 467 | M149: 454 | N149: 421 | O149: 379 | P149: 675 | Q149: 687 | R149: 612 | S149: 587 | T149: 616 | U149: 592 | V149: 615 | W149: 565 | X149: 547 | Y149: 566 | Z149: 550 | AA149: 509 | AB149: 588 | AC149: 581 | AD149: 2,768 | AE149: 3,344 | AF149: 3,773 | AG149: 3,754 | AH149: 3,364 | AI149: 3,082 | AJ149: 2,382 | AK149: 2,031 | AL149: 1,651 | AM149: 1,319 | AN149: 996 | AO149: 732 | AP149: 473 | AQ149: 422 | AR149: 29 | AS149: 281 | AT149: 240 | AU149: 603 | AV149: 20,632 | AW149: 1,438 | AX149: 1,382 | AY149: 10,197 | AZ149: 970 | BA149: 40,987 | BB149: 6,375 | BC149: 3,352 | BD149: 7,281 | BE149: 18,386 | BF149: 5,593
F150: 1261 | G150: CENTRO DE SALUD DE CHARACATO | H150: 100 | J150: 196 | K150: 160 | L150: 203 | M150: 218 | N150: 195 | O150: 168 | P150: 365 | Q150: 324 | R150: 276 | S150: 281 | T150: 292 | U150: 286 | V150: 317 | W150: 301 | X150: 260 | Y150: 261 | Z150: 264 | AA150: 236 | AB150: 263 | AC150: 323 | AD150: 1,402 | AE150: 1,457 | AF150: 1,474 | AG150: 1,481 | AH150: 1,459 | AI150: 1,287 | AJ150: 1,001 | AK150: 835 | AL150: 636 | AM150: 551 | AN150: 394 | AO150: 299 | AP150: 193 | AQ150: 158 | AR150: 14 | AS150: 101 | AT150: 98 | AU150: 227 | AV150: 9,021 | AW150: 712 | AX150: 667 | AY150: 4,324 | AZ150: 366 | BA150: 17,816 | BB150: 2,964 | BC150: 1,639 | BD150: 3,445 | BE150: 7,537 | BF150: 2,231
A151: 040111 | B151: AREQUIPA | C151: AREQUIPA | D151: AREQUIPA | E151: MOLLEBAYA | F151: 1285 | G151: PUESTO DE SALUD MOLLEBAYA | H151: 30 | J151: 24 | K151: 18 | L151: 21 | M151: 19 | N151: 21 | O151: 21 | P151: 33 | Q151: 49 | R151: 48 | S151: 38 | T151: 36 | U151: 37 | V151: 29 | W151: 32 | X151: 36 | Y151: 36 | Z151: 34 | AA151: 32 | AB151: 36 | AC151: 24 | AD151: 142 | AE151: 201 | AF151: 253 | AG151: 224 | AH151: 194 | AI151: 179 | AJ151: 105 | AK151: 102 | AL151: 89 | AM151: 67 | AN151: 51 | AO151: 35 | AP151: 18 | AQ151: 18 | AR151: 2 | AS151: 15 | AT151: 11 | AU151: 31 | AV151: 1,163 | AW151: 85 | AX151: 80 | AY151: 616 | AZ151: 54 | BA151: 2,302 | BB151: 366 | BC151: 199 | BD151: 402 | BE151: 1,057 | BF151: 278
F152: 11677 | G152: PUESTO DE SALUD MACHAHUAYA | H152: 70 | J152: 57 | K152: 42 | L152: 49 | M152: 45 | N152: 48 | O152: 50 | P152: 76 | Q152: 115 | R152: 112 | S152: 90 | T152: 85 | U152: 86 | V152: 69 | W152: 73 | X152: 84 | Y152: 83 | Z152: 80 | AA152: 75 | AB152: 83 | AC152: 56 | AD152: 331 | AE152: 468 | AF152: 591 | AG152: 524 | AH152: 452 | AI152: 417 | AJ152: 244 | AK152: 237 | AL152: 206 | AM152: 156 | AN152: 119 | AO152: 82 | AP152: 42 | AQ152: 43 | AR152: 3 | AS152: 36 | AT152: 27 | AU152: 72 | AV152: 2,714 | AW152: 199 | AX152: 186 | AY152: 1,437 | AZ152: 126 | BA152: 5,370 | BB152: 854 | BC152: 464 | BD152: 939 | BE152: 2,465 | BF152: 648
A153: 040113 | B153: AREQUIPA | C153: AREQUIPA | D153: AREQUIPA | E153: POCSI | F153: 1288 | G153: PUESTO DE SALUD POCSI | H153: 56 | J153: 3 | K153: 1 | L153: 5 | M153: 6 | N153: 3 | O153: 4 | P153: 1 | Q153: 1 | R153: 1 | S153: 1 | T153: 2 | U153: 1 | V153: 2 | W153: 3 | X153: 2 | Y153: 2 | Z153: 2 | AA153: 2 | AB153: 3 | AC153: 2 | AD153: 13 | AE153: 22 | AF153: 24 | AG153: 19 | AH153: 20 | AI153: 21 | AJ153: 18 | AK153: 16 | AL153: 16 | AM153: 11 | AN153: 9 | AO153: 7 | AP153: 8 | AQ153: 6 | AR153: 1 | AS153: 1 | AT153: 1 | AU153: 4 | AV153: 122 | AW153: 4 | AX153: 4 | AY153: 54 | AZ153: 5 | BA153: 257 | BB153: 31 | BC153: 11 | BD153: 40 | BE153: 119 | BF153: 57
F154: 1289 | G154: PUESTO DE SALUD PIACA | H154: 44 | J154: 3 | K154: 1 | L154: 4 | M154: 5 | N154: 3 | O154: 4 | P154: 1 | Q154: 1 | R154: 1 | S154: 1 | T154: 1 | U154: 1 | V154: 1 | W154: 2 | X154: 1 | Y154: 1 | Z154: 1 | AA154: 1 | AB154: 2 | AC154: 2 | AD154: 10 | AE154: 17 | AF154: 19 | AG154: 15 | AH154: 16 | AI154: 17 | AJ154: 15 | AK154: 12 | AL154: 12 | AM154: 9 | AN154: 7 | AO154: 6 | AP154: 6 | AQ154: 4 | AR154: 0 | AS154: 1 | AT154: 1 | AU154: 3 | AV154: 95 | AW154: 3 | AX154: 3 | AY154: 42 | AZ154: 4 | BA154: 202 | BB154: 24 | BC154: 9 | BD154: 31 | BE154: 93 | BF154: 44
A155: 040114 | B155: AREQUIPA | C155: AREQUIPA | D155: AREQUIPA | E155: POLOBAYA | F155: 1262 | G155: PUESTO DE SALUD POLOBAYA | H155: 100 | J155: 13 | K155: 13 | L155: 15 | M155: 11 | N155: 9 | O155: 13 | P155: 3 | Q155: 5 | R155: 6 | S155: 9 | T155: 9 | U155: 9 | V155: 8 | W155: 8 | X155: 9 | Y155: 7 | Z155: 8 | AA155: 5 | AB155: 7 | AC155: 15 | AD155: 50 | AE155: 62 | AF155: 63 | AG155: 55 | AH155: 51 | AI155: 46 | AJ155: 46 | AK155: 58 | AL155: 50 | AM155: 44 | AN155: 30 | AO155: 15 | AP155: 15 | AQ155: 15 | AR155: 1 | AS155: 9 | AT155: 5 | AU155: 19 | AV155: 371 | AW155: 20 | AX155: 19 | AY155: 151 | AZ155: 26 | BA155: 782 | BB155: 115 | BC155: 45 | BD155: 134 | BE155: 319 | BF155: 169
A156: 040115 | B156: AREQUIPA | C156: AREQUIPA | D156: AREQUIPA | E156: QUEQUEÑA | F156: 1286 | G156: PUESTO DE SALUD QUEQUEÑA | H156: 100 | J156: 42 | K156: 53 | L156: 39 | M156: 31 | N156: 34 | O156: 21 | P156: 107 | Q156: 103 | R156: 66 | S156: 90 | T156: 106 | U156: 83 | V156: 94 | W156: 72 | X156: 82 | Y156: 92 | Z156: 83 | AA156: 86 | AB156: 106 | AC156: 82 | AD156: 374 | AE156: 558 | AF156: 799 | AG156: 873 | AH156: 661 | AI156: 630 | AJ156: 575 | AK156: 464 | AL156: 399 | AM156: 274 | AN156: 202 | AO156: 166 | AP156: 96 | AQ156: 97 | AR156: 1 | AS156: 42 | AT156: 24 | AU156: 76 | AV156: 3,960 | AW156: 214 | AX156: 233 | AY156: 2,098 | AZ156: 137 | BA156: 7,640 | BB156: 775 | BC156: 509 | BD156: 1,120 | BE156: 4,002 | BF156: 1,234
A157: 040116 | B157: AREQUIPA | C157: AREQUIPA | D157: AREQUIPA | E157: SABANDIA | F157: 1284 | G157: PUESTO DE SALUD LEOPOLDO RONDON - SABANDIA | H157: 100 | J157: 77 | K157: 108 | L157: 101 | M157: 95 | N157: 85 | O157: 74 | P157: 74 | Q157: 70 | R157: 87 | S157: 64 | T157: 67 | U157: 74 | V157: 80 | W157: 63 | X157: 61 | Y157: 68 | Z157: 63 | AA157: 58 | AB157: 63 | AC157: 58 | AD157: 335 | AE157: 400 | AF157: 365 | AG157: 408 | AH157: 368 | AI157: 338 | AJ157: 274 | AK157: 218 | AL157: 172 | AM157: 155 | AN157: 139 | AO157: 96 | AP157: 78 | AQ157: 60 | AR157: 6 | AS157: 56 | AT157: 50 | AU157: 120 | AV157: 2,451 | AW157: 168 | AX157: 154 | AY157: 1,112 | AZ157: 192 | BA157: 4,896 | BB157: 976 | BC157: 393 | BD157: 856 | BE157: 1,971 | BF157: 700
A158: 040127 | B158: AREQUIPA | C158: AREQUIPA | D158: AREQUIPA | E158: YARABAMBA | F158: 1287 | G158: PUESTO DE SALUD YARABAMBA | H158: 100 | J158: 41 | K158: 33 | L158: 30 | M158: 24 | N158: 23 | O158: 24 | P158: 15 | Q158: 19 | R158: 15 | S158: 13 | T158: 18 | U158: 15 | V158: 15 | W158: 11 | X158: 12 | Y158: 16 | Z158: 15 | AA158: 14 | AB158: 25 | AC158: 19 | AD158: 111 | AE158: 159 | AF158: 185 | AG158: 155 | AH158: 143 | AI158: 147 | AJ158: 104 | AK158: 89 | AL158: 71 | AM158: 52 | AN158: 45 | AO158: 26 | AP158: 17 | AQ158: 21 | AR158: 1 | AS158: 20 | AT158: 23 | AU158: 51 | AV158: 735 | AW158: 33 | AX158: 36 | AY158: 363 | AZ158: 60 | BA158: 1,722 | BB158: 270 | BC158: 83 | BD158: 314 | BE158: 823 | BF158: 232
A160: 040107 | B160: AREQUIPA | C160: AREQUIPA | D160: AREQUIPA | E160: JACOBO HUNTER | G160: MR JAVIER LLOSA HUNTER | I160: =SUM(J160:AQ160) -> 54,725 | J160: =SUM(J161:J167) -> 588 | K160: =SUM(K161:K167) -> 603 | L160: 734 | M160: 750 | N160: 803 | O160: 831 | P160: 987 | Q160: 956 | R160: 937 | S160: 911 | T160: 859 | U160: 842 | V160: 927 | W160: 910 | X160: 764 | Y160: 782 | Z160: 815 | AA160: 822 | AB160: 745 | AC160: 750 | AD160: 4,190 | AE160: 4,752 | AF160: 4,566 | AG160: 4,473 | AH160: 4,189 | AI160: 3,764 | AJ160: 3,115 | AK160: 2,583 | AL160: 2,002 | AM160: 1,669 | AN160: 1,178 | AO160: 873 | AP160: 527 | AQ160: 528 | AR160: 43 | AS160: 377 | AT160: 305 | AU160: 743 | AV160: 27,393 | AW160: 2,103 | AX160: 1,972 | AY160: 12,735 | AZ160: 1,370 | BA160: 54,725 | BB160: 9,801 | BC160: 5,020 | BD160: 10,437 | BE160: 22,690 | BF160: 6,777
F161: 1259 | G161: CENTRO DE SALUD JAVIER LLOSA GARCIA - HUNTER | H161: 32 | J161: 189 | K161: 194 | L161: 235 | M161: 238 | N161: 258 | O161: 266 | P161: 316 | Q161: 305 | R161: 300 | S161: 291 | T161: 275 | U161: 270 | V161: 296 | W161: 291 | X161: 245 | Y161: 251 | Z161: 260 | AA161: 263 | AB161: 238 | AC161: 238 | AD161: 1,340 | AE161: 1,520 | AF161: 1,461 | AG161: 1,432 | AH161: 1,341 | AI161: 1,205 | AJ161: 996 | AK161: 827 | AL161: 642 | AM161: 534 | AN161: 377 | AO161: 280 | AP161: 168 | AQ161: 168 | AR161: 14 | AS161: 120 | AT161: 97 | AU161: 238 | AV161: 8,766 | AW161: 674 | AX161: 632 | AY161: 4,074 | AZ161: 438 | BA161: 17,512 | BB161: 3,137 | BC161: 1,606 | BD161: 3,340 | BE161: 7,260 | BF161: 2,168
F162: 1273 | G162: PUESTO DE SALUD DANIEL ALCIDES CARRION | H162: 14 | J162: 82 | K162: 84 | L162: 103 | M162: 105 | N162: 112 | O162: 116 | P162: 138 | Q162: 134 | R162: 131 | S162: 128 | T162: 120 | U162: 118 | V162: 130 | W162: 127 | X162: 107 | Y162: 109 | Z162: 114 | AA162: 115 | AB162: 104 | AC162: 105 | AD162: 587 | AE162: 665 | AF162: 639 | AG162: 626 | AH162: 586 | AI162: 527 | AJ162: 436 | AK162: 362 | AL162: 280 | AM162: 234 | AN162: 165 | AO162: 122 | AP162: 74 | AQ162: 74 | AR162: 6 | AS162: 53 | AT162: 43 | AU162: 104 | AV162: 3,835 | AW162: 294 | AX162: 276 | AY162: 1,783 | AZ162: 192 | BA162: 7,662 | BB162: 1,372 | BC162: 703 | BD162: 1,461 | BE162: 3,177 | BF162: 949
F163: 1274 | G163: PUESTO DE SALUD PAMPAS DEL CUZCO | H163: 17 | J163: 100 | K163: 103 | L163: 125 | M163: 128 | N163: 137 | O163: 141 | P163: 168 | Q163: 163 | R163: 159 | S163: 155 | T163: 146 | U163: 143 | V163: 158 | W163: 155 | X163: 130 | Y163: 133 | Z163: 139 | AA163: 140 | AB163: 127 | AC163: 128 | AD163: 712 | AE163: 808 | AF163: 776 | AG163: 760 | AH163: 712 | AI163: 640 | AJ163: 530 | AK163: 439 | AL163: 340 | AM163: 284 | AN163: 200 | AO163: 148 | AP163: 90 | AQ163: 90 | AR163: 7 | AS163: 64 | AT163: 52 | AU163: 126 | AV163: 4,657 | AW163: 358 | AX163: 335 | AY163: 2,165 | AZ163: 233 | BA163: 9,303 | BB163: 1,666 | BC163: 853 | BD163: 1,774 | BE163: 3,857 | BF163: 1,152
F164: 1275 | G164: PUESTO DE SALUD CHILPINILLA | H164: 10 | J164: 59 | K164: 60 | L164: 73 | M164: 75 | N164: 80 | O164: 83 | P164: 99 | Q164: 96 | R164: 94 | S164: 91 | T164: 86 | U164: 84 | V164: 93 | W164: 91 | X164: 76 | Y164: 78 | Z164: 82 | AA164: 82 | AB164: 75 | AC164: 75 | AD164: 419 | AE164: 475 | AF164: 457 | AG164: 447 | AH164: 419 | AI164: 376 | AJ164: 312 | AK164: 258 | AL164: 200 | AM164: 167 | AN164: 118 | AO164: 87 | AP164: 53 | AQ164: 53 | AR164: 4 | AS164: 38 | AT164: 31 | AU164: 74 | AV164: 2,739 | AW164: 210 | AX164: 197 | AY164: 1,274 | AZ164: 137 | BA164: 5,473 | BB164: 980 | BC164: 502 | BD164: 1,044 | BE164: 2,269 | BF164: 678
F165: 1276 | G165: CENTRO DE SALUD CAMINOS DEL INCA | H165: 9 | J165: 53 | K165: 54 | L165: 66 | M165: 68 | N165: 72 | O165: 75 | P165: 89 | Q165: 86 | R165: 84 | S165: 82 | T165: 77 | U165: 76 | V165: 83 | W165: 82 | X165: 69 | Y165: 70 | Z165: 73 | AA165: 74 | AB165: 67 | AC165: 68 | AD165: 377 | AE165: 428 | AF165: 411 | AG165: 403 | AH165: 377 | AI165: 339 | AJ165: 280 | AK165: 232 | AL165: 180 | AM165: 150 | AN165: 106 | AO165: 79 | AP165: 47 | AQ165: 48 | AR165: 4 | AS165: 34 | AT165: 27 | AU165: 67 | AV165: 2,465 | AW165: 189 | AX165: 177 | AY165: 1,146 | AZ165: 123 | BA165: 4,925 | BB165: 882 | BC165: 452 | BD165: 939 | BE165: 2,042 | BF165: 610
F166: 1277 | G166: PUESTO DE SALUD ALTO ALIANZA | H166: 13 | J166: 76 | K166: 78 | L166: 95 | M166: 98 | N166: 104 | O166: 108 | P166: 128 | Q166: 124 | R166: 122 | S166: 118 | T166: 112 | U166: 109 | V166: 121 | W166: 118 | X166: 99 | Y166: 102 | Z166: 106 | AA166: 107 | AB166: 97 | AC166: 98 | AD166: 545 | AE166: 618 | AF166: 594 | AG166: 581 | AH166: 545 | AI166: 489 | AJ166: 405 | AK166: 336 | AL166: 260 | AM166: 217 | AN166: 153 | AO166: 113 | AP166: 69 | AQ166: 69 | AR166: 6 | AS166: 49 | AT166: 40 | AU166: 97 | AV166: 3,561 | AW166: 273 | AX166: 256 | AY166: 1,656 | AZ166: 178 | BA166: 7,114 | BB166: 1,274 | BC166: 653 | BD166: 1,357 | BE166: 2,950 | BF166: 881
F167: 1279 | G167: PUESTO DE SALUD UPIS PAISAJISTA | H167: 5 | J167: 29 | K167: 30 | L167: 37 | M167: 38 | N167: 40 | O167: 42 | P167: 49 | Q167: 48 | R167: 47 | S167: 46 | T167: 43 | U167: 42 | V167: 46 | W167: 46 | X167: 38 | Y167: 39 | Z167: 41 | AA167: 41 | AB167: 37 | AC167: 38 | AD167: 210 | AE167: 238 | AF167: 228 | AG167: 224 | AH167: 209 | AI167: 188 | AJ167: 156 | AK167: 129 | AL167: 100 | AM167: 83 | AN167: 59 | AO167: 44 | AP167: 26 | AQ167: 26 | AR167: 2 | AS167: 19 | AT167: 15 | AU167: 37 | AV167: 1,370 | AW167: 105 | AX167: 99 | AY167: 637 | AZ167: 69 | BA167: 2,736 | BB167: 490 | BC167: 251 | BD167: 522 | BE167: 1,135 | BF167: 339
A169: 040129 | B169: AREQUIPA | C169: AREQUIPA | D169: AREQUIPA | E169: JOSE LUIS BUSTAMANTE Y RIVERO | G169: MR VICTOR RAUL HINOJOSA LLERENA | I169: =SUM(J169:AQ169) -> 85,625 | J169: =SUM(J170:J173) -> 762 | K169: =SUM(K170:K173) -> 736 | L169: 946 | M169: 1,057 | N169: 1,009 | O169: 937 | P169: 1,240 | Q169: 1,295 | R169: 1,327 | S169: 1,258 | T169: 1,234 | U169: 1,235 | V169: 1,323 | W169: 1,177 | X169: 1,159 | Y169: 1,162 | Z169: 1,159 | AA169: 1,188 | AB169: 1,165 | AC169: 1,211 | AD169: 6,456 | AE169: 7,210 | AF169: 7,360 | AG169: 6,668 | AH169: 6,507 | AI169: 5,947 | AJ169: 5,051 | AK169: 4,269 | AL169: 3,609 | AM169: 3,034 | AN169: 2,537 | AO169: 1,949 | AP169: 1,264 | AQ169: 1,184 | AR169: 48 | AS169: 458 | AT169: 399 | AU169: 965 | AV169: 43,257 | AW169: 2,988 | AX169: 2,933 | AY169: 19,817 | AZ169: 1,674 | BA169: 85,625 | BB169: 13,036 | BC169: 7,168 | BD169: 16,042 | BE169: 35,802 | BF169: 13,577
F170: 1257 | G170: VICTOR RAUL HINOJOSA | H170: 57 | J170: 434 | K170: 419 | L170: 539 | M170: 602 | N170: 575 | O170: 534 | P170: 706 | Q170: 738 | R170: 756 | S170: 717 | T170: 704 | U170: 703 | V170: 755 | W170: 670 | X170: 661 | Y170: 662 | Z170: 661 | AA170: 677 | AB170: 664 | AC170: 690 | AD170: 3,679 | AE170: 4,110 | AF170: 4,196 | AG170: 3,800 | AH170: 3,709 | AI170: 3,389 | AJ170: 2,879 | AK170: 2,433 | AL170: 2,057 | AM170: 1,730 | AN170: 1,446 | AO170: 1,111 | AP170: 721 | AQ170: 675 | AR170: 27 | AS170: 261 | AT170: 227 | AU170: 550 | AV170: 24,656 | AW170: 1,703 | AX170: 1,672 | AY170: 11,296 | AZ170: 955 | BA170: 48,805 | BB170: 7,430 | BC170: 4,085 | BD170: 9,144 | BE170: 20,408 | BF170: 7,738
F171: 1263 | G171: PUESTO DE SALUD 13 DE ENERO | H171: 19 | J171: 145 | K171: 140 | L171: 180 | M171: 201 | N171: 192 | O171: 178 | P171: 236 | Q171: 246 | R171: 252 | S171: 239 | T171: 234 | U171: 235 | V171: 251 | W171: 224 | X171: 220 | Y171: 221 | Z171: 220 | AA171: 226 | AB171: 221 | AC171: 230 | AD171: 1,227 | AE171: 1,370 | AF171: 1,398 | AG171: 1,267 | AH171: 1,236 | AI171: 1,130 | AJ171: 960 | AK171: 811 | AL171: 686 | AM171: 576 | AN171: 482 | AO171: 370 | AP171: 240 | AQ171: 225 | AR171: 9 | AS171: 87 | AT171: 76 | AU171: 183 | AV171: 8,219 | AW171: 568 | AX171: 557 | AY171: 3,765 | AZ171: 318 | BA171: 16,269 | BB171: 2,477 | BC171: 1,362 | BD171: 3,048 | BE171: 6,802 | BF171: 2,580
F172: 1264 | G172: CENTRO DE SALUD LAS ESMERALDAS | H172: 14 | J172: 107 | K172: 103 | L172: 132 | M172: 148 | N172: 141 | O172: 131 | P172: 174 | Q172: 181 | R172: 186 | S172: 176 | T172: 173 | U172: 173 | V172: 185 | W172: 165 | X172: 162 | Y172: 163 | Z172: 162 | AA172: 166 | AB172: 163 | AC172: 170 | AD172: 904 | AE172: 1,009 | AF172: 1,030 | AG172: 934 | AH172: 911 | AI172: 833 | AJ172: 707 | AK172: 598 | AL172: 505 | AM172: 425 | AN172: 355 | AO172: 273 | AP172: 177 | AQ172: 166 | AR172: 7 | AS172: 64 | AT172: 56 | AU172: 135 | AV172: 6,056 | AW172: 418 | AX172: 411 | AY172: 2,774 | AZ172: 234 | BA172: 11,988 | BB172: 1,825 | BC172: 1,004 | BD172: 2,246 | BE172: 5,012 | BF172: 1,901
F173: 1267 | G173: PUESTO DE SALUD CERRO JULI | H173: 10 | J173: 76 | K173: 74 | L173: 95 | M173: 106 | N173: 101 | O173: 94 | P173: 124 | Q173: 130 | R173: 133 | S173: 126 | T173: 123 | U173: 124 | V173: 132 | W173: 118 | X173: 116 | Y173: 116 | Z173: 116 | AA173: 119 | AB173: 117 | AC173: 121 | AD173: 646 | AE173: 721 | AF173: 736 | AG173: 667 | AH173: 651 | AI173: 595 | AJ173: 505 | AK173: 427 | AL173: 361 | AM173: 303 | AN173: 254 | AO173: 195 | AP173: 126 | AQ173: 118 | AR173: 5 | AS173: 46 | AT173: 40 | AU173: 97 | AV173: 4,326 | AW173: 299 | AX173: 293 | AY173: 1,982 | AZ173: 167 | BA173: 8,563 | BB173: 1,304 | BC173: 717 | BD173: 1,604 | BE173: 3,580 | BF173: 1,358
A175: 040123 | B175: AREQUIPA | C175: AREQUIPA | D175: AREQUIPA | E175: TIABAYA | G175: MR TIABAYA | I175: =SUM(J175:AQ175) -> 35,878 | J175: =SUM(J176:J179) -> 471 | K175: =SUM(K176:K179) -> 439 | L175: 554 | M175: 537 | N175: 576 | O175: 542 | P175: 590 | Q175: 646 | R175: 555 | S175: 533 | T175: 511 | U175: 552 | V175: 557 | W175: 536 | X175: 491 | Y175: 480 | Z175: 472 | AA175: 499 | AB175: 474 | AC175: 497 | AD175: 2,547 | AE175: 3,272 | AF175: 3,284 | AG175: 3,176 | AH175: 2,920 | AI175: 2,438 | AJ175: 1,913 | AK175: 1,645 | AL175: 1,289 | AM175: 1,045 | AN175: 716 | AO175: 518 | AP175: 322 | AQ175: 281 | AR175: 30 | AS175: 268 | AT175: 253 | AU175: 595 | AV175: 17,199 | AW175: 1,290 | AX175: 1,192 | AY175: 8,085 | AZ175: 1,121 | BA175: 35,878 | BB175: 6,506 | BC175: 3,035 | BD175: 6,790 | BE175: 15,376 | BF175: 4,171
F176: 1260 | G176: CENTRO DE SALUD TIABAYA | H176: 100 | J176: 249 | K176: 239 | L176: 291 | M176: 281 | N176: 300 | O176: 309 | P176: 290 | Q176: 354 | R176: 283 | S176: 275 | T176: 248 | U176: 276 | V176: 276 | W176: 278 | X176: 269 | Y176: 244 | Z176: 234 | AA176: 269 | AB176: 225 | AC176: 255 | AD176: 1,358 | AE176: 1,630 | AF176: 1,615 | AG176: 1,499 | AH176: 1,370 | AI176: 1,170 | AJ176: 933 | AK176: 817 | AL176: 639 | AM176: 514 | AN176: 381 | AO176: 289 | AP176: 184 | AQ176: 188 | AR176: 19 | AS176: 149 | AT176: 140 | AU176: 331 | AV176: 8,796 | AW176: 649 | AX176: 615 | AY176: 4,037 | AZ176: 659 | BA176: 18,032 | BB176: 3,395 | BC176: 1,570 | BD176: 3,468 | BE176: 7,404 | BF176: 2,195
A177: 040124 | B177: AREQUIPA | C177: AREQUIPA | D177: AREQUIPA | E177: UCHUMAYO | F177: 1280 | G177: CENTRO DE SALUD CERRO VERDE | H177: 30 | J177: 67 | K177: 60 | L177: 79 | M177: 77 | N177: 83 | O177: 70 | P177: 90 | Q177: 88 | R177: 82 | S177: 77 | T177: 79 | U177: 83 | V177: 84 | W177: 77 | X177: 67 | Y177: 71 | Z177: 71 | AA177: 69 | AB177: 75 | AC177: 73 | AD177: 357 | AE177: 493 | AF177: 501 | AG177: 503 | AH177: 465 | AI177: 380 | AJ177: 294 | AK177: 248 | AL177: 195 | AM177: 159 | AN177: 101 | AO177: 69 | AP177: 41 | AQ177: 28 | AR177: 3 | AS177: 36 | AT177: 34 | AU177: 79 | AV177: 2,521 | AW177: 192 | AX177: 173 | AY177: 1,214 | AZ177: 139 | BA177: 5,354 | BB177: 933 | BC177: 440 | BD177: 997 | BE177: 2,392 | BF177: 593
F178: 1281 | G178: CENTRO DE SALUD CONGATA | H178: 51 | J178: 113 | K178: 102 | L178: 134 | M178: 130 | N178: 141 | O178: 119 | P178: 153 | Q178: 149 | R178: 138 | S178: 132 | T178: 134 | U178: 141 | V178: 144 | W178: 132 | X178: 113 | Y178: 120 | Z178: 122 | AA178: 117 | AB178: 127 | AC178: 123 | AD178: 606 | AE178: 837 | AF178: 851 | AG178: 855 | AH178: 790 | AI178: 647 | AJ178: 500 | AK178: 423 | AL178: 331 | AM178: 271 | AN178: 170 | AO178: 116 | AP178: 71 | AQ178: 47 | AR178: 6 | AS178: 60 | AT178: 58 | AU178: 135 | AV178: 4,285 | AW178: 327 | AX178: 294 | AY178: 2,065 | AZ178: 235 | BA178: 9,101 | BB178: 1,587 | BC178: 747 | BD178: 1,694 | BE178: 4,065 | BF178: 1,008
F179: 1290 | G179: PUESTO DE SALUD UCHUMAYO | H179: 19 | J179: 42 | K179: 38 | L179: 50 | M179: 49 | N179: 52 | O179: 44 | P179: 57 | Q179: 55 | R179: 52 | S179: 49 | T179: 50 | U179: 52 | V179: 53 | W179: 49 | X179: 42 | Y179: 45 | Z179: 45 | AA179: 44 | AB179: 47 | AC179: 46 | AD179: 226 | AE179: 312 | AF179: 317 | AG179: 319 | AH179: 295 | AI179: 241 | AJ179: 186 | AK179: 157 | AL179: 124 | AM179: 101 | AN179: 64 | AO179: 44 | AP179: 26 | AQ179: 18 | AR179: 2 | AS179: 23 | AT179: 21 | AU179: 50 | AV179: 1,597 | AW179: 122 | AX179: 110 | AY179: 769 | AZ179: 88 | BA179: 3,391 | BB179: 591 | BC179: 278 | BD179: 631 | BE179: 1,515 | BF179: 375
A181: 040122 | B181: AREQUIPA | C181: AREQUIPA | D181: AREQUIPA | E181: SOCABAYA | G181: MR SAN MARTIN DE SOCABAYA | I181: =SUM(J181:AQ181) -> 86,724 | J181: =SUM(J182:J188) -> 640 | K181: =SUM(K182:K188) -> 750 | L181: 952 | M181: 1,104 | N181: 1,156 | O181: 1,278 | P181: 1,386 | Q181: 1,453 | R181: 1,473 | S181: 1,468 | T181: 1,324 | U181: 1,440 | V181: 1,445 | W181: 1,445 | X181: 1,286 | Y181: 1,281 | Z181: 1,378 | AA181: 1,283 | AB181: 1,354 | AC181: 1,361 | AD181: 7,111 | AE181: 7,808 | AF181: 7,408 | AG181: 6,804 | AH181: 6,488 | AI181: 5,910 | AJ181: 4,795 | AK181: 4,100 | AL181: 3,376 | AM181: 2,868 | AN181: 1,909 | AO181: 1,343 | AP181: 794 | AQ181: 753 | AR181: 63 | AS181: 457 | AT181: 430 | AU181: 1,011 | AV181: 43,839 | AW181: 3,511 | AX181: 3,306 | AY181: 20,705 | AZ181: 1,440 | BA181: 86,724 | BB181: 14,424 | BC181: 8,118 | BD181: 17,634 | BE181: 35,505 | BF181: 11,043
F182: 1258 | G182: CENTRO DE SALUD SAN MARTIN DE SOCABAYA | H182: 20.7 | J182: 132 | K182: 155 | L182: 197 | M182: 229 | N182: 239 | O182: 265 | P182: 287 | Q182: 301 | R182: 305 | S182: 304 | T182: 274 | U182: 298 | V182: 299 | W182: 299 | X182: 266 | Y182: 265 | Z182: 285 | AA182: 266 | AB182: 280 | AC182: 282 | AD182: 1,472 | AE182: 1,616 | AF182: 1,533 | AG182: 1,408 | AH182: 1,343 | AI182: 1,223 | AJ182: 993 | AK182: 849 | AL182: 699 | AM182: 594 | AN182: 395 | AO182: 278 | AP182: 164 | AQ182: 156 | AR182: 13 | AS182: 95 | AT182: 89 | AU182: 209 | AV182: 9,075 | AW182: 727 | AX182: 684 | AY182: 4,286 | AZ182: 298 | BA182: 17,952 | BB182: 2,986 | BC182: 1,680 | BD182: 3,650 | BE182: 7,350 | BF182: 2,286
F183: 1269 | G183: PUESTO DE SALUD CIUDAD MI TRABAJO | H183: 20.03 | J183: 128 | K183: 150 | L183: 191 | M183: 221 | N183: 232 | O183: 256 | P183: 278 | Q183: 291 | R183: 295 | S183: 294 | T183: 265 | U183: 288 | V183: 289 | W183: 289 | X183: 258 | Y183: 257 | Z183: 276 | AA183: 257 | AB183: 271 | AC183: 273 | AD183: 1,424 | AE183: 1,564 | AF183: 1,484 | AG183: 1,363 | AH183: 1,300 | AI183: 1,184 | AJ183: 960 | AK183: 821 | AL183: 676 | AM183: 574 | AN183: 382 | AO183: 269 | AP183: 159 | AQ183: 151 | AR183: 13 | AS183: 92 | AT183: 86 | AU183: 203 | AV183: 8,781 | AW183: 703 | AX183: 662 | AY183: 4,147 | AZ183: 288 | BA183: 17,371 | BB183: 2,889 | BC183: 1,626 | BD183: 3,532 | BE183: 7,112 | BF183: 2,212
F184: 1270 | G184: PUESTO DE SALUD LARA | H184: 16 | J184: 102 | K184: 120 | L184: 152 | M184: 177 | N184: 185 | O184: 204 | P184: 222 | Q184: 232 | R184: 236 | S184: 235 | T184: 212 | U184: 230 | V184: 231 | W184: 231 | X184: 206 | Y184: 205 | Z184: 220 | AA184: 205 | AB184: 217 | AC184: 218 | AD184: 1,138 | AE184: 1,249 | AF184: 1,185 | AG184: 1,089 | AH184: 1,038 | AI184: 946 | AJ184: 767 | AK184: 656 | AL184: 540 | AM184: 459 | AN184: 305 | AO184: 215 | AP184: 127 | AQ184: 120 | AR184: 10 | AS184: 73 | AT184: 69 | AU184: 162 | AV184: 7,014 | AW184: 562 | AX184: 529 | AY184: 3,313 | AZ184: 230 | BA184: 13,876 | BB184: 2,308 | BC184: 1,299 | BD184: 2,821 | BE184: 5,681 | BF184: 1,767
F185: 1271 | G185: CENTRO DE SALUD SAN FERNANDO | H185: 6.05 | J185: 39 | K185: 45 | L185: 58 | M185: 67 | N185: 70 | O185: 77 | P185: 84 | Q185: 88 | R185: 89 | S185: 89 | T185: 80 | U185: 87 | V185: 87 | W185: 87 | X185: 78 | Y185: 78 | Z185: 83 | AA185: 78 | AB185: 82 | AC185: 82 | AD185: 430 | AE185: 472 | AF185: 448 | AG185: 412 | AH185: 393 | AI185: 358 | AJ185: 290 | AK185: 248 | AL185: 204 | AM185: 174 | AN185: 115 | AO185: 81 | AP185: 48 | AQ185: 46 | AR185: 4 | AS185: 28 | AT185: 26 | AU185: 61 | AV185: 2,652 | AW185: 212 | AX185: 200 | AY185: 1,253 | AZ185: 87 | BA185: 5,247 | BB185: 873 | BC185: 491 | BD185: 1,067 | BE185: 2,148 | BF185: 668
F186: 1272 | G186: PUESTO DE SALUD SALAVERRY | H186: 11.8 | J186: 76 | K186: 89 | L186: 112 | M186: 130 | N186: 136 | O186: 151 | P186: 164 | Q186: 171 | R186: 174 | S186: 173 | T186: 156 | U186: 170 | V186: 171 | W186: 171 | X186: 152 | Y186: 151 | Z186: 163 | AA186: 151 | AB186: 160 | AC186: 161 | AD186: 839 | AE186: 921 | AF186: 874 | AG186: 803 | AH186: 766 | AI186: 697 | AJ186: 566 | AK186: 484 | AL186: 398 | AM186: 338 | AN186: 225 | AO186: 158 | AP186: 94 | AQ186: 89 | AR186: 7 | AS186: 54 | AT186: 51 | AU186: 119 | AV186: 5,173 | AW186: 414 | AX186: 390 | AY186: 2,443 | AZ186: 170 | BA186: 10,233 | BB186: 1,702 | BC186: 958 | BD186: 2,081 | BE186: 4,190 | BF186: 1,303
F187: 1268 | G187: CENTRO DE SALUD 4 DE OCTUBRE | H187: 20.72 | J187: 133 | K187: 156 | L187: 197 | M187: 228 | N187: 240 | O187: 265 | P187: 286 | Q187: 302 | R187: 305 | S187: 304 | T187: 275 | U187: 299 | V187: 300 | W187: 300 | X187: 266 | Y187: 265 | Z187: 286 | AA187: 266 | AB187: 280 | AC187: 281 | AD187: 1,474 | AE187: 1,619 | AF187: 1,536 | AG187: 1,409 | AH187: 1,343 | AI187: 1,224 | AJ187: 994 | AK187: 849 | AL187: 700 | AM187: 594 | AN187: 397 | AO187: 279 | AP187: 165 | AQ187: 156 | AR187: 13 | AS187: 94 | AT187: 89 | AU187: 209 | AV187: 9,084 | AW187: 728 | AX187: 686 | AY187: 4,290 | AZ187: 299 | BA187: 17,969 | BB187: 2,988 | BC187: 1,682 | BD187: 3,654 | BE187: 7,355 | BF187: 2,288
F188: 23338 | G188: PUESTO DE SALUD HORACIO ZEBALLOS GÁMEZ | H188: 4.7 | J188: 30 | K188: 35 | L188: 45 | M188: 52 | N188: 54 | O188: 60 | P188: 65 | Q188: 68 | R188: 69 | S188: 69 | T188: 62 | U188: 68 | V188: 68 | W188: 68 | X188: 60 | Y188: 60 | Z188: 65 | AA188: 60 | AB188: 64 | AC188: 64 | AD188: 334 | AE188: 367 | AF188: 348 | AG188: 320 | AH188: 305 | AI188: 278 | AJ188: 225 | AK188: 193 | AL188: 159 | AM188: 135 | AN188: 90 | AO188: 63 | AP188: 37 | AQ188: 35 | AR188: 3 | AS188: 21 | AT188: 20 | AU188: 48 | AV188: 2,060 | AW188: 165 | AX188: 155 | AY188: 973 | AZ188: 68 | BA188: 4,076 | BB188: 678 | BC188: 382 | BD188: 829 | BE188: 1,669 | BF188: 519
A190: 040108 | B190: AREQUIPA | C190: AREQUIPA | D190: AREQUIPA | E190: LA JOYA | G190: MR LA JOYA | I190: =SUM(J190:AQ190) -> 29,615 | J190: =SUM(J191:J195) -> 397 | K190: 429 | L190: 434 | M190: 430 | N190: 455 | O190: 444 | P190: 576 | Q190: 526 | R190: 559 | S190: 570 | T190: 543 | U190: 508 | V190: 537 | W190: 508 | X190: 515 | Y190: 501 | Z190: 522 | AA190: 512 | AB190: 531 | AC190: 515 | AD190: 2,503 | AE190: 2,806 | AF190: 2,503 | AG190: 2,389 | AH190: 1,989 | AI190: 1,857 | AJ190: 1,406 | AK190: 1,187 | AL190: 923 | AM190: 767 | AN190: 477 | AO190: 360 | AP190: 229 | AQ190: 207 | AR190: 22 | AS190: 233 | AT190: 253 | AU190: 550 | AV190: 14,708 | AW190: 1,324 | AX190: 1,296 | AY190: 6,998 | AZ190: 777 | BA190: 29,619 | BB190: 5,873 | BC190: 3,095 | BD190: 6,359 | BE190: 11,332 | BF190: =SUM(BF191:BF195) -> 2,964
F191: 1322 | G191: CENTRO DE SALUD LA JOYA | H191: 27 | J191: 151 | K191: 163 | L191: 165 | M191: 164 | N191: 173 | O191: 169 | P191: 219 | Q191: 200 | R191: 213 | S191: 217 | T191: 207 | U191: 193 | V191: 204 | W191: 193 | X191: 196 | Y191: 191 | Z191: 198 | AA191: 195 | AB191: 202 | AC191: 196 | AD191: 952 | AE191: 1,067 | AF191: 952 | AG191: 909 | AH191: 757 | AI191: 706 | AJ191: 535 | AK191: 451 | AL191: 351 | AM191: 292 | AN191: 181 | AO191: 137 | AP191: 87 | AQ191: 78 | AR191: 8 | AS191: 89 | AT191: 96 | AU191: 209 | AV191: 5,593 | AW191: 504 | AX191: 493 | AY191: 2,661 | AZ191: 295 | BA191: 11,264 | BB191: 2,233 | BC191: 1,177 | BD191: 2,418 | BE191: 4,309 | BF191: 1,127
F192: 1327 | G192: PUESTO DE SALUD CERRITO BUENA VISTA | H192: 14 | J192: 78 | K192: 85 | L192: 85 | M192: 85 | N192: 90 | O192: 88 | P192: 113 | Q192: 104 | R192: 110 | S192: 112 | T192: 107 | U192: 100 | V192: 106 | W192: 100 | X192: 102 | Y192: 99 | Z192: 103 | AA192: 101 | AB192: 105 | AC192: 102 | AD192: 494 | AE192: 553 | AF192: 494 | AG192: 471 | AH192: 392 | AI192: 366 | AJ192: 277 | AK192: 234 | AL192: 182 | AM192: 151 | AN192: 94 | AO192: 71 | AP192: 45 | AQ192: 41 | AR192: 4 | AS192: 46 | AT192: 50 | AU192: 108 | AV192: 2,900 | AW192: 261 | AX192: 256 | AY192: 1,380 | AZ192: 153 | BA192: 5,840 | BB192: 1,158 | BC192: 610 | BD192: 1,254 | BE192: 2,235 | BF192: 584
F193: 1330 | G193: CENTRO DE SALUD EL CRUCE - TRIUNFO | H193: 20 | J193: 112 | K193: 121 | L193: 122 | M193: 121 | N193: 128 | O193: 125 | P193: 162 | Q193: 148 | R193: 158 | S193: 161 | T193: 153 | U193: 143 | V193: 151 | W193: 143 | X193: 145 | Y193: 141 | Z193: 147 | AA193: 144 | AB193: 150 | AC193: 145 | AD193: 705 | AE193: 790 | AF193: 705 | AG193: 673 | AH193: 560 | AI193: 523 | AJ193: 396 | AK193: 334 | AL193: 260 | AM193: 216 | AN193: 134 | AO193: 102 | AP193: 65 | AQ193: 58 | AR193: 6 | AS193: 66 | AT193: 71 | AU193: 155 | AV193: 4,143 | AW193: 373 | AX193: 365 | AY193: 1,971 | AZ193: 219 | BA193: 8,343 | BB193: 1,654 | BC193: 872 | BD193: 1,791 | BE193: 3,192 | BF193: 835
F194: 1328 | G194: PUESTO DE SALUD LOS MEDANOS | H194: 5 | J194: 28 | K194: 30 | L194: 31 | M194: 30 | N194: 32 | O194: 31 | P194: 41 | Q194: 37 | R194: 39 | S194: 40 | T194: 38 | U194: 36 | V194: 38 | W194: 36 | X194: 36 | Y194: 35 | Z194: 37 | AA194: 36 | AB194: 37 | AC194: 36 | AD194: 176 | AE194: 198 | AF194: 176 | AG194: 168 | AH194: 140 | AI194: 131 | AJ194: 99 | AK194: 84 | AL194: 65 | AM194: 54 | AN194: 34 | AO194: 25 | AP194: 16 | AQ194: 15 | AR194: 2 | AS194: 16 | AT194: 18 | AU194: 39 | AV194: 1,036 | AW194: 93 | AX194: 91 | AY194: 493 | AZ194: 55 | BA194: 2,086 | BB194: 414 | BC194: 218 | BD194: 448 | BE194: 798 | BF194: 209
F195: 1329 | G195: PUESTO DE SALUD BENITO LAZO | H195: 5 | J195: 28 | K195: 30 | L195: 31 | M195: 30 | N195: 32 | O195: 31 | P195: 41 | Q195: 37 | R195: 39 | S195: 40 | T195: 38 | U195: 36 | V195: 38 | W195: 36 | X195: 36 | Y195: 35 | Z195: 37 | AA195: 36 | AB195: 37 | AC195: 36 | AD195: 176 | AE195: 198 | AF195: 176 | AG195: 168 | AH195: 140 | AI195: 131 | AJ195: 99 | AK195: 84 | AL195: 65 | AM195: 54 | AN195: 34 | AO195: 25 | AP195: 16 | AQ195: 15 | AR195: 2 | AS195: 16 | AT195: 18 | AU195: 39 | AV195: 1,036 | AW195: 93 | AX195: 91 | AY195: 493 | AZ195: 55 | BA195: 2,086 | BB195: 414 | BC195: 218 | BD195: 448 | BE195: 798 | BF195: 209
A197: 040108 | B197: AREQUIPA | C197: AREQUIPA | D197: AREQUIPA | E197: LA JOYA | G197: MR SAN ISIDRO | I197: =SUM(J197:AQ197) -> 13,263 | J197: =SUM(J198:J202) -> 175 | K197: =SUM(K198:K202) -> 187 | L197: 192 | M197: 191 | N197: 201 | O197: 203 | P197: 248 | Q197: 229 | R197: 247 | S197: 245 | T197: 235 | U197: 221 | V197: 232 | W197: 223 | X197: 226 | Y197: 220 | Z197: 225 | AA197: 225 | AB197: 231 | AC197: 228 | AD197: 1,101 | AE197: 1,240 | AF197: 1,119 | AG197: 1,073 | AH197: 899 | AI197: 838 | AJ197: 651 | AK197: 559 | AL197: 431 | AM197: 363 | AN197: 224 | AO197: 171 | AP197: 110 | AQ197: 100 | AR197: 9 | AS197: 103 | AT197: 112 | AU197: 242 | AV197: 6,553 | AW197: 574 | AX197: 567 | AY197: 3,102 | AZ197: 352 | BA197: 13,263 | BB197: 2,576 | BC197: 1,354 | BD197: 2,797 | BE197: 5,139 | BF197: 1,398
F198: 1323 | G198: CENTRO DE SALUD SAN ISIDRO | H198: 13 | J198: 73 | K198: 79 | L198: 79 | M198: 79 | N198: 83 | O198: 81 | P198: 105 | Q198: 96 | R198: 103 | S198: 104 | T198: 99 | U198: 93 | V198: 98 | W198: 93 | X198: 94 | Y198: 92 | Z198: 95 | AA198: 94 | AB198: 97 | AC198: 95 | AD198: 459 | AE198: 514 | AF198: 459 | AG198: 437 | AH198: 364 | AI198: 340 | AJ198: 257 | AK198: 217 | AL198: 169 | AM198: 141 | AN198: 87 | AO198: 66 | AP198: 42 | AQ198: 38 | AR198: 4 | AS198: 43 | AT198: 46 | AU198: 100 | AV198: 2,693 | AW198: 242 | AX198: 237 | AY198: 1,281 | AZ198: 142 | BA198: 5,423 | BB198: 1,075 | BC198: 567 | BD198: 1,164 | BE198: 2,075 | BF198: 543
F199: 1333 | G199: PUESTO DE SALUD SAN JOSE | H199: 3 | J199: 17 | K199: 18 | L199: 18 | M199: 18 | N199: 19 | O199: 19 | P199: 24 | Q199: 22 | R199: 24 | S199: 24 | T199: 23 | U199: 21 | V199: 23 | W199: 21 | X199: 22 | Y199: 21 | Z199: 22 | AA199: 22 | AB199: 22 | AC199: 22 | AD199: 106 | AE199: 119 | AF199: 106 | AG199: 101 | AH199: 84 | AI199: 78 | AJ199: 59 | AK199: 50 | AL199: 39 | AM199: 32 | AN199: 20 | AO199: 15 | AP199: 10 | AQ199: 9 | AR199: 1 | AS199: 10 | AT199: 11 | AU199: 23 | AV199: 621 | AW199: 56 | AX199: 55 | AY199: 296 | AZ199: 33 | BA199: 1,252 | BB199: 248 | BC199: 131 | BD199: 269 | BE199: 479 | BF199: 125
F200: 1332 | G200: PUESTO DE SALUD SAN CAMILO 6 | H200: 6 | J200: 33 | K200: 36 | L200: 37 | M200: 36 | N200: 39 | O200: 38 | P200: 49 | Q200: 44 | R200: 47 | S200: 48 | T200: 46 | U200: 43 | V200: 45 | W200: 43 | X200: 44 | Y200: 42 | Z200: 44 | AA200: 43 | AB200: 45 | AC200: 44 | AD200: 212 | AE200: 237 | AF200: 212 | AG200: 202 | AH200: 168 | AI200: 157 | AJ200: 119 | AK200: 100 | AL200: 78 | AM200: 65 | AN200: 40 | AO200: 31 | AP200: 19 | AQ200: 17 | AR200: 2 | AS200: 20 | AT200: 21 | AU200: 46 | AV200: 1,243 | AW200: 112 | AX200: 110 | AY200: 591 | AZ200: 66 | BA200: 2,503 | BB200: 496 | BC200: 261 | BD200: 537 | BE200: 958 | BF200: 250
F201: 1331 | G201: PUESTO DE SALUD LA CANO | H201: 7 | J201: 39 | K201: 42 | L201: 43 | M201: 42 | N201: 45 | O201: 44 | P201: 57 | Q201: 52 | R201: 55 | S201: 56 | T201: 54 | U201: 50 | V201: 53 | W201: 50 | X201: 51 | Y201: 49 | Z201: 51 | AA201: 51 | AB201: 52 | AC201: 51 | AD201: 247 | AE201: 277 | AF201: 247 | AG201: 236 | AH201: 196 | AI201: 183 | AJ201: 139 | AK201: 117 | AL201: 91 | AM201: 76 | AN201: 47 | AO201: 36 | AP201: 23 | AQ201: 20 | AR201: 2 | AS201: 23 | AT201: 25 | AU201: 54 | AV201: 1,450 | AW201: 131 | AX201: 128 | AY201: 690 | AZ201: 77 | BA201: 2,920 | BB201: 579 | BC201: 305 | BD201: 627 | BE201: 1,117 | BF201: 292
A202: 040702 | B202: AREQUIPA | C202: AREQUIPA | D202: ISLAY | E202: COCACHACRA | F202: 1343 | G202: PUESTO DE SALUD SAN CAMILO 7 | H202: 14 | J202: 13 | K202: 12 | L202: 15 | M202: 16 | N202: 15 | O202: 21 | P202: 13 | Q202: 15 | R202: 18 | S202: 13 | T202: 13 | U202: 14 | V202: 13 | W202: 16 | X202: 15 | Y202: 16 | Z202: 13 | AA202: 15 | AB202: 15 | AC202: 16 | AD202: 77 | AE202: 93 | AF202: 95 | AG202: 97 | AH202: 87 | AI202: 80 | AJ202: 77 | AK202: 75 | AL202: 54 | AM202: 49 | AN202: 30 | AO202: 23 | AP202: 16 | AQ202: 16 | AR202: 0 | AS202: 7 | AT202: 9 | AU202: 19 | AV202: 546 | AW202: 33 | AX202: 37 | AY202: 244 | AZ202: 34 | BA202: 1,165 | BB202: 178 | BC202: 90 | BD202: 200 | BE202: 510 | BF202: 188
A204: 040125 | B204: AREQUIPA | C204: AREQUIPA | D204: AREQUIPA | E204: VITOR | G204: MR VITOR | I204: =SUM(J204:AQ204) -> 13,282 | J204: =SUM(J205:J207) -> 132 | K204: =SUM(K205:K207) -> 150 | L204: 145 | M204: 130 | N204: 154 | O204: 165 | P204: 218 | Q204: 258 | R204: 209 | S204: 209 | T204: 222 | U204: 221 | V204: 240 | W204: 236 | X204: 194 | Y204: 232 | Z204: 202 | AA204: 211 | AB204: 217 | AC204: 235 | AD204: 1,094 | AE204: 1,327 | AF204: 1,321 | AG204: 1,214 | AH204: 1,004 | AI204: 767 | AJ204: 617 | AK204: 578 | AL204: 473 | AM204: 328 | AN204: 238 | AO204: 147 | AP204: 102 | AQ204: 92 | AR204: 13 | AS204: 106 | AT204: 66 | AU204: 198 | AV204: 6,480 | AW204: 554 | AX204: 544 | AY204: 3,279 | AZ204: 324 | BA204: 13,282 | BB204: 2,213 | BC204: 1,315 | BD204: 2,873 | BE204: 5,501 | BF204: 1,380
F205: 1324 | G205: CENTRO DE SALUD VITOR | H205: 80 | J205: 27 | K205: 31 | L205: 29 | M205: 26 | N205: 40 | O205: 39 | P205: 46 | Q205: 69 | R205: 55 | S205: 59 | T205: 45 | U205: 66 | V205: 73 | W205: 66 | X205: 56 | Y205: 69 | Z205: 67 | AA205: 74 | AB205: 71 | AC205: 69 | AD205: 322 | AE205: 363 | AF205: 343 | AG205: 335 | AH205: 289 | AI205: 242 | AJ205: 215 | AK205: 213 | AL205: 182 | AM205: 150 | AN205: 103 | AO205: 62 | AP205: 49 | AQ205: 47 | AR205: 2 | AS205: 22 | AT205: 12 | AU205: 39 | AV205: 1,914 | AW205: 156 | AX205: 174 | AY205: 917 | AZ205: 70 | BA205: 3,991 | BB205: 533 | BC205: 404 | BD205: 826 | BE205: 1,637 | BF205: 592
F206: 1334 | G206: PUESTO DE SALUD YURAMAYO | H206: 20 | J206: 7 | K206: 8 | L206: 7 | M206: 6 | N206: 10 | O206: 10 | P206: 12 | Q206: 17 | R206: 14 | S206: 15 | T206: 11 | U206: 17 | V206: 18 | W206: 16 | X206: 14 | Y206: 17 | Z206: 17 | AA206: 18 | AB206: 18 | AC206: 17 | AD206: 81 | AE206: 91 | AF206: 86 | AG206: 84 | AH206: 72 | AI206: 60 | AJ206: 54 | AK206: 53 | AL206: 45 | AM206: 37 | AN206: 26 | AO206: 15 | AP206: 12 | AQ206: 12 | AR206: 1 | AS206: 5 | AT206: 3 | AU206: 10 | AV206: 478 | AW206: 39 | AX206: 43 | AY206: 229 | AZ206: 18 | BA206: 998 | BB206: 133 | BC206: 101 | BD206: 206 | BE206: 409 | BF206: 148
A207: 040121 | B207: AREQUIPA | C207: AREQUIPA | D207: AREQUIPA | E207: SANTA RITA DE SIGUAS | F207: 1335 | G207: CENTRO DE SALUD SANTA RITA DE SIGUAS | H207: 100 | J207: 98 | K207: 111 | L207: 109 | M207: 98 | N207: 104 | O207: 116 | P207: 160 | Q207: 172 | R207: 140 | S207: 135 | T207: 166 | U207: 138 | V207: 149 | W207: 154 | X207: 124 | Y207: 146 | Z207: 118 | AA207: 119 | AB207: 128 | AC207: 149 | AD207: 691 | AE207: 873 | AF207: 892 | AG207: 795 | AH207: 643 | AI207: 465 | AJ207: 348 | AK207: 312 | AL207: 246 | AM207: 141 | AN207: 109 | AO207: 70 | AP207: 41 | AQ207: 33 | AR207: 10 | AS207: 79 | AT207: 51 | AU207: 149 | AV207: 4,088 | AW207: 359 | AX207: 327 | AY207: 2,133 | AZ207: 236 | BA207: 8,293 | BB207: 1,547 | BC207: 810 | BD207: 1,841 | BE207: 3,455 | BF207: 640
A209: NOTA: LA POBLACION ESTIMADA DE EDADES SIMPLES Y GRUPOS DE EDAD DE DISTRITOS, CORRESPONDEN A CIFRAS REFERENCIALES HASTA OBTENER LAS CIFRAS DE LAS PROYECCIONES DEL INEI
A210: FUENTE: CENSO NACIONAL XI DE POBLACION Y VI DE VIVIENDA 2017/- BOLETIN DEMOGRAFICO Nº 26,37, 39 / RENIEC / Padrón Nominal/ CNV
A211: La población de 0-5 años corresponden a una proyección de la poblacion del Padrón Nominal respecto a lo estimado por INEI en el Boletin 26
A212: OFICINA DE GESTION DE LA INFORMACION - MINISTERIO DE SALUD

Sheet DATA (hidden)
A1: =#REF! ->  | B1: =#REF! ->  | C1: =#REF! ->  | D1: =#REF! ->  | E1: =#REF! ->  | F1: SEXO | G1: GRUPO DE EDAD | H1: POBLACION | I1: id
A2: =#REF! ->  | B2: =#REF! ->  | C2: =#REF! ->  | D2: =#REF! ->  | E2: =#REF! ->  | F2: Hombre | G2: =#REF! ->  | H2: =#REF! ->  | I2: 1
A3: =#REF! ->  | B3: =#REF! ->  | C3: =#REF! ->  | D3: =#REF! ->  | E3: =#REF! ->  | F3: =F2 -> Hombre | G3: =G2 ->  | H3: =#REF! ->  | I3: 2
A4: =#REF! ->  | B4: =#REF! ->  | C4: =#REF! ->  | D4: =#REF! ->  | E4: =#REF! ->  | F4: Hombre | H4: =#REF! ->  | I4: 3
A5: =#REF! ->  | B5: =#REF! ->  | C5: =#REF! ->  | D5: =#REF! ->  | E5: =#REF! ->  | F5: Hombre | H5: =#REF! ->  | I5: 4
A6: =#REF! ->  | B6: =#REF! ->  | C6: =#REF! ->  | D6: =#REF! ->  | E6: =#REF! ->  | F6: Hombre | H6: =#REF! ->  | I6: 5
A7: =#REF! ->  | B7: =#REF! ->  | C7: =#REF! ->  | D7: =#REF! ->  | E7: =#REF! ->  | F7: Hombre | H7: =#REF! ->  | I7: 6
A8: =#REF! ->  | B8: =#REF! ->  | C8: =#REF! ->  | D8: =#REF! ->  | E8: =#REF! ->  | F8: Hombre | H8: =#REF! ->  | I8: 7
A9: =#REF! ->  | B9: =#REF! ->  | C9: =#REF! ->  | D9: =#REF! ->  | E9: =#REF! ->  | F9: Hombre | H9: =#REF! ->  | I9: 8
A10: =#REF! ->  | B10: =#REF! ->  | C10: =#REF! ->  | D10: =#REF! ->  | E10: =#REF! ->  | F10: Hombre | H10: =#REF! ->  | I10: 9
A11: =#REF! ->  | B11: =#REF! ->  | C11: =#REF! ->  | D11: =#REF! ->  | E11: =#REF! ->  | F11: Hombre | H11: =#REF! ->  | I11: 10
A12: =#REF! ->  | B12: =#REF! ->  | C12: =#REF! ->  | D12: =#REF! ->  | E12: =#REF! ->  | F12: Hombre | H12: =#REF! ->  | I12: 11
A13: =#REF! ->  | B13: =#REF! ->  | C13: =#REF! ->  | D13: =#REF! ->  | E13: =#REF! ->  | F13: Hombre | H13: =#REF! ->  | I13: 12
A14: =#REF! ->  | B14: =#REF! ->  | C14: =#REF! ->  | D14: =#REF! ->  | E14: =#REF! ->  | F14: Hombre | H14: =#REF! ->  | I14: 13
A15: =#REF! ->  | B15: =#REF! ->  | C15: =#REF! ->  | D15: =#REF! ->  | E15: =#REF! ->  | F15: Hombre | H15: =#REF! ->  | I15: 14
A16: =#REF! ->  | B16: =#REF! ->  | C16: =#REF! ->  | D16: =#REF! ->  | E16: =#REF! ->  | F16: Hombre | H16: =#REF! ->  | I16: 15
A17: =#REF! ->  | B17: =#REF! ->  | C17: =#REF! ->  | D17: =#REF! ->  | E17: =#REF! ->  | F17: Hombre | H17: =#REF! ->  | I17: 16
A18: =#REF! ->  | B18: =#REF! ->  | C18: =#REF! ->  | D18: =#REF! ->  | E18: =#REF! ->  | F18: Hombre | H18: =#REF! ->  | I18: 17
A19: =#REF! ->  | B19: =#REF! ->  | C19: =#REF! ->  | D19: =#REF! ->  | E19: =#REF! ->  | F19: Hombre | H19: =#REF! ->  | I19: 18
A20: =#REF! ->  | B20: =#REF! ->  | C20: =#REF! ->  | D20: =#REF! ->  | E20: =#REF! ->  | F20: Hombre | H20: =#REF! ->  | I20: 19
A21: =#REF! ->  | B21: =#REF! ->  | C21: =#REF! ->  | D21: =#REF! ->  | E21: =#REF! ->  | F21: Hombre | H21: =#REF! ->  | I21: 20
A22: =#REF! ->  | B22: =#REF! ->  | C22: =#REF! ->  | D22: =#REF! ->  | E22: =#REF! ->  | F22: Hombre | H22: =#REF! ->  | I22: 21
A23: =#REF! ->  | B23: =#REF! ->  | C23: =#REF! ->  | D23: =#REF! ->  | E23: =#REF! ->  | F23: Hombre | H23: =#REF! ->  | I23: 22
A24: =#REF! ->  | B24: =#REF! ->  | C24: =#REF! ->  | D24: =#REF! ->  | E24: =#REF! ->  | F24: Hombre | H24: =#REF! ->  | I24: 23
A25: =#REF! ->  | B25: =#REF! ->  | C25: =#REF! ->  | D25: =#REF! ->  | E25: =#REF! ->  | F25: Hombre | H25: =#REF! ->  | I25: 24
A26: =#REF! ->  | B26: =#REF! ->  | C26: =#REF! ->  | D26: =#REF! ->  | E26: =#REF! ->  | F26: Hombre | H26: =#REF! ->  | I26: 25
A27: =#REF! ->  | B27: =#REF! ->  | C27: =#REF! ->  | D27: =#REF! ->  | E27: =#REF! ->  | F27: Hombre | H27: =#REF! ->  | I27: 26
A28: =#REF! ->  | B28: =#REF! ->  | C28: =#REF! ->  | D28: =#REF! ->  | E28: =#REF! ->  | F28: Hombre | H28: =#REF! ->  | I28: 27
A29: =#REF! ->  | B29: =#REF! ->  | C29: =#REF! ->  | D29: =#REF! ->  | E29: =#REF! ->  | F29: Hombre | H29: =#REF! ->  | I29: 28
A30: =#REF! ->  | B30: =#REF! ->  | C30: =#REF! ->  | D30: =#REF! ->  | E30: =#REF! ->  | F30: Hombre | H30: =#REF! ->  | I30: 29
A31: =#REF! ->  | B31: =#REF! ->  | C31: =#REF! ->  | D31: =#REF! ->  | E31: =#REF! ->  | F31: Hombre | H31: =#REF! ->  | I31: 30
A32: =#REF! ->  | B32: =#REF! ->  | C32: =#REF! ->  | D32: =#REF! ->  | E32: =#REF! ->  | F32: Hombre | H32: =#REF! ->  | I32: 31
A33: =#REF! ->  | B33: =#REF! ->  | C33: =#REF! ->  | D33: =#REF! ->  | E33: =#REF! ->  | F33: Hombre | H33: =#REF! ->  | I33: 32
A34: =#REF! ->  | B34: =#REF! ->  | C34: =#REF! ->  | D34: =#REF! ->  | E34: =#REF! ->  | F34: Hombre | H34: =#REF! ->  | I34: 33
A35: =#REF! ->  | B35: =#REF! ->  | C35: =#REF! ->  | D35: =#REF! ->  | E35: =#REF! ->  | F35: Hombre | H35: =#REF! ->  | I35: 34
A36: =#REF! ->  | B36: =#REF! ->  | C36: =#REF! ->  | D36: =#REF! ->  | E36: =#REF! ->  | F36: Hombre | H36: =#REF! ->  | I36: 35
A37: =#REF! ->  | B37: =#REF! ->  | C37: =#REF! ->  | D37: =#REF! ->  | E37: =#REF! ->  | F37: Hombre | H37: =#REF! ->  | I37: 36
A38: =#REF! ->  | B38: =#REF! ->  | C38: =#REF! ->  | D38: =#REF! ->  | E38: =#REF! ->  | F38: Hombre | H38: =#REF! ->  | I38: 37
A39: =#REF! ->  | B39: =#REF! ->  | C39: =#REF! ->  | D39: =#REF! ->  | E39: =#REF! ->  | F39: Hombre | H39: =#REF! ->  | I39: 38
A40: =#REF! ->  | B40: =#REF! ->  | C40: =#REF! ->  | D40: =#REF! ->  | E40: =#REF! ->  | F40: Hombre | H40: =#REF! ->  | I40: 39
A41: =#REF! ->  | B41: =#REF! ->  | C41: =#REF! ->  | D41: =#REF! ->  | E41: =#REF! ->  | F41: Hombre | H41: =#REF! ->  | I41: 40
A42: =#REF! ->  | B42: =#REF! ->  | C42: =#REF! ->  | D42: =#REF! ->  | E42: =#REF! ->  | F42: Hombre | H42: =#REF! ->  | I42: 41
A43: =#REF! ->  | B43: =#REF! ->  | C43: =#REF! ->  | D43: =#REF! ->  | E43: =#REF! ->  | F43: Hombre | H43: =#REF! ->  | I43: 42
A44: =#REF! ->  | B44: =#REF! ->  | C44: =#REF! ->  | D44: =#REF! ->  | E44: =#REF! ->  | F44: Hombre | H44: =#REF! ->  | I44: 43
A45: =#REF! ->  | B45: =#REF! ->  | C45: =#REF! ->  | D45: =#REF! ->  | E45: =#REF! ->  | F45: Hombre | H45: =#REF! ->  | I45: 44
A46: =#REF! ->  | B46: =#REF! ->  | C46: =#REF! ->  | D46: =#REF! ->  | E46: =#REF! ->  | F46: Hombre | H46: =#REF! ->  | I46: 45
A47: =#REF! ->  | B47: =#REF! ->  | C47: =#REF! ->  | D47: =#REF! ->  | E47: =#REF! ->  | F47: Hombre | H47: =#REF! ->  | I47: 46
A48: =#REF! ->  | B48: =#REF! ->  | C48: =#REF! ->  | D48: =#REF! ->  | E48: =#REF! ->  | F48: Hombre | H48: =#REF! ->  | I48: 47
A49: =#REF! ->  | B49: =#REF! ->  | C49: =#REF! ->  | D49: =#REF! ->  | E49: =#REF! ->  | F49: Hombre | H49: =#REF! ->  | I49: 48
A50: =#REF! ->  | B50: =#REF! ->  | C50: =#REF! ->  | D50: =#REF! ->  | E50: =#REF! ->  | F50: Hombre | H50: =#REF! ->  | I50: 49
A51: =#REF! ->  | B51: =#REF! ->  | C51: =#REF! ->  | D51: =#REF! ->  | E51: =#REF! ->  | F51: Hombre | H51: =#REF! ->  | I51: 50
A52: =#REF! ->  | B52: =#REF! ->  | C52: =#REF! ->  | D52: =#REF! ->  | E52: =#REF! ->  | F52: Hombre | H52: =#REF! ->  | I52: 51
A53: =#REF! ->  | B53: =#REF! ->  | C53: =#REF! ->  | D53: =#REF! ->  | E53: =#REF! ->  | F53: Hombre | H53: =#REF! ->  | I53: 52
A54: =#REF! ->  | B54: =#REF! ->  | C54: =#REF! ->  | D54: =#REF! ->  | E54: =#REF! ->  | F54: Hombre | H54: =#REF! ->  | I54: 53
A55: =#REF! ->  | B55: =#REF! ->  | C55: =#REF! ->  | D55: =#REF! ->  | E55: =#REF! ->  | F55: Hombre | H55: =#REF! ->  | I55: 54
A56: =#REF! ->  | B56: =#REF! ->  | C56: =#REF! ->  | D56: =#REF! ->  | E56: =#REF! ->  | F56: Hombre | H56: =#REF! ->  | I56: 55
A57: =#REF! ->  | B57: =#REF! ->  | C57: =#REF! ->  | D57: =#REF! ->  | E57: =#REF! ->  | F57: Hombre | H57: =#REF! ->  | I57: 56
A58: =#REF! ->  | B58: =#REF! ->  | C58: =#REF! ->  | D58: =#REF! ->  | E58: =#REF! ->  | F58: Hombre | H58: =#REF! ->  | I58: 57
A59: =#REF! ->  | B59: =#REF! ->  | C59: =#REF! ->  | D59: =#REF! ->  | E59: =#REF! ->  | F59: Hombre | H59: =#REF! ->  | I59: 58
A60: =#REF! ->  | B60: =#REF! ->  | C60: =#REF! ->  | D60: =#REF! ->  | E60: =#REF! ->  | F60: Hombre | H60: =#REF! ->  | I60: 59
A61: =#REF! ->  | B61: =#REF! ->  | C61: =#REF! ->  | D61: =#REF! ->  | E61: =#REF! ->  | F61: Hombre | H61: =#REF! ->  | I61: 60
A62: =#REF! ->  | B62: =#REF! ->  | C62: =#REF! ->  | D62: =#REF! ->  | E62: =#REF! ->  | F62: Hombre | H62: =#REF! ->  | I62: 61
A63: =#REF! ->  | B63: =#REF! ->  | C63: =#REF! ->  | D63: =#REF! ->  | E63: =#REF! ->  | F63: Hombre | H63: =#REF! ->  | I63: 62
A64: =#REF! ->  | B64: =#REF! ->  | C64: =#REF! ->  | D64: =#REF! ->  | E64: =#REF! ->  | F64: Hombre | H64: =#REF! ->  | I64: 63
A65: =#REF! ->  | B65: =#REF! ->  | C65: =#REF! ->  | D65: =#REF! ->  | E65: =#REF! ->  | F65: Hombre | H65: =#REF! ->  | I65: 64
A66: =#REF! ->  | B66: =#REF! ->  | C66: =#REF! ->  | D66: =#REF! ->  | E66: =#REF! ->  | F66: Hombre | H66: =#REF! ->  | I66: 65
A67: =#REF! ->  | B67: =#REF! ->  | C67: =#REF! ->  | D67: =#REF! ->  | E67: =#REF! ->  | F67: =F66 -> Hombre | G67: =G66 ->  | H67: =#REF! ->  | I67: 66
A68: =#REF! ->  | B68: =#REF! ->  | C68: =#REF! ->  | D68: =#REF! ->  | E68: =#REF! ->  | F68: Hombre | H68: =#REF! ->  | I68: 67
A69: =#REF! ->  | B69: =#REF! ->  | C69: =#REF! ->  | D69: =#REF! ->  | E69: =#REF! ->  | F69: Hombre | H69: =#REF! ->  | I69: 68
A70: =#REF! ->  | B70: =#REF! ->  | C70: =#REF! ->  | D70: =#REF! ->  | E70: =#REF! ->  | F70: Hombre | H70: =#REF! ->  | I70: 69
A71: =#REF! ->  | B71: =#REF! ->  | C71: =#REF! ->  | D71: =#REF! ->  | E71: =#REF! ->  | F71: Hombre | H71: =#REF! ->  | I71: 70
A72: =#REF! ->  | B72: =#REF! ->  | C72: =#REF! ->  | D72: =#REF! ->  | E72: =#REF! ->  | F72: Hombre | H72: =#REF! ->  | I72: 71
A73: =#REF! ->  | B73: =#REF! ->  | C73: =#REF! ->  | D73: =#REF! ->  | E73: =#REF! ->  | F73: Hombre | H73: =#REF! ->  | I73: 72
A74: =#REF! ->  | B74: =#REF! ->  | C74: =#REF! ->  | D74: =#REF! ->  | E74: =#REF! ->  | F74: Hombre | H74: =#REF! ->  | I74: 73
A75: =#REF! ->  | B75: =#REF! ->  | C75: =#REF! ->  | D75: =#REF! ->  | E75: =#REF! ->  | F75: Hombre | H75: =#REF! ->  | I75: 74
A76: =#REF! ->  | B76: =#REF! ->  | C76: =#REF! ->  | D76: =#REF! ->  | E76: =#REF! ->  | F76: Hombre | H76: =#REF! ->  | I76: 75
A77: =#REF! ->  | B77: =#REF! ->  | C77: =#REF! ->  | D77: =#REF! ->  | E77: =#REF! ->  | F77: Hombre | H77: =#REF! ->  | I77: 76
A78: =#REF! ->  | B78: =#REF! ->  | C78: =#REF! ->  | D78: =#REF! ->  | E78: =#REF! ->  | F78: Hombre | H78: =#REF! ->  | I78: 77
A79: =#REF! ->  | B79: =#REF! ->  | C79: =#REF! ->  | D79: =#REF! ->  | E79: =#REF! ->  | F79: Hombre | H79: =#REF! ->  | I79: 78
A80: =#REF! ->  | B80: =#REF! ->  | C80: =#REF! ->  | D80: =#REF! ->  | E80: =#REF! ->  | F80: Hombre | H80: =#REF! ->  | I80: 79
A81: =#REF! ->  | B81: =#REF! ->  | C81: =#REF! ->  | D81: =#REF! ->  | E81: =#REF! ->  | F81: Hombre | H81: =#REF! ->  | I81: 80
A82: =#REF! ->  | B82: =#REF! ->  | C82: =#REF! ->  | D82: =#REF! ->  | E82: =#REF! ->  | F82: Hombre | H82: =#REF! ->  | I82: 81
A83: =#REF! ->  | B83: =#REF! ->  | C83: =#REF! ->  | D83: =#REF! ->  | E83: =#REF! ->  | F83: Hombre | H83: =#REF! ->  | I83: 82
A84: =#REF! ->  | B84: =#REF! ->  | C84: =#REF! ->  | D84: =#REF! ->  | E84: =#REF! ->  | F84: Hombre | H84: =#REF! ->  | I84: 83
A85: =#REF! ->  | B85: =#REF! ->  | C85: =#REF! ->  | D85: =#REF! ->  | E85: =#REF! ->  | F85: Hombre | H85: =#REF! ->  | I85: 84
A86: =#REF! ->  | B86: =#REF! ->  | C86: =#REF! ->  | D86: =#REF! ->  | E86: =#REF! ->  | F86: Hombre | H86: =#REF! ->  | I86: 85
A87: =#REF! ->  | B87: =#REF! ->  | C87: =#REF! ->  | D87: =#REF! ->  | E87: =#REF! ->  | F87: Hombre | H87: =#REF! ->  | I87: 86
A88: =#REF! ->  | B88: =#REF! ->  | C88: =#REF! ->  | D88: =#REF! ->  | E88: =#REF! ->  | F88: Hombre | H88: =#REF! ->  | I88: 87
A89: =#REF! ->  | B89: =#REF! ->  | C89: =#REF! ->  | D89: =#REF! ->  | E89: =#REF! ->  | F89: Hombre | H89: =#REF! ->  | I89: 88
A90: =#REF! ->  | B90: =#REF! ->  | C90: =#REF! ->  | D90: =#REF! ->  | E90: =#REF! ->  | F90: Hombre | H90: =#REF! ->  | I90: 89
A91: =#REF! ->  | B91: =#REF! ->  | C91: =#REF! ->  | D91: =#REF! ->  | E91: =#REF! ->  | F91: Hombre | H91: =#REF! ->  | I91: 90
A92: =#REF! ->  | B92: =#REF! ->  | C92: =#REF! ->  | D92: =#REF! ->  | E92: =#REF! ->  | F92: Hombre | H92: =#REF! ->  | I92: 91
A93: =#REF! ->  | B93: =#REF! ->  | C93: =#REF! ->  | D93: =#REF! ->  | E93: =#REF! ->  | F93: Hombre | H93: =#REF! ->  | I93: 92
A94: =#REF! ->  | B94: =#REF! ->  | C94: =#REF! ->  | D94: =#REF! ->  | E94: =#REF! ->  | F94: Hombre | H94: =#REF! ->  | I94: 93
A95: =#REF! ->  | B95: =#REF! ->  | C95: =#REF! ->  | D95: =#REF! ->  | E95: =#REF! ->  | F95: Hombre | H95: =#REF! ->  | I95: 94
A96: =#REF! ->  | B96: =#REF! ->  | C96: =#REF! ->  | D96: =#REF! ->  | E96: =#REF! ->  | F96: Hombre | H96: =#REF! ->  | I96: 95
A97: =#REF! ->  | B97: =#REF! ->  | C97: =#REF! ->  | D97: =#REF! ->  | E97: =#REF! ->  | F97: Hombre | H97: =#REF! ->  | I97: 96
A98: =#REF! ->  | B98: =#REF! ->  | C98: =#REF! ->  | D98: =#REF! ->  | E98: =#REF! ->  | F98: Hombre | H98: =#REF! ->  | I98: 97
A99: =#REF! ->  | B99: =#REF! ->  | C99: =#REF! ->  | D99: =#REF! ->  | E99: =#REF! ->  | F99: Hombre | H99: =#REF! ->  | I99: 98
A100: =#REF! ->  | B100: =#REF! ->  | C100: =#REF! ->  | D100: =#REF! ->  | E100: =#REF! ->  | F100: Hombre | H100: =#REF! ->  | I100: 99
A101: =#REF! ->  | B101: =#REF! ->  | C101: =#REF! ->  | D101: =#REF! ->  | E101: =#REF! ->  | F101: Hombre | H101: =#REF! ->  | I101: 100
A102: =#REF! ->  | B102: =#REF! ->  | C102: =#REF! ->  | D102: =#REF! ->  | E102: =#REF! ->  | F102: Hombre | H102: =#REF! ->  | I102: 101
A103: =#REF! ->  | B103: =#REF! ->  | C103: =#REF! ->  | D103: =#REF! ->  | E103: =#REF! ->  | F103: Hombre | H103: =#REF! ->  | I103: 102
A104: =#REF! ->  | B104: =#REF! ->  | C104: =#REF! ->  | D104: =#REF! ->  | E104: =#REF! ->  | F104: Hombre | H104: =#REF! ->  | I104: 103
A105: =#REF! ->  | B105: =#REF! ->  | C105: =#REF! ->  | D105: =#REF! ->  | E105: =#REF! ->  | F105: Hombre | H105: =#REF! ->  | I105: 104
A106: =#REF! ->  | B106: =#REF! ->  | C106: =#REF! ->  | D106: =#REF! ->  | E106: =#REF! ->  | F106: Hombre | H106: =#REF! ->  | I106: 105
A107: =#REF! ->  | B107: =#REF! ->  | C107: =#REF! ->  | D107: =#REF! ->  | E107: =#REF! ->  | F107: Hombre | H107: =#REF! ->  | I107: 106
A108: =#REF! ->  | B108: =#REF! ->  | C108: =#REF! ->  | D108: =#REF! ->  | E108: =#REF! ->  | F108: Hombre | H108: =#REF! ->  | I108: 107
A109: =#REF! ->  | B109: =#REF! ->  | C109: =#REF! ->  | D109: =#REF! ->  | E109: =#REF! ->  | F109: Hombre | H109: =#REF! ->  | I109: 108
A110: =#REF! ->  | B110: =#REF! ->  | C110: =#REF! ->  | D110: =#REF! ->  | E110: =#REF! ->  | F110: Hombre | H110: =#REF! ->  | I110: 109
A111: =#REF! ->  | B111: =#REF! ->  | C111: =#REF! ->  | D111: =#REF! ->  | E111: =#REF! ->  | F111: Hombre | H111: =#REF! ->  | I111: 110
A112: =#REF! ->  | B112: =#REF! ->  | C112: =#REF! ->  | D112: =#REF! ->  | E112: =#REF! ->  | F112: Hombre | H112: =#REF! ->  | I112: 111
A113: =#REF! ->  | B113: =#REF! ->  | C113: =#REF! ->  | D113: =#REF! ->  | E113: =#REF! ->  | F113: Hombre | H113: =#REF! ->  | I113: 112
A114: =#REF! ->  | B114: =#REF! ->  | C114: =#REF! ->  | D114: =#REF! ->  | E114: =#REF! ->  | F114: Hombre | H114: =#REF! ->  | I114: 113
A115: =#REF! ->  | B115: =#REF! ->  | C115: =#REF! ->  | D115: =#REF! ->  | E115: =#REF! ->  | F115: Hombre | H115: =#REF! ->  | I115: 114
A116: =#REF! ->  | B116: =#REF! ->  | C116: =#REF! ->  | D116: =#REF! ->  | E116: =#REF! ->  | F116: Hombre | H116: =#REF! ->  | I116: 115
A117: =#REF! ->  | B117: =#REF! ->  | C117: =#REF! ->  | D117: =#REF! ->  | E117: =#REF! ->  | F117: Hombre | H117: =#REF! ->  | I117: 116
A118: =#REF! ->  | B118: =#REF! ->  | C118: =#REF! ->  | D118: =#REF! ->  | E118: =#REF! ->  | F118: Hombre | H118: =#REF! ->  | I118: 117
A119: =#REF! ->  | B119: =#REF! ->  | C119: =#REF! ->  | D119: =#REF! ->  | E119: =#REF! ->  | F119: Hombre | H119: =#REF! ->  | I119: 118
A120: =#REF! ->  | B120: =#REF! ->  | C120: =#REF! ->  | D120: =#REF! ->  | E120: =#REF! ->  | F120: Hombre | H120: =#REF! ->  | I120: 119
A121: =#REF! ->  | B121: =#REF! ->  | C121: =#REF! ->  | D121: =#REF! ->  | E121: =#REF! ->  | F121: Hombre | H121: =#REF! ->  | I121: 120
A122: =#REF! ->  | B122: =#REF! ->  | C122: =#REF! ->  | D122: =#REF! ->  | E122: =#REF! ->  | F122: Hombre | H122: =#REF! ->  | I122: 121
A123: =#REF! ->  | B123: =#REF! ->  | C123: =#REF! ->  | D123: =#REF! ->  | E123: =#REF! ->  | F123: Hombre | H123: =#REF! ->  | I123: 122
A124: =#REF! ->  | B124: =#REF! ->  | C124: =#REF! ->  | D124: =#REF! ->  | E124: =#REF! ->  | F124: Hombre | H124: =#REF! ->  | I124: 123
A125: =#REF! ->  | B125: =#REF! ->  | C125: =#REF! ->  | D125: =#REF! ->  | E125: =#REF! ->  | F125: Hombre | H125: =#REF! ->  | I125: 124
A126: =#REF! ->  | B126: =#REF! ->  | C126: =#REF! ->  | D126: =#REF! ->  | E126: =#REF! ->  | F126: Hombre | H126: =#REF! ->  | I126: 125
A127: =#REF! ->  | B127: =#REF! ->  | C127: =#REF! ->  | D127: =#REF! ->  | E127: =#REF! ->  | F127: Hombre | H127: =#REF! ->  | I127: 126
A128: =#REF! ->  | B128: =#REF! ->  | C128: =#REF! ->  | D128: =#REF! ->  | E128: =#REF! ->  | F128: Hombre | H128: =#REF! ->  | I128: 127
A129: =#REF! ->  | B129: =#REF! ->  | C129: =#REF! ->  | D129: =#REF! ->  | E129: =#REF! ->  | F129: Hombre | H129: =#REF! ->  | I129: 128
A130: =#REF! ->  | B130: =#REF! ->  | C130: =#REF! ->  | D130: =#REF! ->  | E130: =#REF! ->  | F130: Hombre | H130: =#REF! ->  | I130: 129
A131: =#REF! ->  | B131: =#REF! ->  | C131: =#REF! ->  | D131: =#REF! ->  | E131: =#REF! ->  | F131: =F130 -> Hombre | G131: =G130 ->  | H131: =#REF! ->  | I131: 130
A132: =#REF! ->  | B132: =#REF! ->  | C132: =#REF! ->  | D132: =#REF! ->  | E132: =#REF! ->  | F132: Hombre | H132: =#REF! ->  | I132: 131
A133: =#REF! ->  | B133: =#REF! ->  | C133: =#REF! ->  | D133: =#REF! ->  | E133: =#REF! ->  | F133: Hombre | H133: =#REF! ->  | I133: 132
A134: =#REF! ->  | B134: =#REF! ->  | C134: =#REF! ->  | D134: =#REF! ->  | E134: =#REF! ->  | F134: Hombre | H134: =#REF! ->  | I134: 133
A135: =#REF! ->  | B135: =#REF! ->  | C135: =#REF! ->  | D135: =#REF! ->  | E135: =#REF! ->  | F135: Hombre | H135: =#REF! ->  | I135: 134
A136: =#REF! ->  | B136: =#REF! ->  | C136: =#REF! ->  | D136: =#REF! ->  | E136: =#REF! ->  | F136: Hombre | H136: =#REF! ->  | I136: 135
A137: =#REF! ->  | B137: =#REF! ->  | C137: =#REF! ->  | D137: =#REF! ->  | E137: =#REF! ->  | F137: Hombre | H137: =#REF! ->  | I137: 136
A138: =#REF! ->  | B138: =#REF! ->  | C138: =#REF! ->  | D138: =#REF! ->  | E138: =#REF! ->  | F138: Hombre | H138: =#REF! ->  | I138: 137
A139: =#REF! ->  | B139: =#REF! ->  | C139: =#REF! ->  | D139: =#REF! ->  | E139: =#REF! ->  | F139: Hombre | H139: =#REF! ->  | I139: 138
A140: =#REF! ->  | B140: =#REF! ->  | C140: =#REF! ->  | D140: =#REF! ->  | E140: =#REF! ->  | F140: Hombre | H140: =#REF! ->  | I140: 139
A141: =#REF! ->  | B141: =#REF! ->  | C141: =#REF! ->  | D141: =#REF! ->  | E141: =#REF! ->  | F141: Hombre | H141: =#REF! ->  | I141: 140
A142: =#REF! ->  | B142: =#REF! ->  | C142: =#REF! ->  | D142: =#REF! ->  | E142: =#REF! ->  | F142: Hombre | H142: =#REF! ->  | I142: 141
A143: =#REF! ->  | B143: =#REF! ->  | C143: =#REF! ->  | D143: =#REF! ->  | E143: =#REF! ->  | F143: Hombre | H143: =#REF! ->  | I143: 142
A144: =#REF! ->  | B144: =#REF! ->  | C144: =#REF! ->  | D144: =#REF! ->  | E144: =#REF! ->  | F144: Hombre | H144: =#REF! ->  | I144: 143
A145: =#REF! ->  | B145: =#REF! ->  | C145: =#REF! ->  | D145: =#REF! ->  | E145: =#REF! ->  | F145: Hombre | H145: =#REF! ->  | I145: 144
A146: =#REF! ->  | B146: =#REF! ->  | C146: =#REF! ->  | D146: =#REF! ->  | E146: =#REF! ->  | F146: Hombre | H146: =#REF! ->  | I146: 145
A147: =#REF! ->  | B147: =#REF! ->  | C147: =#REF! ->  | D147: =#REF! ->  | E147: =#REF! ->  | F147: Hombre | H147: =#REF! ->  | I147: 146
A148: =#REF! ->  | B148: =#REF! ->  | C148: =#REF! ->  | D148: =#REF! ->  | E148: =#REF! ->  | F148: Hombre | H148: =#REF! ->  | I148: 147
A149: =#REF! ->  | B149: =#REF! ->  | C149: =#REF! ->  | D149: =#REF! ->  | E149: =#REF! ->  | F149: Hombre | H149: =#REF! ->  | I149: 148
A150: =#REF! ->  | B150: =#REF! ->  | C150: =#REF! ->  | D150: =#REF! ->  | E150: =#REF! ->  | F150: Hombre | H150: =#REF! ->  | I150: 149
A151: =#REF! ->  | B151: =#REF! ->  | C151: =#REF! ->  | D151: =#REF! ->  | E151: =#REF! ->  | F151: Hombre | H151: =#REF! ->  | I151: 150
A152: =#REF! ->  | B152: =#REF! ->  | C152: =#REF! ->  | D152: =#REF! ->  | E152: =#REF! ->  | F152: Hombre | H152: =#REF! ->  | I152: 151
A153: =#REF! ->  | B153: =#REF! ->  | C153: =#REF! ->  | D153: =#REF! ->  | E153: =#REF! ->  | F153: Hombre | H153: =#REF! ->  | I153: 152
A154: =#REF! ->  | B154: =#REF! ->  | C154: =#REF! ->  | D154: =#REF! ->  | E154: =#REF! ->  | F154: Hombre | H154: =#REF! ->  | I154: 153
A155: =#REF! ->  | B155: =#REF! ->  | C155: =#REF! ->  | D155: =#REF! ->  | E155: =#REF! ->  | F155: Hombre | H155: =#REF! ->  | I155: 154
A156: =#REF! ->  | B156: =#REF! ->  | C156: =#REF! ->  | D156: =#REF! ->  | E156: =#REF! ->  | F156: Hombre | H156: =#REF! ->  | I156: 155
A157: =#REF! ->  | B157: =#REF! ->  | C157: =#REF! ->  | D157: =#REF! ->  | E157: =#REF! ->  | F157: Hombre | H157: =#REF! ->  | I157: 156
A158: =#REF! ->  | B158: =#REF! ->  | C158: =#REF! ->  | D158: =#REF! ->  | E158: =#REF! ->  | F158: Hombre | H158: =#REF! ->  | I158: 157
A159: =#REF! ->  | B159: =#REF! ->  | C159: =#REF! ->  | D159: =#REF! ->  | E159: =#REF! ->  | F159: Hombre | H159: =#REF! ->  | I159: 158
A160: =#REF! ->  | B160: =#REF! ->  | C160: =#REF! ->  | D160: =#REF! ->  | E160: =#REF! ->  | F160: Hombre | H160: =#REF! ->  | I160: 159
A161: =#REF! ->  | B161: =#REF! ->  | C161: =#REF! ->  | D161: =#REF! ->  | E161: =#REF! ->  | F161: Hombre | H161: =#REF! ->  | I161: 160
A162: =#REF! ->  | B162: =#REF! ->  | C162: =#REF! ->  | D162: =#REF! ->  | E162: =#REF! ->  | F162: Hombre | H162: =#REF! ->  | I162: 161
A163: =#REF! ->  | B163: =#REF! ->  | C163: =#REF! ->  | D163: =#REF! ->  | E163: =#REF! ->  | F163: Hombre | H163: =#REF! ->  | I163: 162
A164: =#REF! ->  | B164: =#REF! ->  | C164: =#REF! ->  | D164: =#REF! ->  | E164: =#REF! ->  | F164: Hombre | H164: =#REF! ->  | I164: 163
A165: =#REF! ->  | B165: =#REF! ->  | C165: =#REF! ->  | D165: =#REF! ->  | E165: =#REF! ->  | F165: Hombre | H165: =#REF! ->  | I165: 164
A166: =#REF! ->  | B166: =#REF! ->  | C166: =#REF! ->  | D166: =#REF! ->  | E166: =#REF! ->  | F166: Hombre | H166: =#REF! ->  | I166: 165
A167: =#REF! ->  | B167: =#REF! ->  | C167: =#REF! ->  | D167: =#REF! ->  | E167: =#REF! ->  | F167: Hombre | H167: =#REF! ->  | I167: 166
A168: =#REF! ->  | B168: =#REF! ->  | C168: =#REF! ->  | D168: =#REF! ->  | E168: =#REF! ->  | F168: Hombre | H168: =#REF! ->  | I168: 167
A169: =#REF! ->  | B169: =#REF! ->  | C169: =#REF! ->  | D169: =#REF! ->  | E169: =#REF! ->  | F169: Hombre | H169: =#REF! ->  | I169: 168
A170: =#REF! ->  | B170: =#REF! ->  | C170: =#REF! ->  | D170: =#REF! ->  | E170: =#REF! ->  | F170: Hombre | H170: =#REF! ->  | I170: 169
A171: =#REF! ->  | B171: =#REF! ->  | C171: =#REF! ->  | D171: =#REF! ->  | E171: =#REF! ->  | F171: Hombre | H171: =#REF! ->  | I171: 170
A172: =#REF! ->  | B172: =#REF! ->  | C172: =#REF! ->  | D172: =#REF! ->  | E172: =#REF! ->  | F172: Hombre | H172: =#REF! ->  | I172: 171
A173: =#REF! ->  | B173: =#REF! ->  | C173: =#REF! ->  | D173: =#REF! ->  | E173: =#REF! ->  | F173: Hombre | H173: =#REF! ->  | I173: 172
A174: =#REF! ->  | B174: =#REF! ->  | C174: =#REF! ->  | D174: =#REF! ->  | E174: =#REF! ->  | F174: Hombre | H174: =#REF! ->  | I174: 173
A175: =#REF! ->  | B175: =#REF! ->  | C175: =#REF! ->  | D175: =#REF! ->  | E175: =#REF! ->  | F175: Hombre | H175: =#REF! ->  | I175: 174
A176: =#REF! ->  | B176: =#REF! ->  | C176: =#REF! ->  | D176: =#REF! ->  | E176: =#REF! ->  | F176: Hombre | H176: =#REF! ->  | I176: 175
A177: =#REF! ->  | B177: =#REF! ->  | C177: =#REF! ->  | D177: =#REF! ->  | E177: =#REF! ->  | F177: Hombre | H177: =#REF! ->  | I177: 176
A178: =#REF! ->  | B178: =#REF! ->  | C178: =#REF! ->  | D178: =#REF! ->  | E178: =#REF! ->  | F178: Hombre | H178: =#REF! ->  | I178: 177
A179: =#REF! ->  | B179: =#REF! ->  | C179: =#REF! ->  | D179: =#REF! ->  | E179: =#REF! ->  | F179: Hombre | H179: =#REF! ->  | I179: 178
A180: =#REF! ->  | B180: =#REF! ->  | C180: =#REF! ->  | D180: =#REF! ->  | E180: =#REF! ->  | F180: Hombre | H180: =#REF! ->  | I180: 179
A181: =#REF! ->  | B181: =#REF! ->  | C181: =#REF! ->  | D181: =#REF! ->  | E181: =#REF! ->  | F181: Hombre | H181: =#REF! ->  | I181: 180
A182: =#REF! ->  | B182: =#REF! ->  | C182: =#REF! ->  | D182: =#REF! ->  | E182: =#REF! ->  | F182: Hombre | H182: =#REF! ->  | I182: 181
A183: =#REF! ->  | B183: =#REF! ->  | C183: =#REF! ->  | D183: =#REF! ->  | E183: =#REF! ->  | F183: Hombre | H183: =#REF! ->  | I183: 182
A184: =#REF! ->  | B184: =#REF! ->  | C184: =#REF! ->  | D184: =#REF! ->  | E184: =#REF! ->  | F184: Hombre | H184: =#REF! ->  | I184: 183
A185: =#REF! ->  | B185: =#REF! ->  | C185: =#REF! ->  | D185: =#REF! ->  | E185: =#REF! ->  | F185: Hombre | H185: =#REF! ->  | I185: 184
A186: =#REF! ->  | B186: =#REF! ->  | C186: =#REF! ->  | D186: =#REF! ->  | E186: =#REF! ->  | F186: Hombre | H186: =#REF! ->  | I186: 185
A187: =#REF! ->  | B187: =#REF! ->  | C187: =#REF! ->  | D187: =#REF! ->  | E187: =#REF! ->  | F187: Hombre | H187: =#REF! ->  | I187: 186
A188: =#REF! ->  | B188: =#REF! ->  | C188: =#REF! ->  | D188: =#REF! ->  | E188: =#REF! ->  | F188: Hombre | H188: =#REF! ->  | I188: 187
A189: =#REF! ->  | B189: =#REF! ->  | C189: =#REF! ->  | D189: =#REF! ->  | E189: =#REF! ->  | F189: Hombre | H189: =#REF! ->  | I189: 188
A190: =#REF! ->  | B190: =#REF! ->  | C190: =#REF! ->  | D190: =#REF! ->  | E190: =#REF! ->  | F190: Hombre | H190: =#REF! ->  | I190: 189
A191: =#REF! ->  | B191: =#REF! ->  | C191: =#REF! ->  | D191: =#REF! ->  | E191: =#REF! ->  | F191: Hombre | H191: =#REF! ->  | I191: 190
A192: =#REF! ->  | B192: =#REF! ->  | C192: =#REF! ->  | D192: =#REF! ->  | E192: =#REF! ->  | F192: Hombre | H192: =#REF! ->  | I192: 191
A193: =#REF! ->  | B193: =#REF! ->  | C193: =#REF! ->  | D193: =#REF! ->  | E193: =#REF! ->  | F193: Hombre | H193: =#REF! ->  | I193: 192
A194: =#REF! ->  | B194: =#REF! ->  | C194: =#REF! ->  | D194: =#REF! ->  | E194: =#REF! ->  | F194: Hombre | H194: =#REF! ->  | I194: 193
A195: =#REF! ->  | B195: =#REF! ->  | C195: =#REF! ->  | D195: =#REF! ->  | E195: =#REF! ->  | F195: =F194 -> Hombre | G195: =G194 ->  | H195: =#REF! ->  | I195: 194
A196: =#REF! ->  | B196: =#REF! ->  | C196: =#REF! ->  | D196: =#REF! ->  | E196: =#REF! ->  | F196: Hombre | H196: =#REF! ->  | I196: 195
A197: =#REF! ->  | B197: =#REF! ->  | C197: =#REF! ->  | D197: =#REF! ->  | E197: =#REF! ->  | F197: Hombre | H197: =#REF! ->  | I197: 196
A198: =#REF! ->  | B198: =#REF! ->  | C198: =#REF! ->  | D198: =#REF! ->  | E198: =#REF! ->  | F198: Hombre | H198: =#REF! ->  | I198: 197
A199: =#REF! ->  | B199: =#REF! ->  | C199: =#REF! ->  | D199: =#REF! ->  | E199: =#REF! ->  | F199: Hombre | H199: =#REF! ->  | I199: 198
A200: =#REF! ->  | B200: =#REF! ->  | C200: =#REF! ->  | D200: =#REF! ->  | E200: =#REF! ->  | F200: Hombre | H200: =#REF! ->  | I200: 199
... 4300 more rows
